Workbook

Sheet CV Rotina <2A - procedência
D1: AO NASCER | L1: MENOR DE 1 ANO | V1: 1 ANO | AB1: MENOR DE 2 ANOS | AE1: MENOR DE 1 ANO
A2: Regional | B2: Município | C2: ¹População < 1 ano e 1 ano | D2: Doses Aplicadas HB ≤30 dias | E2: Cobertura Vacinal HB até 30 dias | F2: Doses Aplicadas HB ≤2 dias | G2: Cobertura Vacinal HB até 2 dias | H2: Doses Aplicadas HB ≤1 dia | I2: Cobertura Vacinal HB até 1 dia | J2: Doses Aplicadas BCG | K2: Cobertura Vacinal BCG | L2: Doses Aplicadas Pentavalente | M2: Cobertura Vacinal Pentavalente | N2: Doses Aplicadas Poliomielite | O2: Cobertura Vacinal Poliomielite | P2: Doses Aplicadas Pneumo 10 | Q2: Cobertura Vacinal Pneumo 10 | R2: Doses Aplicadas Meningo C | S2: Cobertura Vacinal Meningo C | T2: Doses Aplicadas Febre Amarela | U2: Cobertura Vacinal Febre Amarela | V2: Doses Aplicadas Hepatite A | W2: Cobertura Vacinal Hepatite A | X2: Doses Aplicadas de Tríplice Viral | Y2: Cobertura Vacinal Tríplice Viral | Z2: Doses Aplicadas Varicela | AA2: Cobertura Varicela | AB2: Doses Aplicadas Rotavírus | AC2: Cobertura Vacinal Rotavírus | AE2: Doses Aplicadas COVID-19 | AF2: Cobertura Vacinal COVID-19 | AH2: VACINAS QUE ATINGIRAM A META DE CV | AI2: HOMOGENEIDADE ENTRE AS 10 VACINAS | AJ2: VACINAS DO PQA-VS QUE ATINGIRAM A META DE CV | AK2: HOMOGENEIDADE ENTRE AS VACINAS DO PQA-VS
A3: Metropolitana | B3: Afonso Cláudio | C3: 361 | D3: 323 | E3: =D3/C3 -> 0.8947368421 | F3: 272 | G3: =F3/C3 -> 0.7534626039 | H3: 217 | I3: =H3/C3 -> 0.6011080332 | J3: 326 | K3: =J3/C3 -> 0.9030470914 | L3: 346 | M3: =L3/C3 -> 0.9584487535 | N3: 343 | O3: =N3/C3 -> 0.9501385042 | P3: 330 | Q3: =P3/C3 -> 0.9141274238 | R3: 345 | S3: =R3/C3 -> 0.9556786704 | T3: 293 | U3: =T3/C3 -> 0.811634349 | V3: 342 | W3: =V3/C3 -> 0.9473684211 | X3: 342 | Y3: =X3/C3 -> 0.9473684211 | Z3: 364 | AA3: =Z3/C3 -> 1.008310249 | AB3: 337 | AC3: =AB3/C3 -> 0.9335180055 | AE3: 1 | AF3: =AE3/C3 -> 0.002770083102 | AH3: =cálculos1!O3 -> 5 | AI3: =AH3*0.1 -> 0.5 | AJ3: =cálculos1!P3 -> 2 | AK3: =AJ3*0.25 -> 0.5 | AM3: LEGENDA / HOMOGENEIDADE PQA-VS
A4: Norte | B4: Água Doce do Norte | C4: 154 | D4: 42 | E4: =D4/C4 -> 0.2727272727 | F4: 1 | G4: =F4/C4 -> 0.006493506494 | H4: 0 | I4: =H4/C4 -> 0 | J4: 41 | K4: 0.2662337662 | L4: 127 | M4: 0.8246753247 | N4: 125 | O4: 0.8116883117 | P4: 117 | Q4: 0.7597402597 | R4: 138 | S4: 0.8961038961 | T4: 130 | U4: 0.8441558442 | V4: 149 | W4: 0.9675324675 | X4: 165 | Y4: 1.071428571 | Z4: 89 | AA4: 0.5779220779 | AB4: 116 | AC4: =AB4/C4 -> 0.7532467532 | AE4: 1 | AF4: 0.006493506494 | AH4: =cálculos1!O4 -> 2 | AI4: =AH4*0.1 -> 0.2 | AJ4: =cálculos1!P4 -> 1 | AK4: =AJ4*0.25 -> 0.25 | AM4: PERCENTUAL | AN4: Nº DE MUNICÍPIOS
A5: Central | B5: Águia Branca | C5: 167 | D5: 73 | E5: 0.4371257485 | F5: 2 | G5: 0.0119760479 | H5: 0 | I5: 0 | J5: 86 | K5: 0.5149700599 | L5: 143 | M5: 0.8562874251 | N5: 144 | O5: 0.8622754491 | P5: 143 | Q5: 0.8562874251 | R5: 151 | S5: 0.9041916168 | T5: 123 | U5: 0.7365269461 | V5: 152 | W5: 0.9101796407 | X5: 151 | Y5: 0.9041916168 | Z5: 161 | AA5: 0.9640718563 | AB5: 152 | AC5: 0.9101796407 | AE5: 1 | AF5: 0.005988023952 | AH5: =cálculos1!O5 -> 1 | AI5: 0.1 | AJ5: =cálculos1!P5 -> 0 | AK5: 0 | AM5: 0 | AN5: =COUNTIF($AK$3:$AK$80,"=0") -> 22
A6: Sul | B6: Alegre | C6: 322 | D6: 128 | E6: 0.397515528 | F6: 18 | G6: 0.05590062112 | H6: 5 | I6: 0.01552795031 | J6: 136 | K6: 0.4223602484 | L6: 316 | M6: 0.9813664596 | N6: 307 | O6: 0.9534161491 | P6: 322 | Q6: 1 | R6: 345 | S6: 1.071428571 | T6: 271 | U6: 0.8416149068 | V6: 328 | W6: 1.01863354 | X6: 330 | Y6: 1.02484472 | Z6: 351 | AA6: 1.090062112 | AB6: 322 | AC6: 1 | AE6: 22 | AF6: 0.06832298137 | AH6: =cálculos1!O6 -> 7 | AI6: 0.7 | AJ6: =cálculos1!P6 -> 4 | AK6: 1 | AM6: 0.25 | AN6: =COUNTIF($AK$3:$AK$80,"=0,25") -> 18
A7: Sul | B7: Alfredo Chaves | C7: 119 | D7: 17 | E7: 0.1428571429 | F7: 2 | G7: 0.01680672269 | H7: 1 | I7: 0.008403361345 | J7: 53 | K7: 0.4453781513 | L7: 105 | M7: 0.8823529412 | N7: 103 | O7: 0.8655462185 | P7: 81 | Q7: 0.6806722689 | R7: 95 | S7: 0.7983193277 | T7: 97 | U7: 0.8151260504 | V7: 133 | W7: 1.117647059 | X7: 119 | Y7: 1 | Z7: 130 | AA7: 1.092436975 | AB7: 104 | AC7: 0.8739495798 | AE7: 1 | AF7: 0.008403361345 | AH7: =cálculos1!O7 -> 3 | AI7: 0.3 | AJ7: =cálculos1!P7 -> 1 | AK7: 0.25 | AM7: 0.5 | AN7: =COUNTIF($AK$3:$AK$80,"=0,5") -> 4
A8: Central | B8: Alto Rio Novo | C8: 98 | D8: 33 | E8: 0.3367346939 | F8: 2 | G8: 0.02040816327 | H8: 1 | I8: 0.01020408163 | J8: 42 | K8: 0.4285714286 | L8: 100 | M8: 1.020408163 | N8: 100 | O8: 1.020408163 | P8: 100 | Q8: 1.020408163 | R8: 102 | S8: 1.040816327 | T8: 94 | U8: 0.9591836735 | V8: 98 | W8: 1 | X8: 100 | Y8: 1.020408163 | Z8: 102 | AA8: 1.040816327 | AB8: 106 | AC8: 1.081632653 | AE8: 0 | AF8: 0 | AH8: =cálculos1!O8 -> 8 | AI8: 0.8 | AJ8: =cálculos1!P8 -> 4 | AK8: 1 | AM8: 0.75 | AN8: =COUNTIF($AK$3:$AK$80,"=0,75") -> 10
A9: Sul | B9: Anchieta | C9: 329 | D9: 34 | E9: 0.103343465 | F9: 2 | G9: 0.006079027356 | H9: 0 | I9: 0 | J9: 151 | K9: 0.4589665653 | L9: 341 | M9: 1.036474164 | N9: 342 | O9: 1.039513678 | P9: 318 | Q9: 0.9665653495 | R9: 328 | S9: 0.9969604863 | T9: 308 | U9: 0.9361702128 | V9: 353 | W9: 1.072948328 | X9: 385 | Y9: 1.170212766 | Z9: 357 | AA9: 1.085106383 | AB9: 348 | AC9: 1.05775076 | AE9: 22 | AF9: 0.06686930091 | AH9: =cálculos1!O9 -> 7 | AI9: 0.7 | AJ9: =cálculos1!P9 -> 4 | AK9: 1 | AM9: 1 | AN9: =COUNTIF($AK$3:$AK$80,"=1,0") -> 24
A10: Sul | B10: Apiacá | C10: 69 | D10: 6 | E10: 0.08695652174 | F10: 0 | G10: 0 | H10: 0 | I10: 0 | J10: 57 | K10: 0.8260869565 | L10: 72 | M10: 1.043478261 | N10: 71 | O10: 1.028985507 | P10: 75 | Q10: 1.086956522 | R10: 76 | S10: 1.101449275 | T10: 55 | U10: 0.7971014493 | V10: 67 | W10: 0.9710144928 | X10: 70 | Y10: 1.014492754 | Z10: 72 | AA10: 1.043478261 | AB10: 74 | AC10: 1.072463768 | AE10: 0 | AF10: 0 | AH10: =cálculos1!O10 -> 7 | AI10: 0.7 | AJ10: =cálculos1!P10 -> 4 | AK10: 1
A11: Metropolitana | B11: Aracruz | C11: 1409 | D11: 1187 | E11: 0.8424414478 | F11: 722 | G11: 0.5124201561 | H11: 452 | I11: 0.32079489 | J11: 1211 | K11: 0.8594748048 | L11: 1257 | M11: 0.8921220724 | N11: 1252 | O11: 0.8885734564 | P11: 1229 | Q11: 0.8722498226 | R11: 1264 | S11: 0.8970901348 | T11: 1034 | U11: 0.733853797 | V11: 1368 | W11: 0.9709013485 | X11: 1381 | Y11: 0.9801277502 | Z11: 1369 | AA11: 0.9716110717 | AB11: 1337 | AC11: 0.948899929 | AE11: 58 | AF11: 0.04116394606 | AH11: =cálculos1!O11 -> 3 | AI11: 0.3 | AJ11: =cálculos1!P11 -> 1 | AK11: 0.25
A12: Sul | B12: Atilio Vivacqua | C12: 143 | D12: 10 | E12: 0.06993006993 | F12: 0 | G12: 0 | H12: 0 | I12: 0 | J12: 16 | K12: 0.1118881119 | L12: 156 | M12: 1.090909091 | N12: 154 | O12: 1.076923077 | P12: 152 | Q12: 1.062937063 | R12: 158 | S12: 1.104895105 | T12: 137 | U12: 0.958041958 | V12: 142 | W12: 0.993006993 | X12: 160 | Y12: 1.118881119 | Z12: 141 | AA12: 0.986013986 | AB12: 154 | AC12: 1.076923077 | AE12: 4 | AF12: 0.02797202797 | AH12: =cálculos1!O12 -> 8 | AI12: 0.8 | AJ12: =cálculos1!P12 -> 4 | AK12: 1 | AM12: LEGENDA / HOMOGENEIDADE 10 VACINAS
A13: Central | B13: Baixo Guandu | C13: 364 | D13: 79 | E13: 0.217032967 | F13: 8 | G13: 0.02197802198 | H13: 3 | I13: 0.008241758242 | J13: 162 | K13: 0.4450549451 | L13: 359 | M13: 0.9862637363 | N13: 357 | O13: 0.9807692308 | P13: 368 | Q13: 1.010989011 | R13: 355 | S13: 0.9752747253 | T13: 303 | U13: 0.8324175824 | V13: 379 | W13: 1.041208791 | X13: 357 | Y13: 0.9807692308 | Z13: 359 | AA13: 0.9862637363 | AB13: 362 | AC13: 0.9945054945 | AE13: 0 | AF13: 0 | AH13: =cálculos1!O13 -> 7 | AI13: 0.7 | AJ13: =cálculos1!P13 -> 4 | AK13: 1 | AM13: PERCENTUAL | AN13: Nº DE MUNICÍPIOS
A14: Norte | B14: Barra de São Francisco | C14: 621 | D14: 416 | E14: 0.6698872786 | F14: 213 | G14: 0.3429951691 | H14: 186 | I14: 0.2995169082 | J14: 437 | K14: 0.7037037037 | L14: 544 | M14: 0.8760064412 | N14: 534 | O14: 0.8599033816 | P14: 525 | Q14: 0.845410628 | R14: 527 | S14: 0.8486312399 | T14: 435 | U14: 0.7004830918 | V14: 495 | W14: 0.7971014493 | X14: 540 | Y14: 0.8695652174 | Z14: 535 | AA14: 0.8615136876 | AB14: 546 | AC14: 0.8792270531 | AE14: 0 | AF14: 0 | AH14: =cálculos1!O14 -> 0 | AI14: 0 | AJ14: =cálculos1!P14 -> 0 | AK14: 0 | AM14: 0 | AN14: =COUNTIF($AI$3:$AI$80,"=0") -> 15
A15: Norte | B15: Boa Esperança | C15: 231 | D15: 14 | E15: 0.06060606061 | F15: 1 | G15: 0.004329004329 | H15: 0 | I15: 0 | J15: 76 | K15: 0.329004329 | L15: 200 | M15: 0.8658008658 | N15: 201 | O15: 0.8701298701 | P15: 217 | Q15: 0.9393939394 | R15: 199 | S15: 0.8614718615 | T15: 166 | U15: 0.7186147186 | V15: 188 | W15: 0.8138528139 | X15: 204 | Y15: 0.8831168831 | Z15: 181 | AA15: 0.7835497835 | AB15: 221 | AC15: 0.9567099567 | AE15: 2 | AF15: 0.008658008658 | AH15: =cálculos1!O15 -> 0 | AI15: 0 | AJ15: =cálculos1!P15 -> 0 | AK15: 0 | AM15: 0.1 | AN15: =COUNTIFS($AI$3:$AI$80,">=0,10",$AI$3:$AI$80,"<0,20") -> 9
A16: Sul | B16: Bom Jesus do Norte | C16: 79 | D16: 39 | E16: 0.4936708861 | F16: 1 | G16: 0.01265822785 | H16: 0 | I16: 0 | J16: 90 | K16: 1.139240506 | L16: 110 | M16: 1.392405063 | N16: 110 | O16: 1.392405063 | P16: 110 | Q16: 1.392405063 | R16: 103 | S16: 1.303797468 | T16: 90 | U16: 1.139240506 | V16: 102 | W16: 1.291139241 | X16: 111 | Y16: 1.405063291 | Z16: 95 | AA16: 1.202531646 | AB16: 117 | AC16: 1.481012658 | AE16: 6 | AF16: 0.07594936709 | AH16: =cálculos1!O16 -> 9 | AI16: 0.9 | AJ16: =cálculos1!P16 -> 4 | AK16: 1 | AM16: 0.2 | AN16: =COUNTIFS($AI$3:$AI$80,">=0,20",$AI$3:$AI$80,"<0,30") -> 8
A17: Metropolitana | B17: Brejetuba | C17: 228 | D17: 19 | E17: 0.08333333333 | F17: 1 | G17: 0.004385964912 | H17: 0 | I17: 0 | J17: 136 | K17: 0.5964912281 | L17: 189 | M17: 0.8289473684 | N17: 197 | O17: 0.8640350877 | P17: 198 | Q17: 0.8684210526 | R17: 207 | S17: 0.9078947368 | T17: 186 | U17: 0.8157894737 | V17: 196 | W17: 0.8596491228 | X17: 209 | Y17: 0.9166666667 | Z17: 228 | AA17: 1 | AB17: 221 | AC17: 0.9692982456 | AE17: 2 | AF17: 0.008771929825 | AH17: =cálculos1!O17 -> 1 | AI17: 0.1 | AJ17: =cálculos1!P17 -> 0 | AK17: 0 | AM17: 0.3 | AN17: =COUNTIFS($AI$3:$AI$80,">=0,30",$AI$3:$AI$80,"<0,40") -> 8
A18: Sul | B18: Cachoeiro de Itapemirim | C18: 2389 | D18: 5202 | E18: 2.177480117 | F18: 4743 | G18: 1.985349519 | H18: 3060 | I18: 1.280870657 | J18: 5189 | K18: 2.17203851 | L18: 2218 | M18: 0.9284219339 | N18: 2199 | O18: 0.9204688154 | P18: 2290 | Q18: 0.958560067 | R18: 2272 | S18: 0.9510255337 | T18: 1615 | U18: 0.6760150691 | V18: 2195 | W18: 0.9187944747 | X18: 2372 | Y18: 0.9928840519 | Z18: 2096 | AA18: 0.8773545416 | AB18: 2363 | AC18: 0.9891167853 | AE18: 70 | AF18: 0.02930096275 | AH18: =cálculos1!O18 -> 4 | AI18: 0.4 | AJ18: =cálculos1!P18 -> 2 | AK18: 0.5 | AM18: 0.4 | AN18: =COUNTIFS($AI$3:$AI$80,">=0,40",$AI$3:$AI$80,"<0,50") -> 2
A19: Metropolitana | B19: Cariacica | C19: 4798 | D19: 2456 | E19: 0.51187995 | F19: 1363 | G19: 0.2840766986 | H19: 719 | I19: 0.1498541059 | J19: 2396 | K19: 0.4993747395 | L19: 4046 | M19: 0.8432680283 | N19: 4002 | O19: 0.8340975406 | P19: 3836 | Q19: 0.7994997916 | R19: 4152 | S19: 0.8653605669 | T19: 3144 | U19: 0.6552730304 | V19: 4263 | W19: 0.8884952063 | X19: 4475 | Y19: 0.9326802835 | Z19: 3632 | AA19: 0.7569820759 | AB19: 4369 | AC19: 0.9105877449 | AE19: 150 | AF19: 0.03126302626 | AH19: =cálculos1!O19 -> 0 | AI19: 0 | AJ19: =cálculos1!P19 -> 0 | AK19: 0 | AM19: 0.5 | AN19: =COUNTIFS($AI$3:$AI$80,">=0,50",$AI$3:$AI$80,"<0,60") -> 7
A20: Sul | B20: Castelo | C20: 398 | D20: 253 | E20: 0.635678392 | F20: 174 | G20: 0.4371859296 | H20: 127 | I20: 0.3190954774 | J20: 270 | K20: 0.6783919598 | L20: 413 | M20: 1.037688442 | N20: 408 | O20: 1.025125628 | P20: 395 | Q20: 0.9924623116 | R20: 428 | S20: 1.075376884 | T20: 353 | U20: 0.8869346734 | V20: 440 | W20: 1.105527638 | X20: 425 | Y20: 1.067839196 | Z20: 377 | AA20: 0.9472361809 | AB20: 426 | AC20: 1.070351759 | AE20: 3 | AF20: 0.007537688442 | AH20: =cálculos1!O20 -> 6 | AI20: 0.6 | AJ20: =cálculos1!P20 -> 4 | AK20: 1 | AM20: 0.6 | AN20: =COUNTIFS($AI$3:$AI$80,">=0,60",$AI$3:$AI$80,"<0,70") -> 12
A21: Central | B21: Colatina | C21: 1470 | D21: 3451 | E21: 2.347619048 | F21: 2632 | G21: 1.79047619 | H21: 2283 | I21: 1.553061224 | J21: 3398 | K21: 2.311564626 | L21: 1378 | M21: 0.937414966 | N21: 1374 | O21: 0.9346938776 | P21: 1371 | Q21: 0.9326530612 | R21: 1430 | S21: 0.9727891156 | T21: 1054 | U21: 0.7170068027 | V21: 1354 | W21: 0.9210884354 | X21: 1433 | Y21: 0.974829932 | Z21: 1260 | AA21: 0.8571428571 | AB21: 1426 | AC21: 0.9700680272 | AE21: 23 | AF21: 0.0156462585 | AH21: =cálculos1!O21 -> 3 | AI21: 0.3 | AJ21: =cálculos1!P21 -> 1 | AK21: 0.25 | AM21: 0.7 | AN21: =COUNTIFS($AI$3:$AI$80,">=0,70",$AI$3:$AI$80,"<0,80") -> 9
A22: Norte | B22: Conceição da Barra | C22: 384 | D22: 16 | E22: 0.04166666667 | F22: 0 | G22: 0 | H22: 0 | I22: 0 | J22: 27 | K22: 0.0703125 | L22: 366 | M22: 0.953125 | N22: 368 | O22: 0.9583333333 | P22: 343 | Q22: 0.8932291667 | R22: 349 | S22: 0.9088541667 | T22: 328 | U22: 0.8541666667 | V22: 410 | W22: 1.067708333 | X22: 412 | Y22: 1.072916667 | Z22: 387 | AA22: 1.0078125 | AB22: 364 | AC22: 0.9479166667 | AE22: 6 | AF22: 0.015625 | AH22: =cálculos1!O22 -> 5 | AI22: 0.5 | AJ22: =cálculos1!P22 -> 3 | AK22: 0.75 | AM22: 0.8 | AN22: =COUNTIFS($AI$3:$AI$80,">=0,80",$AI$3:$AI$80,"<0,90") -> 7
A23: Metropolitana | B23: Conceição do Castelo | C23: 182 | D23: 5 | E23: 0.02747252747 | F23: 0 | G23: 0 | H23: 0 | I23: 0 | J23: 39 | K23: 0.2142857143 | L23: 159 | M23: 0.8736263736 | N23: 150 | O23: 0.8241758242 | P23: 104 | Q23: 0.5714285714 | R23: 146 | S23: 0.8021978022 | T23: 136 | U23: 0.7472527473 | V23: 141 | W23: 0.7747252747 | X23: 159 | Y23: 0.8736263736 | Z23: 161 | AA23: 0.8846153846 | AB23: 161 | AC23: 0.8846153846 | AE23: 7 | AF23: 0.03846153846 | AH23: =cálculos1!O23 -> 0 | AI23: 0 | AJ23: =cálculos1!P23 -> 0 | AK23: 0 | AM23: 0.9 | AN23: =COUNTIFS($AI$3:$AI$80,">=0,90",$AI$3:$AI$80,"<1,0") -> 1
A24: Sul | B24: Divino de São Lourenço | C24: 65 | D24: 54 | E24: 0.8307692308 | F24: 2 | G24: 0.03076923077 | H24: 0 | I24: 0 | J24: 57 | K24: 0.8769230769 | L24: 47 | M24: 0.7230769231 | N24: 47 | O24: 0.7230769231 | P24: 49 | Q24: 0.7538461538 | R24: 51 | S24: 0.7846153846 | T24: 58 | U24: 0.8923076923 | V24: 68 | W24: 1.046153846 | X24: 72 | Y24: 1.107692308 | Z24: 74 | AA24: 1.138461538 | AB24: 51 | AC24: 0.7846153846 | AE24: 1 | AF24: 0.01538461538 | AH24: =cálculos1!O24 -> 3 | AI24: 0.3 | AJ24: =cálculos1!P24 -> 1 | AK24: 0.25 | AM24: 1 | AN24: =COUNTIF($AI$3:$AI$80,">=1,0") -> 0
A25: Metropolitana | B25: Domingos Martins | C25: 425 | D25: 25 | E25: 0.05882352941 | F25: 1 | G25: 0.002352941176 | H25: 0 | I25: 0 | J25: 65 | K25: 0.1529411765 | L25: 432 | M25: 1.016470588 | N25: 428 | O25: 1.007058824 | P25: 375 | Q25: 0.8823529412 | R25: 400 | S25: 0.9411764706 | T25: 374 | U25: 0.88 | V25: 424 | W25: 0.9976470588 | X25: 418 | Y25: 0.9835294118 | Z25: 443 | AA25: 1.042352941 | AB25: 416 | AC25: 0.9788235294 | AE25: 33 | AF25: 0.07764705882 | AH25: =cálculos1!O25 -> 5 | AI25: 0.5 | AJ25: =cálculos1!P25 -> 3 | AK25: 0.75
A26: Sul | B26: Dores do Rio Preto | C26: 96 | D26: 47 | E26: 0.4895833333 | F26: 3 | G26: 0.03125 | H26: 0 | I26: 0 | J26: 72 | K26: 0.75 | L26: 120 | M26: 1.25 | N26: 120 | O26: 1.25 | P26: 82 | Q26: 0.8541666667 | R26: 111 | S26: 1.15625 | T26: 90 | U26: 0.9375 | V26: 105 | W26: 1.09375 | X26: 111 | Y26: 1.15625 | Z26: 97 | AA26: 1.010416667 | AB26: 120 | AC26: 1.25 | AE26: 1 | AF26: 0.01041666667 | AH26: =cálculos1!O26 -> 6 | AI26: 0.6 | AJ26: =cálculos1!P26 -> 3 | AK26: 0.75
A27: Norte | B27: Ecoporanga | C27: 240 | D27: 82 | E27: 0.3416666667 | F27: 0 | G27: 0 | H27: 0 | I27: 0 | J27: 83 | K27: 0.3458333333 | L27: 248 | M27: 1.033333333 | N27: 244 | O27: 1.016666667 | P27: 245 | Q27: 1.020833333 | R27: 244 | S27: 1.016666667 | T27: 204 | U27: 0.85 | V27: 240 | W27: 1 | X27: 250 | Y27: 1.041666667 | Z27: 219 | AA27: 0.9125 | AB27: 255 | AC27: 1.0625 | AE27: 1 | AF27: 0.004166666667 | AH27: =cálculos1!O27 -> 6 | AI27: 0.6 | AJ27: =cálculos1!P27 -> 4 | AK27: 1
A28: Metropolitana | B28: Fundão | C28: 223 | D28: 30 | E28: 0.134529148 | F28: 0 | G28: 0 | H28: 0 | I28: 0 | J28: 36 | K28: 0.1614349776 | L28: 240 | M28: 1.076233184 | N28: 241 | O28: 1.080717489 | P28: 214 | Q28: 0.9596412556 | R28: 238 | S28: 1.067264574 | T28: 167 | U28: 0.7488789238 | V28: 212 | W28: 0.9506726457 | X28: 230 | Y28: 1.031390135 | Z28: 214 | AA28: 0.9596412556 | AB28: 242 | AC28: 1.085201794 | AE28: 3 | AF28: 0.0134529148 | AH28: =cálculos1!O28 -> 7 | AI28: 0.7 | AJ28: =cálculos1!P28 -> 4 | AK28: 1
A29: Central | B29: Governador Lindenberg | C29: 145 | D29: 58 | E29: 0.4 | F29: 4 | G29: 0.0275862069 | H29: 1 | I29: 0.006896551724 | J29: 47 | K29: 0.324137931 | L29: 103 | M29: 0.7103448276 | N29: 104 | O29: 0.7172413793 | P29: 104 | Q29: 0.7172413793 | R29: 110 | S29: 0.7586206897 | T29: 93 | U29: 0.6413793103 | V29: 119 | W29: 0.8206896552 | X29: 125 | Y29: 0.8620689655 | Z29: 114 | AA29: 0.7862068966 | AB29: 119 | AC29: 0.8206896552 | AE29: 0 | AF29: 0 | AH29: =cálculos1!O29 -> 0 | AI29: 0 | AJ29: =cálculos1!P29 -> 0 | AK29: 0
A30: Sul | B30: Guaçuí | C30: 387 | D30: 257 | E30: 0.6640826873 | F30: 64 | G30: 0.165374677 | H30: 52 | I30: 0.1343669251 | J30: 267 | K30: 0.6899224806 | L30: 309 | M30: 0.7984496124 | N30: 305 | O30: 0.7881136951 | P30: 321 | Q30: 0.8294573643 | R30: 319 | S30: 0.8242894057 | T30: 269 | U30: 0.6950904393 | V30: 319 | W30: 0.8242894057 | X30: 343 | Y30: 0.8863049096 | Z30: 310 | AA30: 0.8010335917 | AB30: 330 | AC30: 0.8527131783 | AE30: 13 | AF30: 0.03359173127 | AH30: =cálculos1!O30 -> 0 | AI30: 0 | AJ30: =cálculos1!P30 -> 0 | AK30: 0
A31: Metropolitana | B31: Guarapari | C31: 1659 | D31: 1382 | E31: 0.833031947 | F31: 1135 | G31: 0.6841470766 | H31: 953 | I31: 0.5744424352 | J31: 1388 | K31: 0.8366485835 | L31: 1372 | M31: 0.8270042194 | N31: 1362 | O31: 0.8209764919 | P31: 1455 | Q31: 0.877034358 | R31: 1437 | S31: 0.8661844485 | T31: 954 | U31: 0.575045208 | V31: 1382 | W31: 0.833031947 | X31: 1449 | Y31: 0.8734177215 | Z31: 1216 | AA31: 0.7329716697 | AB31: 1539 | AC31: 0.9276672694 | AE31: 35 | AF31: 0.02109704641 | AH31: =cálculos1!O31 -> 0 | AI31: 0 | AJ31: =cálculos1!P31 -> 0 | AK31: 0
A32: Metropolitana | B32: Ibatiba | C32: 398 | D32: 264 | E32: 0.6633165829 | F32: 15 | G32: 0.03768844221 | H32: 5 | I32: 0.01256281407 | J32: 308 | K32: 0.7738693467 | L32: 390 | M32: 0.9798994975 | N32: 385 | O32: 0.9673366834 | P32: 370 | Q32: 0.9296482412 | R32: 390 | S32: 0.9798994975 | T32: 342 | U32: 0.8592964824 | V32: 419 | W32: 1.052763819 | X32: 409 | Y32: 1.027638191 | Z32: 388 | AA32: 0.9748743719 | AB32: 396 | AC32: 0.9949748744 | AE32: 13 | AF32: 0.03266331658 | AH32: =cálculos1!O32 -> 6 | AI32: 0.6 | AJ32: =cálculos1!P32 -> 3 | AK32: 0.75
A33: Metropolitana | B33: Ibiraçu | C33: 127 | D33: 38 | E33: 0.2992125984 | F33: 2 | G33: 0.0157480315 | H33: 0 | I33: 0 | J33: 37 | K33: 0.2913385827 | L33: 122 | M33: 0.9606299213 | N33: 120 | O33: 0.9448818898 | P33: 114 | Q33: 0.8976377953 | R33: 124 | S33: 0.9763779528 | T33: 105 | U33: 0.8267716535 | V33: 139 | W33: 1.094488189 | X33: 155 | Y33: 1.220472441 | Z33: 142 | AA33: 1.118110236 | AB33: 114 | AC33: 0.8976377953 | AE33: 1 | AF33: 0.007874015748 | AH33: =cálculos1!O33 -> 5 | AI33: 0.5 | AJ33: =cálculos1!P33 -> 2 | AK33: 0.5
A34: Sul | B34: Ibitirama | C34: 140 | D34: 86 | E34: 0.6142857143 | F34: 8 | G34: 0.05714285714 | H34: 0 | I34: 0 | J34: 97 | K34: 0.6928571429 | L34: 149 | M34: 1.064285714 | N34: 146 | O34: 1.042857143 | P34: 149 | Q34: 1.064285714 | R34: 152 | S34: 1.085714286 | T34: 119 | U34: 0.85 | V34: 129 | W34: 0.9214285714 | X34: 142 | Y34: 1.014285714 | Z34: 135 | AA34: 0.9642857143 | AB34: 158 | AC34: 1.128571429 | AE34: 12 | AF34: 0.08571428571 | AH34: =cálculos1!O34 -> 6 | AI34: 0.6 | AJ34: =cálculos1!P34 -> 4 | AK34: 1
A35: Sul | B35: Iconha | C35: 139 | D35: 29 | E35: 0.2086330935 | F35: 1 | G35: 0.007194244604 | H35: 0 | I35: 0 | J35: 65 | K35: =J35/C35 -> 0.4676258993 | L35: 113 | M35: =L35/C35 -> 0.8129496403 | N35: 113 | O35: =N35/C35 -> 0.8129496403 | P35: 103 | Q35: =P35/C35 -> 0.7410071942 | R35: 119 | S35: =R35/C35 -> 0.8561151079 | T35: 108 | U35: =T35/C35 -> 0.7769784173 | V35: 103 | W35: =V35/C35 -> 0.7410071942 | X35: 108 | Y35: =X35/C35 -> 0.7769784173 | Z35: 131 | AA35: =Z35/C35 -> 0.9424460432 | AB35: 119 | AC35: 0.8561151079 | AE35: 1 | AF35: =AE35/C35 -> 0.007194244604 | AH35: =cálculos1!O35 -> 0 | AI35: 0 | AJ35: =cálculos1!P35 -> 0 | AK35: 0
A36: Sul | B36: Irupi | C36: 202 | D36: 89 | E36: 0.4405940594 | F36: 6 | G36: 0.0297029703 | H36: 3 | I36: 0.01485148515 | J36: 125 | K36: 0.6188118812 | L36: 184 | M36: 0.9108910891 | N36: 179 | O36: 0.8861386139 | P36: 171 | Q36: 0.8465346535 | R36: 185 | S36: 0.9158415842 | T36: 167 | U36: 0.8267326733 | V36: 219 | W36: 1.084158416 | X36: 194 | Y36: 0.9603960396 | Z36: 174 | AA36: 0.8613861386 | AB36: 182 | AC36: 0.900990099 | AE36: 15 | AF36: 0.07425742574 | AH36: =cálculos1!O36 -> 2 | AI36: 0.2 | AJ36: =cálculos1!P36 -> 1 | AK36: 0.25
A37: Metropolitana | B37: Itaguaçu | C37: 122 | D37: 22 | E37: 0.1803278689 | F37: 1 | G37: 0.008196721311 | H37: 0 | I37: 0 | J37: 27 | K37: 0.2213114754 | L37: 122 | M37: 1 | N37: 122 | O37: 1 | P37: 105 | Q37: 0.8606557377 | R37: 110 | S37: 0.9016393443 | T37: 139 | U37: 1.139344262 | V37: 155 | W37: 1.270491803 | X37: 156 | Y37: 1.278688525 | Z37: 160 | AA37: 1.31147541 | AB37: 119 | AC37: 0.9754098361 | AE37: 12 | AF37: 0.09836065574 | AH37: =cálculos1!O37 -> 6 | AI37: 0.6 | AJ37: =cálculos1!P37 -> 3 | AK37: 0.75
A38: Sul | B38: Itapemirim | C38: 520 | D38: 835 | E38: 1.605769231 | F38: 809 | G38: 1.555769231 | H38: 807 | I38: 1.551923077 | J38: 246 | K38: 0.4730769231 | L38: 408 | M38: 0.7846153846 | N38: 385 | O38: 0.7403846154 | P38: 454 | Q38: 0.8730769231 | R38: 442 | S38: 0.85 | T38: 288 | U38: 0.5538461538 | V38: 416 | W38: 0.8 | X38: 452 | Y38: 0.8692307692 | Z38: 369 | AA38: 0.7096153846 | AB38: 459 | AC38: 0.8826923077 | AE38: 3 | AF38: 0.005769230769 | AH38: =cálculos1!O38 -> 0 | AI38: 0 | AJ38: =cálculos1!P38 -> 0 | AK38: 0
A39: Metropolitana | B39: Itarana | C39: 137 | D39: 12 | E39: 0.08759124088 | F39: 2 | G39: 0.01459854015 | H39: 0 | I39: 0 | J39: 20 | K39: 0.1459854015 | L39: 111 | M39: 0.8102189781 | N39: 111 | O39: 0.8102189781 | P39: 101 | Q39: 0.7372262774 | R39: 106 | S39: 0.7737226277 | T39: 111 | U39: 0.8102189781 | V39: 139 | W39: 1.01459854 | X39: 134 | Y39: 0.9781021898 | Z39: 141 | AA39: 1.02919708 | AB39: 110 | AC39: 0.802919708 | AE39: 1 | AF39: 0.007299270073 | AH39: =cálculos1!O39 -> 3 | AI39: 0.3 | AJ39: =cálculos1!P39 -> 1 | AK39: 0.25
A40: Sul | B40: Iúna | C40: 373 | D40: 260 | E40: 0.6970509383 | F40: 22 | G40: 0.05898123324 | H40: 7 | I40: 0.01876675603 | J40: 303 | K40: 0.8123324397 | L40: 366 | M40: 0.981233244 | N40: 369 | O40: 0.9892761394 | P40: 363 | Q40: 0.9731903485 | R40: 364 | S40: 0.9758713137 | T40: 325 | U40: 0.8713136729 | V40: 429 | W40: 1.150134048 | X40: 403 | Y40: 1.080428954 | Z40: 389 | AA40: 1.042895442 | AB40: 382 | AC40: 1.024128686 | AE40: 1 | AF40: 0.002680965147 | AH40: =cálculos1!O40 -> 7 | AI40: 0.7 | AJ40: =cálculos1!P40 -> 4 | AK40: 1
A41: Norte | B41: Jaguaré | C41: 461 | D41: 336 | E41: 0.7288503254 | F41: 303 | G41: 0.6572668113 | H41: 294 | I41: 0.6377440347 | J41: 325 | K41: 0.704989154 | L41: 408 | M41: 0.885032538 | N41: 402 | O41: 0.8720173536 | P41: 406 | Q41: 0.8806941432 | R41: 424 | S41: 0.9197396963 | T41: 362 | U41: 0.7852494577 | V41: 477 | W41: 1.034707158 | X41: 486 | Y41: 1.054229935 | Z41: 384 | AA41: 0.8329718004 | AB41: 436 | AC41: 0.9457700651 | AE41: 2 | AF41: 0.004338394794 | AH41: =cálculos1!O41 -> 2 | AI41: 0.2 | AJ41: =cálculos1!P41 -> 1 | AK41: 0.25
A42: Sul | B42: Jerônimo Monteiro | C42: 107 | D42: 6 | E42: 0.05607476636 | F42: 0 | G42: 0 | H42: 0 | I42: 0 | J42: 11 | K42: 0.1028037383 | L42: 102 | M42: 0.953271028 | N42: 102 | O42: 0.953271028 | P42: 99 | Q42: 0.9252336449 | R42: 109 | S42: 1.018691589 | T42: 94 | U42: 0.8785046729 | V42: 130 | W42: 1.214953271 | X42: 131 | Y42: 1.224299065 | Z42: 127 | AA42: 1.186915888 | AB42: 110 | AC42: 1.028037383 | AE42: 5 | AF42: 0.04672897196 | AH42: =cálculos1!O42 -> 6 | AI42: 0.6 | AJ42: =cálculos1!P42 -> 3 | AK42: 0.75
A43: Metropolitana | B43: João Neiva | C43: 141 | D43: 57 | E43: 0.4042553191 | F43: 13 | G43: 0.09219858156 | H43: 7 | I43: 0.04964539007 | J43: 42 | K43: 0.2978723404 | L43: 149 | M43: 1.056737589 | N43: 145 | O43: 1.028368794 | P43: 129 | Q43: 0.914893617 | R43: 140 | S43: 0.9929078014 | T43: 130 | U43: 0.9219858156 | V43: 156 | W43: 1.106382979 | X43: 157 | Y43: 1.113475177 | Z43: 152 | AA43: 1.078014184 | AB43: 136 | AC43: 0.9645390071 | AE43: 2 | AF43: 0.01418439716 | AH43: =cálculos1!O43 -> 6 | AI43: 0.6 | AJ43: =cálculos1!P43 -> 3 | AK43: 0.75
A44: Metropolitana | B44: Laranja da Terra | C44: 114 | D44: 9 | E44: 0.07894736842 | F44: 2 | G44: 0.01754385965 | H44: 1 | I44: 0.008771929825 | J44: 19 | K44: 0.1666666667 | L44: 126 | M44: 1.105263158 | N44: 126 | O44: 1.105263158 | P44: 129 | Q44: 1.131578947 | R44: 128 | S44: 1.122807018 | T44: 98 | U44: 0.8596491228 | V44: 104 | W44: 0.9122807018 | X44: 110 | Y44: 0.9649122807 | Z44: 118 | AA44: 1.035087719 | AB44: 134 | AC44: 1.175438596 | AE44: 9 | AF44: 0.07894736842 | AH44: =cálculos1!O44 -> 6 | AI44: 0.6 | AJ44: =cálculos1!P44 -> 4 | AK44: 1
A45: Central | B45: Linhares | C45: 2662 | D45: 3286 | E45: 1.234410218 | F45: 2697 | G45: 1.013148009 | H45: 2269 | I45: 0.8523666416 | J45: 3324 | K45: 1.248685199 | L45: 2280 | M45: 0.856498873 | N45: 2224 | O45: 0.8354620586 | P45: 2365 | Q45: 0.8884297521 | R45: 2450 | S45: 0.9203606311 | T45: 1778 | U45: 0.667918858 | V45: 2210 | W45: 0.830202855 | X45: 2414 | Y45: 0.9068369647 | Z45: 1987 | AA45: 0.7464312547 | AB45: 2450 | AC45: 0.9203606311 | AE45: 10 | AF45: 0.003756574005 | AH45: =cálculos1!O45 -> 1 | AI45: 0.1 | AJ45: =cálculos1!P45 -> 0 | AK45: 0
A46: Central | B46: Mantenópolis | C46: 140 | D46: 34 | E46: 0.2428571429 | F46: 1 | G46: 0.007142857143 | H46: 1 | I46: 0.007142857143 | J46: 39 | K46: 0.2785714286 | L46: 129 | M46: 0.9214285714 | N46: 124 | O46: 0.8857142857 | P46: 114 | Q46: 0.8142857143 | R46: 126 | S46: 0.9 | T46: 125 | U46: 0.8928571429 | V46: 145 | W46: 1.035714286 | X46: 147 | Y46: 1.05 | Z46: 160 | AA46: 1.142857143 | AB46: 120 | AC46: 0.8571428571 | AE46: 1 | AF46: 0.007142857143 | AH46: =cálculos1!O46 -> 3 | AI46: 0.3 | AJ46: =cálculos1!P46 -> 1 | AK46: 0.25
A47: Sul | B47: Marataízes | C47: 563 | D47: 37 | E47: 0.06571936057 | F47: 2 | G47: 0.003552397869 | H47: 0 | I47: 0 | J47: 254 | K47: 0.4511545293 | L47: 538 | M47: 0.9555950266 | N47: 476 | O47: 0.8454706927 | P47: 576 | Q47: 1.023090586 | R47: 543 | S47: 0.9644760213 | T47: 358 | U47: 0.6358792185 | V47: 578 | W47: 1.026642984 | X47: 582 | Y47: 1.03374778 | Z47: 495 | AA47: 0.8792184725 | AB47: 590 | AC47: 1.047957371 | AE47: 3 | AF47: 0.005328596803 | AH47: =cálculos1!O47 -> 5 | AI47: 0.5 | AJ47: =cálculos1!P47 -> 3 | AK47: 0.75
A48: Metropolitana | B48: Marechal Floriano | C48: 208 | D48: 35 | E48: 0.1682692308 | F48: 4 | G48: 0.01923076923 | H48: 0 | I48: 0 | J48: 34 | K48: 0.1634615385 | L48: 201 | M48: 0.9663461538 | N48: 203 | O48: 0.9759615385 | P48: 187 | Q48: 0.8990384615 | R48: 192 | S48: 0.9230769231 | T48: 167 | U48: 0.8028846154 | V48: 215 | W48: 1.033653846 | X48: 198 | Y48: 0.9519230769 | Z48: 214 | AA48: 1.028846154 | AB48: 205 | AC48: 0.9855769231 | AE48: 12 | AF48: 0.05769230769 | AH48: =cálculos1!O48 -> 5 | AI48: 0.5 | AJ48: =cálculos1!P48 -> 3 | AK48: 0.75
A49: Central | B49: Marilândia | C49: 170 | D49: 51 | E49: 0.3 | F49: 8 | G49: 0.04705882353 | H49: 0 | I49: 0 | J49: 65 | K49: 0.3823529412 | L49: 132 | M49: 0.7764705882 | N49: 134 | O49: 0.7882352941 | P49: 128 | Q49: 0.7529411765 | R49: 125 | S49: 0.7352941176 | T49: 138 | U49: 0.8117647059 | V49: 146 | W49: 0.8588235294 | X49: 153 | Y49: 0.9 | Z49: 153 | AA49: 0.9 | AB49: 149 | AC49: 0.8764705882 | AE49: 8 | AF49: 0.04705882353 | AH49: =cálculos1!O49 -> 0 | AI49: 0 | AJ49: =cálculos1!P49 -> 0 | AK49: 0
A50: Sul | B50: Mimoso do Sul | C50: 270 | D50: 32 | E50: 0.1185185185 | F50: 2 | G50: 0.007407407407 | H50: 2 | I50: 0.007407407407 | J50: 40 | K50: 0.1481481481 | L50: 248 | M50: 0.9185185185 | N50: 235 | O50: 0.8703703704 | P50: 243 | Q50: 0.9 | R50: 239 | S50: 0.8851851852 | T50: 210 | U50: 0.7777777778 | V50: 184 | W50: 0.6814814815 | X50: 219 | Y50: 0.8111111111 | Z50: 196 | AA50: 0.7259259259 | AB50: 265 | AC50: 0.9814814815 | AE50: 5 | AF50: 0.01851851852 | AH50: =cálculos1!O50 -> 0 | AI50: 0 | AJ50: =cálculos1!P50 -> 0 | AK50: 0
A51: Norte | B51: Montanha | C51: 239 | D51: 74 | E51: 0.309623431 | F51: 6 | G51: 0.02510460251 | H51: 2 | I51: 0.008368200837 | J51: 92 | K51: 0.3849372385 | L51: 244 | M51: 1.020920502 | N51: 245 | O51: 1.025104603 | P51: 269 | Q51: 1.125523013 | R51: 252 | S51: 1.054393305 | T51: 197 | U51: 0.8242677824 | V51: 245 | W51: 1.025104603 | X51: 261 | Y51: 1.092050209 | Z51: 257 | AA51: 1.075313808 | AB51: 260 | AC51: 1.087866109 | AE51: 8 | AF51: 0.03347280335 | AH51: =cálculos1!O51 -> 7 | AI51: 0.7 | AJ51: =cálculos1!P51 -> 4 | AK51: 1
A52: Norte | B52: Mucurici | C52: 56 | D52: 8 | E52: 0.1428571429 | F52: 1 | G52: 0.01785714286 | H52: 0 | I52: 0 | J52: 6 | K52: 0.1071428571 | L52: 65 | M52: 1.160714286 | N52: 64 | O52: 1.142857143 | P52: 63 | Q52: 1.125 | R52: 57 | S52: 1.017857143 | T52: 59 | U52: 1.053571429 | V52: 67 | W52: 1.196428571 | X52: 66 | Y52: 1.178571429 | Z52: 66 | AA52: 1.178571429 | AB52: 62 | AC52: 1.107142857 | AE52: 1 | AF52: 0.01785714286 | AH52: =cálculos1!O52 -> 8 | AI52: 0.8 | AJ52: =cálculos1!P52 -> 4 | AK52: 1
A53: Sul | B53: Muniz Freire | C53: 241 | D53: 108 | E53: 0.4481327801 | F53: 6 | G53: 0.02489626556 | H53: 0 | I53: 0 | J53: 134 | K53: 0.5560165975 | L53: 220 | M53: 0.9128630705 | N53: 220 | O53: 0.9128630705 | P53: 239 | Q53: 0.9917012448 | R53: 217 | S53: 0.9004149378 | T53: 215 | U53: 0.8921161826 | V53: 239 | W53: 0.9917012448 | X53: 239 | Y53: 0.9917012448 | Z53: 254 | AA53: 1.053941909 | AB53: 245 | AC53: 1.01659751 | AE53: 3 | AF53: 0.01244813278 | AH53: =cálculos1!O53 -> 4 | AI53: 0.4 | AJ53: =cálculos1!P53 -> 2 | AK53: 0.5
A54: Sul | B54: Muqui | C54: 155 | D54: 18 | E54: 0.1161290323 | F54: 3 | G54: 0.01935483871 | H54: 0 | I54: 0 | J54: 21 | K54: 0.135483871 | L54: 153 | M54: 0.9870967742 | N54: 154 | O54: 0.9935483871 | P54: 149 | Q54: 0.9612903226 | R54: 147 | S54: 0.9483870968 | T54: 139 | U54: 0.8967741935 | V54: 153 | W54: 0.9870967742 | X54: 153 | Y54: 0.9870967742 | Z54: 164 | AA54: 1.058064516 | AB54: 157 | AC54: 1.012903226 | AE54: 8 | AF54: 0.05161290323 | AH54: =cálculos1!O54 -> 6 | AI54: 0.6 | AJ54: =cálculos1!P54 -> 4 | AK54: 1
A55: Norte | B55: Nova Venécia | C55: 709 | D55: 558 | E55: 0.7870239774 | F55: 480 | G55: 0.6770098731 | H55: 475 | I55: 0.6699576869 | J55: 475 | K55: 0.6699576869 | L55: 600 | M55: 0.8462623413 | N55: 591 | O55: 0.8335684062 | P55: 526 | Q55: 0.7418899859 | R55: 602 | S55: 0.8490832158 | T55: 529 | U55: 0.7461212976 | V55: 616 | W55: 0.8688293371 | X55: 657 | Y55: 0.9266572638 | Z55: 549 | AA55: 0.7743300423 | AB55: 646 | AC55: 0.9111424542 | AE55: 13 | AF55: 0.01833568406 | AH55: =cálculos1!O55 -> 0 | AI55: 0 | AJ55: =cálculos1!P55 -> 0 | AK55: 0
A56: Central | B56: Pancas | C56: 210 | D56: 85 | E56: 0.4047619048 | F56: 5 | G56: 0.02380952381 | H56: 2 | I56: 0.009523809524 | J56: 102 | K56: 0.4857142857 | L56: 211 | M56: 1.004761905 | N56: 212 | O56: 1.00952381 | P56: 200 | Q56: 0.9523809524 | R56: 213 | S56: 1.014285714 | T56: 185 | U56: 0.880952381 | V56: 200 | W56: 0.9523809524 | X56: 210 | Y56: 1 | Z56: 213 | AA56: 1.014285714 | AB56: 205 | AC56: 0.9761904762 | AE56: 3 | AF56: 0.01428571429 | AH56: =cálculos1!O56 -> 7 | AI56: 0.7 | AJ56: =cálculos1!P56 -> 4 | AK56: 1
A57: Norte | B57: Pedro Canário | C57: 349 | D57: 24 | E57: 0.06876790831 | F57: 2 | G57: 0.005730659026 | H57: 0 | I57: 0 | J57: 39 | K57: 0.111747851 | L57: 316 | M57: 0.9054441261 | N57: 301 | O57: 0.8624641834 | P57: 309 | Q57: 0.8853868195 | R57: 310 | S57: 0.888252149 | T57: 240 | U57: 0.6876790831 | V57: 342 | W57: 0.9799426934 | X57: 353 | Y57: 1.011461318 | Z57: 324 | AA57: 0.9283667622 | AB57: 331 | AC57: 0.9484240688 | AE57: 7 | AF57: 0.02005730659 | AH57: =cálculos1!O57 -> 2 | AI57: 0.2 | AJ57: =cálculos1!P57 -> 1 | AK57: 0.25
A58: Norte | B58: Pinheiros | C58: 333 | D58: 6 | E58: 0.01801801802 | F58: 1 | G58: 0.003003003003 | H58: 0 | I58: 0 | J58: 18 | K58: 0.05405405405 | L58: 282 | M58: 0.8468468468 | N58: 278 | O58: 0.8348348348 | P58: 287 | Q58: 0.8618618619 | R58: 289 | S58: 0.8678678679 | T58: 241 | U58: 0.7237237237 | V58: 270 | W58: 0.8108108108 | X58: 290 | Y58: 0.8708708709 | Z58: 278 | AA58: 0.8348348348 | AB58: 306 | AC58: 0.9189189189 | AE58: 3 | AF58: 0.009009009009 | AH58: =cálculos1!O58 -> 0 | AI58: 0 | AJ58: =cálculos1!P58 -> 0 | AK58: 0
A59: Sul | B59: Piúma | C59: 306 | D59: 12 | E59: 0.03921568627 | F59: 0 | G59: 0 | H59: 0 | I59: 0 | J59: 109 | K59: 0.3562091503 | L59: 282 | M59: 0.9215686275 | N59: 274 | O59: 0.8954248366 | P59: 277 | Q59: 0.9052287582 | R59: 283 | S59: 0.9248366013 | T59: 210 | U59: 0.6862745098 | V59: 272 | W59: 0.8888888889 | X59: 297 | Y59: 0.9705882353 | Z59: 236 | AA59: 0.7712418301 | AB59: 295 | AC59: 0.9640522876 | AE59: 13 | AF59: 0.04248366013 | AH59: =cálculos1!O59 -> 1 | AI59: 0.1 | AJ59: =cálculos1!P59 -> 1 | AK59: 0.25
A60: Norte | B60: Ponto Belo | C60: 74 | D60: 15 | E60: 0.2027027027 | F60: 3 | G60: 0.04054054054 | H60: 0 | I60: 0 | J60: 17 | K60: 0.2297297297 | L60: 83 | M60: 1.121621622 | N60: 83 | O60: 1.121621622 | P60: 79 | Q60: 1.067567568 | R60: 84 | S60: 1.135135135 | T60: 85 | U60: 1.148648649 | V60: 88 | W60: 1.189189189 | X60: 86 | Y60: 1.162162162 | Z60: 77 | AA60: 1.040540541 | AB60: 81 | AC60: 1.094594595 | AE60: 3 | AF60: 0.04054054054 | AH60: =cálculos1!O60 -> 8 | AI60: 0.8 | AJ60: =cálculos1!P60 -> 4 | AK60: 1
A61: Sul | B61: Presidente Kennedy | C61: 200 | D61: 11 | E61: 0.055 | F61: 0 | G61: 0 | H61: 0 | I61: 0 | J61: 16 | K61: 0.08 | L61: 192 | M61: 0.96 | N61: 191 | O61: 0.955 | P61: 194 | Q61: 0.97 | R61: 197 | S61: 0.985 | T61: 179 | U61: 0.895 | V61: 192 | W61: 0.96 | X61: 216 | Y61: 1.08 | Z61: 187 | AA61: 0.935 | AB61: 202 | AC61: 1.01 | AE61: 5 | AF61: 0.025 | AH61: =cálculos1!O61 -> 6 | AI61: 0.6 | AJ61: =cálculos1!P61 -> 4 | AK61: 1
A62: Central | B62: Rio Bananal | C62: 304 | D62: 52 | E62: 0.1710526316 | F62: 3 | G62: 0.009868421053 | H62: 0 | I62: 0 | J62: 46 | K62: 0.1513157895 | L62: 257 | M62: 0.8453947368 | N62: 256 | O62: 0.8421052632 | P62: 252 | Q62: 0.8289473684 | R62: 263 | S62: 0.8651315789 | T62: 267 | U62: 0.8782894737 | V62: 300 | W62: 0.9868421053 | X62: 304 | Y62: 1 | Z62: 258 | AA62: 0.8486842105 | AB62: 268 | AC62: 0.8815789474 | AE62: 13 | AF62: 0.04276315789 | AH62: =cálculos1!O62 -> 2 | AI62: 0.2 | AJ62: =cálculos1!P62 -> 1 | AK62: 0.25
A63: Sul | B63: Rio Novo do Sul | C63: 100 | D63: 3 | E63: 0.03 | F63: 0 | G63: 0 | H63: 0 | I63: 0 | J63: 37 | K63: 0.37 | L63: 110 | M63: 1.1 | N63: 110 | O63: 1.1 | P63: 104 | Q63: 1.04 | R63: 108 | S63: 1.08 | T63: 87 | U63: 0.87 | V63: 95 | W63: 0.95 | X63: 104 | Y63: 1.04 | Z63: 100 | AA63: 1 | AB63: 110 | AC63: 1.1 | AE63: 2 | AF63: 0.02 | AH63: =cálculos1!O63 -> 7 | AI63: 0.7 | AJ63: =cálculos1!P63 -> 4 | AK63: 1
A64: Metropolitana | B64: Santa Leopoldina | C64: 93 | D64: 12 | E64: 0.1290322581 | F64: 2 | G64: 0.02150537634 | H64: 0 | I64: 0 | J64: 15 | K64: 0.1612903226 | L64: 77 | M64: 0.8279569892 | N64: 77 | O64: 0.8279569892 | P64: 79 | Q64: 0.8494623656 | R64: 83 | S64: 0.8924731183 | T64: 69 | U64: 0.7419354839 | V64: 92 | W64: 0.9892473118 | X64: 77 | Y64: 0.8279569892 | Z64: 87 | AA64: 0.935483871 | AB64: 82 | AC64: 0.8817204301 | AE64: 0 | AF64: 0 | AH64: =cálculos1!O64 -> 1 | AI64: 0.1 | AJ64: =cálculos1!P64 -> 0 | AK64: 0
A65: Metropolitana | B65: Santa Maria de Jetibá | C65: 719 | D65: 478 | E65: 0.6648122392 | F65: 467 | G65: 0.6495132128 | H65: 466 | I65: 0.6481223922 | J65: 462 | K65: 0.6425591099 | L65: 636 | M65: 0.8845618915 | N65: 632 | O65: 0.8789986092 | P65: 661 | Q65: 0.9193324061 | R65: 673 | S65: 0.9360222531 | T65: 509 | U65: 0.7079276773 | V65: 595 | W65: 0.8275382476 | X65: 633 | Y65: 0.8803894298 | Z65: 549 | AA65: 0.7635605007 | AB65: 688 | AC65: 0.9568845619 | AE65: 2 | AF65: 0.002781641168 | AH65: =cálculos1!O65 -> 0 | AI65: 0 | AJ65: =cálculos1!P65 -> 0 | AK65: 0
A66: Metropolitana | B66: Santa Teresa | C66: 280 | D66: 730 | E66: 2.607142857 | F66: 706 | G66: 2.521428571 | H66: 486 | I66: 1.735714286 | J66: 732 | K66: 2.614285714 | L66: 252 | M66: 0.9 | N66: 251 | O66: 0.8964285714 | P66: 263 | Q66: 0.9392857143 | R66: 261 | S66: 0.9321428571 | T66: 215 | U66: 0.7678571429 | V66: 260 | W66: 0.9285714286 | X66: 260 | Y66: 0.9285714286 | Z66: 267 | AA66: 0.9535714286 | AB66: 260 | AC66: 0.9285714286 | AE66: 6 | AF66: 0.02142857143 | AH66: =cálculos1!O66 -> 2 | AI66: 0.2 | AJ66: =cálculos1!P66 -> 0 | AK66: 0
A67: Central | B67: São Domingos do Norte | C67: 108 | D67: 52 | E67: 0.4814814815 | F67: 8 | G67: 0.07407407407 | H67: 1 | I67: 0.009259259259 | J67: 58 | K67: =J67/C67 -> 0.537037037 | L67: 90 | M67: =L67/C67 -> 0.8333333333 | N67: 92 | O67: =N67/C67 -> 0.8518518519 | P67: 90 | Q67: =P67/C67 -> 0.8333333333 | R67: 92 | S67: =R67/C67 -> 0.8518518519 | T67: 92 | U67: =T67/C67 -> 0.8518518519 | V67: 124 | W67: =V67/C67 -> 1.148148148 | X67: 114 | Y67: =X67/C67 -> 1.055555556 | Z67: 122 | AA67: =Z67/C67 -> 1.12962963 | AB67: 101 | AC67: 0.9351851852 | AE67: 0 | AF67: =AE67/C67 -> 0 | AH67: =cálculos1!O67 -> 3 | AI67: 0.3 | AJ67: =cálculos1!P67 -> 1 | AK67: 0.25
A68: Central | B68: São Gabriel da Palha | C68: 417 | D68: 160 | E68: =D68/C68 -> 0.3836930456 | F68: 12 | G68: =F68/C68 -> 0.02877697842 | H68: 5 | I68: =H68/C68 -> 0.01199040767 | J68: 183 | K68: 0.4388489209 | L68: 394 | M68: 0.9448441247 | N68: 391 | O68: 0.9376498801 | P68: 380 | Q68: 0.9112709832 | R68: 384 | S68: 0.9208633094 | T68: 342 | U68: 0.8201438849 | V68: 404 | W68: 0.96882494 | X68: 403 | Y68: 0.9664268585 | Z68: 377 | AA68: 0.9040767386 | AB68: 387 | AC68: =AB68/C68 -> 0.928057554 | AE68: 5 | AF68: 0.01199040767 | AH68: =cálculos1!O68 -> 2 | AI68: =AH68*0.1 -> 0.2 | AJ68: =cálculos1!P68 -> 1 | AK68: =AJ68*0.25 -> 0.25
A69: Sul | B69: São José do Calçado | C69: 99 | D69: 72 | E69: 0.7272727273 | F69: 6 | G69: 0.06060606061 | H69: 1 | I69: 0.0101010101 | J69: 82 | K69: 0.8282828283 | L69: 99 | M69: 1 | N69: 99 | O69: 1 | P69: 96 | Q69: 0.9696969697 | R69: 91 | S69: 0.9191919192 | T69: 64 | U69: 0.6464646465 | V69: 97 | W69: 0.9797979798 | X69: 93 | Y69: 0.9393939394 | Z69: 97 | AA69: 0.9797979798 | AB69: 100 | AC69: 1.01010101 | AE69: 3 | AF69: 0.0303030303 | AH69: =cálculos1!O69 -> 5 | AI69: 0.5 | AJ69: =cálculos1!P69 -> 3 | AK69: 0.75
A70: Norte | B70: São Mateus | C70: 1860 | D70: 2992 | E70: 1.608602151 | F70: 2880 | G70: 1.548387097 | H70: 2628 | I70: 1.412903226 | J70: 2843 | K70: 1.528494624 | L70: 1606 | M70: 0.8634408602 | N70: 1581 | O70: 0.85 | P70: 1766 | Q70: 0.9494623656 | R70: 1697 | S70: 0.9123655914 | T70: 1155 | U70: 0.6209677419 | V70: 1590 | W70: 0.8548387097 | X70: 1634 | Y70: 0.8784946237 | Z70: 1387 | AA70: 0.7456989247 | AB70: 1777 | AC70: 0.9553763441 | AE70: 50 | AF70: 0.02688172043 | AH70: =cálculos1!O70 -> 1 | AI70: 0.1 | AJ70: =cálculos1!P70 -> 0 | AK70: 0
A71: Central | B71: São Roque do Canaã | C71: 128 | D71: 48 | E71: 0.375 | F71: 6 | G71: 0.046875 | H71: 0 | I71: 0 | J71: 49 | K71: 0.3828125 | L71: 115 | M71: 0.8984375 | N71: 112 | O71: 0.875 | P71: 106 | Q71: 0.828125 | R71: 109 | S71: 0.8515625 | T71: 102 | U71: 0.796875 | V71: 119 | W71: 0.9296875 | X71: 131 | Y71: 1.0234375 | Z71: 127 | AA71: 0.9921875 | AB71: 124 | AC71: 0.96875 | AE71: 5 | AF71: 0.0390625 | AH71: =cálculos1!O71 -> 2 | AI71: 0.2 | AJ71: =cálculos1!P71 -> 1 | AK71: 0.25
A72: Metropolitana | B72: Serra | C72: 7521 | D72: 8883 | E72: 1.18109294 | F72: 7511 | G72: 0.9986703896 | H72: 5787 | I72: 0.7694455525 | J72: 8526 | K72: 1.133625848 | L72: 5931 | M72: 0.7885919426 | N72: 5868 | O72: 0.7802153969 | P72: 6292 | Q72: 0.8365908789 | R72: 6200 | S72: 0.824358463 | T72: 4776 | U72: 0.6350219386 | V72: 6188 | W72: 0.8227629305 | X72: 6480 | Y72: 0.8615875548 | Z72: 5286 | AA72: 0.7028320702 | AB72: 6710 | AC72: 0.8921685946 | AE72: 144 | AF72: 0.01914639011 | AH72: =cálculos1!O72 -> 1 | AI72: 0.1 | AJ72: =cálculos1!P72 -> 0 | AK72: 0
A73: Central | B73: Sooretama | C73: 442 | D73: 24 | E73: 0.05429864253 | F73: 1 | G73: 0.002262443439 | H73: 0 | I73: 0 | J73: 32 | K73: 0.07239819005 | L73: 386 | M73: 0.8733031674 | N73: 381 | O73: 0.8619909502 | P73: 368 | Q73: 0.8325791855 | R73: 402 | S73: 0.9095022624 | T73: 320 | U73: 0.7239819005 | V73: 398 | W73: 0.9004524887 | X73: 438 | Y73: 0.9909502262 | Z73: 360 | AA73: 0.814479638 | AB73: 416 | AC73: 0.9411764706 | AE73: 2 | AF73: 0.004524886878 | AH73: =cálculos1!O73 -> 1 | AI73: 0.1 | AJ73: =cálculos1!P73 -> 1 | AK73: 0.25
A74: Sul | B74: Vargem Alta | C74: 274 | D74: 18 | E74: 0.06569343066 | F74: 2 | G74: 0.007299270073 | H74: 0 | I74: 0 | J74: 32 | K74: 0.1167883212 | L74: 257 | M74: 0.9379562044 | N74: 254 | O74: 0.9270072993 | P74: 267 | Q74: 0.9744525547 | R74: 260 | S74: 0.9489051095 | T74: 210 | U74: 0.7664233577 | V74: 252 | W74: 0.9197080292 | X74: 252 | Y74: 0.9197080292 | Z74: 256 | AA74: 0.9343065693 | AB74: 273 | AC74: 0.996350365 | AE74: 7 | AF74: 0.02554744526 | AH74: =cálculos1!O74 -> 1 | AI74: 0.1 | AJ74: =cálculos1!P74 -> 1 | AK74: 0.25
A75: Metropolitana | B75: Venda Nova do Imigrante | C75: 342 | D75: 642 | E75: 1.877192982 | F75: 602 | G75: 1.760233918 | H75: 601 | I75: 1.757309942 | J75: 387 | K75: 1.131578947 | L75: 334 | M75: 0.9766081871 | N75: 334 | O75: 0.9766081871 | P75: 344 | Q75: 1.005847953 | R75: 348 | S75: 1.01754386 | T75: 313 | U75: 0.9152046784 | V75: 361 | W75: 1.055555556 | X75: 361 | Y75: 1.055555556 | Z75: 375 | AA75: 1.096491228 | AB75: 358 | AC75: 1.046783626 | AE75: 12 | AF75: 0.0350877193 | AH75: =cálculos1!O75 -> 8 | AI75: 0.8 | AJ75: =cálculos1!P75 -> 4 | AK75: 1
A76: Metropolitana | B76: Viana | C76: 855 | D76: 214 | E76: 0.2502923977 | F76: 3 | G76: 0.00350877193 | H76: 1 | I76: 0.001169590643 | J76: 182 | K76: 0.2128654971 | L76: 860 | M76: 1.005847953 | N76: 815 | O76: 0.9532163743 | P76: 848 | Q76: 0.9918128655 | R76: 876 | S76: 1.024561404 | T76: 586 | U76: 0.685380117 | V76: 860 | W76: 1.005847953 | X76: 978 | Y76: 1.143859649 | Z76: 633 | AA76: 0.7403508772 | AB76: 910 | AC76: 1.064327485 | AE76: 18 | AF76: 0.02105263158 | AH76: =cálculos1!O76 -> 6 | AI76: 0.6 | AJ76: =cálculos1!P76 -> 4 | AK76: 1
A77: Norte | B77: Vila Pavão | C77: 99 | D77: 25 | E77: 0.2525252525 | F77: 3 | G77: 0.0303030303 | H77: 3 | I77: 0.0303030303 | J77: 49 | K77: 0.4949494949 | L77: 133 | M77: 1.343434343 | N77: 134 | O77: 1.353535354 | P77: 116 | Q77: 1.171717172 | R77: 128 | S77: 1.292929293 | T77: 111 | U77: 1.121212121 | V77: 106 | W77: 1.070707071 | X77: 115 | Y77: 1.161616162 | Z77: 97 | AA77: 0.9797979798 | AB77: 121 | AC77: 1.222222222 | AE77: 4 | AF77: 0.0404040404 | AH77: =cálculos1!O77 -> 8 | AI77: 0.8 | AJ77: =cálculos1!P77 -> 4 | AK77: 1
A78: Central | B78: Vila Valério | C78: 256 | D78: 45 | E78: 0.17578125 | F78: 0 | G78: 0 | H78: 0 | I78: 0 | J78: 59 | K78: 0.23046875 | L78: 203 | M78: 0.79296875 | N78: 205 | O78: 0.80078125 | P78: 193 | Q78: 0.75390625 | R78: 199 | S78: 0.77734375 | T78: 198 | U78: 0.7734375 | V78: 266 | W78: 1.0390625 | X78: 258 | Y78: 1.0078125 | Z78: 255 | AA78: 0.99609375 | AB78: 210 | AC78: 0.8203125 | AE78: 0 | AF78: 0 | AH78: =cálculos1!O78 -> 3 | AI78: 0.3 | AJ78: =cálculos1!P78 -> 1 | AK78: 0.25
A79: Metropolitana | B79: Vila Velha | C79: 5558 | D79: 4242 | E79: 0.7632241814 | F79: 2876 | G79: 0.517452321 | H79: 1998 | I79: 0.359481828 | J79: 4088 | K79: 0.7355163728 | L79: 4373 | M79: 0.7867938107 | N79: 4339 | O79: 0.7806765023 | P79: 4701 | Q79: 0.8458078445 | R79: 4739 | S79: 0.8526448363 | T79: 3437 | U79: 0.6183879093 | V79: 4669 | W79: 0.8400503778 | X79: 4771 | Y79: 0.858402303 | Z79: 4193 | AA79: 0.7544080605 | AB79: 4970 | AC79: 0.8942065491 | AE79: 186 | AF79: 0.03346527528 | AH79: =cálculos1!O79 -> 0 | AI79: 0 | AJ79: =cálculos1!P79 -> 0 | AK79: 0
A80: Metropolitana | B80: Vitória | C80: 3563 | D80: 6678 | E80: 1.874263261 | F80: 5874 | G80: 1.648610721 | H80: 4861 | I80: 1.364299747 | J80: 7262 | K80: 2.038170081 | L80: 4071 | M80: 1.14257648 | N80: 4056 | O80: 1.138366545 | P80: 4365 | Q80: 1.225091215 | R80: 4258 | S80: 1.195060342 | T80: 2529 | U80: 0.7097951165 | V80: 3682 | W80: 1.033398821 | X80: 3979 | Y80: 1.116755543 | Z80: 3424 | AA80: 0.9609879315 | AB80: 4209 | AC80: 1.181307887 | AE80: 207 | AF80: 0.05809710918 | AH80: =cálculos1!O80 -> 8 | AI80: 0.8 | AJ80: =cálculos1!P80 -> 4 | AK80: 1
B82: Total Norte | C82: =SUMIF($A$3:$A$80,"Norte",C$3:C$80) -> 5810 | D82: =SUMIF($A$3:$A$80,"Norte",D$3:D$80) -> 4608 | E82: =D82/C82 -> 0.7931153184 | F82: =SUMIF($A$3:$A$80,"Norte",F$3:F$80) -> 3894 | G82: =F82/C82 -> 0.6702237522 | H82: =SUMIF($A$3:$A$80,"Norte",H$3:H$80) -> 3588 | I82: =H82/C82 -> 0.617555938 | J82: =SUMIF($A$3:$A$80,"Norte",J$3:J$80) -> 4528 | K82: =J82/C82 -> 0.7793459552 | L82: =SUMIF($A$3:$A$80,"Norte",L$3:L$80) -> 5222 | M82: =L82/C82 -> 0.8987951807 | N82: =SUMIF($A$3:$A$80,"Norte",N$3:N$80) -> 5151 | O82: =N82/C82 -> 0.8865748709 | P82: =SUMIF($A$3:$A$80,"Norte",P$3:P$80) -> 5268 | Q82: =P82/C82 -> 0.9067125645 | R82: =SUMIF($A$3:$A$80,"Norte",R$3:R$80) -> 5300 | S82: =R82/C82 -> 0.9122203098 | T82: =SUMIF($A$3:$A$80,"Norte",T$3:T$80) -> 4242 | U82: =T82/C82 -> 0.7301204819 | V82: =SUMIF($A$3:$A$80,"Norte",V$3:V$80) -> 5283 | W82: =V82/C82 -> 0.9092943201 | X82: =SUMIF($A$3:$A$80,"Norte",X$3:X$80) -> 5519 | Y82: =X82/C82 -> 0.9499139415 | Z82: =SUMIF($A$3:$A$80,"Norte",Z$3:Z$80) -> 4830 | AA82: =Z82/C82 -> 0.8313253012 | AB82: =SUMIF($A$3:$A$80,"Norte",AB$3:AB$80) -> 5522 | AC82: =AB82/C82 -> 0.9504302926 | AE82: =SUMIF($A$3:$A$80,"Norte",AE$3:AE$80) -> 101 | AF82: =AE82/C82 -> 0.017383821 | AH82: =cálculos1!O82 -> 0 | AI82: =AH82*0.1 -> 0 | AJ82: =cálculos1!P82 -> 0 | AK82: 0
B83: Total Central | C83: =SUMIF($A$3:$A$80,"Central",C$3:C$80) -> 7081 | D83: =SUMIF($A$3:$A$80,"Central",D$3:D$80) -> 7531 | E83: =D83/C83 -> 1.063550346 | F83: =SUMIF($A$3:$A$80,"Central",F$3:F$80) -> 5389 | G83: =F83/C83 -> 0.7610506991 | H83: =SUMIF($A$3:$A$80,"Central",H$3:H$80) -> 4566 | I83: =H83/C83 -> 0.6448241774 | J83: =SUMIF($A$3:$A$80,"Central",J$3:J$80) -> 7692 | K83: =J83/C83 -> 1.086287248 | L83: =SUMIF($A$3:$A$80,"Central",L$3:L$80) -> 6280 | M83: =L83/C83 -> 0.8868803841 | N83: =SUMIF($A$3:$A$80,"Central",N$3:N$80) -> 6210 | O83: =N83/C83 -> 0.8769947747 | P83: =SUMIF($A$3:$A$80,"Central",P$3:P$80) -> 6282 | Q83: =P83/C83 -> 0.8871628301 | R83: =SUMIF($A$3:$A$80,"Central",R$3:R$80) -> 6511 | S83: =R83/C83 -> 0.9195028951 | T83: =SUMIF($A$3:$A$80,"Central",T$3:T$80) -> 5214 | U83: =T83/C83 -> 0.7363366756 | V83: =SUMIF($A$3:$A$80,"Central",V$3:V$80) -> 6414 | W83: =V83/C83 -> 0.9058042649 | X83: =SUMIF($A$3:$A$80,"Central",X$3:X$80) -> 6738 | Y83: =X83/C83 -> 0.9515605141 | Z83: =SUMIF($A$3:$A$80,"Central",Z$3:Z$80) -> 6008 | AA83: =Z83/C83 -> 0.8484677305 | AB83: =SUMIF($A$3:$A$80,"Central",AB$3:AB$80) -> 6595 | AC83: =AB83/C83 -> 0.9313656263 | AE83: =SUMIF($A$3:$A$80,"Central",AE$3:AE$80) -> 71 | AF83: =AE83/C83 -> 0.01002683237 | AH83: =cálculos1!O83 -> 2 | AI83: =AH83*0.1 -> 0.2 | AJ83: =cálculos1!P83 -> 1 | AK83: 0.25
B84: Total Metropolitana | C84: =SUMIF($A$3:$A$80,"Metropolitana",C$3:C$80) -> 29463 | D84: =SUMIF($A$3:$A$80,"Metropolitana",D$3:D$80) -> 27743 | E84: =D84/C84 -> 0.941621695 | F84: =SUMIF($A$3:$A$80,"Metropolitana",F$3:F$80) -> 21574 | G84: =F84/C84 -> 0.7322404372 | H84: =SUMIF($A$3:$A$80,"Metropolitana",H$3:H$80) -> 16554 | I84: 0.5618572447 | J84: =SUMIF($A$3:$A$80,"Metropolitana",J$3:J$80) -> 27738 | K84: =J84/C84 -> 0.9414519906 | L84: =SUMIF($A$3:$A$80,"Metropolitana",L$3:L$80) -> 25796 | M84: =L84/C84 -> 0.8755388114 | N84: =SUMIF($A$3:$A$80,"Metropolitana",N$3:N$80) -> 25559 | O84: =N84/C84 -> 0.867494824 | P84: =SUMIF($A$3:$A$80,"Metropolitana",P$3:P$80) -> 26429 | Q84: =P84/C84 -> 0.8970233853 | R84: =SUMIF($A$3:$A$80,"Metropolitana",R$3:R$80) -> 26817 | S84: =R84/C84 -> 0.9101924448 | T84: =SUMIF($A$3:$A$80,"Metropolitana",T$3:T$80) -> 19814 | U84: =T84/C84 -> 0.6725044972 | V84: =SUMIF($A$3:$A$80,"Metropolitana",V$3:V$80) -> 26362 | W84: =V84/C84 -> 0.8947493466 | X84: =SUMIF($A$3:$A$80,"Metropolitana",X$3:X$80) -> 27521 | Y84: =X84/C84 -> 0.9340868208 | Z84: =SUMIF($A$3:$A$80,"Metropolitana",Z$3:Z$80) -> 23756 | AA84: =Z84/C84 -> 0.8062994264 | AB84: =SUMIF($A$3:$A$80,"Metropolitana",AB$3:AB$80) -> 28023 | AC84: 0.95112514 | AE84: =SUMIF($A$3:$A$80,"Metropolitana",AE$3:AE$80) -> 914 | AF84: =AE84/C84 -> 0.03102195975 | AH84: =cálculos1!O84 -> 1 | AI84: 0.1 | AJ84: =cálculos1!P84 -> 0 | AK84: 0
B85: Total Sul | C85: =SUMIF($A$3:$A$80,"sul",C$3:C$80) -> 8085 | D85: =SUMIF($A$3:$A$80,"Sul",D$3:D$80) -> 7663 | E85: =D85/C85 -> 0.9478045764 | F85: =SUMIF($A$3:$A$80,"Sul",F$3:F$80) -> 5876 | G85: =F85/C85 -> 0.7267779839 | H85: =SUMIF($A$3:$A$80,"Sul",H$3:H$80) -> 4065 | I85: 0.5027829314 | J85: =SUMIF($A$3:$A$80,"Sul",J$3:J$80) -> 7930 | K85: =J85/C85 -> 0.9808286951 | L85: =SUMIF($A$3:$A$80,"Sul",L$3:L$80) -> 7628 | M85: =L85/C85 -> 0.943475572 | N85: =SUMIF($A$3:$A$80,"Sul",N$3:N$80) -> 7473 | O85: =N85/C85 -> 0.9243042672 | P85: =SUMIF($A$3:$A$80,"Sul",P$3:P$80) -> 7679 | Q85: =P85/C85 -> 0.9497835498 | R85: =SUMIF($A$3:$A$80,"Sul",R$3:R$80) -> 7742 | S85: =R85/C85 -> 0.9575757576 | T85: =SUMIF($A$3:$A$80,"Sul",T$3:T$80) -> 6116 | U85: =T85/C85 -> 0.756462585 | V85: =SUMIF($A$3:$A$80,"Sul",V$3:V$80) -> 7740 | W85: =V85/C85 -> 0.9573283859 | X85: =SUMIF($A$3:$A$80,"Sul",X$3:X$80) -> 8083 | Y85: =X85/C85 -> 0.9997526283 | Z85: =SUMIF($A$3:$A$80,"Sul",Z$3:Z$80) -> 7410 | AA85: =Z85/C85 -> 0.9165120594 | AB85: =SUMIF($A$3:$A$80,"Sul",AB$3:AB$80) -> 8056 | AC85: 0.9964131107 | AE85: =SUMIF($A$3:$A$80,"Sul",AE$3:AE$80) -> 229 | AF85: =AE85/C85 -> 0.0283240569 | AH85: =cálculos1!O85 -> 4 | AI85: 0.4 | AJ85: =cálculos1!P85 -> 1 | AK85: 0.25
B86: Total Espírito Santo | C86: =SUM(C3:C80) -> 50439 | D86: =SUM(D82:D85) -> 47545 | E86: =D86/C86 -> 0.9426237634 | F86: =SUM(F82:F85) -> 36733 | G86: =F86/C86 -> 0.728265826 | H86: =SUM(H82:H85) -> 28773 | I86: 0.5704514364 | J86: =SUM(J82:J85) -> 47888 | K86: =J86/C86 -> 0.9494240568 | L86: =SUM(L82:L85) -> 44926 | M86: =L86/C86 -> 0.890699657 | N86: =SUM(N82:N85) -> 44393 | O86: =N86/C86 -> 0.8801324372 | P86: =SUM(P82:P85) -> 45658 | Q86: =P86/C86 -> 0.9052122366 | R86: =SUM(R82:R85) -> 46370 | S86: =R86/C86 -> 0.9193282975 | T86: =SUM(T82:T85) -> 35386 | U86: =T86/C86 -> 0.7015603006 | V86: =SUM(V82:V85) -> 45799 | W86: =V86/C86 -> 0.9080076925 | X86: =SUM(X82:X85) -> 47861 | Y86: =X86/C86 -> 0.9488887567 | Z86: =SUM(Z82:Z85) -> 42004 | AA86: =Z86/C86 -> 0.8327682944 | AB86: =SUM(AB82:AB85) -> 48196 | AC86: 0.9555304427 | AE86: =SUM(AE82:AE85) -> 1315 | AF86: =AE86/C86 -> 0.02607109578 | AH86: =cálculos1!O86 -> 1 | AI86: 0.1 | AJ86: =cálculos1!P86 -> 0 | AK86: 0
D87: =COUNTIF(E3:E80,">=0,95") -> 9 | F87: =COUNTIF(G3:G80,">=0,95") -> 9 | H87: =COUNTIF(I3:I80,">=0,95") -> 7 | J87: =COUNTIF(K3:K80,">=0,9") -> 10 | L87: =COUNTIF(M3:M80,">=0,95") -> 36 | N87: =COUNTIF(O3:O80,">=0,95") -> 34 | P87: =COUNTIF(Q3:Q80,">=0,95") -> 29 | R87: =COUNTIF(S3:S80,">=0,95") -> 32 | T87: =COUNTIF(U3:U80,">=0,95") -> 7 | V87: =COUNTIF(W3:W80,">=0,95") -> 48 | X87: =COUNTIF(Y3:Y80,">=0,95") -> 53 | Z87: =COUNTIF(AA3:AA80,">=0,95") -> 43 | AB87: =COUNTIF(AC3:AC80,">=0,9") -> 60 | AE87: =COUNTIF(AF3:AF80,">=0,9") -> 0
B88: HOMOGENEIDADE ENTRE MUNICÍPIOS | D88: =D87/78 -> 0.1153846154 | F88: =F87/78 -> 0.1153846154 | H88: =H87/78 -> 0.08974358974 | J88: =J87/78 -> 0.1282051282 | L88: =L87/78 -> 0.4615384615 | N88: =N87/78 -> 0.4358974359 | P88: =P87/78 -> 0.3717948718 | R88: =R87/78 -> 0.4102564103 | T88: =T87/78 -> 0.08974358974 | V88: =V87/78 -> 0.6153846154 | X88: =X87/78 -> 0.6794871795 | Z88: =Z87/78 -> 0.5512820513 | AB88: =AB87/78 -> 0.7692307692 | AE88: =AE87/78 -> 0
A91: Fonte: Vacina e Confia, em 13 de janeiro de 2026.**<https://vacinaeconfia.saude.es.gov.br/>
A92: **Dados referente às doses aplicadas no período de janeiro a dezembro 2025
A93: Cobertura Calculada por município de procedência/ocorrência da vacinação
A94: 1 População estimada extraída do MS/SVS/DASIS - SINASC/DASIS/SVS/MS 2024 (hoje preliminares) referente ao período de novembro e dezembro 2024 e SINASC/DASIS/SVS/MS 2024 (hoje preliminares) referente ao período de janeiro a outubro/ 2025.
A95: Sinasc, atualizado em 12/01/2026
A96: Método de Cálculo Simples
A97: Homogeineidade: O cálculo da Homogeineidade entre vacinas é feito de acordo com a pactuação estabelecida no Plano Plurianual (PPA) vigente no período 2024-2027.
A100: Observações referente a distribuição de imunobiológicos que podem afetar a cobertura vacinal:
A102: 1. Vacinas que foram recebidas parcialmente pelo estado no mês de dezembro/2025, sendo distribuídos em quantidades reduzidas às regionais e municípios:
A104: 2. Vacinas indisponíveis no mês de dezembro/2025, não sendo possível a distribuição às regionais e municípios:
A105: VACINA TETRA VIRAL.
A106: 3. Vacinas enviadas por Pautas aguardando abastecimento do estoque estadual;
A107: VACINA COVID-19 PFIZER PEDIÁTRICA MENOR QUE 5 ANOS; VACINA COVID-19 PFIZER PEDIÁTRICA.
A109: Fonte: Informes situacionais de distribuição de imunobiológicos em https://saude.es.gov.br/GrupodeArquivos/informes-situacionais-de-distribuicao-de-imunobiologicos

Sheet CV Rotina <2A - residência
D1: AO NASCER | L1: MENOR DE 1 ANO | V1: 1 ANO | AB1: MENOR DE 2 ANOS | AE1: MENOR DE 1 ANO
A2: Regional | B2: Município | C2: ¹População < 1 ano e 1 ano | D2: Doses Aplicadas HB ≤30 dias | E2: Cobertura Vacinal HB até 30 dias | F2: Doses Aplicadas HB ≤2 dias | G2: Cobertura Vacinal HB até 2 dias | H2: Doses Aplicadas HB ≤1 dia | I2: Cobertura Vacinal HB até 1 dia | J2: Doses Aplicadas BCG | K2: Cobertura Vacinal BCG | L2: Doses Aplicadas Pentavalente | M2: Cobertura Vacinal Pentavalente | N2: Doses Aplicadas Poliomielite | O2: Cobertura Vacinal Poliomielite | P2: Doses Aplicadas Pneumo 10 | Q2: Cobertura Vacinal Pneumo 10 | R2: Doses Aplicadas Meningo C | S2: Cobertura Vacinal Meningo C | T2: Doses Aplicadas Febre Amarela | U2: Cobertura Vacinal Febre Amarela | V2: Doses Aplicadas Hepatite A | W2: Cobertura Vacinal Hepatite A | X2: Doses Aplicadas de Tríplice Viral | Y2: Cobertura Vacinal Tríplice Viral | Z2: Doses Aplicadas Varicela | AA2: Cobertura Varicela | AB2: Doses Aplicadas Rotavírus | AC2: Cobertura Vacinal Rotavírus | AE2: Doses Aplicadas COVID-19 | AF2: Cobertura Vacinal COVID-19 D1 | AH2: VACINAS QUE ATINGIRAM A META DE CV | AI2: HOMOGENEIDADE ENTRE AS 10 VACINAS | AJ2: VACINAS DO PQA-VS QUE ATINGIRAM A META DE CV | AK2: HOMOGENEIDADE ENTRE AS VACINAS DO PQA-VS
A3: Metropolitana | B3: Afonso Cláudio | C3: 361 | D3: 349 | E3: =D3/C3 -> 0.9667590028 | F3: 291 | G3: =F3/C3 -> 0.8060941828 | H3: 236 | I3: =H3/C3 -> 0.6537396122 | J3: 347 | K3: =J3/C3 -> 0.9612188366 | L3: 347 | M3: =L3/C3 -> 0.9612188366 | N3: 344 | O3: =N3/C3 -> 0.9529085873 | P3: 331 | Q3: =P3/C3 -> 0.9168975069 | R3: 342 | S3: =R3/C3 -> 0.9473684211 | T3: 307 | U3: =T3/C3 -> 0.8504155125 | V3: 370 | W3: =V3/C3 -> 1.024930748 | X3: 362 | Y3: =X3/C3 -> 1.002770083 | Z3: 386 | AA3: =Z3/C3 -> 1.069252078 | AB3: 343 | AC3: =AB3/C3 -> 0.9501385042 | AE3: 1 | AF3: =AE3/C3 -> 0.002770083102 | AH3: =cálculos2!O3 -> 7 | AI3: =AH3*0.1 -> 0.7 | AJ3: =cálculos2!P3 -> 3 | AK3: =AJ3*0.25 -> 0.75 | AM3: LEGENDA / HOMOGENEIDADE PQA-VS
A4: Norte | B4: Água Doce do Norte | C4: 154 | D4: 130 | E4: =D4/C4 -> 0.8441558442 | F4: 80 | G4: =F4/C4 -> 0.5194805195 | H4: 68 | I4: =H4/C4 -> 0.4415584416 | J4: 132 | K4: =J4/C4 -> 0.8571428571 | L4: 123 | M4: 0.7987012987 | N4: 123 | O4: 0.7987012987 | P4: 114 | Q4: 0.7402597403 | R4: 129 | S4: 0.8376623377 | T4: 133 | U4: 0.8636363636 | V4: 154 | W4: 1 | X4: 170 | Y4: 1.103896104 | Z4: 101 | AA4: 0.6558441558 | AB4: 113 | AC4: 0.7337662338 | AE4: 1 | AF4: 0.006493506494 | AH4: =cálculos2!O4 -> 2 | AI4: =AH4*0.1 -> 0.2 | AJ4: =cálculos2!P4 -> 1 | AK4: =AJ4*0.25 -> 0.25 | AM4: PERCENTUAL | AN4: Nº DE MUNICÍPIOS
A5: Central | B5: Águia Branca | C5: 167 | D5: 163 | E5: 0.9760479042 | F5: 80 | G5: 0.4790419162 | H5: 69 | I5: 0.4131736527 | J5: 164 | K5: 0.9820359281 | L5: 153 | M5: 0.9161676647 | N5: 154 | O5: 0.9221556886 | P5: 149 | Q5: 0.8922155689 | R5: 156 | S5: 0.9341317365 | T5: 124 | U5: 0.7425149701 | V5: 149 | W5: 0.8922155689 | X5: 153 | Y5: 0.9161676647 | Z5: 155 | AA5: 0.9281437126 | AB5: 154 | AC5: 0.9221556886 | AE5: 1 | AF5: 0.005988023952 | AH5: =cálculos2!O5 -> 2 | AI5: 0.2 | AJ5: =cálculos2!P5 -> 0 | AK5: 0 | AM5: 0 | AN5: =COUNTIF($AK$3:$AK$80,"=0") -> 24
A6: Sul | B6: Alegre | C6: 322 | D6: 276 | E6: 0.8571428571 | F6: 163 | G6: 0.5062111801 | H6: 100 | I6: 0.3105590062 | J6: 274 | K6: 0.850931677 | L6: 294 | M6: 0.9130434783 | N6: 285 | O6: 0.8850931677 | P6: 285 | Q6: 0.8850931677 | R6: 308 | S6: 0.9565217391 | T6: 256 | U6: 0.7950310559 | V6: 323 | W6: 1.00310559 | X6: 326 | Y6: 1.01242236 | Z6: 345 | AA6: 1.071428571 | AB6: 300 | AC6: 0.9316770186 | AE6: 21 | AF6: 0.0652173913 | AH6: =cálculos2!O6 -> 5 | AI6: 0.5 | AJ6: =cálculos2!P6 -> 1 | AK6: 0.25 | AM6: 0.25 | AN6: =COUNTIF($AK$3:$AK$80,"=0,25") -> 15
A7: Sul | B7: Alfredo Chaves | C7: 119 | D7: 115 | E7: 0.9663865546 | F7: 94 | G7: 0.7899159664 | H7: 75 | I7: 0.6302521008 | J7: 116 | K7: 0.974789916 | L7: 111 | M7: 0.9327731092 | N7: 111 | O7: 0.9327731092 | P7: 100 | Q7: 0.8403361345 | R7: 113 | S7: 0.9495798319 | T7: 93 | U7: 0.781512605 | V7: 121 | W7: 1.016806723 | X7: 115 | Y7: 0.9663865546 | Z7: 125 | AA7: 1.050420168 | AB7: 113 | AC7: 0.9495798319 | AE7: 1 | AF7: 0.008403361345 | AH7: =cálculos2!O7 -> 5 | AI7: 0.5 | AJ7: =cálculos2!P7 -> 1 | AK7: 0.25 | AM7: 0.5 | AN7: =COUNTIF($AK$3:$AK$80,"=0,5") -> 2
A8: Central | B8: Alto Rio Novo | C8: 98 | D8: 89 | E8: 0.9081632653 | F8: 55 | G8: 0.5612244898 | H8: 50 | I8: 0.5102040816 | J8: 100 | K8: 1.020408163 | L8: 97 | M8: 0.9897959184 | N8: 98 | O8: 1 | P8: 102 | Q8: 1.040816327 | R8: 100 | S8: 1.020408163 | T8: 91 | U8: 0.9285714286 | V8: 97 | W8: 0.9897959184 | X8: 96 | Y8: 0.9795918367 | Z8: 101 | AA8: 1.030612245 | AB8: 103 | AC8: 1.051020408 | AE8: 0 | AF8: 0 | AH8: =cálculos2!O8 -> 9 | AI8: 0.9 | AJ8: =cálculos2!P8 -> 4 | AK8: 1 | AM8: 0.75 | AN8: =COUNTIF($AK$3:$AK$80,"=0,75") -> 11
A9: Sul | B9: Anchieta | C9: 329 | D9: 353 | E9: 1.072948328 | F9: 308 | G9: 0.9361702128 | H9: 240 | I9: 0.7294832827 | J9: 359 | K9: 1.09118541 | L9: 377 | M9: 1.145896657 | N9: 376 | O9: 1.142857143 | P9: 366 | Q9: 1.112462006 | R9: 374 | S9: 1.136778116 | T9: 316 | U9: 0.9604863222 | V9: 378 | W9: 1.14893617 | X9: 407 | Y9: 1.237082067 | Z9: 385 | AA9: 1.170212766 | AB9: 379 | AC9: 1.151975684 | AE9: 20 | AF9: 0.06079027356 | AH9: =cálculos2!O9 -> 10 | AI9: 1 | AJ9: =cálculos2!P9 -> 4 | AK9: 1 | AM9: 1 | AN9: =COUNTIF($AK$3:$AK$80,"=1,0") -> 26
A10: Sul | B10: Apiacá | C10: 69 | D10: 17 | E10: 0.2463768116 | F10: 9 | G10: 0.1304347826 | H10: 4 | I10: 0.05797101449 | J10: 63 | K10: 0.9130434783 | L10: 63 | M10: 0.9130434783 | N10: 61 | O10: 0.884057971 | P10: 64 | Q10: 0.9275362319 | R10: 62 | S10: 0.8985507246 | T10: 51 | U10: 0.7391304348 | V10: 56 | W10: 0.8115942029 | X10: 64 | Y10: 0.9275362319 | Z10: 63 | AA10: 0.9130434783 | AB10: 63 | AC10: 0.9130434783 | AE10: 0 | AF10: 0 | AH10: =cálculos2!O10 -> 2 | AI10: 0.2 | AJ10: =cálculos2!P10 -> 0 | AK10: 0
A11: Metropolitana | B11: Aracruz | C11: 1409 | D11: 1384 | E11: 0.9822569198 | F11: 867 | G11: 0.6153300213 | H11: 571 | I11: 0.4052519517 | J11: 1385 | K11: 0.982966643 | L11: 1266 | M11: 0.8985095813 | N11: 1266 | O11: 0.8985095813 | P11: 1244 | Q11: 0.8828956707 | R11: 1285 | S11: 0.9119943222 | T11: 1029 | U11: 0.730305181 | V11: 1348 | W11: 0.9567068843 | X11: 1391 | Y11: 0.9872249823 | Z11: 1344 | AA11: 0.9538679915 | AB11: 1355 | AC11: 0.9616749468 | AE11: 54 | AF11: 0.03832505323 | AH11: =cálculos2!O11 -> 5 | AI11: 0.5 | AJ11: =cálculos2!P11 -> 1 | AK11: 0.25
A12: Sul | B12: Atilio Vivacqua | C12: 143 | D12: 143 | E12: 1 | F12: 132 | G12: 0.9230769231 | H12: 78 | I12: 0.5454545455 | J12: 143 | K12: 1 | L12: 177 | M12: 1.237762238 | N12: 175 | O12: 1.223776224 | P12: 168 | Q12: 1.174825175 | R12: 171 | S12: 1.195804196 | T12: 156 | U12: 1.090909091 | V12: 158 | W12: 1.104895105 | X12: 176 | Y12: 1.230769231 | Z12: 158 | AA12: 1.104895105 | AB12: 171 | AC12: 1.195804196 | AE12: 4 | AF12: 0.02797202797 | AH12: =cálculos2!O12 -> 10 | AI12: 1 | AJ12: =cálculos2!P12 -> 4 | AK12: 1 | AM12: LEGENDA / HOMOGENEIDADE 10 VACINAS
A13: Central | B13: Baixo Guandu | C13: 364 | D13: 281 | E13: 0.771978022 | F13: 189 | G13: 0.5192307692 | H13: 167 | I13: 0.4587912088 | J13: 354 | K13: 0.9725274725 | L13: 338 | M13: 0.9285714286 | N13: 337 | O13: 0.9258241758 | P13: 333 | Q13: 0.9148351648 | R13: 332 | S13: 0.9120879121 | T13: 290 | U13: 0.7967032967 | V13: 364 | W13: 1 | X13: 352 | Y13: 0.967032967 | Z13: 336 | AA13: 0.9230769231 | AB13: 342 | AC13: 0.9395604396 | AE13: 0 | AF13: 0 | AH13: =cálculos2!O13 -> 4 | AI13: 0.4 | AJ13: =cálculos2!P13 -> 1 | AK13: 0.25 | AM13: PERCENTUAL | AN13: Nº DE MUNICÍPIOS
A14: Norte | B14: Barra de São Francisco | C14: 621 | D14: 520 | E14: 0.8373590982 | F14: 314 | G14: 0.5056360709 | H14: 275 | I14: 0.4428341385 | J14: 526 | K14: 0.847020934 | L14: 534 | M14: 0.8599033816 | N14: 523 | O14: 0.8421900161 | P14: 511 | Q14: 0.8228663446 | R14: 518 | S14: 0.8341384863 | T14: 420 | U14: 0.6763285024 | V14: 488 | W14: 0.7858293076 | X14: 518 | Y14: 0.8341384863 | Z14: 522 | AA14: 0.8405797101 | AB14: 533 | AC14: 0.8582930757 | AE14: 0 | AF14: 0 | AH14: =cálculos2!O14 -> 0 | AI14: 0 | AJ14: =cálculos2!P14 -> 0 | AK14: 0 | AM14: 0 | AN14: =COUNTIF($AI$3:$AI$80,"=0") -> 6
A15: Norte | B15: Boa Esperança | C15: 231 | D15: 187 | E15: 0.8095238095 | F15: 176 | G15: 0.7619047619 | H15: 159 | I15: 0.6883116883 | J15: 183 | K15: 0.7922077922 | L15: 185 | M15: 0.8008658009 | N15: 188 | O15: 0.8138528139 | P15: 202 | Q15: 0.8744588745 | R15: 190 | S15: 0.8225108225 | T15: 155 | U15: 0.670995671 | V15: 185 | W15: 0.8008658009 | X15: 197 | Y15: 0.8528138528 | Z15: 176 | AA15: 0.7619047619 | AB15: 202 | AC15: 0.8744588745 | AE15: 2 | AF15: 0.008658008658 | AH15: =cálculos2!O15 -> 0 | AI15: 0 | AJ15: =cálculos2!P15 -> 0 | AK15: 0 | AM15: 0.1 | AN15: =COUNTIFS($AI$3:$AI$80,">=0,10",$AI$3:$AI$80,"<0,20") -> 4
A16: Sul | B16: Bom Jesus do Norte | C16: 79 | D16: 46 | E16: 0.582278481 | F16: 12 | G16: 0.1518987342 | H16: 6 | I16: 0.07594936709 | J16: 94 | K16: 1.189873418 | L16: 104 | M16: 1.316455696 | N16: 104 | O16: 1.316455696 | P16: 107 | Q16: 1.35443038 | R16: 102 | S16: 1.291139241 | T16: 79 | U16: 1 | V16: 97 | W16: 1.227848101 | X16: 103 | Y16: 1.303797468 | Z16: 93 | AA16: 1.17721519 | AB16: 114 | AC16: 1.443037975 | AE16: 6 | AF16: 0.07594936709 | AH16: =cálculos2!O16 -> 10 | AI16: 1 | AJ16: =cálculos2!P16 -> 4 | AK16: 1 | AM16: 0.2 | AN16: =COUNTIFS($AI$3:$AI$80,">=0,20",$AI$3:$AI$80,"<0,30") -> 15
A17: Metropolitana | B17: Brejetuba | C17: 228 | D17: 181 | E17: 0.7938596491 | F17: 158 | G17: 0.6929824561 | H17: 141 | I17: 0.6184210526 | J17: 181 | K17: 0.7938596491 | L17: 196 | M17: 0.8596491228 | N17: 204 | O17: 0.8947368421 | P17: 204 | Q17: 0.8947368421 | R17: 212 | S17: 0.9298245614 | T17: 180 | U17: 0.7894736842 | V17: 190 | W17: 0.8333333333 | X17: 203 | Y17: 0.8903508772 | Z17: 221 | AA17: 0.9692982456 | AB17: 228 | AC17: 1 | AE17: 2 | AF17: 0.008771929825 | AH17: =cálculos2!O17 -> 2 | AI17: 0.2 | AJ17: =cálculos2!P17 -> 0 | AK17: 0 | AM17: 0.3 | AN17: =COUNTIFS($AI$3:$AI$80,">=0,30",$AI$3:$AI$80,"<0,40") -> 2
A18: Sul | B18: Cachoeiro de Itapemirim | C18: 2389 | D18: 2344 | E18: 0.9811636668 | F18: 2030 | G18: 0.8497279196 | H18: 1329 | I18: 0.556299707 | J18: 2355 | K18: 0.9857681038 | L18: 2106 | M18: 0.8815403935 | N18: 2083 | O18: 0.8719129343 | P18: 2130 | Q18: 0.8915864378 | R18: 2134 | S18: 0.8932607786 | T18: 1587 | U18: 0.664294684 | V18: 2173 | W18: 0.9095856007 | X18: 2332 | Y18: 0.9761406446 | Z18: 2075 | AA18: 0.8685642528 | AB18: 2264 | AC18: 0.9476768522 | AE18: 70 | AF18: 0.02930096275 | AH18: =cálculos2!O18 -> 3 | AI18: 0.3 | AJ18: =cálculos2!P18 -> 1 | AK18: 0.25 | AM18: 0.4 | AN18: =COUNTIFS($AI$3:$AI$80,">=0,40",$AI$3:$AI$80,"<0,50") -> 5
A19: Metropolitana | B19: Cariacica | C19: 4798 | D19: 4334 | E19: 0.9032930388 | F19: 3022 | G19: 0.6298457691 | H19: 2046 | I19: 0.4264276782 | J19: 4340 | K19: 0.9045435598 | L19: 4001 | M19: 0.8338891205 | N19: 3953 | O19: 0.8238849521 | P19: 3905 | Q19: 0.8138807837 | R19: 4167 | S19: 0.8684868695 | T19: 3023 | U19: 0.6300541892 | V19: 4177 | W19: 0.8705710713 | X19: 4352 | Y19: 0.9070446019 | Z19: 3562 | AA19: 0.7423926636 | AB19: 4329 | AC19: 0.9022509379 | AE19: 144 | AF19: 0.03001250521 | AH19: =cálculos2!O19 -> 2 | AI19: 0.2 | AJ19: =cálculos2!P19 -> 0 | AK19: 0 | AM19: 0.5 | AN19: =COUNTIFS($AI$3:$AI$80,">=0,50",$AI$3:$AI$80,"<0,60") -> 8
A20: Sul | B20: Castelo | C20: 398 | D20: 424 | E20: 1.065326633 | F20: 331 | G20: 0.8316582915 | H20: 239 | I20: 0.6005025126 | J20: 430 | K20: 1.08040201 | L20: 402 | M20: 1.010050251 | N20: 396 | O20: 0.9949748744 | P20: 382 | Q20: 0.959798995 | R20: 406 | S20: 1.020100503 | T20: 354 | U20: 0.8894472362 | V20: 434 | W20: 1.090452261 | X20: 426 | Y20: 1.070351759 | Z20: 385 | AA20: 0.9673366834 | AB20: 414 | AC20: 1.040201005 | AE20: 5 | AF20: 0.01256281407 | AH20: =cálculos2!O20 -> 9 | AI20: 0.9 | AJ20: =cálculos2!P20 -> 4 | AK20: 1 | AM20: 0.6 | AN20: =COUNTIFS($AI$3:$AI$80,">=0,60",$AI$3:$AI$80,"<0,70") -> 7
A21: Central | B21: Colatina | C21: 1470 | D21: 1450 | E21: 0.9863945578 | F21: 834 | G21: 0.5673469388 | H21: 697 | I21: 0.4741496599 | J21: 1477 | K21: 1.004761905 | L21: 1284 | M21: 0.8734693878 | N21: 1278 | O21: 0.8693877551 | P21: 1239 | Q21: 0.8428571429 | R21: 1329 | S21: 0.9040816327 | T21: 1049 | U21: 0.7136054422 | V21: 1346 | W21: 0.9156462585 | X21: 1427 | Y21: 0.9707482993 | Z21: 1261 | AA21: 0.8578231293 | AB21: 1351 | AC21: 0.919047619 | AE21: 24 | AF21: 0.01632653061 | AH21: =cálculos2!O21 -> 3 | AI21: 0.3 | AJ21: =cálculos2!P21 -> 1 | AK21: 0.25 | AM21: 0.7 | AN21: =COUNTIFS($AI$3:$AI$80,">=0,70",$AI$3:$AI$80,"<0,80") -> 3
A22: Norte | B22: Conceição da Barra | C22: 384 | D22: 356 | E22: 0.9270833333 | F22: 330 | G22: 0.859375 | H22: 287 | I22: 0.7473958333 | J22: 341 | K22: 0.8880208333 | L22: 395 | M22: 1.028645833 | N22: 395 | O22: 1.028645833 | P22: 382 | Q22: 0.9947916667 | R22: 385 | S22: 1.002604167 | T22: 347 | U22: 0.9036458333 | V22: 428 | W22: 1.114583333 | X22: 437 | Y22: 1.138020833 | Z22: 406 | AA22: 1.057291667 | AB22: 394 | AC22: 1.026041667 | AE22: 6 | AF22: 0.015625 | AH22: =cálculos2!O22 -> 8 | AI22: 0.8 | AJ22: =cálculos2!P22 -> 4 | AK22: 1 | AM22: 0.8 | AN22: =COUNTIFS($AI$3:$AI$80,">=0,80",$AI$3:$AI$80,"<0,90") -> 8
A23: Metropolitana | B23: Conceição do Castelo | C23: 182 | D23: 153 | E23: 0.8406593407 | F23: 140 | G23: 0.7692307692 | H23: 133 | I23: 0.7307692308 | J23: 156 | K23: 0.8571428571 | L23: 155 | M23: 0.8516483516 | N23: 146 | O23: 0.8021978022 | P23: 112 | Q23: 0.6153846154 | R23: 150 | S23: 0.8241758242 | T23: 128 | U23: 0.7032967033 | V23: 124 | W23: 0.6813186813 | X23: 148 | Y23: 0.8131868132 | Z23: 143 | AA23: 0.7857142857 | AB23: 160 | AC23: 0.8791208791 | AE23: 5 | AF23: 0.02747252747 | AH23: =cálculos2!O23 -> 0 | AI23: 0 | AJ23: =cálculos2!P23 -> 0 | AK23: 0 | AM23: 0.9 | AN23: =COUNTIFS($AI$3:$AI$80,">=0,90",$AI$3:$AI$80,"<1,0") -> 14
A24: Sul | B24: Divino de São Lourenço | C24: 65 | D24: 73 | E24: 1.123076923 | F24: 21 | G24: 0.3230769231 | H24: 12 | I24: 0.1846153846 | J24: 72 | K24: 1.107692308 | L24: 46 | M24: 0.7076923077 | N24: 46 | O24: 0.7076923077 | P24: 50 | Q24: 0.7692307692 | R24: 50 | S24: 0.7692307692 | T24: 56 | U24: 0.8615384615 | V24: 66 | W24: 1.015384615 | X24: 67 | Y24: 1.030769231 | Z24: 72 | AA24: 1.107692308 | AB24: 52 | AC24: 0.8 | AE24: 0 | AF24: 0 | AH24: =cálculos2!O24 -> 4 | AI24: 0.4 | AJ24: =cálculos2!P24 -> 1 | AK24: 0.25 | AM24: 1 | AN24: =COUNTIF($AI$3:$AI$80,">=1,0") -> 6
A25: Metropolitana | B25: Domingos Martins | C25: 425 | D25: 371 | E25: 0.8729411765 | F25: 329 | G25: 0.7741176471 | H25: 281 | I25: 0.6611764706 | J25: 383 | K25: 0.9011764706 | L25: 418 | M25: 0.9835294118 | N25: 414 | O25: 0.9741176471 | P25: 403 | Q25: 0.9482352941 | R25: 430 | S25: 1.011764706 | T25: 359 | U25: 0.8447058824 | V25: 425 | W25: 1 | X25: 419 | Y25: 0.9858823529 | Z25: 431 | AA25: 1.014117647 | AB25: 425 | AC25: 1 | AE25: 32 | AF25: 0.07529411765 | AH25: =cálculos2!O25 -> 8 | AI25: 0.8 | AJ25: =cálculos2!P25 -> 3 | AK25: 0.75
A26: Sul | B26: Dores do Rio Preto | C26: 96 | D26: 66 | E26: 0.6875 | F26: 20 | G26: 0.2083333333 | H26: 8 | I26: 0.08333333333 | J26: 69 | K26: 0.71875 | L26: 105 | M26: 1.09375 | N26: 104 | O26: 1.083333333 | P26: 73 | Q26: 0.7604166667 | R26: 96 | S26: 1 | T26: 85 | U26: 0.8854166667 | V26: 93 | W26: 0.96875 | X26: 99 | Y26: 1.03125 | Z26: 85 | AA26: 0.8854166667 | AB26: 107 | AC26: 1.114583333 | AE26: 0 | AF26: 0 | AH26: =cálculos2!O26 -> 6 | AI26: 0.6 | AJ26: =cálculos2!P26 -> 3 | AK26: 0.75
A27: Norte | B27: Ecoporanga | C27: 240 | D27: 246 | E27: 1.025 | F27: 165 | G27: 0.6875 | H27: 144 | I27: 0.6 | J27: 245 | K27: 1.020833333 | L27: 259 | M27: 1.079166667 | N27: 254 | O27: 1.058333333 | P27: 250 | Q27: 1.041666667 | R27: 255 | S27: 1.0625 | T27: 209 | U27: 0.8708333333 | V27: 249 | W27: 1.0375 | X27: 263 | Y27: 1.095833333 | Z27: 225 | AA27: 0.9375 | AB27: 262 | AC27: 1.091666667 | AE27: 1 | AF27: 0.004166666667 | AH27: =cálculos2!O27 -> 8 | AI27: 0.8 | AJ27: =cálculos2!P27 -> 4 | AK27: 1
A28: Metropolitana | B28: Fundão | C28: 223 | D28: 217 | E28: 0.9730941704 | F28: 181 | G28: 0.8116591928 | H28: 140 | I28: 0.6278026906 | J28: 225 | K28: 1.00896861 | L28: 228 | M28: 1.022421525 | N28: 228 | O28: 1.022421525 | P28: 209 | Q28: 0.9372197309 | R28: 219 | S28: 0.9820627803 | T28: 170 | U28: 0.7623318386 | V28: 201 | W28: 0.9013452915 | X28: 223 | Y28: 1 | Z28: 199 | AA28: 0.8923766816 | AB28: 229 | AC28: 1.02690583 | AE28: 4 | AF28: 0.01793721973 | AH28: =cálculos2!O28 -> 6 | AI28: 0.6 | AJ28: =cálculos2!P28 -> 3 | AK28: 0.75
A29: Central | B29: Governador Lindenberg | C29: 145 | D29: 139 | E29: 0.9586206897 | F29: 78 | G29: 0.5379310345 | H29: 62 | I29: 0.4275862069 | J29: 148 | K29: 1.020689655 | L29: 108 | M29: 0.7448275862 | N29: 108 | O29: 0.7448275862 | P29: 113 | Q29: 0.7793103448 | R29: 108 | S29: 0.7448275862 | T29: 84 | U29: 0.5793103448 | V29: 119 | W29: 0.8206896552 | X29: 122 | Y29: 0.8413793103 | Z29: 116 | AA29: 0.8 | AB29: 120 | AC29: 0.8275862069 | AE29: 0 | AF29: 0 | AH29: =cálculos2!O29 -> 1 | AI29: 0.1 | AJ29: =cálculos2!P29 -> 0 | AK29: 0
A30: Sul | B30: Guaçuí | C30: 387 | D30: 340 | E30: 0.8785529716 | F30: 146 | G30: 0.3772609819 | H30: 94 | I30: 0.2428940568 | J30: 350 | K30: 0.9043927649 | L30: 328 | M30: 0.8475452196 | N30: 325 | O30: 0.8397932817 | P30: 341 | Q30: 0.8811369509 | R30: 346 | S30: 0.8940568475 | T30: 281 | U30: 0.7260981912 | V30: 335 | W30: 0.8656330749 | X30: 359 | Y30: 0.9276485788 | Z30: 324 | AA30: 0.8372093023 | AB30: 343 | AC30: 0.8863049096 | AE30: 15 | AF30: 0.03875968992 | AH30: =cálculos2!O30 -> 1 | AI30: 0.1 | AJ30: =cálculos2!P30 -> 0 | AK30: 0
A31: Metropolitana | B31: Guarapari | C31: 1659 | D31: 1451 | E31: 0.874623267 | F31: 1213 | G31: 0.7311633514 | H31: 1006 | I31: 0.6063893912 | J31: 1510 | K31: 0.9101868596 | L31: 1390 | M31: 0.837854129 | N31: 1384 | O31: 0.8342374925 | P31: 1465 | Q31: 0.8830620856 | R31: 1461 | S31: 0.8806509946 | T31: 983 | U31: 0.5925256178 | V31: 1433 | W31: 0.8637733574 | X31: 1500 | Y31: 0.904159132 | Z31: 1259 | AA31: 0.7588908981 | AB31: 1558 | AC31: 0.9391199518 | AE31: 35 | AF31: 0.02109704641 | AH31: =cálculos2!O31 -> 2 | AI31: 0.2 | AJ31: =cálculos2!P31 -> 0 | AK31: 0
A32: Metropolitana | B32: Ibatiba | C32: 398 | D32: 343 | E32: 0.8618090452 | F32: 87 | G32: 0.2185929648 | H32: 63 | I32: 0.1582914573 | J32: 368 | K32: 0.9246231156 | L32: 361 | M32: 0.9070351759 | N32: 358 | O32: 0.8994974874 | P32: 356 | Q32: 0.8944723618 | R32: 360 | S32: 0.9045226131 | T32: 317 | U32: 0.7964824121 | V32: 396 | W32: 0.9949748744 | X32: 382 | Y32: 0.959798995 | Z32: 364 | AA32: 0.9145728643 | AB32: 375 | AC32: 0.9422110553 | AE32: 14 | AF32: 0.0351758794 | AH32: =cálculos2!O32 -> 4 | AI32: 0.4 | AJ32: =cálculos2!P32 -> 1 | AK32: 0.25
A33: Metropolitana | B33: Ibiraçu | C33: 127 | D33: 124 | E33: 0.9763779528 | F33: 80 | G33: 0.6299212598 | H33: 59 | I33: 0.4645669291 | J33: 124 | K33: 0.9763779528 | L33: 126 | M33: 0.9921259843 | N33: 123 | O33: 0.968503937 | P33: 122 | Q33: 0.9606299213 | R33: 127 | S33: 1 | T33: 111 | U33: 0.874015748 | V33: 141 | W33: 1.11023622 | X33: 139 | Y33: 1.094488189 | Z33: 142 | AA33: 1.118110236 | AB33: 119 | AC33: 0.937007874 | AE33: 1 | AF33: 0.007874015748 | AH33: =cálculos2!O33 -> 9 | AI33: 0.9 | AJ33: =cálculos2!P33 -> 4 | AK33: 1
A34: Sul | B34: Ibitirama | C34: 140 | D34: 137 | E34: 0.9785714286 | F34: 54 | G34: 0.3857142857 | H34: 27 | I34: 0.1928571429 | J34: 141 | K34: 1.007142857 | L34: 168 | M34: 1.2 | N34: 164 | O34: 1.171428571 | P34: 164 | Q34: 1.171428571 | R34: 165 | S34: 1.178571429 | T34: 135 | U34: 0.9642857143 | V34: 154 | W34: 1.1 | X34: 157 | Y34: 1.121428571 | Z34: 152 | AA34: 1.085714286 | AB34: 171 | AC34: 1.221428571 | AE34: 13 | AF34: 0.09285714286 | AH34: =cálculos2!O34 -> 10 | AI34: 1 | AJ34: =cálculos2!P34 -> 4 | AK34: 1
A35: Sul | B35: Iconha | C35: 139 | D35: 132 | E35: 0.9496402878 | F35: 100 | G35: 0.7194244604 | H35: 73 | I35: 0.5251798561 | J35: 135 | K35: 0.9712230216 | L35: 127 | M35: =L35/C35 -> 0.9136690647 | N35: 127 | O35: =N35/C35 -> 0.9136690647 | P35: 124 | Q35: =P35/C35 -> 0.8920863309 | R35: 128 | S35: =R35/C35 -> 0.9208633094 | T35: 107 | U35: =T35/C35 -> 0.7697841727 | V35: 110 | W35: =V35/C35 -> 0.7913669065 | X35: 117 | Y35: =X35/C35 -> 0.8417266187 | Z35: 128 | AA35: =Z35/C35 -> 0.9208633094 | AB35: 130 | AC35: =AB35/C35 -> 0.9352517986 | AE35: 1 | AF35: =AE35/C35 -> 0.007194244604 | AH35: =cálculos2!O35 -> 2 | AI35: 0.2 | AJ35: =cálculos2!P35 -> 0 | AK35: 0
A36: Sul | B36: Irupi | C36: 202 | D36: 140 | E36: 0.6930693069 | F36: 53 | G36: 0.2623762376 | H36: 34 | I36: 0.1683168317 | J36: 170 | K36: 0.8415841584 | L36: 171 | M36: 0.8465346535 | N36: 165 | O36: 0.8168316832 | P36: 163 | Q36: 0.8069306931 | R36: 173 | S36: 0.8564356436 | T36: 158 | U36: 0.7821782178 | V36: 202 | W36: 1 | X36: 184 | Y36: 0.9108910891 | Z36: 167 | AA36: 0.8267326733 | AB36: 176 | AC36: 0.8712871287 | AE36: 12 | AF36: 0.05940594059 | AH36: =cálculos2!O36 -> 1 | AI36: 0.1 | AJ36: =cálculos2!P36 -> 0 | AK36: 0
A37: Metropolitana | B37: Itaguaçu | C37: 122 | D37: 127 | E37: 1.040983607 | F37: 102 | G37: 0.8360655738 | H37: 77 | I37: 0.631147541 | J37: 130 | K37: 1.06557377 | L37: 122 | M37: 1 | N37: 122 | O37: 1 | P37: 116 | Q37: 0.9508196721 | R37: 119 | S37: 0.9754098361 | T37: 130 | U37: 1.06557377 | V37: 150 | W37: 1.229508197 | X37: 150 | Y37: 1.229508197 | Z37: 148 | AA37: 1.213114754 | AB37: 117 | AC37: 0.9590163934 | AE37: 11 | AF37: 0.09016393443 | AH37: =cálculos2!O37 -> 10 | AI37: 1 | AJ37: =cálculos2!P37 -> 4 | AK37: 1
A38: Sul | B38: Itapemirim | C38: 520 | D38: 526 | E38: 1.011538462 | F38: 484 | G38: 0.9307692308 | H38: 401 | I38: 0.7711538462 | J38: 506 | K38: 0.9730769231 | L38: 433 | M38: 0.8326923077 | N38: 408 | O38: 0.7846153846 | P38: 487 | Q38: 0.9365384615 | R38: 481 | S38: 0.925 | T38: 302 | U38: 0.5807692308 | V38: 420 | W38: 0.8076923077 | X38: 465 | Y38: 0.8942307692 | Z38: 374 | AA38: 0.7192307692 | AB38: 496 | AC38: 0.9538461538 | AE38: 4 | AF38: 0.007692307692 | AH38: =cálculos2!O38 -> 2 | AI38: 0.2 | AJ38: =cálculos2!P38 -> 0 | AK38: 0
A39: Metropolitana | B39: Itarana | C39: 137 | D39: 133 | E39: 0.9708029197 | F39: 120 | G39: 0.8759124088 | H39: 91 | I39: 0.6642335766 | J39: 141 | K39: 1.02919708 | L39: 138 | M39: 1.00729927 | N39: 139 | O39: 1.01459854 | P39: 129 | Q39: 0.9416058394 | R39: 130 | S39: 0.9489051095 | T39: 125 | U39: 0.9124087591 | V39: 153 | W39: 1.116788321 | X39: 153 | Y39: 1.116788321 | Z39: 153 | AA39: 1.116788321 | AB39: 133 | AC39: 0.9708029197 | AE39: 1 | AF39: 0.007299270073 | AH39: =cálculos2!O39 -> 7 | AI39: 0.7 | AJ39: =cálculos2!P39 -> 3 | AK39: 0.75
A40: Sul | B40: Iúna | C40: 373 | D40: 312 | E40: 0.836461126 | F40: 74 | G40: 0.1983914209 | H40: 43 | I40: 0.1152815013 | J40: 352 | K40: 0.9436997319 | L40: 373 | M40: 1 | N40: 375 | O40: 1.00536193 | P40: 356 | Q40: 0.9544235925 | R40: 374 | S40: 1.002680965 | T40: 325 | U40: 0.8713136729 | V40: 419 | W40: 1.123324397 | X40: 399 | Y40: 1.069705094 | Z40: 380 | AA40: 1.018766756 | AB40: 368 | AC40: 0.9865951743 | AE40: 3 | AF40: 0.008042895442 | AH40: =cálculos2!O40 -> 9 | AI40: 0.9 | AJ40: =cálculos2!P40 -> 4 | AK40: 1
A41: Norte | B41: Jaguaré | C41: 461 | D41: 477 | E41: 1.034707158 | F41: 437 | G41: 0.9479392625 | H41: 414 | I41: 0.8980477223 | J41: 471 | K41: 1.021691974 | L41: 426 | M41: 0.9240780911 | N41: 419 | O41: 0.9088937093 | P41: 444 | Q41: 0.9631236443 | R41: 452 | S41: 0.9804772234 | T41: 357 | U41: 0.7744034707 | V41: 474 | W41: 1.028199566 | X41: 476 | Y41: 1.032537961 | Z41: 392 | AA41: 0.8503253796 | AB41: 450 | AC41: 0.9761388286 | AE41: 3 | AF41: 0.006507592191 | AH41: =cálculos2!O41 -> 6 | AI41: 0.6 | AJ41: =cálculos2!P41 -> 2 | AK41: 0.5
A42: Sul | B42: Jerônimo Monteiro | C42: 107 | D42: 115 | E42: 1.074766355 | F42: 100 | G42: 0.9345794393 | H42: 67 | I42: 0.6261682243 | J42: 113 | K42: 1.056074766 | L42: 113 | M42: 1.056074766 | N42: 113 | O42: 1.056074766 | P42: 113 | Q42: 1.056074766 | R42: 117 | S42: 1.093457944 | T42: 98 | U42: 0.9158878505 | V42: 139 | W42: 1.299065421 | X42: 136 | Y42: 1.271028037 | Z42: 134 | AA42: 1.252336449 | AB42: 116 | AC42: 1.08411215 | AE42: 5 | AF42: 0.04672897196 | AH42: =cálculos2!O42 -> 9 | AI42: 0.9 | AJ42: =cálculos2!P42 -> 4 | AK42: 1
A43: Metropolitana | B43: João Neiva | C43: 141 | D43: 124 | E43: 0.8794326241 | F43: 70 | G43: 0.4964539007 | H43: 42 | I43: 0.2978723404 | J43: 128 | K43: 0.9078014184 | L43: 145 | M43: 1.028368794 | N43: 142 | O43: 1.007092199 | P43: 132 | Q43: 0.9361702128 | R43: 134 | S43: 0.9503546099 | T43: 119 | U43: 0.8439716312 | V43: 152 | W43: 1.078014184 | X43: 150 | Y43: 1.063829787 | Z43: 153 | AA43: 1.085106383 | AB43: 134 | AC43: 0.9503546099 | AE43: 2 | AF43: 0.01418439716 | AH43: =cálculos2!O43 -> 8 | AI43: 0.8 | AJ43: =cálculos2!P43 -> 3 | AK43: 0.75
A44: Metropolitana | B44: Laranja da Terra | C44: 114 | D44: 113 | E44: 0.9912280702 | F44: 100 | G44: 0.8771929825 | H44: 68 | I44: 0.5964912281 | J44: 120 | K44: 1.052631579 | L44: 130 | M44: 1.140350877 | N44: 130 | O44: 1.140350877 | P44: 138 | Q44: 1.210526316 | R44: 141 | S44: 1.236842105 | T44: 100 | U44: 0.8771929825 | V44: 96 | W44: 0.8421052632 | X44: 106 | Y44: 0.9298245614 | Z44: 106 | AA44: 0.9298245614 | AB44: 136 | AC44: 1.192982456 | AE44: 8 | AF44: 0.0701754386 | AH44: =cálculos2!O44 -> 6 | AI44: 0.6 | AJ44: =cálculos2!P44 -> 3 | AK44: 0.75
A45: Central | B45: Linhares | C45: 2662 | D45: 2586 | E45: 0.9714500376 | F45: 2050 | G45: 0.7700976709 | H45: 1722 | I45: 0.6468820436 | J45: 2598 | K45: 0.9759579264 | L45: 2266 | M45: 0.8512396694 | N45: 2215 | O45: 0.832081142 | P45: 2337 | Q45: 0.8779113449 | R45: 2406 | S45: 0.9038317055 | T45: 1781 | U45: 0.6690458302 | V45: 2206 | W45: 0.8287002254 | X45: 2415 | Y45: 0.9072126221 | Z45: 1996 | AA45: 0.7498121713 | AB45: 2458 | AC45: 0.9233658903 | AE45: 11 | AF45: 0.004132231405 | AH45: =cálculos2!O45 -> 2 | AI45: 0.2 | AJ45: =cálculos2!P45 -> 0 | AK45: 0
A46: Central | B46: Mantenópolis | C46: 140 | D46: 129 | E46: 0.9214285714 | F46: 89 | G46: 0.6357142857 | H46: 79 | I46: 0.5642857143 | J46: 132 | K46: 0.9428571429 | L46: 124 | M46: 0.8857142857 | N46: 120 | O46: 0.8571428571 | P46: 116 | Q46: 0.8285714286 | R46: 126 | S46: 0.9 | T46: 124 | U46: 0.8857142857 | V46: 139 | W46: 0.9928571429 | X46: 141 | Y46: 1.007142857 | Z46: 149 | AA46: 1.064285714 | AB46: 123 | AC46: 0.8785714286 | AE46: 1 | AF46: 0.007142857143 | AH46: =cálculos2!O46 -> 4 | AI46: 0.4 | AJ46: =cálculos2!P46 -> 1 | AK46: 0.25
A47: Sul | B47: Marataízes | C47: 563 | D47: 569 | E47: 1.010657194 | F47: 520 | G47: 0.9236234458 | H47: 405 | I47: 0.7193605684 | J47: 573 | K47: 1.017761989 | L47: 519 | M47: 0.9218472469 | N47: 463 | O47: 0.8223801066 | P47: 554 | Q47: 0.9840142096 | R47: 523 | S47: 0.9289520426 | T47: 350 | U47: 0.621669627 | V47: 548 | W47: 0.973357016 | X47: 569 | Y47: 1.010657194 | Z47: 472 | AA47: 0.838365897 | AB47: 562 | AC47: 0.9982238011 | AE47: 3 | AF47: 0.005328596803 | AH47: =cálculos2!O47 -> 5 | AI47: 0.5 | AJ47: =cálculos2!P47 -> 2 | AK47: 0.5
A48: Metropolitana | B48: Marechal Floriano | C48: 208 | D48: 199 | E48: 0.9567307692 | F48: 165 | G48: 0.7932692308 | H48: 131 | I48: 0.6298076923 | J48: 193 | K48: 0.9278846154 | L48: 197 | M48: 0.9471153846 | N48: 199 | O48: 0.9567307692 | P48: 193 | Q48: 0.9278846154 | R48: 198 | S48: 0.9519230769 | T48: 163 | U48: 0.7836538462 | V48: 215 | W48: 1.033653846 | X48: 191 | Y48: 0.9182692308 | Z48: 214 | AA48: 1.028846154 | AB48: 201 | AC48: 0.9663461538 | AE48: 12 | AF48: 0.05769230769 | AH48: =cálculos2!O48 -> 6 | AI48: 0.6 | AJ48: =cálculos2!P48 -> 1 | AK48: 0.25
A49: Central | B49: Marilândia | C49: 170 | D49: 151 | E49: 0.8882352941 | F49: 101 | G49: 0.5941176471 | H49: 84 | I49: 0.4941176471 | J49: 156 | K49: 0.9176470588 | L49: 153 | M49: 0.9 | N49: 155 | O49: 0.9117647059 | P49: 158 | Q49: 0.9294117647 | R49: 155 | S49: 0.9117647059 | T49: 136 | U49: 0.8 | V49: 139 | W49: 0.8176470588 | X49: 154 | Y49: 0.9058823529 | Z49: 141 | AA49: 0.8294117647 | AB49: 163 | AC49: 0.9588235294 | AE49: 6 | AF49: 0.03529411765 | AH49: =cálculos2!O49 -> 2 | AI49: 0.2 | AJ49: =cálculos2!P49 -> 0 | AK49: 0
A50: Sul | B50: Mimoso do Sul | C50: 270 | D50: 258 | E50: 0.9555555556 | F50: 217 | G50: 0.8037037037 | H50: 140 | I50: 0.5185185185 | J50: 268 | K50: 0.9925925926 | L50: 271 | M50: 1.003703704 | N50: 258 | O50: 0.9555555556 | P50: 273 | Q50: 1.011111111 | R50: 270 | S50: 1 | T50: 224 | U50: 0.8296296296 | V50: 203 | W50: 0.7518518519 | X50: 227 | Y50: 0.8407407407 | Z50: 212 | AA50: 0.7851851852 | AB50: 287 | AC50: 1.062962963 | AE50: 6 | AF50: 0.02222222222 | AH50: =cálculos2!O50 -> 6 | AI50: 0.6 | AJ50: =cálculos2!P50 -> 3 | AK50: 0.75
A51: Norte | B51: Montanha | C51: 239 | D51: 235 | E51: 0.9832635983 | F51: 162 | G51: 0.6778242678 | H51: 143 | I51: 0.5983263598 | J51: 232 | K51: 0.9707112971 | L51: 234 | M51: 0.9790794979 | N51: 233 | O51: 0.9748953975 | P51: 236 | Q51: 0.9874476987 | R51: 235 | S51: 0.9832635983 | T51: 192 | U51: 0.8033472803 | V51: 250 | W51: 1.046025105 | X51: 266 | Y51: 1.112970711 | Z51: 264 | AA51: 1.10460251 | AB51: 244 | AC51: 1.020920502 | AE51: 8 | AF51: 0.03347280335 | AH51: =cálculos2!O51 -> 9 | AI51: 0.9 | AJ51: =cálculos2!P51 -> 4 | AK51: 1
A52: Norte | B52: Mucurici | C52: 56 | D52: 46 | E52: 0.8214285714 | F52: 37 | G52: 0.6607142857 | H52: 29 | I52: 0.5178571429 | J52: 44 | K52: 0.7857142857 | L52: 68 | M52: 1.214285714 | N52: 66 | O52: 1.178571429 | P52: 64 | Q52: 1.142857143 | R52: 61 | S52: 1.089285714 | T52: 56 | U52: 1 | V52: 71 | W52: 1.267857143 | X52: 68 | Y52: 1.214285714 | Z52: 70 | AA52: 1.25 | AB52: 63 | AC52: 1.125 | AE52: 2 | AF52: 0.03571428571 | AH52: =cálculos2!O52 -> 9 | AI52: 0.9 | AJ52: =cálculos2!P52 -> 4 | AK52: 1
A53: Sul | B53: Muniz Freire | C53: 241 | D53: 239 | E53: 0.9917012448 | F53: 135 | G53: 0.5601659751 | H53: 98 | I53: 0.4066390041 | J53: 244 | K53: 1.012448133 | L53: 226 | M53: 0.9377593361 | N53: 225 | O53: 0.9336099585 | P53: 245 | Q53: 1.01659751 | R53: 230 | S53: 0.9543568465 | T53: 208 | U53: 0.8630705394 | V53: 222 | W53: 0.9211618257 | X53: 228 | Y53: 0.9460580913 | Z53: 239 | AA53: 0.9917012448 | AB53: 251 | AC53: 1.041493776 | AE53: 3 | AF53: 0.01244813278 | AH53: =cálculos2!O53 -> 5 | AI53: 0.5 | AJ53: =cálculos2!P53 -> 1 | AK53: 0.25
A54: Sul | B54: Muqui | C54: 155 | D54: 156 | E54: 1.006451613 | F54: 134 | G54: 0.864516129 | H54: 89 | I54: 0.5741935484 | J54: 157 | K54: 1.012903226 | L54: 155 | M54: 1 | N54: 156 | O54: 1.006451613 | P54: 164 | Q54: 1.058064516 | R54: 162 | S54: 1.04516129 | T54: 129 | U54: 0.8322580645 | V54: 137 | W54: 0.8838709677 | X54: 141 | Y54: 0.9096774194 | Z54: 144 | AA54: 0.9290322581 | AB54: 161 | AC54: 1.038709677 | AE54: 8 | AF54: 0.05161290323 | AH54: =cálculos2!O54 -> 6 | AI54: 0.6 | AJ54: =cálculos2!P54 -> 3 | AK54: 0.75
A55: Norte | B55: Nova Venécia | C55: 709 | D55: 694 | E55: 0.9788434415 | F55: 585 | G55: 0.8251057828 | H55: 545 | I55: 0.7686882934 | J55: 691 | K55: 0.9746121298 | L55: 653 | M55: 0.9210155148 | N55: 650 | O55: 0.9167842031 | P55: 616 | Q55: 0.8688293371 | R55: 661 | S55: 0.9322990127 | T55: 533 | U55: 0.7517630465 | V55: 627 | W55: 0.8843441467 | X55: 655 | Y55: 0.9238363893 | Z55: 555 | AA55: 0.7827926657 | AB55: 706 | AC55: 0.9957686883 | AE55: 13 | AF55: 0.01833568406 | AH55: =cálculos2!O55 -> 2 | AI55: 0.2 | AJ55: =cálculos2!P55 -> 0 | AK55: 0
A56: Central | B56: Pancas | C56: 210 | D56: 212 | E56: 1.00952381 | F56: 116 | G56: 0.5523809524 | H56: 97 | I56: 0.4619047619 | J56: 217 | K56: 1.033333333 | L56: 213 | M56: 1.014285714 | N56: 213 | O56: 1.014285714 | P56: 205 | Q56: 0.9761904762 | R56: 211 | S56: 1.004761905 | T56: 178 | U56: 0.8476190476 | V56: 197 | W56: 0.9380952381 | X56: 201 | Y56: 0.9571428571 | Z56: 209 | AA56: 0.9952380952 | AB56: 206 | AC56: 0.980952381 | AE56: 3 | AF56: 0.01428571429 | AH56: =cálculos2!O56 -> 8 | AI56: 0.8 | AJ56: =cálculos2!P56 -> 4 | AK56: 1
A57: Norte | B57: Pedro Canário | C57: 349 | D57: 299 | E57: 0.8567335244 | F57: 276 | G57: 0.7908309456 | H57: 258 | I57: 0.7392550143 | J57: 306 | K57: 0.8767908309 | L57: 303 | M57: 0.8681948424 | N57: 289 | O57: 0.8280802292 | P57: 315 | Q57: 0.9025787966 | R57: 305 | S57: 0.8739255014 | T57: 218 | U57: 0.6246418338 | V57: 317 | W57: 0.9083094556 | X57: 318 | Y57: 0.9111747851 | Z57: 304 | AA57: 0.8710601719 | AB57: 330 | AC57: 0.9455587393 | AE57: 4 | AF57: 0.01146131805 | AH57: =cálculos2!O57 -> 1 | AI57: 0.1 | AJ57: =cálculos2!P57 -> 0 | AK57: 0
A58: Norte | B58: Pinheiros | C58: 333 | D58: 339 | E58: 1.018018018 | F58: 323 | G58: 0.96996997 | H58: 300 | I58: 0.9009009009 | J58: 324 | K58: 0.972972973 | L58: 352 | M58: 1.057057057 | N58: 348 | O58: 1.045045045 | P58: 365 | Q58: 1.096096096 | R58: 361 | S58: 1.084084084 | T58: 290 | U58: 0.8708708709 | V58: 336 | W58: 1.009009009 | X58: 352 | Y58: 1.057057057 | Z58: 336 | AA58: 1.009009009 | AB58: 379 | AC58: 1.138138138 | AE58: 6 | AF58: 0.01801801802 | AH58: =cálculos2!O58 -> 9 | AI58: 0.9 | AJ58: =cálculos2!P58 -> 4 | AK58: 1
A59: Sul | B59: Piúma | C59: 306 | D59: 282 | E59: 0.9215686275 | F59: 267 | G59: 0.8725490196 | H59: 216 | I59: 0.7058823529 | J59: 255 | K59: 0.8333333333 | L59: 278 | M59: 0.908496732 | N59: 271 | O59: 0.885620915 | P59: 286 | Q59: 0.9346405229 | R59: 291 | S59: 0.9509803922 | T59: 208 | U59: 0.6797385621 | V59: 263 | W59: 0.8594771242 | X59: 280 | Y59: 0.9150326797 | Z59: 226 | AA59: 0.7385620915 | AB59: 295 | AC59: 0.9640522876 | AE59: 15 | AF59: 0.04901960784 | AH59: =cálculos2!O59 -> 2 | AI59: 0.2 | AJ59: =cálculos2!P59 -> 0 | AK59: 0
A60: Norte | B60: Ponto Belo | C60: 74 | D60: 68 | E60: 0.9189189189 | F60: 55 | G60: 0.7432432432 | H60: 48 | I60: 0.6486486486 | J60: 65 | K60: 0.8783783784 | L60: 77 | M60: 1.040540541 | N60: 78 | O60: 1.054054054 | P60: 77 | Q60: 1.040540541 | R60: 77 | S60: 1.040540541 | T60: 78 | U60: 1.054054054 | V60: 84 | W60: 1.135135135 | X60: 80 | Y60: 1.081081081 | Z60: 73 | AA60: 0.9864864865 | AB60: 76 | AC60: 1.027027027 | AE60: 1 | AF60: 0.01351351351 | AH60: =cálculos2!O60 -> 9 | AI60: 0.9 | AJ60: =cálculos2!P60 -> 4 | AK60: 1
A61: Sul | B61: Presidente Kennedy | C61: 200 | D61: 209 | E61: 1.045 | F61: 193 | G61: 0.965 | H61: 113 | I61: 0.565 | J61: 210 | K61: 1.05 | L61: 210 | M61: 1.05 | N61: 210 | O61: 1.05 | P61: 210 | Q61: 1.05 | R61: 209 | S61: 1.045 | T61: 178 | U61: 0.89 | V61: 198 | W61: 0.99 | X61: 218 | Y61: 1.09 | Z61: 188 | AA61: 0.94 | AB61: 214 | AC61: 1.07 | AE61: 6 | AF61: 0.03 | AH61: =cálculos2!O61 -> 8 | AI61: 0.8 | AJ61: =cálculos2!P61 -> 4 | AK61: 1
A62: Central | B62: Rio Bananal | C62: 304 | D62: 284 | E62: 0.9342105263 | F62: 207 | G62: 0.6809210526 | H62: 176 | I62: 0.5789473684 | J62: 288 | K62: 0.9473684211 | L62: 280 | M62: 0.9210526316 | N62: 280 | O62: 0.9210526316 | P62: 275 | Q62: 0.9046052632 | R62: 293 | S62: 0.9638157895 | T62: 270 | U62: 0.8881578947 | V62: 291 | W62: 0.9572368421 | X62: 309 | Y62: 1.016447368 | Z62: 266 | AA62: 0.875 | AB62: 281 | AC62: 0.9243421053 | AE62: 13 | AF62: 0.04276315789 | AH62: =cálculos2!O62 -> 5 | AI62: 0.5 | AJ62: =cálculos2!P62 -> 1 | AK62: 0.25
A63: Sul | B63: Rio Novo do Sul | C63: 100 | D63: 110 | E63: 1.1 | F63: 103 | G63: 1.03 | H63: 76 | I63: 0.76 | J63: 112 | K63: 1.12 | L63: 107 | M63: 1.07 | N63: 106 | O63: 1.06 | P63: 102 | Q63: 1.02 | R63: 108 | S63: 1.08 | T63: 78 | U63: 0.78 | V63: 94 | W63: 0.94 | X63: 98 | Y63: 0.98 | Z63: 97 | AA63: 0.97 | AB63: 104 | AC63: 1.04 | AE63: 0 | AF63: 0 | AH63: =cálculos2!O63 -> 8 | AI63: 0.8 | AJ63: =cálculos2!P63 -> 4 | AK63: 1
A64: Metropolitana | B64: Santa Leopoldina | C64: 93 | D64: 98 | E64: 1.053763441 | F64: 86 | G64: 0.9247311828 | H64: 59 | I64: 0.6344086022 | J64: 95 | K64: 1.021505376 | L64: 113 | M64: 1.215053763 | N64: 113 | O64: 1.215053763 | P64: 115 | Q64: 1.23655914 | R64: 112 | S64: 1.204301075 | T64: 88 | U64: 0.9462365591 | V64: 104 | W64: 1.11827957 | X64: 95 | Y64: 1.021505376 | Z64: 107 | AA64: 1.150537634 | AB64: 116 | AC64: 1.247311828 | AE64: 0 | AF64: 0 | AH64: =cálculos2!O64 -> 9 | AI64: 0.9 | AJ64: =cálculos2!P64 -> 4 | AK64: 1
A65: Metropolitana | B65: Santa Maria de Jetibá | C65: 719 | D65: 683 | E65: 0.949930459 | F65: 651 | G65: 0.9054242003 | H65: 577 | I65: 0.8025034771 | J65: 668 | K65: 0.9290681502 | L65: 616 | M65: 0.8567454798 | N65: 613 | O65: 0.8525730181 | P65: 646 | Q65: 0.8984700974 | R65: 648 | S65: 0.9012517385 | T65: 497 | U65: 0.6912378303 | V65: 572 | W65: 0.7955493741 | X65: 614 | Y65: 0.8539638387 | Z65: 526 | AA65: 0.7315716273 | AB65: 661 | AC65: 0.9193324061 | AE65: 1 | AF65: 0.001390820584 | AH65: =cálculos2!O65 -> 2 | AI65: 0.2 | AJ65: =cálculos2!P65 -> 0 | AK65: 0
A66: Metropolitana | B66: Santa Teresa | C66: 280 | D66: 266 | E66: 0.95 | F66: 238 | G66: 0.85 | H66: 168 | I66: 0.6 | J66: 271 | K66: 0.9678571429 | L66: 262 | M66: 0.9357142857 | N66: 260 | O66: 0.9285714286 | P66: 259 | Q66: 0.925 | R66: 265 | S66: 0.9464285714 | T66: 231 | U66: 0.825 | V66: 286 | W66: 1.021428571 | X66: 286 | Y66: 1.021428571 | Z66: 287 | AA66: 1.025 | AB66: 271 | AC66: 0.9678571429 | AE66: 7 | AF66: 0.025 | AH66: =cálculos2!O66 -> 5 | AI66: 0.5 | AJ66: =cálculos2!P66 -> 1 | AK66: 0.25
A67: Central | B67: São Domingos do Norte | C67: 108 | D67: 118 | E67: 1.092592593 | F67: 70 | G67: 0.6481481481 | H67: 55 | I67: 0.5092592593 | J67: 119 | K67: 1.101851852 | L67: 110 | M67: =L67/C67 -> 1.018518519 | N67: 112 | O67: =N67/C67 -> 1.037037037 | P67: 112 | Q67: =P67/C67 -> 1.037037037 | R67: 113 | S67: =R67/C67 -> 1.046296296 | T67: 101 | U67: =T67/C67 -> 0.9351851852 | V67: 138 | W67: =V67/C67 -> 1.277777778 | X67: 135 | Y67: =X67/C67 -> 1.25 | Z67: 131 | AA67: =Z67/C67 -> 1.212962963 | AB67: 118 | AC67: =AB67/C67 -> 1.092592593 | AE67: 0 | AF67: =AE67/C67 -> 0 | AH67: =cálculos2!O67 -> 9 | AI67: 0.9 | AJ67: =cálculos2!P67 -> 4 | AK67: 1
A68: Central | B68: São Gabriel da Palha | C68: 417 | D68: 360 | E68: =D68/C68 -> 0.8633093525 | F68: 193 | G68: =F68/C68 -> 0.4628297362 | H68: 165 | I68: =H68/C68 -> 0.3956834532 | J68: 363 | K68: =J68/C68 -> 0.8705035971 | L68: 360 | M68: 0.8633093525 | N68: 358 | O68: 0.8585131894 | P68: 343 | Q68: 0.8225419664 | R68: 359 | S68: 0.860911271 | T68: 328 | U68: 0.7865707434 | V68: 393 | W68: 0.9424460432 | X68: 396 | Y68: 0.9496402878 | Z68: 366 | AA68: 0.8776978417 | AB68: 360 | AC68: 0.8633093525 | AE68: 3 | AF68: 0.007194244604 | AH68: =cálculos2!O68 -> 0 | AI68: =AH68*0.1 -> 0 | AJ68: =cálculos2!P68 -> 0 | AK68: =AJ68*0.25 -> 0
A69: Sul | B69: São José do Calçado | C69: 99 | D69: 94 | E69: 0.9494949495 | F69: 27 | G69: 0.2727272727 | H69: 14 | I69: 0.1414141414 | J69: 101 | K69: 1.02020202 | L69: 98 | M69: 0.9898989899 | N69: 98 | O69: 0.9898989899 | P69: 97 | Q69: 0.9797979798 | R69: 91 | S69: 0.9191919192 | T69: 62 | U69: 0.6262626263 | V69: 89 | W69: 0.898989899 | X69: 93 | Y69: 0.9393939394 | Z69: 89 | AA69: 0.898989899 | AB69: 99 | AC69: 1 | AE69: 2 | AF69: 0.0202020202 | AH69: =cálculos2!O69 -> 5 | AI69: 0.5 | AJ69: =cálculos2!P69 -> 3 | AK69: 0.75
A70: Norte | B70: São Mateus | C70: 1860 | D70: 1620 | E70: 0.8709677419 | F70: 1521 | G70: 0.8177419355 | H70: 1395 | I70: 0.75 | J70: 1570 | K70: 0.8440860215 | L70: 1503 | M70: 0.8080645161 | N70: 1469 | O70: 0.7897849462 | P70: 1583 | Q70: 0.8510752688 | R70: 1577 | S70: 0.8478494624 | T70: 1156 | U70: 0.6215053763 | V70: 1570 | W70: 0.8440860215 | X70: 1630 | Y70: 0.876344086 | Z70: 1371 | AA70: 0.7370967742 | AB70: 1655 | AC70: 0.8897849462 | AE70: 55 | AF70: 0.02956989247 | AH70: =cálculos2!O70 -> 0 | AI70: 0 | AJ70: =cálculos2!P70 -> 0 | AK70: 0
A71: Central | B71: São Roque do Canaã | C71: 128 | D71: 147 | E71: 1.1484375 | F71: 89 | G71: 0.6953125 | H71: 75 | I71: 0.5859375 | J71: 149 | K71: 1.1640625 | L71: 126 | M71: 0.984375 | N71: 123 | O71: 0.9609375 | P71: 129 | Q71: 1.0078125 | R71: 124 | S71: 0.96875 | T71: 112 | U71: 0.875 | V71: 127 | W71: 0.9921875 | X71: 135 | Y71: 1.0546875 | Z71: 136 | AA71: 1.0625 | AB71: 133 | AC71: 1.0390625 | AE71: 6 | AF71: 0.046875 | AH71: =cálculos2!O71 -> 9 | AI71: 0.9 | AJ71: =cálculos2!P71 -> 4 | AK71: 1
A72: Metropolitana | B72: Serra | C72: 7521 | D72: 6932 | E72: 0.921685946 | F72: 5864 | G72: 0.7796835527 | H72: 4717 | I72: 0.6271772371 | J72: 6918 | K72: 0.9198244914 | L72: 6039 | M72: 0.8029517351 | N72: 5980 | O72: 0.7951070336 | P72: 6501 | Q72: 0.8643797367 | R72: 6371 | S72: 0.8470948012 | T72: 4703 | U72: 0.6253157825 | V72: 6256 | W72: 0.8318042813 | X72: 6486 | Y72: 0.8623853211 | Z72: 5329 | AA72: 0.708549395 | AB72: 6786 | AC72: 0.9022736338 | AE72: 148 | AF72: 0.01967823428 | AH72: =cálculos2!O72 -> 2 | AI72: 0.2 | AJ72: =cálculos2!P72 -> 0 | AK72: 0
A73: Central | B73: Sooretama | C73: 442 | D73: 414 | E73: 0.9366515837 | F73: 351 | G73: 0.7941176471 | H73: 290 | I73: 0.6561085973 | J73: 425 | K73: 0.9615384615 | L73: 387 | M73: 0.8755656109 | N73: 384 | O73: 0.8687782805 | P73: 378 | Q73: 0.8552036199 | R73: 401 | S73: 0.907239819 | T73: 309 | U73: 0.6990950226 | V73: 377 | W73: 0.8529411765 | X73: 419 | Y73: 0.9479638009 | Z73: 343 | AA73: 0.7760180995 | AB73: 407 | AC73: 0.9208144796 | AE73: 2 | AF73: 0.004524886878 | AH73: =cálculos2!O73 -> 2 | AI73: 0.2 | AJ73: =cálculos2!P73 -> 0 | AK73: 0
A74: Sul | B74: Vargem Alta | C74: 274 | D74: 278 | E74: 1.01459854 | F74: 252 | G74: 0.9197080292 | H74: 168 | I74: 0.6131386861 | J74: 278 | K74: 1.01459854 | L74: 274 | M74: 1 | N74: 270 | O74: 0.9854014599 | P74: 285 | Q74: 1.040145985 | R74: 281 | S74: 1.025547445 | T74: 212 | U74: 0.7737226277 | V74: 263 | W74: 0.9598540146 | X74: 267 | Y74: 0.9744525547 | Z74: 261 | AA74: 0.9525547445 | AB74: 286 | AC74: 1.04379562 | AE74: 6 | AF74: 0.02189781022 | AH74: =cálculos2!O74 -> 9 | AI74: 0.9 | AJ74: =cálculos2!P74 -> 4 | AK74: 1
A75: Metropolitana | B75: Venda Nova do Imigrante | C75: 342 | D75: 310 | E75: 0.9064327485 | F75: 265 | G75: 0.7748538012 | H75: 250 | I75: 0.730994152 | J75: 320 | K75: 0.9356725146 | L75: 333 | M75: 0.9736842105 | N75: 334 | O75: 0.9766081871 | P75: 341 | Q75: 0.9970760234 | R75: 339 | S75: 0.9912280702 | T75: 320 | U75: 0.9356725146 | V75: 364 | W75: 1.064327485 | X75: 357 | Y75: 1.043859649 | Z75: 396 | AA75: 1.157894737 | AB75: 357 | AC75: 1.043859649 | AE75: 13 | AF75: 0.03801169591 | AH75: =cálculos2!O75 -> 9 | AI75: 0.9 | AJ75: =cálculos2!P75 -> 4 | AK75: 1
A76: Metropolitana | B76: Viana | C76: 855 | D76: 855 | E76: 1 | F76: 593 | G76: 0.6935672515 | H76: 429 | I76: 0.501754386 | J76: 854 | K76: 0.9988304094 | L76: 842 | M76: 0.9847953216 | N76: 808 | O76: 0.9450292398 | P76: 861 | Q76: 1.007017544 | R76: 855 | S76: 1 | T76: 579 | U76: 0.6771929825 | V76: 862 | W76: 1.008187135 | X76: 953 | Y76: 1.114619883 | Z76: 657 | AA76: 0.7684210526 | AB76: 898 | AC76: 1.050292398 | AE76: 19 | AF76: 0.02222222222 | AH76: =cálculos2!O76 -> 7 | AI76: 0.7 | AJ76: =cálculos2!P76 -> 3 | AK76: 0.75
A77: Norte | B77: Vila Pavão | C77: 99 | D77: 111 | E77: 1.121212121 | F77: 94 | G77: 0.9494949495 | H77: 88 | I77: 0.8888888889 | J77: 110 | K77: 1.111111111 | L77: 116 | M77: 1.171717172 | N77: 116 | O77: 1.171717172 | P77: 110 | Q77: 1.111111111 | R77: 114 | S77: 1.151515152 | T77: 100 | U77: 1.01010101 | V77: 105 | W77: 1.060606061 | X77: 110 | Y77: 1.111111111 | Z77: 100 | AA77: 1.01010101 | AB77: 108 | AC77: 1.090909091 | AE77: 3 | AF77: 0.0303030303 | AH77: =cálculos2!O77 -> 10 | AI77: 1 | AJ77: =cálculos2!P77 -> 4 | AK77: 1
A78: Central | B78: Vila Valério | C78: 256 | D78: 222 | E78: 0.8671875 | F78: 170 | G78: 0.6640625 | H78: 155 | I78: 0.60546875 | J78: 224 | K78: 0.875 | L78: 223 | M78: 0.87109375 | N78: 224 | O78: 0.875 | P78: 236 | Q78: 0.921875 | R78: 225 | S78: 0.87890625 | T78: 201 | U78: 0.78515625 | V78: 274 | W78: 1.0703125 | X78: 263 | Y78: 1.02734375 | Z78: 266 | AA78: 1.0390625 | AB78: 234 | AC78: 0.9140625 | AE78: 1 | AF78: 0.00390625 | AH78: =cálculos2!O78 -> 4 | AI78: 0.4 | AJ78: =cálculos2!P78 -> 1 | AK78: 0.25
A79: Metropolitana | B79: Vila Velha | C79: 5558 | D79: 4937 | E79: 0.8882691616 | F79: 3618 | G79: 0.6509535804 | H79: 2561 | I79: 0.460777258 | J79: 4911 | K79: 0.8835912199 | L79: 4357 | M79: 0.7839150774 | N79: 4315 | O79: 0.7763584023 | P79: 4524 | Q79: 0.8139618568 | R79: 4622 | S79: 0.8315940986 | T79: 3316 | U79: 0.5966174883 | V79: 4563 | W79: 0.8209787693 | X79: 4689 | Y79: 0.8436487945 | Z79: 4093 | AA79: 0.736415977 | AB79: 4827 | AC79: 0.8684778697 | AE79: 172 | AF79: 0.03094638359 | AH79: =cálculos2!O79 -> 0 | AI79: 0 | AJ79: =cálculos2!P79 -> 0 | AK79: 0
A80: Metropolitana | B80: Vitória | C80: 3563 | D80: 3866 | E80: 1.085040696 | F80: 3155 | G80: 0.8854897558 | H80: 2578 | I80: 0.7235475723 | J80: 3818 | K80: 1.071568903 | L80: 3836 | M80: 1.076620825 | N80: 3813 | O80: 1.070165591 | P80: 3957 | Q80: 1.110580971 | R80: 3958 | S80: 1.110861633 | T80: 2737 | U80: 0.768172888 | V80: 3625 | W80: 1.017401067 | X80: 3971 | Y80: 1.114510244 | Z80: 3335 | AA80: 0.9360089812 | AB80: 4125 | AC80: 1.157732248 | AE80: 219 | AF80: 0.06146505754 | AH80: =cálculos2!O80 -> 8 | AI80: 0.8 | AJ80: =cálculos2!P80 -> 4 | AK80: 1
B82: Total Norte | C82: =SUMIF($A$3:$A$80,"Norte",C$3:C$80) -> 5810 | D82: =SUMIF($A$3:$A$80,"Norte",D$3:D$80) -> 5328 | E82: =D82/C82 -> 0.9170395869 | F82: =SUMIF($A$3:$A$80,"Norte",F$3:F$80) -> 4555 | G82: =F82/C82 -> 0.7839931153 | H82: =SUMIF($A$3:$A$80,"Norte",H$3:H$80) -> 4153 | I82: =H82/C82 -> 0.7148020654 | J82: =SUMIF($A$3:$A$80,"Norte",J$3:J$80) -> 5240 | K82: =J82/C82 -> 0.9018932874 | L82: =SUMIF($A$3:$A$80,"Norte",L$3:L$80) -> 5228 | M82: =L82/C82 -> 0.899827883 | N82: =SUMIF($A$3:$A$80,"Norte",N$3:N$80) -> 5151 | O82: =N82/C82 -> 0.8865748709 | P82: =SUMIF($A$3:$A$80,"Norte",P$3:P$80) -> 5269 | Q82: =P82/C82 -> 0.9068846816 | R82: =SUMIF($A$3:$A$80,"Norte",R$3:R$80) -> 5320 | S82: =R82/C82 -> 0.9156626506 | T82: =SUMIF($A$3:$A$80,"Norte",T$3:T$80) -> 4244 | U82: =T82/C82 -> 0.730464716 | V82: =SUMIF($A$3:$A$80,"Norte",V$3:V$80) -> 5338 | W82: =V82/C82 -> 0.9187607573 | X82: =SUMIF($A$3:$A$80,"Norte",X$3:X$80) -> 5540 | Y82: =X82/C82 -> 0.9535283993 | Z82: =SUMIF($A$3:$A$80,"Norte",Z$3:Z$80) -> 4895 | AA82: =Z82/C82 -> 0.8425129088 | AB82: =SUMIF($A$3:$A$80,"Norte",AB$3:AB$80) -> 5515 | AC82: =AB82/C82 -> 0.9492254733 | AE82: =SUMIF($A$3:$A$80,"Norte",AE$3:AE$80) -> 105 | AF82: =AE82/C82 -> 0.01807228916 | AH82: =cálculos2!O82 -> 3 | AI82: =AH82*0.1 -> 0.3 | AJ82: =cálculos2!P82 -> 1 | AK82: 0.25
B83: Total Central | C83: =SUMIF($A$3:$A$80,"Central",C$3:C$80) -> 7081 | D83: =SUMIF($A$3:$A$80,"Central",D$3:D$80) -> 6745 | E83: =D83/C83 -> 0.952549075 | F83: =SUMIF($A$3:$A$80,"Central",F$3:F$80) -> 4672 | G83: =F83/C83 -> 0.6597938144 | H83: =SUMIF($A$3:$A$80,"Central",H$3:H$80) -> 3943 | I83: =H83/C83 -> 0.5568422539 | J83: =SUMIF($A$3:$A$80,"Central",J$3:J$80) -> 6914 | K83: =J83/C83 -> 0.9764157605 | L83: =SUMIF($A$3:$A$80,"Central",L$3:L$80) -> 6222 | M83: =L83/C83 -> 0.8786894506 | N83: =SUMIF($A$3:$A$80,"Central",N$3:N$80) -> 6159 | O83: =N83/C83 -> 0.8697924022 | P83: =SUMIF($A$3:$A$80,"Central",P$3:P$80) -> 6225 | Q83: =P83/C83 -> 0.8791131196 | R83: =SUMIF($A$3:$A$80,"Central",R$3:R$80) -> 6438 | S83: =R83/C83 -> 0.9091936167 | T83: =SUMIF($A$3:$A$80,"Central",T$3:T$80) -> 5178 | U83: =T83/C83 -> 0.7312526479 | V83: =SUMIF($A$3:$A$80,"Central",V$3:V$80) -> 6356 | W83: =V83/C83 -> 0.8976133315 | X83: =SUMIF($A$3:$A$80,"Central",X$3:X$80) -> 6718 | Y83: =X83/C83 -> 0.9487360542 | Z83: =SUMIF($A$3:$A$80,"Central",Z$3:Z$80) -> 5972 | AA83: =Z83/C83 -> 0.8433837029 | AB83: =SUMIF($A$3:$A$80,"Central",AB$3:AB$80) -> 6553 | AC83: =AB83/C83 -> 0.9254342607 | AE83: =SUMIF($A$3:$A$80,"Central",AE$3:AE$80) -> 71 | AF83: =AE83/C83 -> 0.01002683237 | AH83: =cálculos2!O83 -> 2 | AI83: =AH83*0.1 -> 0.2 | AJ83: =cálculos2!P83 -> 0 | AK83: 0
B84: Total Metropolitana | C84: =SUMIF($A$3:$A$80,"Metropolitana",C$3:C$80) -> 29463 | D84: =SUMIF($A$3:$A$80,"Metropolitana",D$3:D$80) -> 27550 | E84: =D84/C84 -> 0.9350711061 | F84: =SUMIF($A$3:$A$80,"Metropolitana",F$3:F$80) -> 21395 | G84: =F84/C84 -> 0.7261650205 | H84: =SUMIF($A$3:$A$80,"Metropolitana",H$3:H$80) -> 16424 | I84: 0.5574449309 | J84: =SUMIF($A$3:$A$80,"Metropolitana",J$3:J$80) -> 27586 | K84: =J84/C84 -> 0.9362929776 | L84: =SUMIF($A$3:$A$80,"Metropolitana",L$3:L$80) -> 25618 | M84: =L84/C84 -> 0.8694973356 | N84: =SUMIF($A$3:$A$80,"Metropolitana",N$3:N$80) -> 25388 | O84: =N84/C84 -> 0.8616909344 | P84: =SUMIF($A$3:$A$80,"Metropolitana",P$3:P$80) -> 26263 | Q84: =P84/C84 -> 0.8913892 | R84: =SUMIF($A$3:$A$80,"Metropolitana",R$3:R$80) -> 26645 | S84: =R84/C84 -> 0.9043546143 | T84: =SUMIF($A$3:$A$80,"Metropolitana",T$3:T$80) -> 19715 | U84: =T84/C84 -> 0.6691443505 | V84: =SUMIF($A$3:$A$80,"Metropolitana",V$3:V$80) -> 26203 | W84: =V84/C84 -> 0.8893527475 | X84: =SUMIF($A$3:$A$80,"Metropolitana",X$3:X$80) -> 27320 | Y84: =X84/C84 -> 0.9272647049 | Z84: =SUMIF($A$3:$A$80,"Metropolitana",Z$3:Z$80) -> 23555 | AA84: =Z84/C84 -> 0.7994773105 | AB84: =SUMIF($A$3:$A$80,"Metropolitana",AB$3:AB$80) -> 27883 | AC84: =AB84/C84 -> 0.9463734175 | AE84: =SUMIF($A$3:$A$80,"Metropolitana",AE$3:AE$80) -> 905 | AF84: =AE84/C84 -> 0.03071649187 | AH84: =cálculos2!O84 -> 2 | AI84: 0.2 | AJ84: =cálculos2!P84 -> 0 | AK84: 0
B85: Total Sul | C85: =SUMIF($A$3:$A$80,"sul",C$3:C$80) -> 8085 | D85: =SUMIF($A$3:$A$80,"Sul",D$3:D$80) -> 7754 | E85: =D85/C85 -> 0.9590599876 | F85: =SUMIF($A$3:$A$80,"Sul",F$3:F$80) -> 5979 | G85: =F85/C85 -> 0.7395176252 | H85: =SUMIF($A$3:$A$80,"Sul",H$3:H$80) -> 4149 | I85: 0.5131725417 | J85: =SUMIF($A$3:$A$80,"Sul",J$3:J$80) -> 7940 | K85: =J85/C85 -> 0.9820655535 | L85: =SUMIF($A$3:$A$80,"Sul",L$3:L$80) -> 7636 | M85: =L85/C85 -> 0.9444650588 | N85: =SUMIF($A$3:$A$80,"Sul",N$3:N$80) -> 7475 | O85: =N85/C85 -> 0.9245516388 | P85: =SUMIF($A$3:$A$80,"Sul",P$3:P$80) -> 7689 | Q85: =P85/C85 -> 0.9510204082 | R85: =SUMIF($A$3:$A$80,"Sul",R$3:R$80) -> 7765 | S85: =R85/C85 -> 0.9604205318 | T85: =SUMIF($A$3:$A$80,"Sul",T$3:T$80) -> 6088 | U85: =T85/C85 -> 0.7529993816 | V85: =SUMIF($A$3:$A$80,"Sul",V$3:V$80) -> 7695 | W85: =V85/C85 -> 0.9517625232 | X85: =SUMIF($A$3:$A$80,"Sul",X$3:X$80) -> 8053 | Y85: =X85/C85 -> 0.9960420532 | Z85: =SUMIF($A$3:$A$80,"Sul",Z$3:Z$80) -> 7373 | AA85: =Z85/C85 -> 0.9119356834 | AB85: =SUMIF($A$3:$A$80,"Sul",AB$3:AB$80) -> 8036 | AC85: =AB85/C85 -> 0.9939393939 | AE85: =SUMIF($A$3:$A$80,"Sul",AE$3:AE$80) -> 229 | AF85: =AE85/C85 -> 0.0283240569 | AH85: =cálculos2!O85 -> 6 | AI85: 0.6 | AJ85: =cálculos2!P85 -> 2 | AK85: 0.5
B86: Total Espírito Santo | C86: =SUM(C3:C80) -> 50439 | D86: =SUM(D82:D85) -> 47377 | E86: =D86/C86 -> 0.9392930074 | F86: =SUM(F82:F85) -> 36601 | G86: =F86/C86 -> 0.7256488035 | H86: =SUM(H82:H85) -> 28669 | I86: 0.5683895398 | J86: =SUM(J82:J85) -> 47680 | K86: =J86/C86 -> 0.9453002637 | L86: =SUM(L82:L85) -> 44704 | M86: =L86/C86 -> 0.8862983009 | N86: =SUM(N82:N85) -> 44173 | O86: =N86/C86 -> 0.875770733 | P86: =SUM(P82:P85) -> 45446 | Q86: =P86/C86 -> 0.9010091398 | R86: =SUM(R82:R85) -> 46168 | S86: =R86/C86 -> 0.91532346 | T86: =SUM(T82:T85) -> 35225 | U86: =T86/C86 -> 0.6983683261 | V86: =SUM(V82:V85) -> 45592 | W86: =V86/C86 -> 0.9039037253 | X86: =SUM(X82:X85) -> 47631 | Y86: =X86/C86 -> 0.9443287932 | Z86: =SUM(Z82:Z85) -> 41795 | AA86: =Z86/C86 -> 0.8286246754 | AB86: =SUM(AB82:AB85) -> 47987 | AC86: =AB86/C86 -> 0.9513868237 | AE86: =SUM(AE82:AE85) -> 1310 | AF86: =AE86/C86 -> 0.02597196614 | AH86: =cálculos2!O86 -> 2 | AI86: 0.2 | AJ86: =cálculos2!P86 -> 0 | AK86: 0
D87: =COUNTIF(E3:E80,">=0,95") -> 41 | F87: =COUNTIF(G3:G80,">=0,95") -> 3 | H87: =COUNTIF(I3:I80,">=0,95") -> 0 | J87: =COUNTIF(K3:K80,">=0,9") -> 61 | L87: =COUNTIF(M3:M80,">=0,95") -> 37 | N87: =COUNTIF(O3:O80,">=0,95") -> 37 | P87: =COUNTIF(Q3:Q80,">=0,95") -> 34 | R87: =COUNTIF(S3:S80,">=0,95") -> 40 | T87: =COUNTIF(U3:U80,">=0,95") -> 8 | V87: =COUNTIF(W3:W80,">=0,95") -> 45 | X87: =COUNTIF(Y3:Y80,">=0,95") -> 48 | Z87: =COUNTIF(AA3:AA80,">=0,95") -> 37 | AB87: =COUNTIF(AC3:AC80,">=0,9") -> 66 | AE87: =COUNTIF(AF3:AF80,">=0,9") -> 0
B88: HOMOGENEIDADE ENTRE MUNICÍPIOS | D88: =D87/78 -> 0.5256410256 | F88: =F87/78 -> 0.03846153846 | H88: =H87/78 -> 0 | J88: =J87/78 -> 0.7820512821 | L88: =L87/78 -> 0.4743589744 | N88: =N87/78 -> 0.4743589744 | P88: =P87/78 -> 0.4358974359 | R88: =R87/78 -> 0.5128205128 | T88: =T87/78 -> 0.1025641026 | V88: =V87/78 -> 0.5769230769 | X88: =X87/78 -> 0.6153846154 | Z88: =Z87/78 -> 0.4743589744 | AB88: =AB87/78 -> 0.8461538462 | AE88: =AE87/78 -> 0
A91: Fonte: Vacina e Confia, em 13 de janeiro de 2026.**<https://vacinaeconfia.saude.es.gov.br/>
A92: **Dados referente às doses aplicadas no período de janeiro a dezembro 2025
A93: Cobertura Calculada por município de residência do vacinado
A94: 1 População estimada extraída do MS/SVS/DASIS - SINASC/DASIS/SVS/MS 2024 (hoje preliminares) referente ao período de novembro e dezembro 2024 e SINASC/DASIS/SVS/MS 2024 (hoje preliminares) referente ao período de janeiro a outubro/ 2025.
A95: Sinasc, atualizado em 12/01/2026
A96: Método de Cálculo Simples
A97: Homogeineidade: O cálculo da Homogeineidade entre vacinas é feito de acordo com a pactuação estabelecida no Plano Plurianual (PPA) vigente no período 2024-2027.
A100: Observações referente a distribuição de imunobiológicos que podem afetar a cobertura vacinal:
A102: 1. Vacinas que foram recebidas parcialmente pelo estado no mês de dezembro/2025, sendo distribuídos em quantidades reduzidas às regionais e municípios:
A104: 2. Vacinas indisponíveis no mês de dezembro/2025, não sendo possível a distribuição às regionais e municípios:
A105: VACINA TETRA VIRAL.
A106: 3. Vacinas enviadas por Pautas aguardando abastecimento do estoque estadual;
A107: VACINA COVID-19 PFIZER PEDIÁTRICA MENOR QUE 5 ANOS; VACINA COVID-19 PFIZER PEDIÁTRICA.
A109: Fonte: Informes situacionais de distribuição de imunobiológicos em https://saude.es.gov.br/GrupodeArquivos/informes-situacionais-de-distribuicao-de-imunobiologicos

Sheet CV REF 1A e 4A - procedência
E1: D2 | I1: REFORÇOS 1 ANO | Q1: REFORÇOS 4 ANOS
A2: Regional | B2: Município | C2: ¹População 1 ano | D2: ²População 4 anos | E2: DOSES APLICADAS D2 TRÍPLICE VIRAL | F2: COBERTURA D2 TRÍPLICE VIRAL | G2: DOSES APLICADAS D2 VARICELA | H2: COBERTURA D2 VARICELA | I2: DOSES APLICADAS REF PNEUMO | J2: COBERTURA REF PNEUMO | K2: DOSES APLICADAS REF MENINGO | L2: COBERTURA REF MENINGO | M2: DOSES APLICADAS REF POLIO | N2: COBERTURA REF POLIO | O2: DOSES APLICADAS R1 TRÍPLICE BACTERIANA | P2: COBERTURA R1 TRÍPLICE BACTERIANA | Q2: DOSES APLICADAS REF FEBRE AMARELA | R2: COBERTURA REF FEBRE AMARELA | S2: DOSES APLICADAS R2 TRÍPLICE BACTERIANA | T2: COBERTURA R2 TRÍPLICE BACTERIANA
A3: Metropolitana | B3: Afonso Cláudio | C3: 361 | D3: 416 | E3: 329 | F3: =E3/C3 -> 0.9113573407 | G3: 391 | H3: =G3/D3 -> 0.9399038462 | I3: 329 | J3: =I3/C3 -> 0.9113573407 | K3: 335 | L3: =K3/C3 -> 0.9279778393 | M3: 359 | N3: =M3/C3 -> 0.9944598338 | O3: 328 | P3: =O3/C3 -> 0.9085872576 | Q3: 363 | R3: =Q3/D3 -> 0.8725961538 | S3: 361 | T3: =S3/D3 -> 0.8677884615
A4: Norte | B4: Água Doce do Norte | C4: 154 | D4: 151 | E4: 125 | F4: 0.8116883117 | G4: 80 | H4: 0.5298013245 | I4: 170 | J4: 1.103896104 | K4: 163 | L4: 1.058441558 | M4: 150 | N4: 0.974025974 | O4: 144 | P4: 0.9350649351 | Q4: 113 | R4: 0.7483443709 | S4: 125 | T4: 0.8278145695
A5: Central | B5: Águia Branca | C5: 167 | D5: 129 | E5: 159 | F5: 0.9520958084 | G5: 121 | H5: 0.9379844961 | I5: 141 | J5: 0.8443113772 | K5: 148 | L5: 0.8862275449 | M5: 150 | N5: 0.8982035928 | O5: 144 | P5: 0.8622754491 | Q5: 118 | R5: 0.9147286822 | S5: 119 | T5: 0.9224806202
A6: Sul | B6: Alegre | C6: 322 | D6: 372 | E6: 338 | F6: 1.049689441 | G6: 322 | H6: 0.8655913978 | I6: 310 | J6: 0.9627329193 | K6: 304 | L6: 0.9440993789 | M6: 342 | N6: 1.062111801 | O6: 323 | P6: 1.00310559 | Q6: 296 | R6: 0.7956989247 | S6: 319 | T6: 0.8575268817
A7: Sul | B7: Alfredo Chaves | C7: 119 | D7: 138 | E7: 125 | F7: 1.050420168 | G7: 140 | H7: 1.014492754 | I7: 103 | J7: 0.8655462185 | K7: 113 | L7: 0.9495798319 | M7: 135 | N7: 1.134453782 | O7: 130 | P7: 1.092436975 | Q7: 123 | R7: 0.8913043478 | S7: 129 | T7: 0.9347826087
A8: Central | B8: Alto Rio Novo | C8: 98 | D8: 102 | E8: 101 | F8: 1.030612245 | G8: 136 | H8: 1.333333333 | I8: 95 | J8: 0.9693877551 | K8: 97 | L8: 0.9897959184 | M8: 96 | N8: 0.9795918367 | O8: 94 | P8: 0.9591836735 | Q8: 110 | R8: 1.078431373 | S8: 111 | T8: 1.088235294
A9: Sul | B9: Anchieta | C9: 329 | D9: 390 | E9: 349 | F9: 1.060790274 | G9: 387 | H9: 0.9923076923 | I9: 339 | J9: 1.030395137 | K9: 355 | L9: 1.079027356 | M9: 373 | N9: 1.133738602 | O9: 346 | P9: 1.051671733 | Q9: 368 | R9: 0.9435897436 | S9: 382 | T9: 0.9794871795
A10: Sul | B10: Apiacá | C10: 69 | D10: 90 | E10: 68 | F10: 0.9855072464 | G10: 76 | H10: 0.8444444444 | I10: 78 | J10: 1.130434783 | K10: 74 | L10: 1.072463768 | M10: 67 | N10: 0.9710144928 | O10: 67 | P10: 0.9710144928 | Q10: 26 | R10: 0.2888888889 | S10: 82 | T10: 0.9111111111
A11: Metropolitana | B11: Aracruz | C11: 1409 | D11: 1420 | E11: 1344 | F11: 0.9538679915 | G11: 1540 | H11: 1.084507042 | I11: 1245 | J11: 0.8836053939 | K11: 1307 | L11: 0.9276082328 | M11: 1386 | N11: 0.9836763662 | O11: 1283 | P11: 0.9105748758 | Q11: 1225 | R11: 0.8626760563 | S11: 1374 | T11: 0.9676056338
A12: Sul | B12: Atilio Vivacqua | C12: 143 | D12: 138 | E12: 148 | F12: 1.034965035 | G12: 167 | H12: 1.210144928 | I12: 154 | J12: 1.076923077 | K12: 151 | L12: 1.055944056 | M12: 142 | N12: 0.993006993 | O12: 134 | P12: 0.9370629371 | Q12: 150 | R12: 1.086956522 | S12: 155 | T12: 1.123188406
A13: Central | B13: Baixo Guandu | C13: 364 | D13: 427 | E13: 373 | F13: 1.024725275 | G13: 407 | H13: 0.9531615925 | I13: 379 | J13: 1.041208791 | K13: 355 | L13: 0.9752747253 | M13: 388 | N13: 1.065934066 | O13: 376 | P13: 1.032967033 | Q13: 378 | R13: 0.8852459016 | S13: 401 | T13: 0.9391100703
A14: Norte | B14: Barra de São Francisco | C14: 621 | D14: 589 | E14: 519 | F14: 0.8357487923 | G14: 507 | H14: 0.8607809847 | I14: 522 | J14: 0.8405797101 | K14: 536 | L14: 0.8631239936 | M14: 521 | N14: 0.8389694042 | O14: 495 | P14: 0.7971014493 | Q14: 448 | R14: 0.7606112054 | S14: 467 | T14: 0.7928692699
A15: Norte | B15: Boa Esperança | C15: 231 | D15: 200 | E15: 174 | F15: 0.7532467532 | G15: 138 | H15: 0.69 | I15: 185 | J15: 0.8008658009 | K15: 193 | L15: 0.8354978355 | M15: 169 | N15: 0.7316017316 | O15: 139 | P15: 0.6017316017 | Q15: 104 | R15: 0.52 | S15: 142 | T15: 0.71
A16: Sul | B16: Bom Jesus do Norte | C16: 79 | D16: 146 | E16: 98 | F16: 1.240506329 | G16: 139 | H16: 0.9520547945 | I16: 104 | J16: 1.316455696 | K16: 106 | L16: 1.341772152 | M16: 102 | N16: 1.291139241 | O16: 97 | P16: 1.227848101 | Q16: 109 | R16: 0.7465753425 | S16: 145 | T16: 0.9931506849
A17: Metropolitana | B17: Brejetuba | C17: 228 | D17: 169 | E17: 244 | F17: 1.070175439 | G17: 278 | H17: 1.644970414 | I17: 199 | J17: 0.8728070175 | K17: 209 | L17: 0.9166666667 | M17: 187 | N17: 0.8201754386 | O17: 185 | P17: 0.8114035088 | Q17: 207 | R17: 1.224852071 | S17: 203 | T17: 1.201183432
A18: Sul | B18: Cachoeiro de Itapemirim | C18: 2389 | D18: 2417 | E18: 2090 | F18: 0.8748430306 | G18: 2055 | H18: 0.8502275548 | I18: 2188 | J18: 0.9158643784 | K18: 2212 | L18: 0.9259104228 | M18: 2293 | N18: 0.9598158225 | O18: 2134 | P18: 0.8932607786 | Q18: 1829 | R18: 0.7567232106 | S18: 2212 | T18: 0.9151841125
A19: Metropolitana | B19: Cariacica | C19: 4798 | D19: 5005 | E19: 3754 | F19: 0.7824093372 | G19: 3437 | H19: 0.6867132867 | I19: 4136 | J19: 0.8620258441 | K19: 4287 | L19: 0.8934972905 | M19: 4311 | N19: 0.8984993747 | O19: 4053 | P19: 0.8447269696 | Q19: 3328 | R19: 0.6649350649 | S19: 4081 | T19: 0.8153846154
A20: Sul | B20: Castelo | C20: 398 | D20: 399 | E20: 406 | F20: 1.020100503 | G20: 390 | H20: 0.977443609 | I20: 388 | J20: 0.9748743719 | K20: 412 | L20: 1.035175879 | M20: 435 | N20: 1.092964824 | O20: 435 | P20: 1.092964824 | Q20: 343 | R20: 0.8596491228 | S20: 375 | T20: 0.9398496241
A21: Central | B21: Colatina | C21: 1470 | D21: 1561 | E21: 1280 | F21: 0.8707482993 | G21: 1146 | H21: 0.734144779 | I21: 1356 | J21: 0.9224489796 | K21: 1384 | L21: 0.9414965986 | M21: 1296 | N21: 0.8816326531 | O21: 1223 | P21: 0.8319727891 | Q21: 991 | R21: 0.6348494555 | S21: 1091 | T21: 0.6989109545
A22: Norte | B22: Conceição da Barra | C22: 384 | D22: 391 | E22: 400 | F22: 1.041666667 | G22: 407 | H22: 1.040920716 | I22: 385 | J22: 1.002604167 | K22: 399 | L22: 1.0390625 | M22: 409 | N22: 1.065104167 | O22: 379 | P22: 0.9869791667 | Q22: 422 | R22: 1.079283887 | S22: 401 | T22: 1.025575448
A23: Metropolitana | B23: Conceição do Castelo | C23: 182 | D23: 144 | E23: 178 | F23: 0.978021978 | G23: 191 | H23: 1.326388889 | I23: 135 | J23: 0.7417582418 | K23: 153 | L23: 0.8406593407 | M23: 124 | N23: 0.6813186813 | O23: 135 | P23: 0.7417582418 | Q23: 160 | R23: 1.111111111 | S23: 149 | T23: 1.034722222
A24: Sul | B24: Divino de São Lourenço | C24: 65 | D24: 68 | E24: 74 | F24: 1.138461538 | G24: 86 | H24: 1.264705882 | I24: 69 | J24: 1.061538462 | K24: 69 | L24: 1.061538462 | M24: 72 | N24: 1.107692308 | O24: 70 | P24: 1.076923077 | Q24: 57 | R24: 0.8382352941 | S24: 59 | T24: 0.8676470588
A25: Metropolitana | B25: Domingos Martins | C25: 425 | D25: 411 | E25: 422 | F25: 0.9929411765 | G25: 455 | H25: 1.107055961 | I25: 380 | J25: 0.8941176471 | K25: 393 | L25: 0.9247058824 | M25: 432 | N25: 1.016470588 | O25: 410 | P25: 0.9647058824 | Q25: 348 | R25: 0.8467153285 | S25: 389 | T25: 0.9464720195
A26: Sul | B26: Dores do Rio Preto | C26: 96 | D26: 92 | E26: 99 | F26: 1.03125 | G26: 95 | H26: 1.032608696 | I26: 105 | J26: 1.09375 | K26: 111 | L26: 1.15625 | M26: 114 | N26: 1.1875 | O26: 110 | P26: 1.145833333 | Q26: 78 | R26: 0.847826087 | S26: 87 | T26: 0.9456521739
A27: Norte | B27: Ecoporanga | C27: 240 | D27: 283 | E27: 220 | F27: 0.9166666667 | G27: 273 | H27: 0.964664311 | I27: 249 | J27: 1.0375 | K27: 253 | L27: 1.054166667 | M27: 243 | N27: 1.0125 | O27: 221 | P27: 0.9208333333 | Q27: 218 | R27: 0.7703180212 | S27: 243 | T27: 0.8586572438
A28: Metropolitana | B28: Fundão | C28: 223 | D28: 218 | E28: 202 | F28: 0.9058295964 | G28: 225 | H28: 1.032110092 | I28: 208 | J28: 0.932735426 | K28: 218 | L28: 0.9775784753 | M28: 202 | N28: 0.9058295964 | O28: 196 | P28: 0.8789237668 | Q28: 188 | R28: 0.8623853211 | S28: 219 | T28: 1.004587156
A29: Central | B29: Governador Lindenberg | C29: 145 | D29: 142 | E29: 125 | F29: 0.8620689655 | G29: 156 | H29: 1.098591549 | I29: 105 | J29: 0.724137931 | K29: 117 | L29: 0.8068965517 | M29: 119 | N29: 0.8206896552 | O29: 117 | P29: 0.8068965517 | Q29: 158 | R29: 1.112676056 | S29: 153 | T29: 1.077464789
A30: Sul | B30: Guaçuí | C30: 387 | D30: 407 | E30: 332 | F30: 0.857881137 | G30: 357 | H30: 0.8771498771 | I30: 298 | J30: 0.7700258398 | K30: 340 | L30: 0.8785529716 | M30: 327 | N30: 0.8449612403 | O30: 315 | P30: 0.8139534884 | Q30: 376 | R30: 0.9238329238 | S30: 359 | T30: 0.8820638821
A31: Metropolitana | B31: Guarapari | C31: 1659 | D31: 1557 | E31: 1195 | F31: 0.7203134418 | G31: 1471 | H31: 0.9447655748 | I31: 1454 | J31: 0.8764315853 | K31: 1424 | L31: 0.8583484027 | M31: 1478 | N31: 0.8908981314 | O31: 1355 | P31: 0.8167570826 | Q31: 1128 | R31: 0.7244701349 | S31: 1442 | T31: 0.9261400128
A32: Metropolitana | B32: Ibatiba | C32: 398 | D32: 354 | E32: 444 | F32: 1.115577889 | G32: 295 | H32: 0.8333333333 | I32: 383 | J32: 0.9623115578 | K32: 391 | L32: 0.9824120603 | M32: 432 | N32: 1.085427136 | O32: 388 | P32: 0.9748743719 | Q32: 340 | R32: 0.9604519774 | S32: 376 | T32: 1.062146893
A33: Metropolitana | B33: Ibiraçu | C33: 127 | D33: 160 | E33: 143 | F33: 1.125984252 | G33: 170 | H33: 1.0625 | I33: 145 | J33: 1.141732283 | K33: 153 | L33: 1.204724409 | M33: 133 | N33: 1.047244094 | O33: 133 | P33: 1.047244094 | Q33: 132 | R33: 0.825 | S33: 135 | T33: 0.84375
A34: Sul | B34: Ibitirama | C34: 140 | D34: 148 | E34: 140 | F34: 1 | G34: 147 | H34: 0.9932432432 | I34: 145 | J34: 1.035714286 | K34: 145 | L34: 1.035714286 | M34: 145 | N34: 1.035714286 | O34: 127 | P34: 0.9071428571 | Q34: 139 | R34: 0.9391891892 | S34: 132 | T34: 0.8918918919
A35: Sul | B35: Iconha | C35: 139 | D35: 156 | E35: 145 | F35: =E35/C35 -> 1.043165468 | G35: 187 | H35: =G35/D35 -> 1.198717949 | I35: 103 | J35: =I35/C35 -> 0.7410071942 | K35: 104 | L35: =K35/C35 -> 0.7482014388 | M35: 102 | N35: =M35/C35 -> 0.7338129496 | O35: 97 | P35: =O35/C35 -> 0.6978417266 | Q35: 126 | R35: =Q35/D35 -> 0.8076923077 | S35: 127 | T35: =S35/D35 -> 0.8141025641
A36: Sul | B36: Irupi | C36: 202 | D36: 200 | E36: 173 | F36: 0.8564356436 | G36: 171 | H36: 0.855 | I36: 187 | J36: 0.9257425743 | K36: 199 | L36: 0.9851485149 | M36: 211 | N36: 1.044554455 | O36: 217 | P36: 1.074257426 | Q36: 176 | R36: 0.88 | S36: 173 | T36: 0.865
A37: Metropolitana | B37: Itaguaçu | C37: 122 | D37: 154 | E37: 154 | F37: 1.262295082 | G37: 172 | H37: 1.116883117 | I37: 135 | J37: 1.106557377 | K37: 151 | L37: 1.237704918 | M37: 156 | N37: 1.278688525 | O37: 141 | P37: 1.155737705 | Q37: 137 | R37: 0.8896103896 | S37: 136 | T37: 0.8831168831
A38: Sul | B38: Itapemirim | C38: 520 | D38: 556 | E38: 372 | F38: 0.7153846154 | G38: 414 | H38: 0.7446043165 | I38: 444 | J38: 0.8538461538 | K38: 419 | L38: 0.8057692308 | M38: 421 | N38: 0.8096153846 | O38: 409 | P38: 0.7865384615 | Q38: 316 | R38: 0.5683453237 | S38: 465 | T38: 0.8363309353
A39: Metropolitana | B39: Itarana | C39: 137 | D39: 128 | E39: 141 | F39: 1.02919708 | G39: 124 | H39: 0.96875 | I39: 119 | J39: 0.8686131387 | K39: 126 | L39: 0.9197080292 | M39: 138 | N39: 1.00729927 | O39: 131 | P39: 0.9562043796 | Q39: 103 | R39: 0.8046875 | S39: 100 | T39: 0.78125
A40: Sul | B40: Iúna | C40: 373 | D40: 410 | E40: 409 | F40: 1.096514745 | G40: 347 | H40: 0.8463414634 | I40: 369 | J40: 0.9892761394 | K40: 397 | L40: 1.064343164 | M40: 443 | N40: 1.18766756 | O40: 400 | P40: 1.072386059 | Q40: 352 | R40: 0.8585365854 | S40: 389 | T40: 0.9487804878
A41: Norte | B41: Jaguaré | C41: 461 | D41: 445 | E41: 405 | F41: 0.8785249458 | G41: 385 | H41: 0.8651685393 | I41: 427 | J41: 0.9262472885 | K41: 449 | L41: 0.9739696312 | M41: 445 | N41: 0.9652928416 | O41: 437 | P41: 0.9479392625 | Q41: 361 | R41: 0.8112359551 | S41: 433 | T41: 0.9730337079
A42: Sul | B42: Jerônimo Monteiro | C42: 107 | D42: 157 | E42: 136 | F42: 1.271028037 | G42: 145 | H42: 0.923566879 | I42: 125 | J42: 1.168224299 | K42: 119 | L42: 1.112149533 | M42: 140 | N42: 1.308411215 | O42: 127 | P42: 1.186915888 | Q42: 95 | R42: 0.6050955414 | S42: 140 | T42: 0.8917197452
A43: Metropolitana | B43: João Neiva | C43: 141 | D43: 142 | E43: 145 | F43: 1.028368794 | G43: 163 | H43: 1.147887324 | I43: 149 | J43: 1.056737589 | K43: 143 | L43: 1.014184397 | M43: 149 | N43: 1.056737589 | O43: 146 | P43: 1.035460993 | Q43: 121 | R43: 0.8521126761 | S43: 153 | T43: 1.077464789
A44: Metropolitana | B44: Laranja da Terra | C44: 114 | D44: 133 | E44: 118 | F44: 1.035087719 | G44: 136 | H44: 1.022556391 | I44: 107 | J44: 0.9385964912 | K44: 112 | L44: 0.9824561404 | M44: 103 | N44: 0.9035087719 | O44: 96 | P44: 0.8421052632 | Q44: 95 | R44: 0.7142857143 | S44: 108 | T44: 0.8120300752
A45: Central | B45: Linhares | C45: 2662 | D45: 2452 | E45: 2008 | F45: 0.7543200601 | G45: 1943 | H45: 0.7924143556 | I45: 2171 | J45: 0.8155522164 | K45: 2292 | L45: 0.8610067618 | M45: 2213 | N45: 0.8313298272 | O45: 2195 | P45: 0.824567994 | Q45: 1688 | R45: 0.6884176183 | S45: 2141 | T45: 0.8731647635
A46: Central | B46: Mantenópolis | C46: 140 | D46: 166 | E46: 156 | F46: 1.114285714 | G46: 155 | H46: 0.9337349398 | I46: 133 | J46: 0.95 | K46: 144 | L46: 1.028571429 | M46: 154 | N46: 1.1 | O46: 144 | P46: 1.028571429 | Q46: 184 | R46: 1.108433735 | S46: 191 | T46: 1.15060241
A47: Sul | B47: Marataízes | C47: 563 | D47: 579 | E47: 480 | F47: 0.8525754885 | G47: 630 | H47: 1.088082902 | I47: 560 | J47: 0.9946714032 | K47: 589 | L47: 1.046181172 | M47: 538 | N47: 0.9555950266 | O47: 546 | P47: 0.9698046181 | Q47: 397 | R47: 0.6856649396 | S47: 594 | T47: 1.025906736
A48: Metropolitana | B48: Marechal Floriano | C48: 208 | D48: 236 | E48: 210 | F48: 1.009615385 | G48: 253 | H48: 1.072033898 | I48: 187 | J48: 0.8990384615 | K48: 185 | L48: 0.8894230769 | M48: 217 | N48: 1.043269231 | O48: 212 | P48: 1.019230769 | Q48: 204 | R48: 0.8644067797 | S48: 248 | T48: 1.050847458
A49: Central | B49: Marilândia | C49: 170 | D49: 164 | E49: 154 | F49: 0.9058823529 | G49: 187 | H49: 1.140243902 | I49: 123 | J49: 0.7235294118 | K49: 131 | L49: 0.7705882353 | M49: 145 | N49: 0.8529411765 | O49: 134 | P49: 0.7882352941 | Q49: 154 | R49: 0.9390243902 | S49: 144 | T49: 0.8780487805
A50: Sul | B50: Mimoso do Sul | C50: 270 | D50: 276 | E50: 216 | F50: 0.8 | G50: 192 | H50: 0.6956521739 | I50: 217 | J50: 0.8037037037 | K50: 214 | L50: 0.7925925926 | M50: 214 | N50: 0.7925925926 | O50: 207 | P50: 0.7666666667 | Q50: 193 | R50: 0.6992753623 | S50: 209 | T50: 0.7572463768
A51: Norte | B51: Montanha | C51: 239 | D51: 278 | E51: 260 | F51: 1.087866109 | G51: 279 | H51: 1.003597122 | I51: 258 | J51: 1.079497908 | K51: 260 | L51: 1.087866109 | M51: 256 | N51: 1.071129707 | O51: 252 | P51: 1.054393305 | Q51: 202 | R51: 0.726618705 | S51: 215 | T51: 0.773381295
A52: Norte | B52: Mucurici | C52: 56 | D52: 97 | E52: 68 | F52: 1.214285714 | G52: 65 | H52: 0.6701030928 | I52: 61 | J52: 1.089285714 | K52: 53 | L52: 0.9464285714 | M52: 67 | N52: 1.196428571 | O52: 66 | P52: 1.178571429 | Q52: 63 | R52: 0.6494845361 | S52: 60 | T52: 0.618556701
A53: Sul | B53: Muniz Freire | C53: 241 | D53: 275 | E53: 367 | F53: 1.522821577 | G53: 138 | H53: 0.5018181818 | I53: 233 | J53: 0.9668049793 | K53: 224 | L53: 0.9294605809 | M53: 237 | N53: 0.9834024896 | O53: 230 | P53: 0.9543568465 | Q53: 223 | R53: 0.8109090909 | S53: 237 | T53: 0.8618181818
A54: Sul | B54: Muqui | C54: 155 | D54: 152 | E54: 158 | F54: 1.019354839 | G54: 182 | H54: 1.197368421 | I54: 146 | J54: 0.9419354839 | K54: 151 | L54: 0.9741935484 | M54: 161 | N54: 1.038709677 | O54: 153 | P54: 0.9870967742 | Q54: 164 | R54: 1.078947368 | S54: 166 | T54: 1.092105263
A55: Norte | B55: Nova Venécia | C55: 709 | D55: 656 | E55: 553 | F55: 0.7799717913 | G55: 633 | H55: 0.9649390244 | I55: 618 | J55: 0.8716502116 | K55: 648 | L55: 0.9139633286 | M55: 631 | N55: 0.8899858956 | O55: 589 | P55: 0.8307475317 | Q55: 486 | R55: 0.7408536585 | S55: 598 | T55: 0.9115853659
A56: Central | B56: Pancas | C56: 210 | D56: 244 | E56: 206 | F56: 0.980952381 | G56: 256 | H56: 1.049180328 | I56: 188 | J56: 0.8952380952 | K56: 198 | L56: 0.9428571429 | M56: 213 | N56: 1.014285714 | O56: 201 | P56: 0.9571428571 | Q56: 151 | R56: 0.618852459 | S56: 204 | T56: 0.8360655738
A57: Norte | B57: Pedro Canário | C57: 349 | D57: 338 | E57: 330 | F57: 0.9455587393 | G57: 358 | H57: 1.059171598 | I57: 332 | J57: 0.9512893983 | K57: 316 | L57: 0.9054441261 | M57: 338 | N57: 0.9684813754 | O57: 312 | P57: 0.893982808 | Q57: 286 | R57: 0.8461538462 | S57: 321 | T57: 0.949704142
A58: Norte | B58: Pinheiros | C58: 333 | D58: 383 | E58: 285 | F58: 0.8558558559 | G58: 281 | H58: 0.7336814621 | I58: 272 | J58: 0.8168168168 | K58: 285 | L58: 0.8558558559 | M58: 276 | N58: 0.8288288288 | O58: 268 | P58: 0.8048048048 | Q58: 234 | R58: 0.6109660574 | S58: 277 | T58: 0.7232375979
A59: Sul | B59: Piúma | C59: 306 | D59: 311 | E59: 247 | F59: 0.8071895425 | G59: 258 | H59: 0.8295819936 | I59: 278 | J59: 0.908496732 | K59: 282 | L59: 0.9215686275 | M59: 248 | N59: 0.8104575163 | O59: 233 | P59: 0.7614379085 | Q59: 238 | R59: 0.7652733119 | S59: 273 | T59: 0.8778135048
A60: Norte | B60: Ponto Belo | C60: 74 | D60: 85 | E60: 81 | F60: 1.094594595 | G60: 115 | H60: 1.352941176 | I60: 82 | J60: 1.108108108 | K60: 84 | L60: 1.135135135 | M60: 80 | N60: 1.081081081 | O60: 81 | P60: 1.094594595 | Q60: 101 | R60: 1.188235294 | S60: 103 | T60: 1.211764706
A61: Sul | B61: Presidente Kennedy | C61: 200 | D61: 239 | E61: 190 | F61: 0.95 | G61: 196 | H61: 0.820083682 | I61: 201 | J61: 1.005 | K61: 196 | L61: 0.98 | M61: 203 | N61: 1.015 | O61: 189 | P61: 0.945 | Q61: 190 | R61: 0.7949790795 | S61: 191 | T61: 0.7991631799
A62: Central | B62: Rio Bananal | C62: 304 | D62: 229 | E62: 383 | F62: 1.259868421 | G62: 242 | H62: 1.056768559 | I62: 263 | J62: 0.8651315789 | K62: 278 | L62: 0.9144736842 | M62: 297 | N62: 0.9769736842 | O62: 291 | P62: 0.9572368421 | Q62: 277 | R62: 1.209606987 | S62: 286 | T62: 1.248908297
A63: Sul | B63: Rio Novo do Sul | C63: 100 | D63: 144 | E63: 100 | F63: 1 | G63: 121 | H63: 0.8402777778 | I63: 99 | J63: 0.99 | K63: 102 | L63: 1.02 | M63: 96 | N63: 0.96 | O63: 88 | P63: 0.88 | Q63: 79 | R63: 0.5486111111 | S63: 95 | T63: 0.6597222222
A64: Metropolitana | B64: Santa Leopoldina | C64: 93 | D64: 155 | E64: 96 | F64: 1.032258065 | G64: 121 | H64: 0.7806451613 | I64: 82 | J64: 0.8817204301 | K64: 82 | L64: 0.8817204301 | M64: 91 | N64: 0.9784946237 | O64: 90 | P64: 0.9677419355 | Q64: 115 | R64: 0.7419354839 | S64: 107 | T64: 0.6903225806
A65: Metropolitana | B65: Santa Maria de Jetibá | C65: 719 | D65: 685 | E65: 616 | F65: 0.8567454798 | G65: 509 | H65: 0.7430656934 | I65: 600 | J65: 0.8344923505 | K65: 603 | L65: 0.8386648122 | M65: 596 | N65: 0.8289290682 | O65: 587 | P65: 0.8164116829 | Q65: 509 | R65: 0.7430656934 | S65: 619 | T65: 0.903649635
A66: Metropolitana | B66: Santa Teresa | C66: 280 | D66: 260 | E66: 257 | F66: 0.9178571429 | G66: 330 | H66: 1.269230769 | I66: 265 | J66: 0.9464285714 | K66: 275 | L66: 0.9821428571 | M66: 272 | N66: 0.9714285714 | O66: 255 | P66: 0.9107142857 | Q66: 249 | R66: 0.9576923077 | S66: 266 | T66: 1.023076923
A67: Central | B67: São Domingos do Norte | C67: 108 | D67: 117 | E67: 116 | F67: =E67/C67 -> 1.074074074 | G67: 108 | H67: =G67/D67 -> 0.9230769231 | I67: 105 | J67: =I67/C67 -> 0.9722222222 | K67: 115 | L67: =K67/C67 -> 1.064814815 | M67: 121 | N67: =M67/C67 -> 1.12037037 | O67: 110 | P67: =O67/C67 -> 1.018518519 | Q67: 96 | R67: =Q67/D67 -> 0.8205128205 | S67: 98 | T67: =S67/D67 -> 0.8376068376
A68: Central | B68: São Gabriel da Palha | C68: 417 | D68: 426 | E68: 430 | F68: 1.03117506 | G68: 399 | H68: 0.9366197183 | I68: 391 | J68: 0.9376498801 | K68: 385 | L68: 0.9232613909 | M68: 404 | N68: 0.96882494 | O68: 409 | P68: 0.9808153477 | Q68: 353 | R68: 0.8286384977 | S68: 378 | T68: 0.8873239437
A69: Sul | B69: São José do Calçado | C69: 99 | D69: 150 | E69: 94 | F69: 0.9494949495 | G69: 110 | H69: 0.7333333333 | I69: 88 | J69: 0.8888888889 | K69: 91 | L69: 0.9191919192 | M69: 97 | N69: 0.9797979798 | O69: 91 | P69: 0.9191919192 | Q69: 91 | R69: 0.6066666667 | S69: 116 | T69: 0.7733333333
A70: Norte | B70: São Mateus | C70: 1860 | D70: 1766 | E70: 1383 | F70: 0.7435483871 | G70: 1383 | H70: 0.7831257078 | I70: 1674 | J70: 0.9 | K70: 1623 | L70: 0.8725806452 | M70: 1623 | N70: 0.8725806452 | O70: 1530 | P70: 0.8225806452 | Q70: 1269 | R70: 0.7185730464 | S70: 1483 | T70: 0.8397508494
A71: Central | B71: São Roque do Canaã | C71: 128 | D71: 100 | E71: 126 | F71: 0.984375 | G71: 122 | H71: 1.22 | I71: 102 | J71: 0.796875 | K71: 115 | L71: 0.8984375 | M71: 106 | N71: 0.828125 | O71: 106 | P71: 0.828125 | Q71: 94 | R71: 0.94 | S71: 108 | T71: 1.08
A72: Metropolitana | B72: Serra | C72: 7521 | D72: 7550 | E72: 5392 | F72: 0.7169259407 | G72: 4939 | H72: 0.6541721854 | I72: 6219 | J72: 0.8268847228 | K72: 6278 | L72: 0.8347294243 | M72: 6006 | N72: 0.7985640207 | O72: 5674 | P72: 0.7544209547 | Q72: 4759 | R72: 0.6303311258 | S72: 5587 | T72: 0.74
A73: Central | B73: Sooretama | C73: 442 | D73: 415 | E73: 368 | F73: 0.8325791855 | G73: 394 | H73: 0.9493975904 | I73: 413 | J73: 0.9343891403 | K73: 414 | L73: 0.9366515837 | M73: 418 | N73: 0.9457013575 | O73: 375 | P73: 0.8484162896 | Q73: 333 | R73: 0.8024096386 | S73: 407 | T73: 0.9807228916
A74: Sul | B74: Vargem Alta | C74: 274 | D74: 278 | E74: 247 | F74: 0.901459854 | G74: 243 | H74: 0.8741007194 | I74: 244 | J74: 0.8905109489 | K74: 242 | L74: 0.8832116788 | M74: 257 | N74: 0.9379562044 | O74: 244 | P74: 0.8905109489 | Q74: 151 | R74: 0.5431654676 | S74: 228 | T74: 0.8201438849
A75: Metropolitana | B75: Venda Nova do Imigrante | C75: 342 | D75: 328 | E75: 379 | F75: 1.108187135 | G75: 252 | H75: 0.7682926829 | I75: 358 | J75: 1.046783626 | K75: 312 | L75: 0.9122807018 | M75: 352 | N75: 1.029239766 | O75: 340 | P75: 0.9941520468 | Q75: 310 | R75: 0.9451219512 | S75: 335 | T75: 1.021341463
A76: Metropolitana | B76: Viana | C76: 855 | D76: 1064 | E76: 661 | F76: 0.7730994152 | G76: 738 | H76: 0.6936090226 | I76: 920 | J76: 1.076023392 | K76: 908 | L76: 1.061988304 | M76: 817 | N76: 0.9555555556 | O76: 827 | P76: 0.967251462 | Q76: 729 | R76: 0.6851503759 | S76: 998 | T76: 0.9379699248
A77: Norte | B77: Vila Pavão | C77: 99 | D77: 127 | E77: 100 | F77: 1.01010101 | G77: 85 | H77: 0.6692913386 | I77: 104 | J77: 1.050505051 | K77: 110 | L77: 1.111111111 | M77: 114 | N77: 1.151515152 | O77: 107 | P77: 1.080808081 | Q77: 104 | R77: 0.8188976378 | S77: 113 | T77: 0.8897637795
A78: Central | B78: Vila Valério | C78: 256 | D78: 169 | E78: 282 | F78: 1.1015625 | G78: 240 | H78: 1.420118343 | I78: 231 | J78: 0.90234375 | K78: 235 | L78: 0.91796875 | M78: 248 | N78: 0.96875 | O78: 240 | P78: 0.9375 | Q78: 225 | R78: 1.331360947 | S78: 229 | T78: 1.355029586
A79: Metropolitana | B79: Vila Velha | C79: 5558 | D79: 5675 | E79: 4122 | F79: 0.7416336812 | G79: 4750 | H79: 0.8370044053 | I79: 4521 | J79: 0.8134220943 | K79: 4484 | L79: 0.8067650234 | M79: 4600 | N79: 0.8276358402 | O79: 4311 | P79: 0.775638719 | Q79: 3905 | R79: 0.6881057269 | S79: 4435 | T79: 0.7814977974
A80: Metropolitana | B80: Vitória | C80: 3563 | D80: 3833 | E80: 3398 | F80: 0.9536907101 | G80: 2716 | H80: 0.7085833551 | I80: 3707 | J80: 1.04041538 | K80: 3144 | L80: 0.8824024698 | M80: 3693 | N80: 1.036486107 | O80: 3467 | P80: 0.9730564131 | Q80: 2189 | R80: 0.5710931385 | S80: 3041 | T80: 0.7933733368
B82: Total Norte | C82: =SUMIF($A$3:$A$80,"Norte",C$3:C$80) -> 5810 | D82: =SUMIF($A$3:$A$80,"Norte",D$3:D$80) -> 5789 | E82: =SUMIF($A$3:$A$80,"Norte",E$3:E$80) -> 4903 | F82: =E82/C82 -> 0.8438898451 | G82: =SUMIF($A$3:$A$80,"Norte",G$3:G$80) -> 4989 | H82: =G82/D82 -> 0.8618068751 | I82: =SUMIF($A$3:$A$80,"Norte",I$3:I$80) -> 5339 | J82: =I82/C82 -> 0.9189328744 | K82: =SUMIF($A$3:$A$80,"Norte",K$3:K$80) -> 5372 | L82: =K82/C82 -> 0.9246127367 | M82: =SUMIF($A$3:$A$80,"Norte",M$3:M$80) -> 5322 | N82: =M82/C82 -> 0.9160068847 | O82: =SUMIF($A$3:$A$80,"Norte",O$3:O$80) -> 5020 | P82: =O82/C82 -> 0.8640275387 | Q82: =SUMIF($A$3:$A$80,"Norte",Q$3:Q$80) -> 4411 | R82: =Q82/D82 -> 0.7619623424 | S82: =SUMIF($A$3:$A$80,"Norte",S$3:S$80) -> 4981 | T82: =S82/D82 -> 0.8604249439
B83: Total Central | C83: =SUMIF($A$3:$A$80,"Central",C$3:C$80) -> 7081 | D83: =SUMIF($A$3:$A$80,"Central",D$3:D$80) -> 6843 | E83: =SUMIF($A$3:$A$80,"Central",E$3:E$80) -> 6267 | F83: =E83/C83 -> 0.8850444852 | G83: =SUMIF($A$3:$A$80,"Central",G$3:G$80) -> 6012 | H83: =G83/D83 -> 0.8785620342 | I83: =SUMIF($A$3:$A$80,"Central",I$3:I$80) -> 6196 | J83: =I83/C83 -> 0.8750176529 | K83: =SUMIF($A$3:$A$80,"Central",K$3:K$80) -> 6408 | L83: =K83/C83 -> 0.904956927 | M83: =SUMIF($A$3:$A$80,"Central",M$3:M$80) -> 6368 | N83: =M83/C83 -> 0.8993080073 | O83: =SUMIF($A$3:$A$80,"Central",O$3:O$80) -> 6159 | P83: =O83/C83 -> 0.8697924022 | Q83: =SUMIF($A$3:$A$80,"Central",Q$3:Q$80) -> 5310 | R83: =Q83/D83 -> 0.7759754494 | S83: =SUMIF($A$3:$A$80,"Central",S$3:S$80) -> 6061 | T83: =S83/D83 -> 0.8857226363
B84: Total Metropolitana | C84: =SUMIF($A$3:$A$80,"Metropolitana",C$3:C$80) -> 29463 | D84: =SUMIF($A$3:$A$80,"Metropolitana",D$3:D$80) -> 30197 | E84: =SUMIF($A$3:$A$80,"Metropolitana",E$3:E$80) -> 23944 | F84: =E84/C84 -> 0.8126803109 | G84: =SUMIF($A$3:$A$80,"Metropolitana",G$3:G$80) -> 23656 | H84: =G84/D84 -> 0.7833890784 | I84: =SUMIF($A$3:$A$80,"Metropolitana",I$3:I$80) -> 25983 | J84: =I84/C84 -> 0.881885755 | K84: =SUMIF($A$3:$A$80,"Metropolitana",K$3:K$80) -> 25673 | L84: =K84/C84 -> 0.8713640838 | M84: =SUMIF($A$3:$A$80,"Metropolitana",M$3:M$80) -> 26234 | N84: =M84/C84 -> 0.8904049146 | O84: =SUMIF($A$3:$A$80,"Metropolitana",O$3:O$80) -> 24743 | P84: =O84/C84 -> 0.83979907 | Q84: =SUMIF($A$3:$A$80,"Metropolitana",Q$3:Q$80) -> 20844 | R84: =Q84/D84 -> 0.6902672451 | S84: =SUMIF($A$3:$A$80,"Metropolitana",S$3:S$80) -> 24862 | T84: =S84/D84 -> 0.8233268205
B85: Total Sul | C85: =SUMIF($A$3:$A$80,"sul",C$3:C$80) -> 8085 | D85: =SUMIF($A$3:$A$80,"sul",D$3:D$80) -> 8688 | E85: =SUMIF($A$3:$A$80,"sul",E$3:E$80) -> 7601 | F85: =E85/C85 -> 0.9401360544 | G85: =SUMIF($A$3:$A$80,"sul",G$3:G$80) -> 7695 | H85: =G85/D85 -> 0.8857044199 | I85: =SUMIF($A$3:$A$80,"Sul",I$3:I$80) -> 7575 | J85: =I85/C85 -> 0.9369202226 | K85: =SUMIF($A$3:$A$80,"Sul",K$3:K$80) -> 7721 | L85: =K85/C85 -> 0.954978355 | M85: =SUMIF($A$3:$A$80,"Sul",M$3:M$80) -> 7915 | N85: =M85/C85 -> 0.9789734075 | O85: =SUMIF($A$3:$A$80,"Sul",O$3:O$80) -> 7519 | P85: =O85/C85 -> 0.9299938157 | Q85: =SUMIF($A$3:$A$80,"Sul",Q$3:Q$80) -> 6685 | R85: =Q85/D85 -> 0.7694521179 | S85: =SUMIF($A$3:$A$80,"Sul",S$3:S$80) -> 7839 | T85: =S85/D85 -> 0.9022790055
B86: Total Espírito Santo | C86: =SUM(C3:C80) -> 50439 | D86: =SUM(D3:D80) -> 51517 | E86: =SUM(E3:E80) -> 42715 | F86: =E86/C86 -> 0.8468645294 | G86: =SUM(G3:G80) -> 42352 | H86: =G86/D86 -> 0.82209756 | I86: =SUM(I3:I80) -> 45093 | J86: =I86/C86 -> 0.894010587 | K86: =SUM(K3:K80) -> 45174 | L86: =K86/C86 -> 0.8956164872 | M86: =SUM(M3:M80) -> 45839 | N86: =M86/C86 -> 0.9088007296 | O86: =SUM(O3:O80) -> 43441 | P86: =O86/C86 -> 0.8612581534 | Q86: =SUM(Q3:Q80) -> 37250 | R86: =Q86/D86 -> 0.7230622901 | S86: =SUM(S3:S80) -> 43743 | T86: =S86/D86 -> 0.8490983559
A91: Fonte: Vacina e Confia, em 13 de janeiro de 2026.**<https://vacinaeconfia.saude.es.gov.br/>
A92: **Dados referente às doses aplicadas no período de janeiro a dezembro 2025
A93: Cobertura Calculada por município de procedência/ocorrência da vacinação
A94: 1 População estimada extraída do MS/SVS/DASIS - SINASC/DASIS/SVS/MS 2024 (hoje preliminares) referente ao período de novembro e dezembro 2024 e SINASC/DASIS/SVS/MS 2024 (hoje preliminares) referente ao período de janeiro a outubro/ 2025.
A95: Sinasc, atualizado em 12/01/2026
A96: ²População estimada Censo IBGE 2022
A97: Método de Cálculo Simples
A98: Homogeineidade: O cálculo da Homogeineidade entre vacinas é feito de acordo com a pactuação estabelecida no Plano Plurianual (PPA) vigente no período 2024-2027.
A100: Observações referente a distribuição de imunobiológicos que podem afetar a cobertura vacinal:
A102: 1. Vacinas que foram recebidas parcialmente pelo estado no mês de dezembro/2025, sendo distribuídos em quantidades reduzidas às regionais e municípios:
A104: 2. Vacinas indisponíveis no mês de dezembro/2025, não sendo possível a distribuição às regionais e municípios:
A105: VACINA TETRA VIRAL.
A106: 3. Vacinas enviadas por Pautas aguardando abastecimento do estoque estadual;
A107: VACINA COVID-19 PFIZER PEDIÁTRICA MENOR QUE 5 ANOS; VACINA COVID-19 PFIZER PEDIÁTRICA.
A109: Fonte: Informes situacionais de distribuição de imunobiológicos em https://saude.es.gov.br/GrupodeArquivos/informes-situacionais-de-distribuicao-de-imunobiologicos

Sheet CV REF 1A e 4A - residência
E1: D2 | I1: REFORÇOS 1 ANO | Q1: REFORÇOS 4 ANOS
A2: Regional | B2: Município | C2: ¹População 1 ano proporcional | D2: ²População 4 anos proporcional | E2: DOSES APLICADAS D2 TRÍPLICE VIRAL | F2: COBERTURA D2 TRÍPLICE VIRAL | G2: DOSES APLICADAS D2 VARICELA | H2: COBERTURA D2 VARICELA | I2: DOSES APLICADAS REF PNEUMO | J2: COBERTURA REF PNEUMO | K2: DOSES APLICADAS REF MENINGO | L2: COBERTURA REF MENINGO | M2: DOSES APLICADAS REF POLIO | N2: COBERTURA REF POLIO | O2: DOSES APLICADAS R1 TRÍPLICE BACTERIANA | P2: COBERTURA R1 TRÍPLICE BACTERIANA | Q2: DOSES APLICADAS REF FEBRE AMARELA | R2: COBERTURA REF FEBRE AMARELA | S2: DOSES APLICADAS R2 TRÍPLICE BACTERIANA | T2: COBERTURA R2 TRÍPLICE BACTERIANA
A3: Metropolitana | B3: Afonso Cláudio | C3: 361 | D3: 416 | E3: 366 | F3: =E3/C3 -> 1.013850416 | G3: 410 | H3: =G3/D3 -> 0.9855769231 | I3: 352 | J3: =I3/C3 -> 0.9750692521 | K3: 352 | L3: =K3/C3 -> 0.9750692521 | M3: 384 | N3: =M3/C3 -> 1.063711911 | O3: 358 | P3: =O3/C3 -> 0.9916897507 | Q3: 378 | R3: =Q3/D3 -> 0.9086538462 | S3: 393 | T3: =S3/D3 -> 0.9447115385
A4: Norte | B4: Água Doce do Norte | C4: 154 | D4: 151 | E4: 135 | F4: 0.8766233766 | G4: 86 | H4: 0.5695364238 | I4: 170 | J4: 1.103896104 | K4: 166 | L4: 1.077922078 | M4: 156 | N4: 1.012987013 | O4: 151 | P4: 0.9805194805 | Q4: 113 | R4: 0.7483443709 | S4: 121 | T4: 0.8013245033
A5: Central | B5: Águia Branca | C5: 167 | D5: 129 | E5: 153 | F5: 0.9161676647 | G5: 106 | H5: 0.8217054264 | I5: 145 | J5: 0.8682634731 | K5: 150 | L5: 0.8982035928 | M5: 155 | N5: 0.9281437126 | O5: 150 | P5: 0.8982035928 | Q5: 102 | R5: 0.7906976744 | S5: 107 | T5: 0.8294573643
A6: Sul | B6: Alegre | C6: 322 | D6: 372 | E6: 339 | F6: 1.052795031 | G6: 311 | H6: 0.8360215054 | I6: 298 | J6: 0.9254658385 | K6: 290 | L6: 0.900621118 | M6: 331 | N6: 1.027950311 | O6: 319 | P6: 0.9906832298 | Q6: 287 | R6: 0.7715053763 | S6: 315 | T6: 0.8467741935
A7: Sul | B7: Alfredo Chaves | C7: 119 | D7: 138 | E7: 115 | F7: 0.9663865546 | G7: 132 | H7: 0.9565217391 | I7: 110 | J7: 0.9243697479 | K7: 108 | L7: 0.9075630252 | M7: 131 | N7: 1.100840336 | O7: 123 | P7: 1.033613445 | Q7: 115 | R7: 0.8333333333 | S7: 117 | T7: 0.847826087
A8: Central | B8: Alto Rio Novo | C8: 98 | D8: 102 | E8: 100 | F8: 1.020408163 | G8: 112 | H8: 1.098039216 | I8: 91 | J8: 0.9285714286 | K8: 94 | L8: 0.9591836735 | M8: 96 | N8: 0.9795918367 | O8: 95 | P8: 0.9693877551 | Q8: 98 | R8: 0.9607843137 | S8: 94 | T8: 0.9215686275
A9: Sul | B9: Anchieta | C9: 329 | D9: 390 | E9: 374 | F9: 1.136778116 | G9: 417 | H9: 1.069230769 | I9: 368 | J9: 1.118541033 | K9: 371 | L9: 1.127659574 | M9: 396 | N9: 1.203647416 | O9: 368 | P9: 1.118541033 | Q9: 387 | R9: 0.9923076923 | S9: 414 | T9: 1.061538462
A10: Sul | B10: Apiacá | C10: 69 | D10: 90 | E10: 59 | F10: 0.8550724638 | G10: 72 | H10: 0.8 | I10: 67 | J10: 0.9710144928 | K10: 64 | L10: 0.9275362319 | M10: 60 | N10: 0.8695652174 | O10: 56 | P10: 0.8115942029 | Q10: 28 | R10: 0.3111111111 | S10: 70 | T10: 0.7777777778
A11: Metropolitana | B11: Aracruz | C11: 1409 | D11: 1420 | E11: 1324 | F11: 0.9396735273 | G11: 1485 | H11: 1.045774648 | I11: 1256 | J11: 0.8914123492 | K11: 1318 | L11: 0.9354151881 | M11: 1373 | N11: 0.9744499645 | O11: 1280 | P11: 0.9084457062 | Q11: 1189 | R11: 0.8373239437 | S11: 1329 | T11: 0.935915493
A12: Sul | B12: Atilio Vivacqua | C12: 143 | D12: 138 | E12: 162 | F12: 1.132867133 | G12: 187 | H12: 1.355072464 | I12: 169 | J12: 1.181818182 | K12: 170 | L12: 1.188811189 | M12: 162 | N12: 1.132867133 | O12: 156 | P12: 1.090909091 | Q12: 168 | R12: 1.217391304 | S12: 180 | T12: 1.304347826
A13: Central | B13: Baixo Guandu | C13: 364 | D13: 427 | E13: 354 | F13: 0.9725274725 | G13: 380 | H13: 0.8899297424 | I13: 347 | J13: 0.9532967033 | K13: 342 | L13: 0.9395604396 | M13: 363 | N13: 0.9972527473 | O13: 353 | P13: 0.9697802198 | Q13: 344 | R13: 0.8056206089 | S13: 371 | T13: 0.868852459
A14: Norte | B14: Barra de São Francisco | C14: 621 | D14: 589 | E14: 509 | F14: 0.8196457327 | G14: 502 | H14: 0.8522920204 | I14: 503 | J14: 0.8099838969 | K14: 515 | L14: 0.8293075684 | M14: 508 | N14: 0.8180354267 | O14: 477 | P14: 0.768115942 | Q14: 437 | R14: 0.7419354839 | S14: 468 | T14: 0.7945670628
A15: Norte | B15: Boa Esperança | C15: 231 | D15: 200 | E15: 172 | F15: 0.7445887446 | G15: 129 | H15: 0.645 | I15: 185 | J15: 0.8008658009 | K15: 193 | L15: 0.8354978355 | M15: 175 | N15: 0.7575757576 | O15: 148 | P15: 0.6406926407 | Q15: 100 | R15: 0.5 | S15: 126 | T15: 0.63
A16: Sul | B16: Bom Jesus do Norte | C16: 79 | D16: 146 | E16: 93 | F16: 1.17721519 | G16: 132 | H16: 0.904109589 | I16: 101 | J16: 1.278481013 | K16: 101 | L16: 1.278481013 | M16: 97 | N16: 1.227848101 | O16: 94 | P16: 1.189873418 | Q16: 97 | R16: 0.6643835616 | S16: 130 | T16: 0.8904109589
A17: Metropolitana | B17: Brejetuba | C17: 228 | D17: 169 | E17: 236 | F17: 1.035087719 | G17: 254 | H17: 1.50295858 | I17: 196 | J17: 0.8596491228 | K17: 201 | L17: 0.8815789474 | M17: 184 | N17: 0.8070175439 | O17: 179 | P17: 0.7850877193 | Q17: 191 | R17: 1.130177515 | S17: 192 | T17: 1.136094675
A18: Sul | B18: Cachoeiro de Itapemirim | C18: 2389 | D18: 2417 | E18: 2085 | F18: 0.8727501046 | G18: 2060 | H18: 0.852296235 | I18: 2129 | J18: 0.8911678527 | K18: 2129 | L18: 0.8911678527 | M18: 2252 | N18: 0.9426538301 | O18: 2107 | P18: 0.8819589787 | Q18: 1835 | R18: 0.7592056268 | S18: 2184 | T18: 0.9035995035
A19: Metropolitana | B19: Cariacica | C19: 4798 | D19: 5005 | E19: 3676 | F19: 0.7661525636 | G19: 3500 | H19: 0.6993006993 | I19: 4128 | J19: 0.8603584827 | K19: 4159 | L19: 0.8668195081 | M19: 4246 | N19: 0.8849520634 | O19: 3983 | P19: 0.8301375573 | Q19: 3303 | R19: 0.6599400599 | S19: 4095 | T19: 0.8181818182
A20: Sul | B20: Castelo | C20: 398 | D20: 399 | E20: 412 | F20: 1.035175879 | G20: 377 | H20: 0.9448621554 | I20: 381 | J20: 0.9572864322 | K20: 400 | L20: 1.005025126 | M20: 431 | N20: 1.082914573 | O20: 431 | P20: 1.082914573 | Q20: 322 | R20: 0.8070175439 | S20: 352 | T20: 0.8822055138
A21: Central | B21: Colatina | C21: 1470 | D21: 1561 | E21: 1283 | F21: 0.8727891156 | G21: 1177 | H21: 0.7540038437 | I21: 1309 | J21: 0.8904761905 | K21: 1347 | L21: 0.9163265306 | M21: 1292 | N21: 0.8789115646 | O21: 1211 | P21: 0.8238095238 | Q21: 1019 | R21: 0.6527866752 | S21: 1123 | T21: 0.7194106342
A22: Norte | B22: Conceição da Barra | C22: 384 | D22: 391 | E22: 417 | F22: 1.0859375 | G22: 433 | H22: 1.10741688 | I22: 418 | J22: 1.088541667 | K22: 421 | L22: 1.096354167 | M22: 434 | N22: 1.130208333 | O22: 401 | P22: 1.044270833 | Q22: 435 | R22: 1.112531969 | S22: 419 | T22: 1.071611253
A23: Metropolitana | B23: Conceição do Castelo | C23: 182 | D23: 144 | E23: 153 | F23: 0.8406593407 | G23: 186 | H23: 1.291666667 | I23: 129 | J23: 0.7087912088 | K23: 144 | L23: 0.7912087912 | M23: 116 | N23: 0.6373626374 | O23: 122 | P23: 0.6703296703 | Q23: 154 | R23: 1.069444444 | S23: 143 | T23: 0.9930555556
A24: Sul | B24: Divino de São Lourenço | C24: 65 | D24: 68 | E24: 72 | F24: 1.107692308 | G24: 76 | H24: 1.117647059 | I24: 65 | J24: 1 | K24: 65 | L24: 1 | M24: 68 | N24: 1.046153846 | O24: 67 | P24: 1.030769231 | Q24: 51 | R24: 0.75 | S24: 57 | T24: 0.8382352941
A25: Metropolitana | B25: Domingos Martins | C25: 425 | D25: 411 | E25: 420 | F25: 0.9882352941 | G25: 445 | H25: 1.082725061 | I25: 399 | J25: 0.9388235294 | K25: 395 | L25: 0.9294117647 | M25: 440 | N25: 1.035294118 | O25: 420 | P25: 0.9882352941 | Q25: 351 | R25: 0.8540145985 | S25: 378 | T25: 0.9197080292
A26: Sul | B26: Dores do Rio Preto | C26: 96 | D26: 92 | E26: 90 | F26: 0.9375 | G26: 71 | H26: 0.7717391304 | I26: 93 | J26: 0.96875 | K26: 99 | L26: 1.03125 | M26: 97 | N26: 1.010416667 | O26: 98 | P26: 1.020833333 | Q26: 63 | R26: 0.6847826087 | S26: 69 | T26: 0.75
A27: Norte | B27: Ecoporanga | C27: 240 | D27: 283 | E27: 226 | F27: 0.9416666667 | G27: 275 | H27: 0.9717314488 | I27: 262 | J27: 1.091666667 | K27: 268 | L27: 1.116666667 | M27: 248 | N27: 1.033333333 | O27: 228 | P27: 0.95 | Q27: 215 | R27: 0.7597173145 | S27: 244 | T27: 0.8621908127
A28: Metropolitana | B28: Fundão | C28: 223 | D28: 218 | E28: 190 | F28: 0.8520179372 | G28: 201 | H28: 0.9220183486 | I28: 203 | J28: 0.9103139013 | K28: 206 | L28: 0.9237668161 | M28: 196 | N28: 0.8789237668 | O28: 184 | P28: 0.8251121076 | Q28: 179 | R28: 0.8211009174 | S28: 197 | T28: 0.9036697248
A29: Central | B29: Governador Lindenberg | C29: 145 | D29: 142 | E29: 121 | F29: 0.8344827586 | G29: 151 | H29: 1.063380282 | I29: 105 | J29: 0.724137931 | K29: 109 | L29: 0.7517241379 | M29: 115 | N29: 0.7931034483 | O29: 112 | P29: 0.7724137931 | Q29: 147 | R29: 1.035211268 | S29: 143 | T29: 1.007042254
A30: Sul | B30: Guaçuí | C30: 387 | D30: 407 | E30: 342 | F30: 0.8837209302 | G30: 362 | H30: 0.8894348894 | I30: 316 | J30: 0.8165374677 | K30: 360 | L30: 0.9302325581 | M30: 346 | N30: 0.8940568475 | O30: 334 | P30: 0.8630490956 | Q30: 375 | R30: 0.9213759214 | S30: 363 | T30: 0.8918918919
A31: Metropolitana | B31: Guarapari | C31: 1659 | D31: 1557 | E31: 1248 | F31: 0.7522603978 | G31: 1412 | H31: 0.9068721901 | I31: 1481 | J31: 0.8927064497 | K31: 1444 | L31: 0.8704038577 | M31: 1506 | N31: 0.9077757685 | O31: 1389 | P31: 0.8372513562 | Q31: 1117 | R31: 0.7174052665 | S31: 1412 | T31: 0.9068721901
A32: Metropolitana | B32: Ibatiba | C32: 398 | D32: 354 | E32: 419 | F32: 1.052763819 | G32: 284 | H32: 0.802259887 | I32: 360 | J32: 0.9045226131 | K32: 369 | L32: 0.9271356784 | M32: 411 | N32: 1.032663317 | O32: 373 | P32: 0.9371859296 | Q32: 339 | R32: 0.9576271186 | S32: 369 | T32: 1.042372881
A33: Metropolitana | B33: Ibiraçu | C33: 127 | D33: 160 | E33: 141 | F33: 1.11023622 | G33: 159 | H33: 0.99375 | I33: 138 | J33: 1.086614173 | K33: 141 | L33: 1.11023622 | M33: 132 | N33: 1.039370079 | O33: 134 | P33: 1.05511811 | Q33: 122 | R33: 0.7625 | S33: 128 | T33: 0.8
A34: Sul | B34: Ibitirama | C34: 140 | D34: 148 | E34: 162 | F34: 1.157142857 | G34: 169 | H34: 1.141891892 | I34: 159 | J34: 1.135714286 | K34: 159 | L34: 1.135714286 | M34: 165 | N34: 1.178571429 | O34: 147 | P34: 1.05 | Q34: 164 | R34: 1.108108108 | S34: 157 | T34: 1.060810811
A35: Sul | B35: Iconha | C35: 139 | D35: 156 | E35: 143 | F35: =E35/C35 -> 1.028776978 | G35: 182 | H35: =G35/D35 -> 1.166666667 | I35: 115 | J35: =I35/C35 -> 0.8273381295 | K35: 117 | L35: =K35/C35 -> 0.8417266187 | M35: 108 | N35: =M35/C35 -> 0.7769784173 | O35: 103 | P35: =O35/C35 -> 0.7410071942 | Q35: 118 | R35: =Q35/D35 -> 0.7564102564 | S35: 125 | T35: =S35/D35 -> 0.8012820513
A36: Sul | B36: Irupi | C36: 202 | D36: 200 | E36: 168 | F36: 0.8316831683 | G36: 170 | H36: 0.85 | I36: 173 | J36: 0.8564356436 | K36: 184 | L36: 0.9108910891 | M36: 192 | N36: 0.9504950495 | O36: 197 | P36: 0.9752475248 | Q36: 161 | R36: 0.805 | S36: 164 | T36: 0.82
A37: Metropolitana | B37: Itaguaçu | C37: 122 | D37: 154 | E37: 147 | F37: 1.204918033 | G37: 161 | H37: 1.045454545 | I37: 134 | J37: 1.098360656 | K37: 145 | L37: 1.18852459 | M37: 151 | N37: 1.237704918 | O37: 137 | P37: 1.12295082 | Q37: 129 | R37: 0.8376623377 | S37: 124 | T37: 0.8051948052
A38: Sul | B38: Itapemirim | C38: 520 | D38: 556 | E38: 373 | F38: 0.7173076923 | G38: 404 | H38: 0.726618705 | I38: 456 | J38: 0.8769230769 | K38: 445 | L38: 0.8557692308 | M38: 431 | N38: 0.8288461538 | O38: 408 | P38: 0.7846153846 | Q38: 321 | R38: 0.5773381295 | S38: 448 | T38: 0.8057553957
A39: Metropolitana | B39: Itarana | C39: 137 | D39: 128 | E39: 151 | F39: 1.102189781 | G39: 129 | H39: 1.0078125 | I39: 149 | J39: 1.087591241 | K39: 148 | L39: 1.080291971 | M39: 151 | N39: 1.102189781 | O39: 147 | P39: 1.072992701 | Q39: 103 | R39: 0.8046875 | S39: 109 | T39: 0.8515625
A40: Sul | B40: Iúna | C40: 373 | D40: 410 | E40: 399 | F40: 1.069705094 | G40: 316 | H40: 0.7707317073 | I40: 369 | J40: 0.9892761394 | K40: 394 | L40: 1.056300268 | M40: 439 | N40: 1.1769437 | O40: 393 | P40: 1.053619303 | Q40: 324 | R40: 0.7902439024 | S40: 359 | T40: 0.8756097561
A41: Norte | B41: Jaguaré | C41: 461 | D41: 445 | E41: 412 | F41: 0.8937093275 | G41: 372 | H41: 0.8359550562 | I41: 433 | J41: 0.9392624729 | K41: 443 | L41: 0.9609544469 | M41: 450 | N41: 0.9761388286 | O41: 444 | P41: 0.9631236443 | Q41: 349 | R41: 0.7842696629 | S41: 418 | T41: 0.9393258427
A42: Sul | B42: Jerônimo Monteiro | C42: 107 | D42: 157 | E42: 139 | F42: 1.299065421 | G42: 131 | H42: 0.8343949045 | I42: 132 | J42: 1.23364486 | K42: 131 | L42: 1.224299065 | M42: 144 | N42: 1.345794393 | O42: 133 | P42: 1.242990654 | Q42: 98 | R42: 0.6242038217 | S42: 136 | T42: 0.8662420382
A43: Metropolitana | B43: João Neiva | C43: 141 | D43: 142 | E43: 143 | F43: 1.014184397 | G43: 157 | H43: 1.105633803 | I43: 139 | J43: 0.9858156028 | K43: 137 | L43: 0.9716312057 | M43: 141 | N43: 1 | O43: 138 | P43: 0.9787234043 | Q43: 118 | R43: 0.8309859155 | S43: 137 | T43: 0.9647887324
A44: Metropolitana | B44: Laranja da Terra | C44: 114 | D44: 133 | E44: 104 | F44: 0.9122807018 | G44: 126 | H44: 0.9473684211 | I44: 101 | J44: 0.8859649123 | K44: 107 | L44: 0.9385964912 | M44: 93 | N44: 0.8157894737 | O44: 89 | P44: 0.7807017544 | Q44: 88 | R44: 0.6616541353 | S44: 99 | T44: 0.7443609023
A45: Central | B45: Linhares | C45: 2662 | D45: 2452 | E45: 2016 | F45: 0.7573253193 | G45: 1979 | H45: 0.807096248 | I45: 2178 | J45: 0.8181818182 | K45: 2249 | L45: 0.8448534936 | M45: 2210 | N45: 0.830202855 | O45: 2188 | P45: 0.8219383922 | Q45: 1754 | R45: 0.7153344209 | S45: 2178 | T45: 0.8882544861
A46: Central | B46: Mantenópolis | C46: 140 | D46: 166 | E46: 147 | F46: 1.05 | G46: 142 | H46: 0.8554216867 | I46: 130 | J46: 0.9285714286 | K46: 139 | L46: 0.9928571429 | M46: 147 | N46: 1.05 | O46: 138 | P46: 0.9857142857 | Q46: 172 | R46: 1.036144578 | S46: 178 | T46: 1.072289157
A47: Sul | B47: Marataízes | C47: 563 | D47: 579 | E47: 462 | F47: 0.8206039076 | G47: 615 | H47: 1.062176166 | I47: 555 | J47: 0.9857904085 | K47: 583 | L47: 1.035523979 | M47: 522 | N47: 0.9271758437 | O47: 524 | P47: 0.9307282416 | Q47: 390 | R47: 0.6735751295 | S47: 581 | T47: 1.003454231
A48: Metropolitana | B48: Marechal Floriano | C48: 208 | D48: 236 | E48: 212 | F48: 1.019230769 | G48: 235 | H48: 0.9957627119 | I48: 186 | J48: 0.8942307692 | K48: 175 | L48: 0.8413461538 | M48: 218 | N48: 1.048076923 | O48: 216 | P48: 1.038461538 | Q48: 192 | R48: 0.813559322 | S48: 224 | T48: 0.9491525424
A49: Central | B49: Marilândia | C49: 170 | D49: 164 | E49: 141 | F49: 0.8294117647 | G49: 180 | H49: 1.097560976 | I49: 136 | J49: 0.8 | K49: 148 | L49: 0.8705882353 | M49: 140 | N49: 0.8235294118 | O49: 132 | P49: 0.7764705882 | Q49: 147 | R49: 0.8963414634 | S49: 141 | T49: 0.8597560976
A50: Sul | B50: Mimoso do Sul | C50: 270 | D50: 276 | E50: 230 | F50: 0.8518518519 | G50: 201 | H50: 0.7282608696 | I50: 222 | J50: 0.8222222222 | K50: 222 | L50: 0.8222222222 | M50: 231 | N50: 0.8555555556 | O50: 224 | P50: 0.8296296296 | Q50: 201 | R50: 0.7282608696 | S50: 220 | T50: 0.7971014493
A51: Norte | B51: Montanha | C51: 239 | D51: 278 | E51: 263 | F51: 1.10041841 | G51: 290 | H51: 1.043165468 | I51: 247 | J51: 1.033472803 | K51: 261 | L51: 1.092050209 | M51: 252 | N51: 1.054393305 | O51: 246 | P51: 1.029288703 | Q51: 211 | R51: 0.7589928058 | S51: 231 | T51: 0.8309352518
A52: Norte | B52: Mucurici | C52: 56 | D52: 97 | E52: 72 | F52: 1.285714286 | G52: 64 | H52: 0.6597938144 | I52: 62 | J52: 1.107142857 | K52: 56 | L52: 1 | M52: 73 | N52: 1.303571429 | O52: 70 | P52: 1.25 | Q52: 61 | R52: 0.6288659794 | S52: 59 | T52: 0.6082474227
A53: Sul | B53: Muniz Freire | C53: 241 | D53: 275 | E53: 333 | F53: 1.381742739 | G53: 131 | H53: 0.4763636364 | I53: 228 | J53: 0.9460580913 | K53: 223 | L53: 0.9253112033 | M53: 221 | N53: 0.9170124481 | O53: 216 | P53: 0.8962655602 | Q53: 194 | R53: 0.7054545455 | S53: 215 | T53: 0.7818181818
A54: Sul | B54: Muqui | C54: 155 | D54: 152 | E54: 139 | F54: 0.8967741935 | G54: 177 | H54: 1.164473684 | I54: 140 | J54: 0.9032258065 | K54: 142 | L54: 0.9161290323 | M54: 145 | N54: 0.935483871 | O54: 136 | P54: 0.8774193548 | Q54: 152 | R54: 1 | S54: 157 | T54: 1.032894737
A55: Norte | B55: Nova Venécia | C55: 709 | D55: 656 | E55: 563 | F55: 0.7940761636 | G55: 620 | H55: 0.9451219512 | I55: 646 | J55: 0.9111424542 | K55: 649 | L55: 0.9153737659 | M55: 638 | N55: 0.8998589563 | O55: 602 | P55: 0.8490832158 | Q55: 481 | R55: 0.7332317073 | S55: 588 | T55: 0.8963414634
A56: Central | B56: Pancas | C56: 210 | D56: 244 | E56: 201 | F56: 0.9571428571 | G56: 242 | H56: 0.9918032787 | I56: 186 | J56: 0.8857142857 | K56: 190 | L56: 0.9047619048 | M56: 210 | N56: 1 | O56: 197 | P56: 0.9380952381 | Q56: 157 | R56: 0.643442623 | S56: 199 | T56: 0.8155737705
A57: Norte | B57: Pedro Canário | C57: 349 | D57: 338 | E57: 309 | F57: 0.8853868195 | G57: 351 | H57: 1.038461538 | I57: 308 | J57: 0.88252149 | K57: 290 | L57: 0.8309455587 | M57: 320 | N57: 0.9169054441 | O57: 296 | P57: 0.8481375358 | Q57: 286 | R57: 0.8461538462 | S57: 316 | T57: 0.9349112426
A58: Norte | B58: Pinheiros | C58: 333 | D58: 383 | E58: 348 | F58: 1.045045045 | G58: 318 | H58: 0.8302872063 | I58: 348 | J58: 1.045045045 | K58: 349 | L58: 1.048048048 | M58: 347 | N58: 1.042042042 | O58: 331 | P58: 0.993993994 | Q58: 269 | R58: 0.7023498695 | S58: 318 | T58: 0.8302872063
A59: Sul | B59: Piúma | C59: 306 | D59: 311 | E59: 235 | F59: 0.7679738562 | G59: 236 | H59: 0.7588424437 | I59: 263 | J59: 0.8594771242 | K59: 259 | L59: 0.8464052288 | M59: 242 | N59: 0.7908496732 | O59: 230 | P59: 0.7516339869 | Q59: 208 | R59: 0.6688102894 | S59: 246 | T59: 0.7909967846
A60: Norte | B60: Ponto Belo | C60: 74 | D60: 85 | E60: 75 | F60: 1.013513514 | G60: 113 | H60: 1.329411765 | I60: 76 | J60: 1.027027027 | K60: 78 | L60: 1.054054054 | M60: 75 | N60: 1.013513514 | O60: 77 | P60: 1.040540541 | Q60: 97 | R60: 1.141176471 | S60: 97 | T60: 1.141176471
A61: Sul | B61: Presidente Kennedy | C61: 200 | D61: 239 | E61: 193 | F61: 0.965 | G61: 199 | H61: 0.8326359833 | I61: 203 | J61: 1.015 | K61: 199 | L61: 0.995 | M61: 208 | N61: 1.04 | O61: 195 | P61: 0.975 | Q61: 192 | R61: 0.8033472803 | S61: 197 | T61: 0.8242677824
A62: Central | B62: Rio Bananal | C62: 304 | D62: 229 | E62: 375 | F62: 1.233552632 | G62: 265 | H62: 1.15720524 | I62: 276 | J62: 0.9078947368 | K62: 284 | L62: 0.9342105263 | M62: 286 | N62: 0.9407894737 | O62: 281 | P62: 0.9243421053 | Q62: 288 | R62: 1.257641921 | S62: 296 | T62: 1.292576419
A63: Sul | B63: Rio Novo do Sul | C63: 100 | D63: 144 | E63: 94 | F63: 0.94 | G63: 111 | H63: 0.7708333333 | I63: 92 | J63: 0.92 | K63: 95 | L63: 0.95 | M63: 91 | N63: 0.91 | O63: 85 | P63: 0.85 | Q63: 80 | R63: 0.5555555556 | S63: 95 | T63: 0.6597222222
A64: Metropolitana | B64: Santa Leopoldina | C64: 93 | D64: 155 | E64: 115 | F64: 1.23655914 | G64: 150 | H64: 0.9677419355 | I64: 101 | J64: 1.086021505 | K64: 100 | L64: 1.075268817 | M64: 104 | N64: 1.11827957 | O64: 104 | P64: 1.11827957 | Q64: 140 | R64: 0.9032258065 | S64: 143 | T64: 0.9225806452
A65: Metropolitana | B65: Santa Maria de Jetibá | C65: 719 | D65: 685 | E65: 583 | F65: 0.8108484006 | G65: 510 | H65: 0.7445255474 | I65: 580 | J65: 0.8066759388 | K65: 581 | L65: 0.8080667594 | M65: 575 | N65: 0.7997218359 | O65: 562 | P65: 0.7816411683 | Q65: 485 | R65: 0.7080291971 | S65: 585 | T65: 0.8540145985
A66: Metropolitana | B66: Santa Teresa | C66: 280 | D66: 260 | E66: 283 | F66: 1.010714286 | G66: 336 | H66: 1.292307692 | I66: 283 | J66: 1.010714286 | K66: 289 | L66: 1.032142857 | M66: 296 | N66: 1.057142857 | O66: 275 | P66: 0.9821428571 | Q66: 261 | R66: 1.003846154 | S66: 282 | T66: 1.084615385
A67: Central | B67: São Domingos do Norte | C67: 108 | D67: 117 | E67: 131 | F67: =E67/C67 -> 1.212962963 | G67: 119 | H67: =G67/D67 -> 1.017094017 | I67: 130 | J67: =I67/C67 -> 1.203703704 | K67: 132 | L67: =K67/C67 -> 1.222222222 | M67: 134 | N67: =M67/C67 -> 1.240740741 | O67: 123 | P67: =O67/C67 -> 1.138888889 | Q67: 100 | R67: =Q67/D67 -> 0.8547008547 | S67: 104 | T67: =S67/D67 -> 0.8888888889
A68: Central | B68: São Gabriel da Palha | C68: 417 | D68: 426 | E68: 420 | F68: 1.007194245 | G68: 365 | H68: 0.8568075117 | I68: 374 | J68: 0.896882494 | K68: 378 | L68: 0.9064748201 | M68: 392 | N68: 0.9400479616 | O68: 389 | P68: 0.932853717 | Q68: 320 | R68: 0.7511737089 | S68: 350 | T68: 0.8215962441
A69: Sul | B69: São José do Calçado | C69: 99 | D69: 150 | E69: 90 | F69: 0.9090909091 | G69: 99 | H69: 0.66 | I69: 89 | J69: 0.898989899 | K69: 90 | L69: 0.9090909091 | M69: 91 | N69: 0.9191919192 | O69: 85 | P69: 0.8585858586 | Q69: 77 | R69: 0.5133333333 | S69: 107 | T69: 0.7133333333
A70: Norte | B70: São Mateus | C70: 1860 | D70: 1766 | E70: 1374 | F70: 0.7387096774 | G70: 1315 | H70: 0.7446206116 | I70: 1582 | J70: 0.8505376344 | K70: 1600 | L70: 0.8602150538 | M70: 1594 | N70: 0.8569892473 | O70: 1502 | P70: 0.8075268817 | Q70: 1213 | R70: 0.6868629672 | S70: 1427 | T70: 0.8080407701
A71: Central | B71: São Roque do Canaã | C71: 128 | D71: 100 | E71: 132 | F71: 1.03125 | G71: 124 | H71: 1.24 | I71: 118 | J71: 0.921875 | K71: 128 | L71: 1 | M71: 115 | N71: 0.8984375 | O71: 114 | P71: 0.890625 | Q71: 102 | R71: 1.02 | S71: 111 | T71: 1.11
A72: Metropolitana | B72: Serra | C72: 7521 | D72: 7550 | E72: 5421 | F72: 0.7207818109 | G72: 5040 | H72: 0.6675496689 | I72: 6322 | J72: 0.8405797101 | K72: 6305 | L72: 0.8383193724 | M72: 6120 | N72: 0.8137215796 | O72: 5780 | P72: 0.7685148252 | Q72: 4755 | R72: 0.6298013245 | S72: 5645 | T72: 0.7476821192
A73: Central | B73: Sooretama | C73: 442 | D73: 415 | E73: 347 | F73: 0.7850678733 | G73: 392 | H73: 0.9445783133 | I73: 395 | J73: 0.8936651584 | K73: 392 | L73: 0.8868778281 | M73: 405 | N73: 0.9162895928 | O73: 368 | P73: 0.8325791855 | Q73: 319 | R73: 0.7686746988 | S73: 394 | T73: 0.9493975904
A74: Sul | B74: Vargem Alta | C74: 274 | D74: 278 | E74: 257 | F74: 0.9379562044 | G74: 242 | H74: 0.8705035971 | I74: 265 | J74: 0.9671532847 | K74: 265 | L74: 0.9671532847 | M74: 275 | N74: 1.003649635 | O74: 259 | P74: 0.9452554745 | Q74: 156 | R74: 0.5611510791 | S74: 226 | T74: 0.8129496403
A75: Metropolitana | B75: Venda Nova do Imigrante | C75: 342 | D75: 328 | E75: 385 | F75: 1.125730994 | G75: 282 | H75: 0.8597560976 | I75: 350 | J75: 1.023391813 | K75: 324 | L75: 0.9473684211 | M75: 352 | N75: 1.029239766 | O75: 338 | P75: 0.9883040936 | Q75: 319 | R75: 0.9725609756 | S75: 350 | T75: 1.067073171
A76: Metropolitana | B76: Viana | C76: 855 | D76: 1064 | E76: 685 | F76: 0.8011695906 | G76: 735 | H76: 0.6907894737 | I76: 907 | J76: 1.060818713 | K76: 877 | L76: 1.025730994 | M76: 828 | N76: 0.9684210526 | O76: 831 | P76: 0.9719298246 | Q76: 711 | R76: 0.6682330827 | S76: 961 | T76: 0.9031954887
A77: Norte | B77: Vila Pavão | C77: 99 | D77: 127 | E77: 100 | F77: 1.01010101 | G77: 89 | H77: 0.7007874016 | I77: 105 | J77: 1.060606061 | K77: 107 | L77: 1.080808081 | M77: 113 | N77: 1.141414141 | O77: 106 | P77: 1.070707071 | Q77: 107 | R77: 0.842519685 | S77: 113 | T77: 0.8897637795
A78: Central | B78: Vila Valério | C78: 256 | D78: 169 | E78: 282 | F78: 1.1015625 | G78: 230 | H78: 1.360946746 | I78: 242 | J78: 0.9453125 | K78: 239 | L78: 0.93359375 | M78: 256 | N78: 1 | O78: 250 | P78: 0.9765625 | Q78: 211 | R78: 1.24852071 | S78: 214 | T78: 1.266272189
A79: Metropolitana | B79: Vila Velha | C79: 5558 | D79: 5675 | E79: 4062 | F79: 0.7308384311 | G79: 4616 | H79: 0.8133920705 | I79: 4455 | J79: 0.8015473192 | K79: 4390 | L79: 0.7898524649 | M79: 4593 | N79: 0.8263763944 | O79: 4303 | P79: 0.7741993523 | Q79: 3805 | R79: 0.6704845815 | S79: 4430 | T79: 0.7806167401
A80: Metropolitana | B80: Vitória | C80: 3563 | D80: 3833 | E80: 3317 | F80: 0.9309570587 | G80: 2457 | H80: 0.6410122619 | I80: 3440 | J80: 0.9654785293 | K80: 3261 | L80: 0.9152399663 | M80: 3450 | N80: 0.968285153 | O80: 3231 | P80: 0.9068200954 | Q80: 2103 | R80: 0.5486564049 | S80: 2700 | T80: 0.7044090791
B82: Total Norte | C82: =SUMIF($A$3:$A$80,"Norte",C$3:C$80) -> 5810 | D82: =SUMIF($A$3:$A$80,"Norte",D$3:D$80) -> 5789 | E82: =SUMIF($A$3:$A$80,"Norte",E$3:E$80) -> 4975 | F82: =E82/C82 -> 0.8562822719 | G82: =SUMIF($A$3:$A$80,"Norte",G$3:G$80) -> 4957 | H82: =G82/D82 -> 0.8562791501 | I82: =SUMIF($A$3:$A$80,"Norte",I$3:I$80) -> 5345 | J82: =I82/C82 -> 0.9199655766 | K82: =SUMIF($A$3:$A$80,"Norte",K$3:K$80) -> 5396 | L82: =K82/C82 -> 0.9287435456 | M82: =SUMIF($A$3:$A$80,"Norte",M$3:M$80) -> 5383 | N82: =M82/C82 -> 0.9265060241 | O82: =SUMIF($A$3:$A$80,"Norte",O$3:O$80) -> 5079 | P82: =O82/C82 -> 0.8741824441 | Q82: =SUMIF($A$3:$A$80,"Norte",Q$3:Q$80) -> 4374 | R82: =Q82/D82 -> 0.7555709103 | S82: =SUMIF($A$3:$A$80,"Norte",S$3:S$80) -> 4945 | T82: =S82/D82 -> 0.8542062532
B83: Total Central | C83: =SUMIF($A$3:$A$80,"Central",C$3:C$80) -> 7081 | D83: =SUMIF($A$3:$A$80,"Central",D$3:D$80) -> 6843 | E83: =SUMIF($A$3:$A$80,"Central",E$3:E$80) -> 6203 | F83: =E83/C83 -> 0.8760062138 | G83: =SUMIF($A$3:$A$80,"Central",G$3:G$80) -> 5964 | H83: =G83/D83 -> 0.8715475669 | I83: =SUMIF($A$3:$A$80,"Central",I$3:I$80) -> 6162 | J83: =I83/C83 -> 0.8702160712 | K83: =SUMIF($A$3:$A$80,"Central",K$3:K$80) -> 6321 | L83: =K83/C83 -> 0.8926705268 | M83: =SUMIF($A$3:$A$80,"Central",M$3:M$80) -> 6316 | N83: =M83/C83 -> 0.8919644118 | O83: =SUMIF($A$3:$A$80,"Central",O$3:O$80) -> 6101 | P83: =O83/C83 -> 0.8616014687 | Q83: =SUMIF($A$3:$A$80,"Central",Q$3:Q$80) -> 5280 | R83: =Q83/D83 -> 0.7715914073 | S83: =SUMIF($A$3:$A$80,"Central",S$3:S$80) -> 6003 | T83: =S83/D83 -> 0.8772468216
B84: Total Metropolitana | C84: =SUMIF($A$3:$A$80,"Metropolitana",C$3:C$80) -> 29463 | D84: =SUMIF($A$3:$A$80,"Metropolitana",D$3:D$80) -> 30197 | E84: =SUMIF($A$3:$A$80,"Metropolitana",E$3:E$80) -> 23781 | F84: =E84/C84 -> 0.8071479483 | G84: =SUMIF($A$3:$A$80,"Metropolitana",G$3:G$80) -> 23270 | H84: =G84/D84 -> 0.7706063516 | I84: =SUMIF($A$3:$A$80,"Metropolitana",I$3:I$80) -> 25789 | J84: =I84/C84 -> 0.8753012253 | K84: =SUMIF($A$3:$A$80,"Metropolitana",K$3:K$80) -> 25568 | L84: =K84/C84 -> 0.8678002919 | M84: =SUMIF($A$3:$A$80,"Metropolitana",M$3:M$80) -> 26060 | N84: =M84/C84 -> 0.8844992024 | O84: =SUMIF($A$3:$A$80,"Metropolitana",O$3:O$80) -> 24573 | P84: =O84/C84 -> 0.8340291213 | Q84: =SUMIF($A$3:$A$80,"Metropolitana",Q$3:Q$80) -> 20532 | R84: =Q84/D84 -> 0.6799350929 | S84: =SUMIF($A$3:$A$80,"Metropolitana",S$3:S$80) -> 24425 | T84: =S84/D84 -> 0.8088551843
B85: Total Sul | C85: =SUMIF($A$3:$A$80,"sul",C$3:C$80) -> 8085 | D85: =SUMIF($A$3:$A$80,"sul",D$3:D$80) -> 8688 | E85: =SUMIF($A$3:$A$80,"sul",E$3:E$80) -> 7560 | F85: =E85/C85 -> 0.9350649351 | G85: =SUMIF($A$3:$A$80,"sul",G$3:G$80) -> 7580 | H85: =G85/D85 -> 0.8724677716 | I85: =SUMIF($A$3:$A$80,"sul",I$3:I$80) -> 7558 | J85: =I85/C85 -> 0.9348175634 | K85: =SUMIF($A$3:$A$80,"sul",K$3:K$80) -> 7665 | L85: =K85/C85 -> 0.9480519481 | M85: =SUMIF($A$3:$A$80,"sul",M$3:M$80) -> 7876 | N85: =M85/C85 -> 0.9741496599 | O85: =SUMIF($A$3:$A$80,"sul",O$3:O$80) -> 7488 | P85: =O85/C85 -> 0.9261595547 | Q85: =SUMIF($A$3:$A$80,"sul",Q$3:Q$80) -> 6564 | R85: =Q85/D85 -> 0.7555248619 | S85: =SUMIF($A$3:$A$80,"sul",S$3:S$80) -> 7684 | T85: =S85/D85 -> 0.8844383057
B86: Total Espírito Santo | C86: =SUM(C3:C80) -> 50439 | D86: =SUM(D3:D80) -> 51517 | E86: =SUM(E3:E80) -> 42519 | F86: =E86/C86 -> 0.8429786475 | G86: =SUM(G3:G80) -> 41771 | H86: =G86/D86 -> 0.8108197294 | I86: =SUM(I3:I80) -> 44854 | J86: =I86/C86 -> 0.8892721902 | K86: =SUM(K3:K80) -> 44950 | L86: =K86/C86 -> 0.8911754793 | M86: =SUM(M3:M80) -> 45635 | N86: =M86/C86 -> 0.9047562402 | O86: =SUM(O3:O80) -> 43241 | P86: =O86/C86 -> 0.8572929677 | Q86: =SUM(Q3:Q80) -> 36750 | R86: =Q86/D86 -> 0.713356756 | S86: =SUM(S3:S80) -> 43057 | T86: =S86/D86 -> 0.8357823631
A91: Fonte: Vacina e Confia, em 13 de janeiro de 2026.**<https://vacinaeconfia.saude.es.gov.br/>
A92: **Dados referente às doses aplicadas no período de janeiro a dezembro 2025
A93: Cobertura Calculada por município de residência do vacinado
A94: 1 População estimada extraída do MS/SVS/DASIS - SINASC/DASIS/SVS/MS 2024 (hoje preliminares) referente ao período de novembro e dezembro 2024 e SINASC/DASIS/SVS/MS 2024 (hoje preliminares) referente ao período de janeiro a outubro/ 2025.
A95: ²População estimada Censo IBGE 2022
A96: Sinasc, atualizado em 12/01/2026
A97: Método de Cálculo Simples
A98: Homogeineidade: O cálculo da Homogeineidade entre vacinas é feito de acordo com a pactuação estabelecida no Plano Plurianual (PPA) vigente no período 2024-2027.
A100: Observações referente a distribuição de imunobiológicos que podem afetar a cobertura vacinal:
A102: 1. Vacinas que foram recebidas parcialmente pelo estado no mês de dezembro/2025, sendo distribuídos em quantidades reduzidas às regionais e municípios:
A104: 2. Vacinas indisponíveis no mês de dezembro/2025, não sendo possível a distribuição às regionais e municípios:
A105: VACINA TETRA VIRAL.
A106: 3. Vacinas enviadas por Pautas aguardando abastecimento do estoque estadual;
A107: VACINA COVID-19 PFIZER PEDIÁTRICA MENOR QUE 5 ANOS; VACINA COVID-19 PFIZER PEDIÁTRICA.
A109: Fonte: Informes situacionais de distribuição de imunobiológicos em https://saude.es.gov.br/GrupodeArquivos/informes-situacionais-de-distribuicao-de-imunobiologicos

Sheet Cobert. COVID-19 Menores 4 anos (hidden)
A1: Regional | B1: Município | C1: Série Histórica
A2: Região Metropolitana | B2: Afonso Cláudio
A3: Região Norte | B3: Água Doce do Norte
A4: Região Central | B4: Águia Branca
A5: Região Sul | B5: Alegre
A6: Região Sul | B6: Alfredo Chaves
A7: Região Central | B7: Alto Rio Novo
A8: Região Sul | B8: Anchieta
A9: Região Sul | B9: Apiacá
A10: Região Metropolitana | B10: Aracruz
A11: Região Sul | B11: Atilio Vivacqua
A12: Região Central | B12: Baixo Guandu
A13: Região Norte | B13: Barra de São Francisco
A14: Região Norte | B14: Boa Esperança
A15: Região Sul | B15: Bom Jesus do Norte
A16: Região Metropolitana | B16: Brejetuba
A17: Região Sul | B17: Cachoeiro de Itapemirim
A18: Região Metropolitana | B18: Cariacica
A19: Região Sul | B19: Castelo
A20: Região Central | B20: Colatina
A21: Região Norte | B21: Conceição da Barra
A22: Região Metropolitana | B22: Conceição do Castelo
A23: Região Sul | B23: Divino de São Lourenço
A24: Região Metropolitana | B24: Domingos Martins
A25: Região Sul | B25: Dores do Rio Preto
A26: Região Norte | B26: Ecoporanga
A27: Região Metropolitana | B27: Fundão
A28: Região Central | B28: Governador Lindenberg
A29: Região Sul | B29: Guaçuí
A30: Região Metropolitana | B30: Guarapari
A31: Região Metropolitana | B31: Ibatiba
A32: Região Metropolitana | B32: Ibiraçu
A33: Região Sul | B33: Ibitirama
A34: Região Sul | B34: Iconha
A35: Região Sul | B35: Irupi
A36: Região Metropolitana | B36: Itaguaçu
A37: Região Sul | B37: Itapemirim
A38: Região Metropolitana | B38: Itarana
A39: Região Sul | B39: Iúna
A40: Região Norte | B40: Jaguaré
A41: Região Sul | B41: Jerônimo Monteiro
A42: Região Metropolitana | B42: João Neiva
A43: Região Metropolitana | B43: Laranja da Terra
A44: Região Central | B44: Linhares
A45: Região Central | B45: Mantenópolis
A46: Região Sul | B46: Marataízes
A47: Região Metropolitana | B47: Marechal Floriano
A48: Região Central | B48: Marilândia
A49: Região Sul | B49: Mimoso do Sul
A50: Região Norte | B50: Montanha
A51: Região Norte | B51: Mucurici
A52: Região Sul | B52: Muniz Freire
A53: Região Sul | B53: Muqui
A54: Região Norte | B54: Nova Venécia
A55: Região Central | B55: Pancas
A56: Região Norte | B56: Pedro Canário
A57: Região Norte | B57: Pinheiros
A58: Região Sul | B58: Piúma
A59: Região Norte | B59: Ponto Belo
A60: Região Sul | B60: Presidente Kennedy
A61: Região Central | B61: Rio Bananal
A62: Região Sul | B62: Rio Novo do Sul
A63: Região Metropolitana | B63: Santa Leopoldina
A64: Região Metropolitana | B64: Santa Maria de Jetibá
A65: Região Metropolitana | B65: Santa Teresa
A66: Região Central | B66: São Domingos do Norte
A67: Região Central | B67: São Gabriel da Palha
A68: Região Sul | B68: São José do Calçado
A69: Região Norte | B69: São Mateus
A70: Região Central | B70: São Roque do Canaã
A71: Região Metropolitana | B71: Serra
A72: Região Central | B72: Sooretama
A73: Região Sul | B73: Vargem Alta
A74: Região Metropolitana | B74: Venda Nova do Imigrante
A75: Região Metropolitana | B75: Viana
A76: Região Norte | B76: Vila Pavão
A77: Região Central | B77: Vila Valério
A78: Região Metropolitana | B78: Vila Velha
A79: Região Metropolitana | B79: Vitória
B81: Espírito Santo
B82: Região Norte
B83: Região Central
B84: Região Metropolitana
B85: Região Sul
A87: Pfizer Pediátrica Menor de 5 anos e Coronavac
A88: Período avaliado: 2021-2024
A89: Fonte: https://www.vacinaeconfia.es.gov.br
A90: *Dados de janeiro/2024 extraídos do Vacina e Confia em 04/01/2024
A91: População proporcional extraída do SINASC 2022 (menores de 1 ano) e Censo IBGE 2022 (demais idades)
A92: Cobertura Calculada por município de procedência da vacinação

Sheet dTpa gestantes - procedência
A1: Regional | B1: Município | C1: ¹População | D1: Doses Aplicadas | E1: Cobertura Vacinal %
A2: Metropolitana | B2: Afonso Cláudio | C2: 361 | D2: 323 | E2: =D2/C2 -> 0.8947368421
A3: Norte | B3: Água Doce do Norte | C3: 154 | D3: 120 | E3: =D3/C3 -> 0.7792207792
A4: Central | B4: Águia Branca | C4: 167 | D4: 133 | E4: 0.7964071856
A5: Sul | B5: Alegre | C5: 322 | D5: 308 | E5: 0.9565217391
A6: Sul | B6: Alfredo Chaves | C6: 119 | D6: 127 | E6: 1.067226891
A7: Central | B7: Alto Rio Novo | C7: 98 | D7: 107 | E7: 1.091836735
A8: Sul | B8: Anchieta | C8: 329 | D8: 348 | E8: 1.05775076
A9: Sul | B9: Apiacá | C9: 69 | D9: 65 | E9: 0.9420289855
A10: Metropolitana | B10: Aracruz | C10: 1409 | D10: 1372 | E10: 0.9737402413
A11: Sul | B11: Atilio Vivacqua | C11: 143 | D11: 126 | E11: 0.8811188811
A12: Central | B12: Baixo Guandu | C12: 364 | D12: 328 | E12: 0.9010989011
A13: Norte | B13: Barra de São Francisco | C13: 621 | D13: 517 | E13: 0.8325281804
A14: Norte | B14: Boa Esperança | C14: 231 | D14: 204 | E14: 0.8831168831
A15: Sul | B15: Bom Jesus do Norte | C15: 79 | D15: 91 | E15: 1.151898734
A16: Metropolitana | B16: Brejetuba | C16: 228 | D16: 229 | E16: 1.004385965
A17: Sul | B17: Cachoeiro de Itapemirim | C17: 2389 | D17: 2003 | E17: 0.8384261197
A18: Metropolitana | B18: Cariacica | C18: 4798 | D18: 3938 | E18: 0.8207586494
A19: Sul | B19: Castelo | C19: 398 | D19: 408 | E19: 1.025125628
A20: Central | B20: Colatina | C20: 1470 | D20: 1360 | E20: 0.925170068
A21: Norte | B21: Conceição da Barra | C21: 384 | D21: 412 | E21: 1.072916667
A22: Metropolitana | B22: Conceição do Castelo | C22: 182 | D22: 146 | E22: 0.8021978022
A23: Sul | B23: Divino de São Lourenço | C23: 65 | D23: 65 | E23: 1
A24: Metropolitana | B24: Domingos Martins | C24: 425 | D24: 417 | E24: 0.9811764706
A25: Sul | B25: Dores do Rio Preto | C25: 96 | D25: 93 | E25: 0.96875
A26: Norte | B26: Ecoporanga | C26: 240 | D26: 213 | E26: 0.8875
A27: Metropolitana | B27: Fundão | C27: 223 | D27: 219 | E27: 0.9820627803
A28: Central | B28: Governador Lindenberg | C28: 145 | D28: 166 | E28: 1.144827586
A29: Sul | B29: Guaçuí | C29: 387 | D29: 285 | E29: 0.7364341085
A30: Metropolitana | B30: Guarapari | C30: 1659 | D30: 1340 | E30: 0.8077154913
A31: Metropolitana | B31: Ibatiba | C31: 398 | D31: 378 | E31: 0.9497487437
A32: Metropolitana | B32: Ibiraçu | C32: 127 | D32: 108 | E32: 0.8503937008
A33: Sul | B33: Ibitirama | C33: 140 | D33: 131 | E33: 0.9357142857
A34: Sul | B34: Iconha | C34: 139 | D34: 133 | E34: 0.9568345324
A35: Sul | B35: Irupi | C35: 202 | D35: 188 | E35: 0.9306930693
A36: Metropolitana | B36: Itaguaçu | C36: 122 | D36: 130 | E36: 1.06557377
A37: Sul | B37: Itapemirim | C37: 520 | D37: 467 | E37: 0.8980769231
A38: Metropolitana | B38: Itarana | C38: 137 | D38: 139 | E38: 1.01459854
A39: Sul | B39: Iúna | C39: 373 | D39: 332 | E39: 0.890080429
A40: Norte | B40: Jaguaré | C40: 461 | D40: 464 | E40: 1.006507592
A41: Sul | B41: Jerônimo Monteiro | C41: 107 | D41: 133 | E41: 1.242990654
A42: Metropolitana | B42: João Neiva | C42: 141 | D42: 128 | E42: 0.9078014184
A43: Metropolitana | B43: Laranja da Terra | C43: 114 | D43: 113 | E43: 0.9912280702
A44: Central | B44: Linhares | C44: 2662 | D44: 2336 | E44: 0.8775356875
A45: Central | B45: Mantenópolis | C45: 140 | D45: 146 | E45: 1.042857143
A46: Sul | B46: Marataízes | C46: 563 | D46: 540 | E46: 0.9591474245
A47: Metropolitana | B47: Marechal Floriano | C47: 208 | D47: 182 | E47: 0.875
A48: Central | B48: Marilândia | C48: 170 | D48: 163 | E48: 0.9588235294
A49: Sul | B49: Mimoso do Sul | C49: 270 | D49: 209 | E49: 0.7740740741
A50: Norte | B50: Montanha | C50: 239 | D50: 235 | E50: 0.9832635983
A51: Norte | B51: Mucurici | C51: 56 | D51: 65 | E51: 1.160714286
A52: Sul | B52: Muniz Freire | C52: 241 | D52: 255 | E52: 1.058091286
A53: Sul | B53: Muqui | C53: 155 | D53: 139 | E53: 0.8967741935
A54: Norte | B54: Nova Venécia | C54: 709 | D54: 640 | E54: 0.9026798307
A55: Central | B55: Pancas | C55: 210 | D55: 189 | E55: 0.9
A56: Norte | B56: Pedro Canário | C56: 349 | D56: 324 | E56: 0.9283667622
A57: Norte | B57: Pinheiros | C57: 333 | D57: 293 | E57: 0.8798798799
A58: Sul | B58: Piúma | C58: 306 | D58: 233 | E58: 0.7614379085
A59: Norte | B59: Ponto Belo | C59: 74 | D59: 96 | E59: 1.297297297
A60: Sul | B60: Presidente Kennedy | C60: 200 | D60: 181 | E60: 0.905
A61: Central | B61: Rio Bananal | C61: 304 | D61: 299 | E61: 0.9835526316
A62: Sul | B62: Rio Novo do Sul | C62: 100 | D62: 113 | E62: 1.13
A63: Metropolitana | B63: Santa Leopoldina | C63: 93 | D63: 95 | E63: 1.021505376
A64: Metropolitana | B64: Santa Maria de Jetibá | C64: 719 | D64: 638 | E64: 0.8873435327
A65: Metropolitana | B65: Santa Teresa | C65: 280 | D65: 246 | E65: 0.8785714286
A66: Central | B66: São Domingos do Norte | C66: 108 | D66: 111 | E66: 1.027777778
A67: Central | B67: São Gabriel da Palha | C67: 417 | D67: 446 | E67: =D67/C67 -> 1.069544365
A68: Sul | B68: São José do Calçado | C68: 99 | D68: 84 | E68: 0.8484848485
A69: Norte | B69: São Mateus | C69: 1860 | D69: 1528 | E69: 0.8215053763
A70: Central | B70: São Roque do Canaã | C70: 128 | D70: 136 | E70: 1.0625
A71: Metropolitana | B71: Serra | C71: 7521 | D71: 6204 | E71: 0.8248903071
A72: Central | B72: Sooretama | C72: 442 | D72: 407 | E72: 0.9208144796
A73: Sul | B73: Vargem Alta | C73: 274 | D73: 244 | E73: 0.8905109489
A74: Metropolitana | B74: Venda Nova do Imigrante | C74: 342 | D74: 316 | E74: 0.9239766082
A75: Metropolitana | B75: Viana | C75: 855 | D75: 856 | E75: 1.001169591
A76: Norte | B76: Vila Pavão | C76: 99 | D76: 118 | E76: 1.191919192
A77: Central | B77: Vila Valério | C77: 256 | D77: 251 | E77: 0.98046875
A78: Metropolitana | B78: Vila Velha | C78: 5558 | D78: 4641 | E78: 0.8350125945
A79: Metropolitana | B79: Vitória | C79: 3563 | D79: 3646 | E79: 1.023294976
B81: Total Norte | C81: =SUMIF($A$2:$A$79,"Norte",C$2:C$79) -> 5810 | D81: =SUMIF($A$2:$A$79,"Norte",D$2:D$79) -> 5229 | E81: 0.9
B82: Total Central | C82: =SUMIF($A$2:$A$79,"CENTRAL",C$2:C$79) -> 7081 | D82: =SUMIF($A$2:$A$79,"CENTRAL",D$2:D$79) -> 6578 | E82: 0.9289648355
B83: Total Metropolitana | C83: =SUMIF($A$2:$A$79,"METROPOLITANA",C$2:C$79) -> 29463 | D83: =SUMIF($A$2:$A$79,"METROPOLITANA",D$2:D$79) -> 25804 | E83: 0.8758103384
B84: Total Sul | C84: =SUMIF($A$2:$A$79,"SUL",C$2:C$79) -> 8085 | D84: =SUMIF($A$2:$A$79,"SUL",D$2:D$79) -> 7301 | E84: 0.903030303
B85: TOTAL ES | C85: =SUM(C2:C79) -> 50439 | D85: =SUM(D2:D79) -> 44912 | E85: =D85/C85 -> 0.890422094
B86: HOMOGENEIDADE ENTRE MUNICÍPIOS | E86: =COUNTIF(E2:E79,">=0,95")/78 -> 0.4743589744
A91: Fonte: Vacina e Confia, em 13 de janeiro de 2026.**<https://vacinaeconfia.saude.es.gov.br/>
A92: **Dados referente às doses aplicadas no período de janeiro a dezembro 2025
A93: Cobertura Calculada por município de procedência/ocorrência da vacinação
A94: ¹População estimada extraída do MS/SVS/DASIS - SINASC/DASIS/SVS/MS 2024 (hoje preliminares) referente ao período de novembro e dezembro 2024 e SINASC/DASIS/SVS/MS 2024 (hoje preliminares) referente ao período de janeiro a outubro/ 2025.
A95: Sinasc, atualizado em 12/01/2026
A96: Método de Cálculo Simples
A97: Homogeineidade: O cálculo da Homogeineidade entre vacinas é feito de acordo com a pactuação estabelecida no Plano Plurianual (PPA) vigente no período 2024-2027.
A100: Observações referente a distribuição de imunobiológicos que podem afetar a cobertura vacinal:
A102: 1. Vacinas que foram recebidas parcialmente pelo estado no mês de dezembro/2025, sendo distribuídos em quantidades reduzidas às regionais e municípios:
A104: 2. Vacinas indisponíveis no mês de dezembro/2025, não sendo possível a distribuição às regionais e municípios:
A105: VACINA TETRA VIRAL.
A106: 3. Vacinas enviadas por Pautas aguardando abastecimento do estoque estadual;
A107: VACINA COVID-19 PFIZER PEDIÁTRICA MENOR QUE 5 ANOS; VACINA COVID-19 PFIZER PEDIÁTRICA.
A109: Fonte: Informes situacionais de distribuição de imunobiológicos em https://saude.es.gov.br/GrupodeArquivos/informes-situacionais-de-distribuicao-de-imunobiologicos

Sheet dTpa gestantes - residência
A1: Regional | B1: Município | C1: ¹População | D1: Total de Doses Aplicadas | E1: Cobertura Vacinal %
A2: Metropolitana | B2: Afonso Cláudio | C2: 361 | D2: 327 | E2: =D2/C2 -> 0.9058171745
A3: Norte | B3: Água Doce do Norte | C3: 154 | D3: 113 | E3: =D3/C3 -> 0.7337662338
A4: Central | B4: Águia Branca | C4: 167 | D4: 108 | E4: 0.6467065868
A5: Sul | B5: Alegre | C5: 322 | D5: 339 | E5: 1.052795031
A6: Sul | B6: Alfredo Chaves | C6: 119 | D6: 132 | E6: 1.109243697
A7: Central | B7: Alto Rio Novo | C7: 98 | D7: 105 | E7: 1.071428571
A8: Sul | B8: Anchieta | C8: 329 | D8: 370 | E8: 1.124620061
A9: Sul | B9: Apiacá | C9: 69 | D9: 59 | E9: 0.8550724638
A10: Metropolitana | B10: Aracruz | C10: 1409 | D10: 1247 | E10: 0.8850248403
A11: Sul | B11: Atilio Vivacqua | C11: 143 | D11: 146 | E11: 1.020979021
A12: Central | B12: Baixo Guandu | C12: 364 | D12: 294 | E12: 0.8076923077
A13: Norte | B13: Barra de São Francisco | C13: 621 | D13: 476 | E13: 0.7665056361
A14: Norte | B14: Boa Esperança | C14: 231 | D14: 187 | E14: 0.8095238095
A15: Sul | B15: Bom Jesus do Norte | C15: 79 | D15: 88 | E15: 1.113924051
A16: Metropolitana | B16: Brejetuba | C16: 228 | D16: 204 | E16: 0.8947368421
A17: Sul | B17: Cachoeiro de Itapemirim | C17: 2389 | D17: 1906 | E17: 0.7978233571
A18: Metropolitana | B18: Cariacica | C18: 4798 | D18: 4275 | E18: 0.8909962484
A19: Sul | B19: Castelo | C19: 398 | D19: 437 | E19: 1.09798995
A20: Central | B20: Colatina | C20: 1470 | D20: 1337 | E20: 0.9095238095
A21: Norte | B21: Conceição da Barra | C21: 384 | D21: 444 | E21: 1.15625
A22: Metropolitana | B22: Conceição do Castelo | C22: 182 | D22: 146 | E22: 0.8021978022
A23: Sul | B23: Divino de São Lourenço | C23: 65 | D23: 60 | E23: 0.9230769231
A24: Metropolitana | B24: Domingos Martins | C24: 425 | D24: 425 | E24: 1
A25: Sul | B25: Dores do Rio Preto | C25: 96 | D25: 69 | E25: 0.71875
A26: Norte | B26: Ecoporanga | C26: 240 | D26: 235 | E26: 0.9791666667
A27: Metropolitana | B27: Fundão | C27: 223 | D27: 208 | E27: 0.932735426
A28: Central | B28: Governador Lindenberg | C28: 145 | D28: 165 | E28: 1.137931034
A29: Sul | B29: Guaçuí | C29: 387 | D29: 315 | E29: 0.8139534884
A30: Metropolitana | B30: Guarapari | C30: 1659 | D30: 1260 | E30: 0.7594936709
A31: Metropolitana | B31: Ibatiba | C31: 398 | D31: 351 | E31: 0.8819095477
A32: Metropolitana | B32: Ibiraçu | C32: 127 | D32: 135 | E32: 1.062992126
A33: Sul | B33: Ibitirama | C33: 140 | D33: 164 | E33: 1.171428571
A34: Sul | B34: Iconha | C34: 139 | D34: 136 | E34: 0.9784172662
A35: Sul | B35: Irupi | C35: 202 | D35: 165 | E35: 0.8168316832
A36: Metropolitana | B36: Itaguaçu | C36: 122 | D36: 122 | E36: 1
A37: Sul | B37: Itapemirim | C37: 520 | D37: 488 | E37: 0.9384615385
A38: Metropolitana | B38: Itarana | C38: 137 | D38: 139 | E38: 1.01459854
A39: Sul | B39: Iúna | C39: 373 | D39: 311 | E39: 0.8337801609
A40: Norte | B40: Jaguaré | C40: 461 | D40: 437 | E40: 0.9479392625
A41: Sul | B41: Jerônimo Monteiro | C41: 107 | D41: 126 | E41: 1.177570093
A42: Metropolitana | B42: João Neiva | C42: 141 | D42: 118 | E42: 0.8368794326
A43: Metropolitana | B43: Laranja da Terra | C43: 114 | D43: 114 | E43: 1
A44: Central | B44: Linhares | C44: 2662 | D44: 2256 | E44: 0.8474830954
A45: Central | B45: Mantenópolis | C45: 140 | D45: 132 | E45: 0.9428571429
A46: Sul | B46: Marataízes | C46: 563 | D46: 499 | E46: 0.8863232682
A47: Metropolitana | B47: Marechal Floriano | C47: 208 | D47: 171 | E47: 0.8221153846
A48: Central | B48: Marilândia | C48: 170 | D48: 151 | E48: 0.8882352941
A49: Sul | B49: Mimoso do Sul | C49: 270 | D49: 219 | E49: 0.8111111111
A50: Norte | B50: Montanha | C50: 239 | D50: 273 | E50: 1.142259414
A51: Norte | B51: Mucurici | C51: 56 | D51: 65 | E51: 1.160714286
A52: Sul | B52: Muniz Freire | C52: 241 | D52: 225 | E52: 0.9336099585
A53: Sul | B53: Muqui | C53: 155 | D53: 138 | E53: 0.8903225806
A54: Norte | B54: Nova Venécia | C54: 709 | D54: 672 | E54: 0.9478138223
A55: Central | B55: Pancas | C55: 210 | D55: 224 | E55: 1.066666667
A56: Norte | B56: Pedro Canário | C56: 349 | D56: 356 | E56: 1.020057307
A57: Norte | B57: Pinheiros | C57: 333 | D57: 341 | E57: 1.024024024
A58: Sul | B58: Piúma | C58: 306 | D58: 218 | E58: 0.7124183007
A59: Norte | B59: Ponto Belo | C59: 74 | D59: 92 | E59: 1.243243243
A60: Sul | B60: Presidente Kennedy | C60: 200 | D60: 179 | E60: 0.895
A61: Central | B61: Rio Bananal | C61: 304 | D61: 330 | E61: 1.085526316
A62: Sul | B62: Rio Novo do Sul | C62: 100 | D62: 117 | E62: 1.17
A63: Metropolitana | B63: Santa Leopoldina | C63: 93 | D63: 132 | E63: 1.419354839
A64: Metropolitana | B64: Santa Maria de Jetibá | C64: 719 | D64: 528 | E64: 0.7343532684
A65: Metropolitana | B65: Santa Teresa | C65: 280 | D65: 262 | E65: 0.9357142857
A66: Central | B66: São Domingos do Norte | C66: 108 | D66: 134 | E66: 1.240740741
A67: Central | B67: São Gabriel da Palha | C67: 417 | D67: 414 | E67: =D67/C67 -> 0.9928057554
A68: Sul | B68: São José do Calçado | C68: 99 | D68: 78 | E68: 0.7878787879
A69: Norte | B69: São Mateus | C69: 1860 | D69: 1311 | E69: 0.7048387097
A70: Central | B70: São Roque do Canaã | C70: 128 | D70: 162 | E70: 1.265625
A71: Metropolitana | B71: Serra | C71: 7521 | D71: 5984 | E71: 0.7956388778
A72: Central | B72: Sooretama | C72: 442 | D72: 424 | E72: 0.9592760181
A73: Sul | B73: Vargem Alta | C73: 274 | D73: 255 | E73: 0.9306569343
A74: Metropolitana | B74: Venda Nova do Imigrante | C74: 342 | D74: 356 | E74: 1.040935673
A75: Metropolitana | B75: Viana | C75: 855 | D75: 862 | E75: 1.008187135
A76: Norte | B76: Vila Pavão | C76: 99 | D76: 111 | E76: 1.121212121
A77: Central | B77: Vila Valério | C77: 256 | D77: 223 | E77: 0.87109375
A78: Metropolitana | B78: Vila Velha | C78: 5558 | D78: 4158 | E78: 0.7481108312
A79: Metropolitana | B79: Vitória | C79: 3563 | D79: 3251 | E79: 0.9124333427
B81: Total Norte | C81: =SUMIF($A$2:$A$79,"Norte",C$2:C$79) -> 5810 | D81: =SUMIF($A$2:$A$79,"Norte",D$2:D$79) -> 5113 | E81: 0.8800344234
B82: Total Central | C82: =SUMIF($A$2:$A$79,"CENTRAL",C$2:C$79) -> 7081 | D82: =SUMIF($A$2:$A$79,"CENTRAL",D$2:D$79) -> 6459 | E82: 0.9121592995
B83: Total Metropolitana | C83: =SUMIF($A$2:$A$79,"METROPOLITANA",C$2:C$79) -> 29463 | D83: =SUMIF($A$2:$A$79,"METROPOLITANA",D$2:D$79) -> 24775 | E83: 0.840885178
B84: Total Sul | C84: =SUMIF($A$2:$A$79,"SUL",C$2:C$79) -> 8085 | D84: =SUMIF($A$2:$A$79,"SUL",D$2:D$79) -> 7239 | E84: 0.8953617811
B85: TOTAL ES | C85: =SUM(C2:C79) -> 50439 | D85: =SUM(D2:D79) -> 43586 | E85: =D85/C85 -> 0.864132913
B86: HOMOGENEIDADE ENTRE MUNICÍPIOS | D86: =COUNTIF(E2:E79,">=0,95") -> 34 | E86: =COUNTIF(E2:E79,">=0,95")/78 -> 0.4358974359
A91: Fonte: Vacina e Confia, em 13 de janeiro de 2026.**<https://vacinaeconfia.saude.es.gov.br/>
A92: **Dados referente às doses aplicadas no período de janeiro a dezembro 2025
A93: Cobertura Calculada por município de residência do vacinado
A94: ¹População estimada extraída do MS/SVS/DASIS - SINASC/DASIS/SVS/MS 2024 (hoje preliminares) referente ao período de novembro e dezembro 2024 e SINASC/DASIS/SVS/MS 2024 (hoje preliminares) referente ao período de janeiro a outubro/ 2025.
A95: Sinasc, atualizado em 12/01/2026
A96: Método de Cálculo Simples
A97: Homogeineidade: O cálculo da Homogeineidade entre vacinas é feito de acordo com a pactuação estabelecida no Plano Plurianual (PPA) vigente no período 2024-2027.
A100: Observações referente a distribuição de imunobiológicos que podem afetar a cobertura vacinal:
A102: 1. Vacinas que foram recebidas parcialmente pelo estado no mês de dezembro/2025, sendo distribuídos em quantidades reduzidas às regionais e municípios:
A104: 2. Vacinas indisponíveis no mês de dezembro/2025, não sendo possível a distribuição às regionais e municípios:
A105: VACINA TETRA VIRAL.
A106: 3. Vacinas enviadas por Pautas aguardando abastecimento do estoque estadual;
A107: VACINA COVID-19 PFIZER PEDIÁTRICA MENOR QUE 5 ANOS; VACINA COVID-19 PFIZER PEDIÁTRICA.
A109: Fonte: Informes situacionais de distribuição de imunobiológicos em https://saude.es.gov.br/GrupodeArquivos/informes-situacionais-de-distribuicao-de-imunobiologicos

Sheet VSR gestante - Procedência
A1: Regional | B1: Município | C1: ¹População | D1: Doses Aplicadas | E1: Cobertura Vacinal %
A2: Metropolitana | B2: Afonso Cláudio | C2: 407 | D2: 60 | E2: =D2/C2 -> 0.1474201474
A3: Norte | B3: Água Doce do Norte | C3: 157 | D3: 20 | E3: =D3/C3 -> 0.127388535
A4: Central | B4: Águia Branca | C4: 160 | D4: 26 | E4: 0.1625
A5: Sul | B5: Alegre | C5: 352 | D5: 65 | E5: 0.1846590909
A6: Sul | B6: Alfredo Chaves | C6: 155 | D6: 24 | E6: 0.1548387097
A7: Central | B7: Alto Rio Novo | C7: 93 | D7: 14 | E7: 0.1505376344
A8: Sul | B8: Anchieta | C8: 381 | D8: 70 | E8: 0.1837270341
A9: Sul | B9: Apiacá | C9: 65 | D9: 15 | E9: 0.2307692308
A10: Metropolitana | B10: Aracruz | C10: 1495 | D10: 244 | E10: 0.1632107023
A11: Sul | B11: Atilio Vivacqua | C11: 142 | D11: 20 | E11: 0.1408450704
A12: Central | B12: Baixo Guandu | C12: 379 | D12: 59 | E12: 0.1556728232
A13: Norte | B13: Barra de São Francisco | C13: 566 | D13: 77 | E13: 0.1360424028
A14: Norte | B14: Boa Esperança | C14: 210 | D14: 32 | E14: 0.1523809524
A15: Sul | B15: Bom Jesus do Norte | C15: 78 | D15: 21 | E15: 0.2692307692
A16: Metropolitana | B16: Brejetuba | C16: 204 | D16: 30 | E16: 0.1470588235
A17: Sul | B17: Cachoeiro de Itapemirim | C17: 2453 | D17: 267 | E17: 0.1088463106
A18: Metropolitana | B18: Cariacica | C18: 4931 | D18: 603 | E18: 0.1222875684
A19: Sul | B19: Castelo | C19: 453 | D19: 82 | E19: 0.1810154525
A20: Central | B20: Colatina | C20: 1576 | D20: 260 | E20: 0.1649746193
A21: Norte | B21: Conceição da Barra | C21: 392 | D21: 81 | E21: 0.2066326531
A22: Metropolitana | B22: Conceição do Castelo | C22: 161 | D22: 22 | E22: 0.1366459627
A23: Sul | B23: Divino de São Lourenço | C23: 62 | D23: 14 | E23: 0.2258064516
A24: Metropolitana | B24: Domingos Martins | C24: 417 | D24: 93 | E24: 0.2230215827
A25: Sul | B25: Dores do Rio Preto | C25: 95 | D25: 19 | E25: 0.2
A26: Norte | B26: Ecoporanga | C26: 243 | D26: 47 | E26: 0.1934156379
A27: Metropolitana | B27: Fundão | C27: 209 | D27: 37 | E27: 0.1770334928
A28: Central | B28: Governador Lindenberg | C28: 140 | D28: 26 | E28: 0.1857142857
A29: Sul | B29: Guaçuí | C29: 407 | D29: 53 | E29: 0.1302211302
A30: Metropolitana | B30: Guarapari | C30: 1768 | D30: 170 | E30: 0.09615384615
A31: Metropolitana | B31: Ibatiba | C31: 349 | D31: 49 | E31: 0.1404011461
A32: Metropolitana | B32: Ibiraçu | C32: 140 | D32: 19 | E32: 0.1357142857
A33: Sul | B33: Ibitirama | C33: 133 | D33: 17 | E33: 0.1278195489
A34: Sul | B34: Iconha | C34: 121 | D34: 22 | E34: 0.1818181818
A35: Sul | B35: Irupi | C35: 198 | D35: 32 | E35: 0.1616161616
A36: Metropolitana | B36: Itaguaçu | C36: 143 | D36: 29 | E36: 0.2027972028
A37: Sul | B37: Itapemirim | C37: 578 | D37: 91 | E37: 0.1574394464
A38: Metropolitana | B38: Itarana | C38: 133 | D38: 17 | E38: 0.1278195489
A39: Sul | B39: Iúna | C39: 482 | D39: 53 | E39: 0.1099585062
A40: Norte | B40: Jaguaré | C40: 493 | D40: 83 | E40: 0.168356998
A41: Sul | B41: Jerônimo Monteiro | C41: 164 | D41: 27 | E41: 0.1646341463
A42: Metropolitana | B42: João Neiva | C42: 192 | D42: 15 | E42: 0.078125
A43: Metropolitana | B43: Laranja da Terra | C43: 104 | D43: 21 | E43: 0.2019230769
A44: Central | B44: Linhares | C44: 2615 | D44: 462 | E44: 0.1766730402
A45: Central | B45: Mantenópolis | C45: 163 | D45: 34 | E45: 0.2085889571
A46: Sul | B46: Marataízes | C46: 547 | D46: 86 | E46: 0.1572212066
A47: Metropolitana | B47: Marechal Floriano | C47: 237 | D47: 36 | E47: 0.1518987342
A48: Central | B48: Marilândia | C48: 164 | D48: 27 | E48: 0.1646341463
A49: Sul | B49: Mimoso do Sul | C49: 263 | D49: 42 | E49: 0.1596958175
A50: Norte | B50: Montanha | C50: 254 | D50: 86 | E50: 0.3385826772
A51: Norte | B51: Mucurici | C51: 80 | D51: 15 | E51: 0.1875
A52: Sul | B52: Muniz Freire | C52: 229 | D52: 40 | E52: 0.1746724891
A53: Sul | B53: Muqui | C53: 172 | D53: 29 | E53: 0.1686046512
A54: Norte | B54: Nova Venécia | C54: 697 | D54: 101 | E54: 0.1449067432
A55: Central | B55: Pancas | C55: 217 | D55: 38 | E55: 0.1751152074
A56: Norte | B56: Pedro Canário | C56: 335 | D56: 63 | E56: 0.1880597015
A57: Norte | B57: Pinheiros | C57: 325 | D57: 45 | E57: 0.1384615385
A58: Sul | B58: Piúma | C58: 313 | D58: 34 | E58: 0.1086261981
A59: Norte | B59: Ponto Belo | C59: 89 | D59: 17 | E59: 0.191011236
A60: Sul | B60: Presidente Kennedy | C60: 199 | D60: 25 | E60: 0.1256281407
A61: Central | B61: Rio Bananal | C61: 307 | D61: 47 | E61: 0.1530944625
A62: Sul | B62: Rio Novo do Sul | C62: 130 | D62: 21 | E62: 0.1615384615
A63: Metropolitana | B63: Santa Leopoldina | C63: 108 | D63: 18 | E63: 0.1666666667
A64: Metropolitana | B64: Santa Maria de Jetibá | C64: 630 | D64: 124 | E64: 0.1968253968
A65: Metropolitana | B65: Santa Teresa | C65: 288 | D65: 78 | E65: 0.2708333333
A66: Central | B66: São Domingos do Norte | C66: 117 | D66: 18 | E66: 0.1538461538
A67: Central | B67: São Gabriel da Palha | C67: 440 | D67: 97 | E67: =D67/C67 -> 0.2204545455
A68: Sul | B68: São José do Calçado | C68: 116 | D68: 13 | E68: 0.1120689655
A69: Norte | B69: São Mateus | C69: 1923 | D69: 281 | E69: 0.146125845
A70: Central | B70: São Roque do Canaã | C70: 113 | D70: 16 | E70: 0.1415929204
A71: Metropolitana | B71: Serra | C71: 7418 | D71: 740 | E71: 0.09975734699
A72: Central | B72: Sooretama | C72: 424 | D72: 65 | E72: 0.1533018868
A73: Sul | B73: Vargem Alta | C73: 266 | D73: 48 | E73: 0.1804511278
A74: Metropolitana | B74: Venda Nova do Imigrante | C74: 412 | D74: 54 | E74: 0.1310679612
A75: Metropolitana | B75: Viana | C75: 1007 | D75: 142 | E75: 0.1410129096
A76: Norte | B76: Vila Pavão | C76: 95 | D76: 22 | E76: 0.2315789474
A77: Central | B77: Vila Valério | C77: 248 | D77: 42 | E77: 0.1693548387
A78: Metropolitana | B78: Vila Velha | C78: 5791 | D78: 1168 | E78: 0.2016922811
A79: Metropolitana | B79: Vitória | C79: 3698 | D79: 1339 | E79: 0.3620876149
B81: Total Norte | C81: =SUMIF($A$2:$A$79,"Norte",C$2:C$79) -> 5859 | D81: =SUMIF($A$2:$A$79,"Norte",D$2:D$79) -> 970 | E81: =D81/C81 -> 0.1655572623
B82: Total Central | C82: =SUMIF($A$2:$A$79,"CENTRAL",C$2:C$79) -> 7156 | D82: =SUMIF($A$2:$A$79,"CENTRAL",D$2:D$79) -> 1231 | E82: =D82/C82 -> 0.1720234768
B83: Total Metropolitana | C83: =SUMIF($A$2:$A$79,"METROPOLITANA",C$2:C$79) -> 30242 | D83: =SUMIF($A$2:$A$79,"METROPOLITANA",D$2:D$79) -> 5108 | E83: 0.168904173
B84: Total Sul | C84: =SUMIF($A$2:$A$79,"SUL",C$2:C$79) -> 8554 | D84: =SUMIF($A$2:$A$79,"SUL",D$2:D$79) -> 1230 | E84: 0.1437923778
B85: TOTAL ES | C85: =SUM(C2:C79) -> 51811 | D85: =SUM(D2:D79) -> 8539 | E85: 0.1648105615
B86: HOMOGENEIDADE ENTRE MUNICÍPIOS | E86: =COUNTIF(F2:F79,">=0,95")/78 -> 0
A91: Fonte: Vacina e Confia, em 13 de janeiro de 2026.**<https://vacinaeconfia.saude.es.gov.br/>
A92: **Dados referente às doses aplicadas no período de janeiro a dezembro 2025
A93: Cobertura Calculada por município de procedência/ocorrência da vacinação
A94: ²¹População estimada extraída do MS/SVS/DASIS - SINASC/DASIS/SVS/MS 2024 (hoje preliminares) referente ao período de novembro e dezembro 2024 e SINASC/DASIS/SVS/MS 2024 (hoje preliminares) referente ao período de janeiro a outubro/ 2025.
A95: Sinasc, atualizado em 12/01/2026
A96: Método de Cálculo Simples
A97: Homogeineidade: O cálculo da Homogeineidade entre vacinas é feito de acordo com a pactuação estabelecida no Plano Plurianual (PPA) vigente no período 2024-2027.
A100: Observações referente a distribuição de imunobiológicos que podem afetar a cobertura vacinal:
A102: 1. Vacinas que foram recebidas parcialmente pelo estado no mês de dezembro/2025, sendo distribuídos em quantidades reduzidas às regionais e municípios:
A104: 2. Vacinas indisponíveis no mês de dezembro/2025, não sendo possível a distribuição às regionais e municípios:
A105: VACINA TETRA VIRAL.
A106: 3. Vacinas enviadas por Pautas aguardando abastecimento do estoque estadual;
A107: VACINA COVID-19 PFIZER PEDIÁTRICA MENOR QUE 5 ANOS; VACINA COVID-19 PFIZER PEDIÁTRICA.
A109: Fonte: Informes situacionais de distribuição de imunobiológicos em https://saude.es.gov.br/GrupodeArquivos/informes-situacionais-de-distribuicao-de-imunobiologicos

Sheet VSR gestante - residência
A1: Regional | B1: Município | C1: ¹População | D1: Doses Aplicadas | E1: Cobertura Vacinal %
A2: Metropolitana | B2: Afonso Cláudio | C2: 407 | D2: 60 | E2: =D2/C2 -> 0.1474201474
A3: Norte | B3: Água Doce do Norte | C3: 157 | D3: 20 | E3: =D3/C3 -> 0.127388535
A4: Central | B4: Águia Branca | C4: 160 | D4: 26 | E4: 0.1625
A5: Sul | B5: Alegre | C5: 352 | D5: 65 | E5: 0.1846590909
A6: Sul | B6: Alfredo Chaves | C6: 155 | D6: 23 | E6: 0.1483870968
A7: Central | B7: Alto Rio Novo | C7: 93 | D7: 13 | E7: 0.1397849462
A8: Sul | B8: Anchieta | C8: 381 | D8: 70 | E8: 0.1837270341
A9: Sul | B9: Apiacá | C9: 65 | D9: 12 | E9: 0.1846153846
A10: Metropolitana | B10: Aracruz | C10: 1495 | D10: 236 | E10: 0.1578595318
A11: Sul | B11: Atilio Vivacqua | C11: 142 | D11: 20 | E11: 0.1408450704
A12: Central | B12: Baixo Guandu | C12: 379 | D12: 55 | E12: 0.1451187335
A13: Norte | B13: Barra de São Francisco | C13: 566 | D13: 73 | E13: 0.128975265
A14: Norte | B14: Boa Esperança | C14: 210 | D14: 29 | E14: 0.1380952381
A15: Sul | B15: Bom Jesus do Norte | C15: 78 | D15: 20 | E15: 0.2564102564
A16: Metropolitana | B16: Brejetuba | C16: 204 | D16: 29 | E16: 0.1421568627
A17: Sul | B17: Cachoeiro de Itapemirim | C17: 2453 | D17: 261 | E17: 0.1064003261
A18: Metropolitana | B18: Cariacica | C18: 4931 | D18: 592 | E18: 0.1200567836
A19: Sul | B19: Castelo | C19: 453 | D19: 82 | E19: 0.1810154525
A20: Central | B20: Colatina | C20: 1576 | D20: 254 | E20: 0.1611675127
A21: Norte | B21: Conceição da Barra | C21: 392 | D21: 80 | E21: 0.2040816327
A22: Metropolitana | B22: Conceição do Castelo | C22: 161 | D22: 22 | E22: 0.1366459627
A23: Sul | B23: Divino de São Lourenço | C23: 62 | D23: 14 | E23: 0.2258064516
A24: Metropolitana | B24: Domingos Martins | C24: 417 | D24: 92 | E24: 0.2206235012
A25: Sul | B25: Dores do Rio Preto | C25: 95 | D25: 16 | E25: 0.1684210526
A26: Norte | B26: Ecoporanga | C26: 243 | D26: 46 | E26: 0.1893004115
A27: Metropolitana | B27: Fundão | C27: 209 | D27: 37 | E27: 0.1770334928
A28: Central | B28: Governador Lindenberg | C28: 140 | D28: 26 | E28: 0.1857142857
A29: Sul | B29: Guaçuí | C29: 407 | D29: 53 | E29: 0.1302211302
A30: Metropolitana | B30: Guarapari | C30: 1768 | D30: 162 | E30: 0.09162895928
A31: Metropolitana | B31: Ibatiba | C31: 349 | D31: 47 | E31: 0.1346704871
A32: Metropolitana | B32: Ibiraçu | C32: 140 | D32: 19 | E32: 0.1357142857
A33: Sul | B33: Ibitirama | C33: 133 | D33: 17 | E33: 0.1278195489
A34: Sul | B34: Iconha | C34: 121 | D34: 22 | E34: 0.1818181818
A35: Sul | B35: Irupi | C35: 198 | D35: 31 | E35: 0.1565656566
A36: Metropolitana | B36: Itaguaçu | C36: 143 | D36: 29 | E36: 0.2027972028
A37: Sul | B37: Itapemirim | C37: 578 | D37: 89 | E37: 0.1539792388
A38: Metropolitana | B38: Itarana | C38: 133 | D38: 16 | E38: 0.1203007519
A39: Sul | B39: Iúna | C39: 482 | D39: 52 | E39: 0.1078838174
A40: Norte | B40: Jaguaré | C40: 493 | D40: 83 | E40: 0.168356998
A41: Sul | B41: Jerônimo Monteiro | C41: 164 | D41: 27 | E41: 0.1646341463
A42: Metropolitana | B42: João Neiva | C42: 192 | D42: 15 | E42: 0.078125
A43: Metropolitana | B43: Laranja da Terra | C43: 104 | D43: 21 | E43: 0.2019230769
A44: Central | B44: Linhares | C44: 2615 | D44: 450 | E44: 0.17208413
A45: Central | B45: Mantenópolis | C45: 163 | D45: 34 | E45: 0.2085889571
A46: Sul | B46: Marataízes | C46: 547 | D46: 86 | E46: 0.1572212066
A47: Metropolitana | B47: Marechal Floriano | C47: 237 | D47: 34 | E47: 0.1434599156
A48: Central | B48: Marilândia | C48: 164 | D48: 26 | E48: 0.1585365854
A49: Sul | B49: Mimoso do Sul | C49: 263 | D49: 41 | E49: 0.1558935361
A50: Norte | B50: Montanha | C50: 254 | D50: 86 | E50: 0.3385826772
A51: Norte | B51: Mucurici | C51: 80 | D51: 15 | E51: 0.1875
A52: Sul | B52: Muniz Freire | C52: 229 | D52: 39 | E52: 0.1703056769
A53: Sul | B53: Muqui | C53: 172 | D53: 27 | E53: 0.1569767442
A54: Norte | B54: Nova Venécia | C54: 697 | D54: 100 | E54: 0.143472023
A55: Central | B55: Pancas | C55: 217 | D55: 38 | E55: 0.1751152074
A56: Norte | B56: Pedro Canário | C56: 335 | D56: 62 | E56: 0.1850746269
A57: Norte | B57: Pinheiros | C57: 325 | D57: 45 | E57: 0.1384615385
A58: Sul | B58: Piúma | C58: 313 | D58: 32 | E58: 0.1022364217
A59: Norte | B59: Ponto Belo | C59: 89 | D59: 17 | E59: 0.191011236
A60: Sul | B60: Presidente Kennedy | C60: 199 | D60: 25 | E60: 0.1256281407
A61: Central | B61: Rio Bananal | C61: 307 | D61: 46 | E61: 0.1498371336
A62: Sul | B62: Rio Novo do Sul | C62: 130 | D62: 21 | E62: 0.1615384615
A63: Metropolitana | B63: Santa Leopoldina | C63: 108 | D63: 18 | E63: 0.1666666667
A64: Metropolitana | B64: Santa Maria de Jetibá | C64: 630 | D64: 122 | E64: 0.1936507937
A65: Metropolitana | B65: Santa Teresa | C65: 288 | D65: 78 | E65: 0.2708333333
A66: Central | B66: São Domingos do Norte | C66: 117 | D66: 18 | E66: 0.1538461538
A67: Central | B67: São Gabriel da Palha | C67: 440 | D67: 95 | E67: =D67/C67 -> 0.2159090909
A68: Sul | B68: São José do Calçado | C68: 116 | D68: 12 | E68: 0.1034482759
A69: Norte | B69: São Mateus | C69: 1923 | D69: 264 | E69: 0.1372854914
A70: Central | B70: São Roque do Canaã | C70: 113 | D70: 16 | E70: 0.1415929204
A71: Metropolitana | B71: Serra | C71: 7418 | D71: 727 | E71: 0.09800485306
A72: Central | B72: Sooretama | C72: 424 | D72: 64 | E72: 0.1509433962
A73: Sul | B73: Vargem Alta | C73: 266 | D73: 48 | E73: 0.1804511278
A74: Metropolitana | B74: Venda Nova do Imigrante | C74: 412 | D74: 54 | E74: 0.1310679612
A75: Metropolitana | B75: Viana | C75: 1007 | D75: 136 | E75: 0.1350546177
A76: Norte | B76: Vila Pavão | C76: 95 | D76: 22 | E76: 0.2315789474
A77: Central | B77: Vila Valério | C77: 248 | D77: 41 | E77: 0.1653225806
A78: Metropolitana | B78: Vila Velha | C78: 5791 | D78: 1124 | E78: 0.1940942842
A79: Metropolitana | B79: Vitória | C79: 3698 | D79: 1299 | E79: 0.3512709573
B81: Total Norte | C81: =SUMIF($A$2:$A$79,"Norte",C$2:C$79) -> 5859 | D81: =SUMIF($A$2:$A$79,"Norte",D$2:D$79) -> 942 | E81: =D81/C81 -> 0.1607782898
B82: Total Central | C82: =SUMIF($A$2:$A$79,"CENTRAL",C$2:C$79) -> 7156 | D82: =SUMIF($A$2:$A$79,"CENTRAL",D$2:D$79) -> 1202 | E82: =D82/C82 -> 0.1679709335
B83: Total Metropolitana | C83: =SUMIF($A$2:$A$79,"METROPOLITANA",C$2:C$79) -> 30242 | D83: =SUMIF($A$2:$A$79,"METROPOLITANA",D$2:D$79) -> 4969 | E83: 0.1643079161
B84: Total Sul | C84: =SUMIF($A$2:$A$79,"SUL",C$2:C$79) -> 8554 | D84: =SUMIF($A$2:$A$79,"SUL",D$2:D$79) -> 1205 | E84: 0.1408697685
B85: TOTAL ES | C85: =SUM(C2:C79) -> 51811 | D85: =SUM(D2:D79) -> 8318 | E85: 0.160545058
B86: HOMOGENEIDADE ENTRE MUNICÍPIOS | E86: =COUNTIF(F2:F79,">=0,95")/78 -> 0
A91: Fonte: Vacina e Confia, em 13 de janeiro de 2026.**<https://vacinaeconfia.saude.es.gov.br/>
A92: **Dados referente às doses aplicadas no período de janeiro a dezembro 2025
A93: Cobertura Calculada por município de residência do vacinado
A94: ²¹População estimada extraída do MS/SVS/DASIS - SINASC/DASIS/SVS/MS 2024 (hoje preliminares) referente ao período de novembro e dezembro 2024 e SINASC/DASIS/SVS/MS 2024 (hoje preliminares) referente ao período de janeiro a outubro/ 2025.
A95: Sinasc, atualizado em 12/01/2026
A96: Método de Cálculo Simples
A97: Homogeineidade: O cálculo da Homogeineidade entre vacinas é feito de acordo com a pactuação estabelecida no Plano Plurianual (PPA) vigente no período 2024-2027.
A100: Observações referente a distribuição de imunobiológicos que podem afetar a cobertura vacinal:
A102: 1. Vacinas que foram recebidas parcialmente pelo estado no mês de dezembro/2025, sendo distribuídos em quantidades reduzidas às regionais e municípios:
A104: 2. Vacinas indisponíveis no mês de dezembro/2025, não sendo possível a distribuição às regionais e municípios:
A105: VACINA TETRA VIRAL.
A106: 3. Vacinas enviadas por Pautas aguardando abastecimento do estoque estadual;
A107: VACINA COVID-19 PFIZER PEDIÁTRICA MENOR QUE 5 ANOS; VACINA COVID-19 PFIZER PEDIÁTRICA.
A109: Fonte: Informes situacionais de distribuição de imunobiológicos em https://saude.es.gov.br/GrupodeArquivos/informes-situacionais-de-distribuicao-de-imunobiologicos

Sheet COVID-19 gestantes -Procedência
A1: Regional | B1: Município | C1: ¹População | D1: Doses Aplicadas | E1: Cobertura Vacinal %
A2: Metropolitana | B2: Afonso Cláudio | C2: 361 | D2: 1 | E2: =D2/C2 -> 0.002770083102
A3: Norte | B3: Água Doce do Norte | C3: 154 | D3: 1 | E3: =D3/C3 -> 0.006493506494
A4: Central | B4: Águia Branca | C4: 167 | D4: 1 | E4: 0.005988023952
A5: Sul | B5: Alegre | C5: 322 | D5: 33 | E5: 0.102484472
A6: Sul | B6: Alfredo Chaves | C6: 119 | D6: 8 | E6: 0.06722689076
A7: Central | B7: Alto Rio Novo | C7: 98 | D7: 0 | E7: 0
A8: Sul | B8: Anchieta | C8: 329 | D8: 54 | E8: 0.1641337386
A9: Sul | B9: Apiacá | C9: 69 | D9: 0 | E9: 0
A10: Metropolitana | B10: Aracruz | C10: 1409 | D10: 217 | E10: 0.1540099361
A11: Sul | B11: Atilio Vivacqua | C11: 143 | D11: 0 | E11: 0
A12: Central | B12: Baixo Guandu | C12: 364 | D12: 0 | E12: 0
A13: Norte | B13: Barra de São Francisco | C13: 621 | D13: 0 | E13: 0
A14: Norte | B14: Boa Esperança | C14: 231 | D14: 5 | E14: 0.02164502165
A15: Sul | B15: Bom Jesus do Norte | C15: 79 | D15: 4 | E15: 0.05063291139
A16: Metropolitana | B16: Brejetuba | C16: 228 | D16: 0 | E16: 0
A17: Sul | B17: Cachoeiro de Itapemirim | C17: 2389 | D17: 125 | E17: 0.05232314776
A18: Metropolitana | B18: Cariacica | C18: 4798 | D18: 1109 | E18: 0.2311379742
A19: Sul | B19: Castelo | C19: 398 | D19: 0 | E19: 0
A20: Central | B20: Colatina | C20: 1470 | D20: 211 | E20: 0.143537415
A21: Norte | B21: Conceição da Barra | C21: 384 | D21: 56 | E21: 0.1458333333
A22: Metropolitana | B22: Conceição do Castelo | C22: 182 | D22: 39 | E22: 0.2142857143
A23: Sul | B23: Divino de São Lourenço | C23: 65 | D23: 8 | E23: 0.1230769231
A24: Metropolitana | B24: Domingos Martins | C24: 425 | D24: 64 | E24: 0.1505882353
A25: Sul | B25: Dores do Rio Preto | C25: 96 | D25: 17 | E25: 0.1770833333
A26: Norte | B26: Ecoporanga | C26: 240 | D26: 66 | E26: 0.275
A27: Metropolitana | B27: Fundão | C27: 223 | D27: 9 | E27: 0.04035874439
A28: Central | B28: Governador Lindenberg | C28: 145 | D28: 14 | E28: 0.09655172414
A29: Sul | B29: Guaçuí | C29: 387 | D29: 1 | E29: 0.002583979328
A30: Metropolitana | B30: Guarapari | C30: 1659 | D30: 83 | E30: 0.05003013864
A31: Metropolitana | B31: Ibatiba | C31: 398 | D31: 26 | E31: 0.06532663317
A32: Metropolitana | B32: Ibiraçu | C32: 127 | D32: 4 | E32: 0.03149606299
A33: Sul | B33: Ibitirama | C33: 140 | D33: 34 | E33: 0.2428571429
A34: Sul | B34: Iconha | C34: 139 | D34: 16 | E34: 0.1151079137
A35: Sul | B35: Irupi | C35: 202 | D35: 7 | E35: 0.03465346535
A36: Metropolitana | B36: Itaguaçu | C36: 122 | D36: 2 | E36: 0.01639344262
A37: Sul | B37: Itapemirim | C37: 520 | D37: 31 | E37: 0.05961538462
A38: Metropolitana | B38: Itarana | C38: 137 | D38: 0 | E38: 0
A39: Sul | B39: Iúna | C39: 373 | D39: 2 | E39: 0.005361930295
A40: Norte | B40: Jaguaré | C40: 461 | D40: 20 | E40: 0.04338394794
A41: Sul | B41: Jerônimo Monteiro | C41: 107 | D41: 16 | E41: 0.1495327103
A42: Metropolitana | B42: João Neiva | C42: 141 | D42: 0 | E42: 0
A43: Metropolitana | B43: Laranja da Terra | C43: 114 | D43: 0 | E43: 0
A44: Central | B44: Linhares | C44: 2662 | D44: 52 | E44: 0.01953418482
A45: Central | B45: Mantenópolis | C45: 140 | D45: 1 | E45: 0.007142857143
A46: Sul | B46: Marataízes | C46: 563 | D46: 10 | E46: 0.01776198934
A47: Metropolitana | B47: Marechal Floriano | C47: 208 | D47: 25 | E47: 0.1201923077
A48: Central | B48: Marilândia | C48: 170 | D48: 2 | E48: 0.01176470588
A49: Sul | B49: Mimoso do Sul | C49: 270 | D49: 20 | E49: 0.07407407407
A50: Norte | B50: Montanha | C50: 239 | D50: 32 | E50: 0.1338912134
A51: Norte | B51: Mucurici | C51: 56 | D51: 9 | E51: 0.1607142857
A52: Sul | B52: Muniz Freire | C52: 241 | D52: 7 | E52: 0.02904564315
A53: Sul | B53: Muqui | C53: 155 | D53: 4 | E53: 0.02580645161
A54: Norte | B54: Nova Venécia | C54: 709 | D54: 29 | E54: 0.04090267983
A55: Central | B55: Pancas | C55: 210 | D55: 9 | E55: 0.04285714286
A56: Norte | B56: Pedro Canário | C56: 349 | D56: 53 | E56: 0.1518624642
A57: Norte | B57: Pinheiros | C57: 333 | D57: 26 | E57: 0.07807807808
A58: Sul | B58: Piúma | C58: 306 | D58: 33 | E58: 0.1078431373
A59: Norte | B59: Ponto Belo | C59: 74 | D59: 0 | E59: 0
A60: Sul | B60: Presidente Kennedy | C60: 200 | D60: 0 | E60: 0
A61: Central | B61: Rio Bananal | C61: 304 | D61: 12 | E61: 0.03947368421
A62: Sul | B62: Rio Novo do Sul | C62: 100 | D62: 4 | E62: 0.04
A63: Metropolitana | B63: Santa Leopoldina | C63: 93 | D63: 3 | E63: 0.03225806452
A64: Metropolitana | B64: Santa Maria de Jetibá | C64: 719 | D64: 9 | E64: 0.01251738526
A65: Metropolitana | B65: Santa Teresa | C65: 280 | D65: 16 | E65: 0.05714285714
A66: Central | B66: São Domingos do Norte | C66: 108 | D66: 4 | E66: 0.03703703704
A67: Central | B67: São Gabriel da Palha | C67: 417 | D67: 1 | E67: =D67/C67 -> 0.002398081535
A68: Sul | B68: São José do Calçado | C68: 99 | D68: 1 | E68: 0.0101010101
A69: Norte | B69: São Mateus | C69: 1860 | D69: 274 | E69: 0.147311828
A70: Central | B70: São Roque do Canaã | C70: 128 | D70: 14 | E70: 0.109375
A71: Metropolitana | B71: Serra | C71: 7521 | D71: 1466 | E71: 0.1949208882
A72: Central | B72: Sooretama | C72: 442 | D72: 43 | E72: 0.09728506787
A73: Sul | B73: Vargem Alta | C73: 274 | D73: 21 | E73: 0.07664233577
A74: Metropolitana | B74: Venda Nova do Imigrante | C74: 342 | D74: 30 | E74: 0.08771929825
A75: Metropolitana | B75: Viana | C75: 855 | D75: 162 | E75: 0.1894736842
A76: Norte | B76: Vila Pavão | C76: 99 | D76: 1 | E76: 0.0101010101
A77: Central | B77: Vila Valério | C77: 256 | D77: 0 | E77: 0
A78: Metropolitana | B78: Vila Velha | C78: 5558 | D78: 1015 | E78: 0.1826196474
A79: Metropolitana | B79: Vitória | C79: 3563 | D79: 768 | E79: 0.2155486949
B81: Total Norte | C81: =SUMIF($A$2:$A$79,"Norte",C$2:C$79) -> 5810 | D81: =SUMIF($A$2:$A$79,"Norte",D$2:D$79) -> 572 | E81: =D81/C81 -> 0.09845094664
B82: Total Central | C82: =SUMIF($A$2:$A$79,"CENTRAL",C$2:C$79) -> 7081 | D82: =SUMIF($A$2:$A$79,"cENTRAL",D$2:D$79) -> 364 | E82: 0.05140516876
B83: Total Metropolitana | C83: =SUMIF($A$2:$A$79,"METROPOLITANA",C$2:C$79) -> 29463 | D83: =SUMIF($A$2:$A$79,"Metropolitana",D$2:D$79) -> 5048 | E83: 0.171333537
B84: Total Sul | C84: =SUMIF($A$2:$A$79,"SUL",C$2:C$79) -> 8085 | D84: =SUMIF($A$2:$A$79,"sul",D$2:D$79) -> 456 | E84: 0.05640074212
B85: TOTAL ES | C85: =SUM(C2:C79) -> 50439 | D85: =SUM(D2:D79) -> 6440 | E85: =D85/C85 -> 0.1276789786
B86: HOMOGENEIDADE ENTRE MUNICÍPIOS | E86: =COUNTIF(E2:E79,">=0,90")/78 -> 0
A91: Fonte: Vacina e Confia, em 13 de janeiro de 2026.**<https://vacinaeconfia.saude.es.gov.br/>
A92: **Dados referente às doses aplicadas no período de janeiro a dezembro 2025
A93: Cobertura Calculada por município de procedência/ocorrência da vacinação
A94: ²¹População estimada extraída do MS/SVS/DASIS - SINASC/DASIS/SVS/MS 2024 (hoje preliminares) referente ao período de novembro e dezembro 2024 e SINASC/DASIS/SVS/MS 2024 (hoje preliminares) referente ao período de janeiro a outubro/ 2025.
A95: Sinasc, atualizado em 12/01/2026
A96: Método de Cálculo Simples
A97: Homogeineidade: O cálculo da Homogeineidade entre vacinas é feito de acordo com a pactuação estabelecida no Plano Plurianual (PPA) vigente no período 2024-2027.
A100: Observações referente a distribuição de imunobiológicos que podem afetar a cobertura vacinal:
A102: 1. Vacinas que foram recebidas parcialmente pelo estado no mês de dezembro/2025, sendo distribuídos em quantidades reduzidas às regionais e municípios:
A104: 2. Vacinas indisponíveis no mês de dezembro/2025, não sendo possível a distribuição às regionais e municípios:
A105: VACINA TETRA VIRAL.
A106: 3. Vacinas enviadas por Pautas aguardando abastecimento do estoque estadual;
A107: VACINA COVID-19 PFIZER PEDIÁTRICA MENOR QUE 5 ANOS; VACINA COVID-19 PFIZER PEDIÁTRICA.
A109: Fonte: Informes situacionais de distribuição de imunobiológicos em https://saude.es.gov.br/GrupodeArquivos/informes-situacionais-de-distribuicao-de-imunobiologicos

Sheet COVID-19 gestantes -Residência
A1: Regional | B1: Município | C1: ¹População | D1: Doses Aplicadas | E1: Cobertura Vacinal %
A2: Metropolitana | B2: Afonso Cláudio | C2: 361 | D2: 7 | E2: =D2/C2 -> 0.01939058172
A3: Norte | B3: Água Doce do Norte | C3: 154 | D3: 1 | E3: =D3/C3 -> 0.006493506494
A4: Central | B4: Águia Branca | C4: 167 | D4: 2 | E4: 0.0119760479
A5: Sul | B5: Alegre | C5: 322 | D5: 36 | E5: 0.1118012422
A6: Sul | B6: Alfredo Chaves | C6: 119 | D6: 7 | E6: 0.05882352941
A7: Central | B7: Alto Rio Novo | C7: 98 | D7: 2 | E7: 0.02040816327
A8: Sul | B8: Anchieta | C8: 329 | D8: 60 | E8: 0.1823708207
A9: Sul | B9: Apiacá | C9: 69 | D9: 1 | E9: 0.01449275362
A10: Metropolitana | B10: Aracruz | C10: 1409 | D10: 201 | E10: 0.1426543648
A11: Sul | B11: Atilio Vivacqua | C11: 143 | D11: 1 | E11: 0.006993006993
A12: Central | B12: Baixo Guandu | C12: 364 | D12: 7 | E12: 0.01923076923
A13: Norte | B13: Barra de São Francisco | C13: 621 | D13: 12 | E13: 0.0193236715
A14: Norte | B14: Boa Esperança | C14: 231 | D14: 11 | E14: 0.04761904762
A15: Sul | B15: Bom Jesus do Norte | C15: 79 | D15: 4 | E15: 0.05063291139
A16: Metropolitana | B16: Brejetuba | C16: 228 | D16: 5 | E16: 0.02192982456
A17: Sul | B17: Cachoeiro de Itapemirim | C17: 2389 | D17: 130 | E17: 0.05441607367
A18: Metropolitana | B18: Cariacica | C18: 4798 | D18: 1142 | E18: 0.2380158399
A19: Sul | B19: Castelo | C19: 398 | D19: 5 | E19: 0.01256281407
A20: Central | B20: Colatina | C20: 1470 | D20: 207 | E20: 0.1408163265
A21: Norte | B21: Conceição da Barra | C21: 384 | D21: 63 | E21: 0.1640625
A22: Metropolitana | B22: Conceição do Castelo | C22: 182 | D22: 33 | E22: 0.1813186813
A23: Sul | B23: Divino de São Lourenço | C23: 65 | D23: 8 | E23: 0.1230769231
A24: Metropolitana | B24: Domingos Martins | C24: 425 | D24: 52 | E24: 0.1223529412
A25: Sul | B25: Dores do Rio Preto | C25: 96 | D25: 14 | E25: 0.1458333333
A26: Norte | B26: Ecoporanga | C26: 240 | D26: 59 | E26: 0.2458333333
A27: Metropolitana | B27: Fundão | C27: 223 | D27: 15 | E27: 0.06726457399
A28: Central | B28: Governador Lindenberg | C28: 145 | D28: 12 | E28: 0.08275862069
A29: Sul | B29: Guaçuí | C29: 387 | D29: 8 | E29: 0.02067183463
A30: Metropolitana | B30: Guarapari | C30: 1659 | D30: 97 | E30: 0.0584689572
A31: Metropolitana | B31: Ibatiba | C31: 398 | D31: 19 | E31: 0.04773869347
A32: Metropolitana | B32: Ibiraçu | C32: 127 | D32: 11 | E32: 0.08661417323
A33: Sul | B33: Ibitirama | C33: 140 | D33: 33 | E33: 0.2357142857
A34: Sul | B34: Iconha | C34: 139 | D34: 13 | E34: 0.09352517986
A35: Sul | B35: Irupi | C35: 202 | D35: 8 | E35: 0.0396039604
A36: Metropolitana | B36: Itaguaçu | C36: 122 | D36: 5 | E36: 0.04098360656
A37: Sul | B37: Itapemirim | C37: 520 | D37: 34 | E37: 0.06538461538
A38: Metropolitana | B38: Itarana | C38: 137 | D38: 2 | E38: 0.01459854015
A39: Sul | B39: Iúna | C39: 373 | D39: 7 | E39: 0.01876675603
A40: Norte | B40: Jaguaré | C40: 461 | D40: 24 | E40: 0.05206073753
A41: Sul | B41: Jerônimo Monteiro | C41: 107 | D41: 9 | E41: 0.08411214953
A42: Metropolitana | B42: João Neiva | C42: 141 | D42: 3 | E42: 0.02127659574
A43: Metropolitana | B43: Laranja da Terra | C43: 114 | D43: 0 | E43: 0
A44: Central | B44: Linhares | C44: 2662 | D44: 96 | E44: 0.03606311044
A45: Central | B45: Mantenópolis | C45: 140 | D45: 5 | E45: 0.03571428571
A46: Sul | B46: Marataízes | C46: 563 | D46: 13 | E46: 0.02309058615
A47: Metropolitana | B47: Marechal Floriano | C47: 208 | D47: 35 | E47: 0.1682692308
A48: Central | B48: Marilândia | C48: 170 | D48: 3 | E48: 0.01764705882
A49: Sul | B49: Mimoso do Sul | C49: 270 | D49: 19 | E49: 0.07037037037
A50: Norte | B50: Montanha | C50: 239 | D50: 36 | E50: 0.1506276151
A51: Norte | B51: Mucurici | C51: 56 | D51: 6 | E51: 0.1071428571
A52: Sul | B52: Muniz Freire | C52: 241 | D52: 8 | E52: 0.03319502075
A53: Sul | B53: Muqui | C53: 155 | D53: 4 | E53: 0.02580645161
A54: Norte | B54: Nova Venécia | C54: 709 | D54: 43 | E54: 0.06064880113
A55: Central | B55: Pancas | C55: 210 | D55: 7 | E55: 0.03333333333
A56: Norte | B56: Pedro Canário | C56: 349 | D56: 57 | E56: 0.1633237822
A57: Norte | B57: Pinheiros | C57: 333 | D57: 31 | E57: 0.09309309309
A58: Sul | B58: Piúma | C58: 306 | D58: 32 | E58: 0.1045751634
A59: Norte | B59: Ponto Belo | C59: 74 | D59: 4 | E59: 0.05405405405
A60: Sul | B60: Presidente Kennedy | C60: 200 | D60: 2 | E60: 0.01
A61: Central | B61: Rio Bananal | C61: 304 | D61: 16 | E61: 0.05263157895
A62: Sul | B62: Rio Novo do Sul | C62: 100 | D62: 5 | E62: 0.05
A63: Metropolitana | B63: Santa Leopoldina | C63: 93 | D63: 5 | E63: 0.05376344086
A64: Metropolitana | B64: Santa Maria de Jetibá | C64: 719 | D64: 14 | E64: 0.01947148818
A65: Metropolitana | B65: Santa Teresa | C65: 280 | D65: 20 | E65: 0.07142857143
A66: Central | B66: São Domingos do Norte | C66: 108 | D66: 7 | E66: 0.06481481481
A67: Central | B67: São Gabriel da Palha | C67: 417 | D67: 5 | E67: =D67/C67 -> 0.01199040767
A68: Sul | B68: São José do Calçado | C68: 99 | D68: 0 | E68: 0
A69: Norte | B69: São Mateus | C69: 1860 | D69: 224 | E69: 0.1204301075
A70: Central | B70: São Roque do Canaã | C70: 128 | D70: 17 | E70: 0.1328125
A71: Metropolitana | B71: Serra | C71: 7521 | D71: 1361 | E71: 0.1809599787
A72: Central | B72: Sooretama | C72: 442 | D72: 43 | E72: 0.09728506787
A73: Sul | B73: Vargem Alta | C73: 274 | D73: 20 | E73: 0.07299270073
A74: Metropolitana | B74: Venda Nova do Imigrante | C74: 342 | D74: 36 | E74: 0.1052631579
A75: Metropolitana | B75: Viana | C75: 855 | D75: 167 | E75: 0.1953216374
A76: Norte | B76: Vila Pavão | C76: 99 | D76: 2 | E76: 0.0202020202
A77: Central | B77: Vila Valério | C77: 256 | D77: 8 | E77: 0.03125
A78: Metropolitana | B78: Vila Velha | C78: 5558 | D78: 884 | E78: 0.159050018
A79: Metropolitana | B79: Vitória | C79: 3563 | D79: 683 | E79: 0.191692394
B81: Total Norte | C81: =SUMIF($A$2:$A$79,"Norte",C$2:C$79) -> 5810 | D81: =SUMIF($A$2:$A$79,"Norte",D$2:D$79) -> 573 | E81: =D81/C81 -> 0.09862306368
B82: Total Central | C82: =SUMIF($A$2:$A$79,"CENTRAL",C$2:C$79) -> 7081 | D82: =SUMIF($A$2:$A$79,"CENTRAL",D$2:D$79) -> 437 | E82: 0.06171444711
B83: Total Metropolitana | C83: =SUMIF($A$2:$A$79,"METROPOLITANA",C$2:C$79) -> 29463 | D83: =SUMIF($A$2:$A$79,"METROPOLITANA",D$2:D$79) -> 4797 | E83: 0.1628143774
B84: Total Sul | C84: =SUMIF($A$2:$A$79,"SUL",C$2:C$79) -> 8085 | D84: =SUMIF($A$2:$A$79,"SUL",D$2:D$79) -> 481 | E84: 0.05949288806
B85: TOTAL ES | C85: =SUM(C2:C79) -> 50439 | D85: =SUM(D2:D79) -> 6288 | E85: =D85/C85 -> 0.1246654375
B86: HOMOGENEIDADE ENTRE MUNICÍPIOS | D86: =COUNTIF(E2:E79,">=0,95") -> 0 | E86: =COUNTIF(E2:E79,">=0,90")/78 -> 0
A91: Fonte: Vacina e Confia, em 13 de janeiro de 2026.**<https://vacinaeconfia.saude.es.gov.br/>
A92: **Dados referente às doses aplicadas no período de janeiro a dezembro 2025
A93: Cobertura Calculada por município de residência do vacinado
A94: 1 População anual extraída do MS/SVS/DASIS - SINASC/DASIS/SVS/MS 2024 (hoje preliminares) referente ao período de novembro a dezembro de 2024 e SINASC/DASIS/SVS/MS 2025 referente ao período de janeiro e outubro de 2025.
A95: Sinasc, atualizado em 12/01/2026
A96: Método de Cálculo Simples
A97: Homogeineidade: O cálculo da Homogeineidade entre vacinas é feito de acordo com a pactuação estabelecida no Plano Plurianual (PPA) vigente no período 2024-2027.
A100: Observações referente a distribuição de imunobiológicos que podem afetar a cobertura vacinal:
A102: 1. Vacinas que foram recebidas parcialmente pelo estado no mês de dezembro/2025, sendo distribuídos em quantidades reduzidas às regionais e municípios:
A104: 2. Vacinas indisponíveis no mês de dezembro/2025, não sendo possível a distribuição às regionais e municípios:
A105: VACINA TETRA VIRAL.
A106: 3. Vacinas enviadas por Pautas aguardando abastecimento do estoque estadual;
A107: VACINA COVID-19 PFIZER PEDIÁTRICA MENOR QUE 5 ANOS; VACINA COVID-19 PFIZER PEDIÁTRICA.
A109: Fonte: Informes situacionais de distribuição de imunobiológicos em https://saude.es.gov.br/GrupodeArquivos/informes-situacionais-de-distribuicao-de-imunobiologicos

Sheet COVID-19 idoso -Procêdencia
A1: Regional | B1: Município | C1: População 60 anos + | D1: Doses Aplicadas | E1: Cobertura %
A2: Metropolitana | B2: Afonso Cláudio | C2: 5905 | D2: 8 | E2: =(D2/C2) -> 0.001354784081
A3: Norte | B3: Água Doce do Norte | C3: 2357 | D3: 3 | E3: =(D3/C3) -> 0.001272804412
A4: Central | B4: Águia Branca | C4: 1775 | D4: 22 | E4: 0.0123943662
A5: Sul | B5: Alegre | C5: 5949 | D5: 151 | E5: 0.02538241721
A6: Sul | B6: Alfredo Chaves | C6: 3040 | D6: 35 | E6: 0.01151315789
A7: Central | B7: Alto Rio Novo | C7: 1417 | D7: 4 | E7: 0.002822865208
A8: Sul | B8: Anchieta | C8: 5080 | D8: 239 | E8: 0.04704724409
A9: Sul | B9: Apiacá | C9: 1536 | D9: 6 | E9: 0.00390625
A10: Metropolitana | B10: Aracruz | C10: 13047 | D10: 749 | E10: 0.05740783322
A11: Sul | B11: Atilio Vivacqua | C11: 1843 | D11: 8 | E11: 0.004340748779
A12: Central | B12: Baixo Guandu | C12: 5706 | D12: 26 | E12: 0.00455660708
A13: Norte | B13: Barra de São Francisco | C13: 7226 | D13: 91 | E13: 0.01259341268
A14: Norte | B14: Boa Esperança | C14: 2317 | D14: 21 | E14: 0.009063444109
A15: Sul | B15: Bom Jesus do Norte | C15: 1991 | D15: 91 | E15: 0.04570567554
A16: Metropolitana | B16: Brejetuba | C16: 1637 | D16: 2 | E16: 0.001221747098
A17: Sul | B17: Cachoeiro de Itapemirim | C17: 32906 | D17: 894 | E17: 0.02716829757
A18: Metropolitana | B18: Cariacica | C18: 54005 | D18: 3598 | E18: 0.06662346079
A19: Sul | B19: Castelo | C19: 7171 | D19: 107 | E19: 0.01492121043
A20: Central | B20: Colatina | C20: 21491 | D20: 1029 | E20: 0.04788050812
A21: Norte | B21: Conceição da Barra | C21: 4468 | D21: 59 | E21: 0.01320501343
A22: Metropolitana | B22: Conceição do Castelo | C22: 2176 | D22: 51 | E22: 0.0234375
A23: Sul | B23: Divino de São Lourenço | C23: 847 | D23: 12 | E23: 0.01416765053
A24: Metropolitana | B24: Domingos Martins | C24: 6358 | D24: 304 | E24: 0.04781377792
A25: Sul | B25: Dores do Rio Preto | C25: 1145 | D25: 34 | E25: 0.02969432314
A26: Norte | B26: Ecoporanga | C26: 4274 | D26: 68 | E26: 0.01591015442
A27: Metropolitana | B27: Fundão | C27: 3432 | D27: 162 | E27: 0.0472027972
A28: Central | B28: Governador Lindenberg | C28: 1987 | D28: 29 | E28: 0.01459486663
A29: Sul | B29: Guaçuí | C29: 5504 | D29: 140 | E29: 0.02543604651
A30: Metropolitana | B30: Guarapari | C30: 21755 | D30: 613 | E30: 0.02817743048
A31: Metropolitana | B31: Ibatiba | C31: 3852 | D31: 65 | E31: 0.01687435099
A32: Metropolitana | B32: Ibiraçu | C32: 2121 | D32: 46 | E32: 0.02168788307
A33: Sul | B33: Ibitirama | C33: 1400 | D33: 24 | E33: 0.01714285714
A34: Sul | B34: Iconha | C34: 2560 | D34: 109 | E34: 0.042578125
A35: Sul | B35: Irupi | C35: 2006 | D35: 38 | E35: 0.01894317049
A36: Metropolitana | B36: Itaguaçu | C36: 3214 | D36: 65 | E36: 0.02022401991
A37: Sul | B37: Itapemirim | C37: 6549 | D37: 74 | E37: 0.01129943503
A38: Metropolitana | B38: Itarana | C38: 2389 | D38: 21 | E38: 0.008790288824
A39: Sul | B39: Iúna | C39: 4417 | D39: 0 | E39: 0
A40: Norte | B40: Jaguaré | C40: 3734 | D40: 103 | E40: 0.02758435994
A41: Sul | B41: Jerônimo Monteiro | C41: 2356 | D41: 105 | E41: 0.04456706282
A42: Metropolitana | B42: João Neiva | C42: 3012 | D42: 35 | E42: 0.01162018592
A43: Metropolitana | B43: Laranja da Terra | C43: 2471 | D43: 9 | E43: 0.003642250101
A44: Central | B44: Linhares | C44: 21740 | D44: 361 | E44: 0.01660533579
A45: Central | B45: Mantenópolis | C45: 2524 | D45: 0 | E45: 0
A46: Sul | B46: Marataízes | C46: 7611 | D46: 183 | E46: 0.02404414663
A47: Metropolitana | B47: Marechal Floriano | C47: 2879 | D47: 109 | E47: 0.03786036818
A48: Central | B48: Marilândia | C48: 2476 | D48: 42 | E48: 0.0169628433
A49: Sul | B49: Mimoso do Sul | C49: 5077 | D49: 35 | E49: 0.006893834942
A50: Norte | B50: Montanha | C50: 3304 | D50: 280 | E50: 0.08474576271
A51: Norte | B51: Mucurici | C51: 1090 | D51: 3 | E51: 0.002752293578
A52: Sul | B52: Muniz Freire | C52: 3309 | D52: 72 | E52: 0.02175883953
A53: Sul | B53: Muqui | C53: 2780 | D53: 64 | E53: 0.02302158273
A54: Norte | B54: Nova Venécia | C54: 8352 | D54: 84 | E54: 0.01005747126
A55: Central | B55: Pancas | C55: 3687 | D55: 41 | E55: 0.01112015189
A56: Norte | B56: Pedro Canário | C56: 3253 | D56: 45 | E56: 0.01383338457
A57: Norte | B57: Pinheiros | C57: 3762 | D57: 161 | E57: 0.0427963849
A58: Sul | B58: Piúma | C58: 3886 | D58: 136 | E58: 0.03499742666
A59: Norte | B59: Ponto Belo | C59: 1330 | D59: 31 | E59: 0.02330827068
A60: Sul | B60: Presidente Kennedy | C60: 2214 | D60: 5 | E60: 0.002258355917
A61: Central | B61: Rio Bananal | C61: 3071 | D61: 46 | E61: 0.01497883426
A62: Sul | B62: Rio Novo do Sul | C62: 2232 | D62: 22 | E62: 0.009856630824
A63: Metropolitana | B63: Santa Leopoldina | C63: 2634 | D63: 8 | E63: 0.003037205771
A64: Metropolitana | B64: Santa Maria de Jetibá | C64: 5552 | D64: 63 | E64: 0.01134726225
A65: Metropolitana | B65: Santa Teresa | C65: 4767 | D65: 74 | E65: 0.01552338997
A66: Central | B66: São Domingos do Norte | C66: 1520 | D66: 15 | E66: 0.009868421053
A67: Central | B67: São Gabriel da Palha | C67: 5456 | D67: 19 | E67: =(D67/C67) -> 0.003482404692
A68: Sul | B68: São José do Calçado | C68: 2456 | D68: 38 | E68: 0.0154723127
A69: Norte | B69: São Mateus | C69: 17649 | D69: 1090 | E69: 0.06175987308
A70: Central | B70: São Roque do Canaã | C70: 2370 | D70: 10 | E70: 0.004219409283
A71: Metropolitana | B71: Serra | C71: 66481 | D71: 3590 | E71: 0.05400039109
A72: Central | B72: Sooretama | C72: 3097 | D72: 86 | E72: 0.02776880852
A73: Sul | B73: Vargem Alta | C73: 3365 | D73: 66 | E73: 0.01961367013
A74: Metropolitana | B74: Venda Nova do Imigrante | C74: 3766 | D74: 107 | E74: 0.02841210834
A75: Metropolitana | B75: Viana | C75: 9758 | D75: 415 | E75: 0.0425292068
A76: Norte | B76: Vila Pavão | C76: 1510 | D76: 54 | E76: 0.0357615894
A77: Central | B77: Vila Valério | C77: 2160 | D77: 16 | E77: 0.007407407407
A78: Metropolitana | B78: Vila Velha | C78: 81049 | D78: 3696 | E78: 0.04560204321
A79: Metropolitana | B79: Vitória | C79: 64805 | D79: 3936 | E79: 0.06073605432
B81: Total Norte | C81: =SUMIF($A$2:$A$79,"Norte",C$2:C$79) -> 64626 | D81: =SUMIF($A$2:$A$79,"Norte",D$2:D$79) -> 2093 | E81: =D81/C81 -> 0.03238634605
B82: Total Central | C82: =SUMIF($A$2:$A$79,"Central",C$2:C$79) -> 80477 | D82: =SUMIF($A$2:$A$79,"Central",D$2:D$79) -> 1746 | E82: =D82/C82 -> 0.02169563975
B83: Total Metropolitana | C83: =SUMIF($A$2:$A$79,"Metropolitana",C$2:C$79) -> 367065 | D83: =SUMIF($A$2:$A$79,"Metropolitana",D$2:D$79) -> 17726 | E83: 0.04829117459
B84: Total Sul | C84: =SUMIF($A$2:$A$79,"sul",C$2:C$79) -> 119230 | D84: =SUMIF($A$2:$A$79,"sul",D$2:D$79) -> 2688 | E84: 0.02254466158
B85: Total Espírito Santo | C85: =SUM(C2:C79) -> 631398 | D85: =SUM(D2:D79) -> 24253 | E85: 0.03841158825
B86: HOMOGENEIDADE ENTRE MUNICÍPIOS | E86: =COUNTIF(E2:E79,">=0,90")/78 -> 0
A91: Cobertura Vacinal Covid19 dos Idosos de dezembro de 2025
A92: Vacina Covid-19-Recombinante, Serum/Zalika>, Vacina Covid-19-RNAm, Moderna (Spikevax), Vacina Covid-19-RNAm, Pfizer (Comirnaty)
A93: Período analisado: últimos 6 meses
A94: Fonte: Vacina e Confia, em 13 de Janeiro de 2026.**<https://vacinaeconfia.saude.es.gov.br/>
A95: Faixa Etária: 60+
A96: Cobertura Calculada por município de procedência/ocorrência da vacinação
A97: Método de Cálculo Simples
A98: Homogeineidade: O cálculo da Homogeineidade entre vacinas é feito de acordo com a pactuação estabelecida no Plano Plurianual (PPA) vigente no período 2024-2027.
A100: Observações referente a distribuição de imunobiológicos que podem afetar a cobertura vacinal:
A102: 1. Vacinas que foram recebidas parcialmente pelo estado no mês de dezembro/2025, sendo distribuídos em quantidades reduzidas às regionais e municípios:
A104: 2. Vacinas indisponíveis no mês de dezembro/2025, não sendo possível a distribuição às regionais e municípios:
A105: VACINA TETRA VIRAL.
A106: 3. Vacinas enviadas por Pautas aguardando abastecimento do estoque estadual;
A107: VACINA COVID-19 PFIZER PEDIÁTRICA MENOR QUE 5 ANOS; VACINA COVID-19 PFIZER PEDIÁTRICA.
A109: Fonte: Informes situacionais de distribuição de imunobiológicos em https://saude.es.gov.br/GrupodeArquivos/informes-situacionais-de-distribuicao-de-imunobiologicos

Sheet COVID-19 idoso -Residência
A1: Regional | B1: Município | C1: População 60 anos + | D1: Doses Aplicadas | E1: Cobertura %
A2: Metropolitana | B2: Afonso Cláudio | C2: 5905 | D2: 18 | E2: =(D2/C2) -> 0.003048264183
A3: Norte | B3: Água Doce do Norte | C3: 2357 | D3: 9 | E3: =(D3/C3) -> 0.003818413237
A4: Central | B4: Águia Branca | C4: 1775 | D4: 20 | E4: 0.01126760563
A5: Sul | B5: Alegre | C5: 5949 | D5: 145 | E5: 0.02437384434
A6: Sul | B6: Alfredo Chaves | C6: 3040 | D6: 39 | E6: 0.01282894737
A7: Central | B7: Alto Rio Novo | C7: 1417 | D7: 5 | E7: 0.00352858151
A8: Sul | B8: Anchieta | C8: 5080 | D8: 217 | E8: 0.04271653543
A9: Sul | B9: Apiacá | C9: 1536 | D9: 6 | E9: 0.00390625
A10: Metropolitana | B10: Aracruz | C10: 13047 | D10: 680 | E10: 0.05211926113
A11: Sul | B11: Atilio Vivacqua | C11: 1843 | D11: 12 | E11: 0.006511123169
A12: Central | B12: Baixo Guandu | C12: 5706 | D12: 27 | E12: 0.004731861199
A13: Norte | B13: Barra de São Francisco | C13: 7226 | D13: 107 | E13: 0.01480763908
A14: Norte | B14: Boa Esperança | C14: 2317 | D14: 22 | E14: 0.009495036685
A15: Sul | B15: Bom Jesus do Norte | C15: 1991 | D15: 83 | E15: 0.04168759417
A16: Metropolitana | B16: Brejetuba | C16: 1637 | D16: 10 | E16: 0.006108735492
A17: Sul | B17: Cachoeiro de Itapemirim | C17: 32906 | D17: 919 | E17: 0.02792803744
A18: Metropolitana | B18: Cariacica | C18: 54005 | D18: 3478 | E18: 0.06440144431
A19: Sul | B19: Castelo | C19: 7171 | D19: 120 | E19: 0.01673406777
A20: Central | B20: Colatina | C20: 21491 | D20: 1048 | E20: 0.04876459913
A21: Norte | B21: Conceição da Barra | C21: 4468 | D21: 69 | E21: 0.0154431513
A22: Metropolitana | B22: Conceição do Castelo | C22: 2176 | D22: 47 | E22: 0.02159926471
A23: Sul | B23: Divino de São Lourenço | C23: 847 | D23: 10 | E23: 0.01180637544
A24: Metropolitana | B24: Domingos Martins | C24: 6358 | D24: 275 | E24: 0.04325259516
A25: Sul | B25: Dores do Rio Preto | C25: 1145 | D25: 29 | E25: 0.02532751092
A26: Norte | B26: Ecoporanga | C26: 4274 | D26: 70 | E26: 0.01637810014
A27: Metropolitana | B27: Fundão | C27: 3432 | D27: 114 | E27: 0.03321678322
A28: Central | B28: Governador Lindenberg | C28: 1987 | D28: 35 | E28: 0.01761449421
A29: Sul | B29: Guaçuí | C29: 5504 | D29: 144 | E29: 0.0261627907
A30: Metropolitana | B30: Guarapari | C30: 21755 | D30: 533 | E30: 0.02450011492
A31: Metropolitana | B31: Ibatiba | C31: 3852 | D31: 55 | E31: 0.01427829699
A32: Metropolitana | B32: Ibiraçu | C32: 2121 | D32: 51 | E32: 0.02404526167
A33: Sul | B33: Ibitirama | C33: 1400 | D33: 28 | E33: 0.02
A34: Sul | B34: Iconha | C34: 2560 | D34: 101 | E34: 0.039453125
A35: Sul | B35: Irupi | C35: 2006 | D35: 29 | E35: 0.01445663011
A36: Metropolitana | B36: Itaguaçu | C36: 3214 | D36: 62 | E36: 0.01929060361
A37: Sul | B37: Itapemirim | C37: 6549 | D37: 76 | E37: 0.01160482516
A38: Metropolitana | B38: Itarana | C38: 2389 | D38: 25 | E38: 0.01046462955
A39: Sul | B39: Iúna | C39: 4417 | D39: 17 | E39: 0.003848766131
A40: Norte | B40: Jaguaré | C40: 3734 | D40: 114 | E40: 0.03053026245
A41: Sul | B41: Jerônimo Monteiro | C41: 2356 | D41: 93 | E41: 0.03947368421
A42: Metropolitana | B42: João Neiva | C42: 3012 | D42: 47 | E42: 0.01560424967
A43: Metropolitana | B43: Laranja da Terra | C43: 2471 | D43: 18 | E43: 0.007284500202
A44: Central | B44: Linhares | C44: 21740 | D44: 368 | E44: 0.01692732291
A45: Central | B45: Mantenópolis | C45: 2524 | D45: 3 | E45: 0.00118858954
A46: Sul | B46: Marataízes | C46: 7611 | D46: 148 | E46: 0.01944553935
A47: Metropolitana | B47: Marechal Floriano | C47: 2879 | D47: 110 | E47: 0.03820771101
A48: Central | B48: Marilândia | C48: 2476 | D48: 35 | E48: 0.01413570275
A49: Sul | B49: Mimoso do Sul | C49: 5077 | D49: 45 | E49: 0.008863502068
A50: Norte | B50: Montanha | C50: 3304 | D50: 278 | E50: 0.08414043584
A51: Norte | B51: Mucurici | C51: 1090 | D51: 5 | E51: 0.004587155963
A52: Sul | B52: Muniz Freire | C52: 3309 | D52: 63 | E52: 0.01903898459
A53: Sul | B53: Muqui | C53: 2780 | D53: 50 | E53: 0.01798561151
A54: Norte | B54: Nova Venécia | C54: 8352 | D54: 110 | E54: 0.01317049808
A55: Central | B55: Pancas | C55: 3687 | D55: 42 | E55: 0.0113913751
A56: Norte | B56: Pedro Canário | C56: 3253 | D56: 49 | E56: 0.01506301875
A57: Norte | B57: Pinheiros | C57: 3762 | D57: 178 | E57: 0.04731525784
A58: Sul | B58: Piúma | C58: 3886 | D58: 118 | E58: 0.03036541431
A59: Norte | B59: Ponto Belo | C59: 1330 | D59: 34 | E59: 0.02556390977
A60: Sul | B60: Presidente Kennedy | C60: 2214 | D60: 9 | E60: 0.00406504065
A61: Central | B61: Rio Bananal | C61: 3071 | D61: 50 | E61: 0.01628134158
A62: Sul | B62: Rio Novo do Sul | C62: 2232 | D62: 31 | E62: 0.01388888889
A63: Metropolitana | B63: Santa Leopoldina | C63: 2634 | D63: 26 | E63: 0.009870918755
A64: Metropolitana | B64: Santa Maria de Jetibá | C64: 5552 | D64: 58 | E64: 0.01044668588
A65: Metropolitana | B65: Santa Teresa | C65: 4767 | D65: 87 | E65: 0.01825047199
A66: Central | B66: São Domingos do Norte | C66: 1520 | D66: 12 | E66: 0.007894736842
A67: Central | B67: São Gabriel da Palha | C67: 5456 | D67: 31 | E67: =(D67/C67) -> 0.005681818182
A68: Sul | B68: São José do Calçado | C68: 2456 | D68: 31 | E68: 0.01262214984
A69: Norte | B69: São Mateus | C69: 17649 | D69: 912 | E69: 0.05167431583
A70: Central | B70: São Roque do Canaã | C70: 2370 | D70: 11 | E70: 0.004641350211
A71: Metropolitana | B71: Serra | C71: 66481 | D71: 3459 | E71: 0.05202990328
A72: Central | B72: Sooretama | C72: 3097 | D72: 85 | E72: 0.0274459154
A73: Sul | B73: Vargem Alta | C73: 3365 | D73: 65 | E73: 0.01931649331
A74: Metropolitana | B74: Venda Nova do Imigrante | C74: 3766 | D74: 111 | E74: 0.02947424323
A75: Metropolitana | B75: Viana | C75: 9758 | D75: 400 | E75: 0.04099200656
A76: Norte | B76: Vila Pavão | C76: 1510 | D76: 45 | E76: 0.0298013245
A77: Central | B77: Vila Valério | C77: 2160 | D77: 16 | E77: 0.007407407407
A78: Metropolitana | B78: Vila Velha | C78: 81049 | D78: 3503 | E78: 0.04322076768
A79: Metropolitana | B79: Vitória | C79: 64805 | D79: 3947 | E79: 0.06090579431
B81: Total Norte | C81: =SUMIF($A$2:$A$79,"Norte",C$2:C$79) -> 64626 | D81: =SUMIF($A$2:$A$79,"Norte",D$2:D$79) -> 2002 | E81: =D81/C81 -> 0.03097824405
B82: Total Central | C82: =SUMIF($A$2:$A$79,"Central",C$2:C$79) -> 80477 | D82: =SUMIF($A$2:$A$79,"Central",D$2:D$79) -> 1788 | E82: =D82/C82 -> 0.02221752799
B83: Total Metropolitana | C83: =SUMIF($A$2:$A$79,"Metropolitana",C$2:C$79) -> 367065 | D83: =SUMIF($A$2:$A$79,"Metropolitana",D$2:D$79) -> 17114 | E83: 0.04662389495
B84: Total Sul | C84: =SUMIF($A$2:$A$79,"sul",C$2:C$79) -> 119230 | D84: =SUMIF($A$2:$A$79,"Sul",D$2:D$79) -> 2628 | E84: 0.02204143253
B85: Total Espírito Santo | C85: =SUM(C2:C79) -> 631398 | D85: =SUM(D81:D84) -> 23532 | E85: 0.03726967776
B86: HOMOGENEIDADE ENTRE MUNICÍPIOS | E86: =COUNTIF(E2:E79,">=0,90")/78 -> 0
A91: Cobertura Vacinal Covid19 dos Idosos de Novembro de 2025
A92: Vacina Covid-19-Recombinante, Serum/Zalika>, Vacina Covid-19-RNAm, Moderna (Spikevax), Vacina Covid-19-RNAm, Pfizer (Comirnaty)
A93: Período analisado: últimos 6 meses
A94: Fonte: Vacina e Confia, em 13 de Janeiro de 2026.**<https://vacinaeconfia.saude.es.gov.br/>
A95: Faixa Etária: 60+
A96: Cobertura Calculada por município de residência do vacinado
A97: Método de Cálculo Simples
A98: Homogeineidade: O cálculo da Homogeineidade entre vacinas é feito de acordo com a pactuação estabelecida no Plano Plurianual (PPA) vigente no período 2024-2027.
A100: Observações referente a distribuição de imunobiológicos que podem afetar a cobertura vacinal:
A102: 1. Vacinas que foram recebidas parcialmente pelo estado no mês de dezembro/2025, sendo distribuídos em quantidades reduzidas às regionais e municípios:
A104: 2. Vacinas indisponíveis no mês de dezembro/2025, não sendo possível a distribuição às regionais e municípios:
A105: VACINA TETRA VIRAL.
A106: 3. Vacinas enviadas por Pautas aguardando abastecimento do estoque estadual;
A107: VACINA COVID-19 PFIZER PEDIÁTRICA MENOR QUE 5 ANOS; VACINA COVID-19 PFIZER PEDIÁTRICA.
A109: Fonte: Informes situacionais de distribuição de imunobiológicos em https://saude.es.gov.br/GrupodeArquivos/informes-situacionais-de-distribuicao-de-imunobiologicos

Sheet Cobert. Meningo C Adolescentes
A1: Regional | B1: Município | C1: População 11 a 14 anos | D1: Doses Acumuladas | E1: Série Histórica %
A2: Metropolitana | B2: Afonso Cláudio | C2: 1627 | D2: 1247 | E2: 76.6441303
A3: Norte | B3: Água Doce do Norte | C3: 664 | D3: 580 | E3: 87.34939759
A4: Central | B4: Águia Branca | C4: 504 | D4: 503 | E4: 99.8015873
A5: Sul | B5: Alegre | C5: 1351 | D5: 1281 | E5: 94.81865285
A6: Sul | B6: Alfredo Chaves | C6: 632 | D6: 507 | E6: 80.22151899
A7: Central | B7: Alto Rio Novo | C7: 412 | D7: 464 | E7: 112.6213592
A8: Sul | B8: Anchieta | C8: 1512 | D8: 1618 | E8: 107.010582
A9: Sul | B9: Apiacá | C9: 364 | D9: 187 | E9: 51.37362637
A10: Metropolitana | B10: Aracruz | C10: 5398 | D10: 5936 | E10: 109.9666543
A11: Sul | B11: Atilio Vivacqua | C11: 512 | D11: 609 | E11: 118.9453125
A12: Central | B12: Baixo Guandu | C12: 1522 | D12: 1392 | E12: 91.4586071
A13: Norte | B13: Barra de São Francisco | C13: 2306 | D13: 2044 | E13: 88.63833478
A14: Norte | B14: Boa Esperança | C14: 713 | D14: 559 | E14: 78.40112202
A15: Sul | B15: Bom Jesus do Norte | C15: 521 | D15: 472 | E15: 90.5950096
A16: Metropolitana | B16: Brejetuba | C16: 753 | D16: 860 | E16: 114.2098274
A17: Sul | B17: Cachoeiro de Itapemirim | C17: 9041 | D17: 9070 | E17: 100.320761
A18: Metropolitana | B18: Cariacica | C18: 19769 | D18: 19622 | E18: 99.25641155
A19: Sul | B19: Castelo | C19: 1588 | D19: 1612 | E19: 101.511335
A20: Central | B20: Colatina | C20: 5562 | D20: 4564 | E20: 82.0568141
A21: Norte | B21: Conceição da Barra | C21: 1742 | D21: 1475 | E21: 84.6727899
A22: Metropolitana | B22: Conceição do Castelo | C22: 592 | D22: 623 | E22: 105.2364865
A23: Sul | B23: Divino de São Lourenço | C23: 272 | D23: 248 | E23: 91.17647059
A24: Metropolitana | B24: Domingos Martins | C24: 1722 | D24: 1800 | E24: 104.5296167
A25: Sul | B25: Dores do Rio Preto | C25: 381 | D25: 381 | E25: 100
A26: Norte | B26: Ecoporanga | C26: 1137 | D26: 847 | E26: 74.4942832
A27: Metropolitana | B27: Fundão | C27: 954 | D27: 1128 | E27: 118.2389937
A28: Central | B28: Governador Lindenberg | C28: 550 | D28: 553 | E28: 100.5454545
A29: Sul | B29: Guaçuí | C29: 1508 | D29: 1343 | E29: 89.05835544
A30: Metropolitana | B30: Guarapari | C30: 6549 | D30: 6524 | E30: 99.61826233
A31: Metropolitana | B31: Ibatiba | C31: 1388 | D31: 1318 | E31: 94.95677233
A32: Metropolitana | B32: Ibiraçu | C32: 574 | D32: 612 | E32: 106.6202091
A33: Sul | B33: Ibitirama | C33: 573 | D33: 614 | E33: 107.1553229
A34: Sul | B34: Iconha | C34: 508 | D34: 507 | E34: 99.80314961
A35: Sul | B35: Irupi | C35: 753 | D35: 794 | E35: 105.4448871
A36: Metropolitana | B36: Itaguaçu | C36: 616 | D36: 516 | E36: 83.76623377
A37: Sul | B37: Itapemirim | C37: 2337 | D37: 2164 | E37: 92.59734703
A38: Metropolitana | B38: Itarana | C38: 428 | D38: 411 | E38: 96.02803738
A39: Sul | B39: Iúna | C39: 1564 | D39: 1379 | E39: 88.1713555
A40: Norte | B40: Jaguaré | C40: 1794 | D40: 1698 | E40: 94.64882943
A41: Sul | B41: Jerônimo Monteiro | C41: 563 | D41: 575 | E41: 102.1314387
A42: Metropolitana | B42: João Neiva | C42: 659 | D42: 692 | E42: 105.0075873
A43: Metropolitana | B43: Laranja da Terra | C43: 488 | D43: 467 | E43: 95.69672131
A44: Central | B44: Linhares | C44: 9326 | D44: 9888 | E44: 106.0261634
A45: Central | B45: Mantenópolis | C45: 710 | D45: 763 | E45: 107.4647887
A46: Sul | B46: Marataízes | C46: 2239 | D46: 2591 | E46: 115.7213042
A47: Metropolitana | B47: Marechal Floriano | C47: 922 | D47: 1014 | E47: 109.978308
A48: Central | B48: Marilândia | C48: 550 | D48: 529 | E48: 96.18181818
A49: Sul | B49: Mimoso do Sul | C49: 1159 | D49: 913 | E49: 78.77480587
A50: Norte | B50: Montanha | C50: 1050 | D50: 1093 | E50: 104.0952381
A51: Norte | B51: Mucurici | C51: 253 | D51: 229 | E51: 90.51383399
A52: Sul | B52: Muniz Freire | C52: 924 | D52: 947 | E52: 102.4891775
A53: Sul | B53: Muqui | C53: 662 | D53: 634 | E53: 95.77039275
A54: Norte | B54: Nova Venécia | C54: 2425 | D54: 2731 | E54: 112.6185567
A55: Central | B55: Pancas | C55: 946 | D55: 867 | E55: 91.64904863
A56: Norte | B56: Pedro Canário | C56: 1253 | D56: 1268 | E56: 101.1971269
A57: Norte | B57: Pinheiros | C57: 1417 | D57: 1123 | E57: 79.25194072
A58: Sul | B58: Piúma | C58: 1086 | D58: 1062 | E58: 97.79005525
A59: Norte | B59: Ponto Belo | C59: 396 | D59: 359 | E59: 90.65656566
A60: Sul | B60: Presidente Kennedy | C60: 730 | D60: 794 | E60: 108.7671233
A61: Central | B61: Rio Bananal | C61: 990 | D61: 1129 | E61: 114.040404
A62: Sul | B62: Rio Novo do Sul | C62: 522 | D62: 462 | E62: 88.50574713
A63: Metropolitana | B63: Santa Leopoldina | C63: 635 | D63: 393 | E63: 61.88976378
A64: Metropolitana | B64: Santa Maria de Jetibá | C64: 2131 | D64: 2113 | E64: 99.15532614
A65: Metropolitana | B65: Santa Teresa | C65: 1054 | D65: 1169 | E65: 110.9108159
A66: Central | B66: São Domingos do Norte | C66: 410 | D66: 386 | E66: 94.14634146
A67: Central | B67: São Gabriel da Palha | C67: 1616 | D67: 1432 | E67: 88.61386139
A68: Sul | B68: São José do Calçado | C68: 552 | D68: 497 | E68: 90.03623188
A69: Norte | B69: São Mateus | C69: 6608 | D69: 6040 | E69: 91.40435835
A70: Central | B70: São Roque do Canaã | C70: 465 | D70: 490 | E70: 105.3763441
A71: Metropolitana | B71: Serra | C71: 29073 | D71: 24824 | E71: 85.38506518
A72: Central | B72: Sooretama | C72: 1715 | D72: 1833 | E72: 106.8804665
A73: Sul | B73: Vargem Alta | C73: 1036 | D73: 993 | E73: 95.84942085
A74: Metropolitana | B74: Venda Nova do Imigrante | C74: 1122 | D74: 1177 | E74: 104.9019608
A75: Metropolitana | B75: Viana | C75: 3978 | D75: 4376 | E75: 110.0050277
A76: Norte | B76: Vila Pavão | C76: 458 | D76: 537 | E76: 117.2489083
A77: Central | B77: Vila Valério | C77: 678 | D77: 852 | E77: 125.6637168
A78: Metropolitana | B78: Vila Velha | C78: 22007 | D78: 21854 | E78: 99.30476667
A79: Metropolitana | B79: Vitória | C79: 14287 | D79: 13941 | E79: 97.57821796
B81: Total Central | D81: 25645 | E81: 98.80181846
B82: Total Norte | D82: 20583 | E82: 92.64944184
B83: Total Metropolitana | D83: 112617 | E83: 96.47979028
B84: Total Sul | D84: 32254 | E84: 98.06628154
B85: Total Espírito Santo | D85: 191099 | E85: 96.61809614
A90: Meningocócica Conjudada C e Meningocócica ACWY
A91: Método de Cálculo por COORTE
A92: Período avaliado: 2016-2025
A93: Faixa Etária: 11 a 14 anos.
A94: Fonte: http://tabnet.datasus.gov.br/ e https://www.vacinaeconfia.es.gov.br
A95: *Dados parciais:
A96: Dados de janeiro/2022 a abril/2022 extraídos do TABNET em 27/05/2025
A97: Dados de Maio/2022 a Dezembro/2025 extraídos do Vacina e Confia em 09/01/2026
A98: Cobertura Calculada por município de procedência da vacinação
A100: Observações referente a distribuição de imunobiológicos que podem afetar a cobertura vacinal:
A102: 1. Vacinas que foram recebidas parcialmente pelo estado no mês de dezembro/2025, sendo distribuídos em quantidades reduzidas às regionais e municípios:
A104: 2. Vacinas indisponíveis no mês de dezembro/2025, não sendo possível a distribuição às regionais e municípios:
A105: VACINA TETRA VIRAL.
A106: 3. Vacinas enviadas por Pautas aguardando abastecimento do estoque estadual;
A107: VACINA COVID-19 PFIZER PEDIÁTRICA MENOR QUE 5 ANOS; VACINA COVID-19 PFIZER PEDIÁTRICA.
A109: Fonte: Informes situacionais de distribuição de imunobiológicos em https://saude.es.gov.br/GrupodeArquivos/informes-situacionais-de-distribuicao-de-imunobiologicos

Sheet Cobert. HPV
A1: Regional | B1: Município | C1: População Feminina 9 a 14 anos | D1: População Masculina 9 a 14 anos | E1: Doses Acumuladas Feminino | F1: HPV Feminino % | G1: Doses Acumuladas Masculino | H1: HPV Masculino %
A2: Metropolitana | B2: Afonso Cláudio | C2: 15277 | D2: 15407 | E2: 1061 | F2: 91.07296137 | G2: 1150 | H2: 94.10801964
A3: Norte | B3: Água Doce do Norte | C3: 4781 | D3: 4930 | E3: 449 | F3: 98.24945295 | G3: 466 | H3: 95.49180328
A4: Central | B4: Águia Branca | C4: 5990 | D4: 6052 | E4: 298 | F4: 81.36518771 | G4: 372 | H4: 94.71674093
A5: Sul | B5: Alegre | C5: 14870 | D5: 14307 | E5: 951 | F5: 91.61849711 | G5: 837 | H5: 83.28358209
A6: Sul | B6: Alfredo Chaves | C6: 6823 | D6: 7013 | E6: 401 | F6: 86.98481562 | G6: 332 | H6: 65.74257426
A7: Central | B7: Alto Rio Novo | C7: 3733 | D7: 3701 | E7: 327 | F7: 112.3389636 | G7: 337 | H7: 111.0074115
A8: Sul | B8: Anchieta | C8: 15163 | D8: 14821 | E8: 1216 | F8: 105.9233449 | G8: 1211 | H8: 103.9484979
A9: Sul | B9: Apiacá | C9: 3725 | D9: 3498 | E9: 228 | F9: 83.82352941 | G9: 194 | H9: 74.32950192
A10: Metropolitana | B10: Aracruz | C10: 47872 | D10: 46893 | E10: 4348 | F10: 109.908999 | G10: 4460 | H10: 105.5871212
A11: Sul | B11: Atílio Vivácqua | C11: 5285 | D11: 5255 | E11: 467 | F11: 118.8295165 | G11: 450 | H11: 111.662531
A12: Central | B12: Baixo Guandu | C12: 15696 | D12: 14978 | E12: 1079 | F12: 94.44890218 | G12: 1119 | H12: 99.98510797
A13: Norte | B13: Barra de São Francisco | C13: 21504 | D13: 20994 | E13: 1556 | F13: 91.42185664 | G13: 1516 | H13: 85.4084507
A14: Norte | B14: Boa Esperança | C14: 6846 | D14: 6762 | E14: 497 | F14: 92.03703704 | G14: 351 | H14: 68.95874263
A15: Sul | B15: Bom Jesus do Norte | C15: 5417 | D15: 4837 | E15: 407 | F15: 99.26829268 | G15: 356 | H15: 99.44134078
A16: Metropolitana | B16: Brejetuba | C16: 6331 | D16: 6654 | E16: 585 | F16: 102.0942408 | G16: 649 | H16: 114.059754
A17: Sul | B17: Cachoeiro de Itapemirim | C17: 95939 | D17: 89847 | E17: 6630 | F17: 99.17726253 | G17: 6878 | H17: 99.45054945
A18: Metropolitana | B18: Cariacica | C18: 183096 | D18: 170395 | E18: 14448 | F18: 99.36726272 | G18: 14138 | H18: 92.06824694
A19: Sul | B19: Castelo | C19: 18706 | D19: 18224 | E19: 1205 | F19: 99.25864909 | G19: 1225 | H19: 102.9411765
A20: Central | B20: Colatina | C20: 61911 | D20: 58122 | E20: 3089 | F20: 75.97147073 | G20: 3390 | H20: 78.89225041
A21: Norte | B21: Conceição da Barra | C21: 14062 | D21: 13396 | E21: 1178 | F21: 91.31782946 | G21: 1199 | H21: 94.11302983
A22: Metropolitana | B22: Conceição do Castelo | C22: 5964 | D22: 5973 | E22: 482 | F22: 107.3496659 | G22: 528 | H22: 113.7931034
A23: Sul | B23: Divino de São Lourenço | C23: 2463 | D23: 2620 | E23: 170 | F23: 93.40659341 | G23: 197 | H23: 92.05607477
A24: Metropolitana | B24: Domingos Martins | C24: 17546 | D24: 17870 | E24: 1424 | F24: 113.4661355 | G24: 1383 | H24: 102.7488856
A25: Sul | B25: Dores do Rio Preto | C25: 3288 | D25: 3308 | E25: 293 | F25: 117.6706827 | G25: 265 | H25: 89.52702703
A26: Norte | B26: Ecoporanga | C26: 11077 | D26: 10915 | E26: 755 | F26: 96.91912709 | G26: 707 | H26: 82.30500582
A27: Metropolitana | B27: Fundão | C27: 9113 | D27: 8901 | E27: 656 | F27: 89.00949796 | G27: 825 | H27: 119.5652174
A28: Central | B28: Governador Lindenberg | C28: 5347 | D28: 5662 | E28: 427 | F28: 114.171123 | G28: 441 | H28: 100.6849315
A29: Sul | B29: Guaçuí | C29: 15088 | D29: 14270 | E29: 1120 | F29: 100.9009009 | G29: 1020 | H29: 87.70421324
A30: Metropolitana | B30: Guarapari | C30: 63971 | D30: 60685 | E30: 4483 | F30: 92.96972211 | G30: 4721 | H30: 95.00905615
A31: Metropolitana | B31: Ibatiba | C31: 12686 | D31: 12694 | E31: 1015 | F31: 108.3244397 | G31: 1130 | H31: 101.8935978
A32: Metropolitana | B32: Ibiraçu | C32: 5916 | D32: 5807 | E32: 452 | F32: 103.6697248 | G32: 466 | H32: 102.8697572
A33: Sul | B33: Ibitirama | C33: 4693 | D33: 4827 | E33: 291 | F33: 70.63106796 | G33: 400 | H33: 91.53318078
A34: Sul | B34: Iconha | C34: 6183 | D34: 6143 | E34: 429 | F34: 111.1398964 | G34: 393 | H34: 100.255102
A35: Sul | B35: Irupi | C35: 6771 | D35: 6939 | E35: 443 | F35: 79.24865832 | G35: 595 | H35: 104.9382716
A36: Metropolitana | B36: Itaguaçu | C36: 6840 | D36: 6749 | E36: 446 | F36: 101.1337868 | G36: 359 | H36: 81.03837472
A37: Sul | B37: Itapemirim | C37: 20328 | D37: 19504 | E37: 1493 | F37: 89.45476333 | G37: 1586 | H37: 89.25154755
A38: Metropolitana | B38: Itarana | C38: 5336 | D38: 5261 | E38: 325 | F38: 110.9215017 | G38: 332 | H38: 94.58689459
A39: Sul | B39: Iúna | C39: 14480 | D39: 14110 | E39: 1098 | F39: 94.49225473 | G39: 1149 | H39: 98.12126388
A40: Norte | B40: Jaguaré | C40: 14495 | D40: 14436 | E40: 1438 | F40: 110.0229533 | G40: 1404 | H40: 102.4070022
A41: Sul | B41: Jerônimo Monteiro | C41: 5904 | D41: 5671 | E41: 435 | F41: 104.8192771 | G41: 436 | H41: 107.3891626
A42: Metropolitana | B42: João Neiva | C42: 7265 | D42: 6814 | E42: 513 | F42: 101.183432 | G42: 561 | H42: 122.7571116
A43: Metropolitana | B43: Laranja da Terra | C43: 5493 | D43: 5601 | E43: 335 | F43: 99.40652819 | G43: 363 | H43: 89.62962963
A44: Central | B44: Linhares | C44: 84307 | D44: 82479 | E44: 6711 | F44: 97.26086957 | G44: 7281 | H44: 102.4771288
A45: Central | B45: Mantenópolis | C45: 6477 | D45: 6293 | E45: 497 | F45: 92.37918216 | G45: 448 | H45: 89.06560636
A46: Sul | B46: Marataízes | C46: 21396 | D46: 20533 | E46: 1803 | F46: 110.9538462 | G46: 1939 | H46: 113.5245902
A47: Metropolitana | B47: Marechal Floriano | C47: 8846 | D47: 8795 | E47: 716 | F47: 111.5264798 | G47: 736 | H47: 105.4441261
A48: Central | B48: Marilândia | C48: 6263 | D48: 6124 | E48: 447 | F48: 106.175772 | G48: 491 | H48: 128.8713911
A49: Sul | B49: Mimoso do Sul | C49: 12165 | D49: 12310 | E49: 702 | F49: 82.88075561 | G49: 673 | H49: 80.5988024
A50: Norte | B50: Montanha | C50: 9553 | D50: 9347 | E50: 812 | F50: 108.2666667 | G50: 821 | H50: 101.1083744
A51: Norte | B51: Mucurici | C51: 2718 | D51: 2748 | E51: 190 | F51: 116.5644172 | G51: 188 | H51: 96.41025641
A52: Sul | B52: Muniz Freire | C52: 8942 | D52: 9211 | E52: 707 | F52: 105.3651267 | G52: 749 | H52: 106.2411348
A53: Sul | B53: Muqui | C53: 6890 | D53: 6855 | E53: 473 | F53: 95.74898785 | G53: 485 | H53: 96.23015873
A54: Norte | B54: Nova Venécia | C54: 24772 | D54: 24293 | E54: 1853 | F54: 107.4825986 | G54: 1935 | H54: 100.4151531
A55: Central | B55: Pancas | C55: 9385 | D55: 9508 | E55: 681 | F55: 100.1470588 | G55: 711 | H55: 97.13114754
A56: Norte | B56: Pedro Canário | C56: 10884 | D56: 10638 | E56: 950 | F56: 104.510451 | G56: 922 | H56: 96.54450262
A57: Norte | B57: Pinheiros | C57: 11985 | D57: 11930 | E57: 934 | F57: 90.76773567 | G57: 884 | H57: 82.53968254
A58: Sul | B58: Piúma | C58: 11401 | D58: 10899 | E58: 737 | F58: 88.15789474 | G58: 725 | H58: 82.668187
A59: Norte | B59: Ponto Belo | C59: 3351 | D59: 3146 | E59: 309 | F59: 104.3918919 | G59: 303 | H59: 110.5839416
A60: Sul | B60: Presidente Kennedy | C60: 6865 | D60: 6831 | E60: 551 | F60: 99.45848375 | G60: 582 | H60: 96.35761589
A61: Central | B61: Rio Bananal | C61: 9408 | D61: 9866 | E61: 894 | F61: 121.7983651 | G61: 966 | H61: 124.0051348
A62: Sul | B62: Rio Novo do Sul | C62: 5467 | D62: 5602 | E62: 324 | F62: 87.80487805 | G62: 395 | H62: 94.27207637
A63: Metropolitana | B63: Santa Leopoldina | C63: 6229 | D63: 6877 | E63: 314 | F63: 69.93318486 | G63: 325 | H63: 65.52419355
A64: Metropolitana | B64: Santa Maria de Jetibá | C64: 20534 | D64: 21102 | E64: 1656 | F64: 108.7327643 | G64: 1671 | H64: 100.30012
A65: Metropolitana | B65: Santa Teresa | C65: 11475 | D65: 11333 | E65: 826 | F65: 111.6216216 | G65: 831 | H65: 106.4020487
A66: Central | B66: São Domingos do Norte | C66: 4092 | D66: 4497 | E66: 328 | F66: 110.8108108 | G66: 351 | H66: 113.592233
A67: Central | B67: São Gabriel da Palha | C67: 16365 | D67: 15887 | E67: 1092 | F67: 90.77306733 | G67: 1143 | H67: 98.28030954
A68: Sul | B68: São José do Calçado | C68: 5498 | D68: 5380 | E68: 383 | F68: 94.1031941 | G68: 389 | H68: 93.96135266
A69: Norte | B69: São Mateus | C69: 62665 | D69: 61087 | E69: 4786 | F69: 97.69340682 | G69: 4598 | H69: 90.69033531
A70: Central | B70: São Roque do Canaã | C70: 5368 | D70: 5518 | E70: 384 | F70: 105.2054795 | G70: 378 | H70: 115.5963303
A71: Metropolitana | B71: Serra | C71: 269243 | D71: 251410 | E71: 20192 | F71: 93.22683411 | G71: 18058 | H71: 80.35777857
A72: Central | B72: Sooretama | C72: 13209 | D72: 13293 | E72: 1202 | F72: 93.4681182 | G72: 1324 | H72: 103.1956352
A73: Sul | B73: Vargem Alta | C73: 9623 | D73: 9940 | E73: 718 | F73: 94.11042945 | G73: 767 | H73: 94.11042945
A74: Metropolitana | B74: Venda Nova do Imigrante | C74: 12129 | D74: 11702 | E74: 905 | F74: 115.7289003 | G74: 942 | H74: 111.7437722
A75: Metropolitana | B75: Viana | C75: 36243 | D75: 37180 | E75: 3279 | F75: 115.0930151 | G75: 3257 | H75: 105.0984188
A76: Norte | B76: Vila Pavão | C76: 4415 | D76: 4496 | E76: 355 | F76: 102.6011561 | G76: 341 | H76: 97.98850575
A77: Central | B77: Vila Valério | C77: 6650 | D77: 7078 | E77: 615 | F77: 134.8684211 | G77: 590 | H77: 107.6642336
A78: Metropolitana | B78: Vila Velha | C78: 242147 | D78: 225575 | E78: 16840 | F78: 103.9955536 | G78: 16485 | H78: 97.10196148
A79: Metropolitana | B79: Vitória | C79: 173415 | D79: 149454 | E79: 11346 | F79: 109.1171379 | G79: 11151 | H79: 101.1520319
B81: Total Central | E81: 18071 | F81: 92.9291371 | G81: 19342 | H81: 98.14288614
B82: Total Norte | E82: 16062 | F82: 99.20326107 | G82: 15635 | H82: 92.36176749
B83: Total Metropolitana | E83: 86647 | F83: 101.1250773 | G83: 84521 | H83: 93.79341723
B84: Total Sul | E84: 23675 | F84: 97.59264603 | G84: 24228 | H84: 96.49898435
B85: Total Espírito Santo | D85: 191099 | E85: 144455 | F85: 99.43349991 | G85: 143726 | H85: 94.64562055
A90: Vacina HPV Quadrivalente, Bivalente e Nonavalente
A91: Método de Cálculo por COORTE
A92: Período avaliado: 2013-2025
A93: Faixa Etária: 9 a 14 anos.
A94: Fonte: http://tabnet.datasus.gov.br/ e https://www.vacinaeconfia.es.gov.br
A95: *Dados parciais:
A96: Dados de janeiro/2013 a dezembro/2022 extraídos do TABNET em 04/09/2025
A97: Dados de Janeiro/2023 a Dezembro/2025 extraídos do Vacina e Confia em 09/01/2026
A98: Cobertura Calculada por município de procedência da vacinação
A100: Observações referente a distribuição de imunobiológicos que podem afetar a cobertura vacinal:
A102: 1. Vacinas que foram recebidas parcialmente pelo estado no mês de dezembro/2025, sendo distribuídos em quantidades reduzidas às regionais e municípios:
A104: 2. Vacinas indisponíveis no mês de dezembro/2025, não sendo possível a distribuição às regionais e municípios:
A105: VACINA TETRA VIRAL.
A106: 3. Vacinas enviadas por Pautas aguardando abastecimento do estoque estadual;
A107: VACINA COVID-19 PFIZER PEDIÁTRICA MENOR QUE 5 ANOS; VACINA COVID-19 PFIZER PEDIÁTRICA.
A109: Fonte: Informes situacionais de distribuição de imunobiológicos em https://saude.es.gov.br/GrupodeArquivos/informes-situacionais-de-distribuicao-de-imunobiologicos

Sheet Cobert. Dengue
A1: Regional | B1: Município | C1: População 10 a 14 anos | D1: Doses Acumuladas D1 | E1: DENGUE -D1 % | F1: Doses Acumuladas D2 | G1: DENGUE - D2 %
A2: Metropolitana | B2: Afonso Cláudio | C2: 1987 | D2: 1424 | E2: 71.66582788 | F2: 920 | G2: 46.30095622
A3: Norte | B3: Água Doce do Norte | C3: 819 | D3: 461 | E3: 56.28815629 | F3: 245 | G3: 29.91452991
A4: Central | B4: Águia Branca | C4: 605 | D4: 318 | E4: 52.56198347 | F4: 195 | G4: 32.23140496
A5: Sul | B5: Alegre | C5: 1706 | D5: 1656 | E5: 97.06916764 | F5: 1100 | G5: 64.47831184
A6: Sul | B6: Alfredo Chaves | C6: 781 | D6: 291 | E6: 37.25992318 | F6: 145 | G6: 18.5659411
A7: Central | B7: Alto Rio Novo | C7: 503 | D7: 570 | E7: 113.3200795 | F7: 412 | G7: 81.90854871
A8: Sul | B8: Anchieta | C8: 1875 | D8: 1773 | E8: 94.56 | F8: 1155 | G8: 61.6
A9: Sul | B9: Apiacá | C9: 452 | D9: 124 | E9: 27.43362832 | F9: 53 | G9: 11.72566372
A10: Metropolitana | B10: Aracruz | C10: 6737 | D10: 6571 | E10: 97.53599525 | F10: 4144 | G10: 61.51105833
A11: Sul | B11: Atílio Vivácqua | C11: 646 | D11: 605 | E11: 93.65325077 | F11: 314 | G11: 48.60681115
A12: Central | B12: Baixo Guandu | C12: 1916 | D12: 1307 | E12: 68.21503132 | F12: 685 | G12: 35.75156576
A13: Norte | B13: Barra de São Francisco | C13: 2900 | D13: 935 | E13: 32.24137931 | F13: 241 | G13: 8.310344828
A14: Norte | B14: Boa Esperança | C14: 882 | D14: 284 | E14: 32.19954649 | F14: 124 | G14: 14.05895692
A15: Sul | B15: Bom Jesus do Norte | C15: 649 | D15: 406 | E15: 62.5577812 | F15: 148 | G15: 22.80431433
A16: Metropolitana | B16: Brejetuba | C16: 924 | D16: 882 | E16: 95.45454545 | F16: 612 | G16: 66.23376623
A17: Sul | B17: Cachoeiro de Itapemirim | C17: 11366 | D17: 7952 | E17: 69.96304769 | F17: 4257 | G17: 37.45380961
A18: Metropolitana | B18: Cariacica | C18: 24648 | D18: 17414 | E18: 70.65076274 | F18: 9492 | G18: 38.51022395
A19: Sul | B19: Castelo | C19: 1979 | D19: 1508 | E19: 76.20010106 | F19: 889 | G19: 44.92167761
A20: Central | B20: Colatina | C20: 6926 | D20: 3220 | E20: 46.49148137 | F20: 1540 | G20: 22.23505631
A21: Norte | B21: Conceição da Barra | C21: 2137 | D21: 1545 | E21: 72.29761348 | F21: 757 | G21: 35.42349088
A22: Metropolitana | B22: Conceição do Castelo | C22: 734 | D22: 857 | E22: 116.7574932 | F22: 584 | G22: 79.5640327
A23: Sul | B23: Divino de São Lourenço | C23: 331 | D23: 190 | E23: 57.40181269 | F23: 131 | G23: 39.57703927
A24: Metropolitana | B24: Domingos Martins | C24: 2134 | D24: 1854 | E24: 86.87910028 | F24: 1292 | G24: 60.54358013
A25: Sul | B25: Dores do Rio Preto | C25: 464 | D25: 284 | E25: 61.20689655 | F25: 104 | G25: 22.4137931
A26: Norte | B26: Ecoporanga | C26: 1386 | D26: 760 | E26: 54.83405483 | F26: 308 | G26: 22.22222222
A27: Metropolitana | B27: Fundão | C27: 1188 | D27: 1176 | E27: 98.98989899 | F27: 823 | G27: 69.27609428
A28: Central | B28: Governador Lindenberg | C28: 672 | D28: 636 | E28: 94.64285714 | F28: 408 | G28: 60.71428571
A29: Sul | B29: Guaçuí | C29: 1888 | D29: 852 | E29: 45.12711864 | F29: 415 | G29: 21.9809322
A30: Metropolitana | B30: Guarapari | C30: 8184 | D30: 2625 | E30: 32.07478006 | F30: 1019 | G30: 12.45112414
A31: Metropolitana | B31: Ibatiba | C31: 1738 | D31: 1612 | E31: 92.75028769 | F31: 963 | G31: 55.40851554
A32: Metropolitana | B32: Ibiraçu | C32: 735 | D32: 663 | E32: 90.20408163 | F32: 431 | G32: 58.63945578
A33: Sul | B33: Ibitirama | C33: 700 | D33: 520 | E33: 74.28571429 | F33: 320 | G33: 45.71428571
A34: Sul | B34: Iconha | C34: 644 | D34: 515 | E34: 79.9689441 | F34: 331 | G34: 51.39751553
A35: Sul | B35: Irupi | C35: 933 | D35: 703 | E35: 75.34833869 | F35: 431 | G35: 46.19506967
A36: Metropolitana | B36: Itaguaçu | C36: 763 | D36: 808 | E36: 105.897772 | F36: 657 | G36: 86.10747051
A37: Sul | B37: Itapemirim | C37: 2900 | D37: 992 | E37: 34.20689655 | F37: 461 | G37: 15.89655172
A38: Metropolitana | B38: Itarana | C38: 535 | D38: 587 | E38: 109.7196262 | F38: 433 | G38: 80.93457944
A39: Sul | B39: Iúna | C39: 1916 | D39: 1297 | E39: 67.69311065 | F39: 674 | G39: 35.17745303
A40: Norte | B40: Jaguaré | C40: 2237 | D40: 679 | E40: 30.35315154 | F40: 334 | G40: 14.93071077
A41: Sul | B41: Jerônimo Monteiro | C41: 702 | D41: 514 | E41: 73.21937322 | F41: 300 | G41: 42.73504274
A42: Metropolitana | B42: João Neiva | C42: 808 | D42: 791 | E42: 97.8960396 | F42: 507 | G42: 62.74752475
A43: Metropolitana | B43: Laranja da Terra | C43: 617 | D43: 629 | E43: 101.9448947 | F43: 485 | G43: 78.60615883
A44: Central | B44: Linhares | C44: 11616 | D44: 8724 | E44: 75.10330579 | F44: 4973 | G44: 42.81163912
A45: Central | B45: Mantenópolis | C45: 880 | D45: 897 | E45: 101.9318182 | F45: 624 | G45: 70.90909091
A46: Sul | B46: Marataízes | C46: 2782 | D46: 1390 | E46: 49.96405464 | F46: 606 | G46: 21.78289001
A47: Metropolitana | B47: Marechal Floriano | C47: 1127 | D47: 1135 | E47: 100.7098492 | F47: 786 | G47: 69.74267968
A48: Central | B48: Marilândia | C48: 673 | D48: 600 | E48: 89.15304606 | F48: 359 | G48: 53.34323923
A49: Sul | B49: Mimoso do Sul | C49: 1399 | D49: 550 | E49: 39.31379557 | F49: 276 | G49: 19.72837741
A50: Norte | B50: Montanha | C50: 1316 | D50: 985 | E50: 74.84802432 | F50: 531 | G50: 40.34954407
A51: Norte | B51: Mucurici | C51: 312 | D51: 208 | E51: 66.66666667 | F51: 131 | G51: 41.98717949
A52: Sul | B52: Muniz Freire | C52: 1140 | D52: 850 | E52: 74.56140351 | F52: 637 | G52: 55.87719298
A53: Sul | B53: Muqui | C53: 844 | D53: 313 | E53: 37.08530806 | F53: 170 | G53: 20.14218009
A54: Norte | B54: Nova Venécia | C54: 3044 | D54: 1657 | E54: 54.43495401 | F54: 678 | G54: 22.27332457
A55: Central | B55: Pancas | C55: 1188 | D55: 1063 | E55: 89.47811448 | F55: 698 | G55: 58.75420875
A56: Norte | B56: Pedro Canário | C56: 1545 | D56: 981 | E56: 63.49514563 | F56: 520 | G56: 33.65695793
A57: Norte | B57: Pinheiros | C57: 1757 | D57: 821 | E57: 46.72737621 | F57: 312 | G57: 17.75754126
A58: Sul | B58: Piúma | C58: 1385 | D58: 780 | E58: 56.31768953 | F58: 320 | G58: 23.10469314
A59: Norte | B59: Ponto Belo | C59: 476 | D59: 481 | E59: 101.0504202 | F59: 298 | G59: 62.60504202
A60: Sul | B60: Presidente Kennedy | C60: 939 | D60: 881 | E60: 93.82321619 | F60: 524 | G60: 55.80404686
A61: Central | B61: Rio Bananal | C61: 1246 | D61: 1223 | E61: 98.1540931 | F61: 761 | G61: 61.07544141
A62: Sul | B62: Rio Novo do Sul | C62: 647 | D62: 543 | E62: 83.92581144 | F62: 329 | G62: 50.85007728
A63: Metropolitana | B63: Santa Leopoldina | C63: 787 | D63: 593 | E63: 75.34942821 | F63: 382 | G63: 48.53875476
A64: Metropolitana | B64: Santa Maria de Jetibá | C64: 2632 | D64: 2438 | E64: 92.62917933 | F64: 1612 | G64: 61.24620061
A65: Metropolitana | B65: Santa Teresa | C65: 1292 | D65: 1111 | E65: 85.99071207 | F65: 745 | G65: 57.6625387
A66: Central | B66: São Domingos do Norte | C66: 516 | D66: 374 | E66: 72.48062016 | F66: 210 | G66: 40.69767442
A67: Central | B67: São Gabriel da Palha | C67: 1977 | D67: 1964 | E67: 99.34243804 | F67: 1155 | G67: 58.42185129
A68: Sul | B68: São José do Calçado | C68: 691 | D68: 447 | E68: 64.68885673 | F68: 205 | G68: 29.66714906
A69: Norte | B69: São Mateus | C69: 8277 | D69: 3971 | E69: 47.97631992 | F69: 1696 | G69: 20.49051589
A70: Central | B70: São Roque do Canaã | C70: 600 | D70: 585 | E70: 97.5 | F70: 414 | G70: 69
A71: Metropolitana | B71: Serra | C71: 36482 | D71: 21340 | E71: 58.49460008 | F71: 10291 | G71: 28.20843156
A72: Central | B72: Sooretama | C72: 2138 | D72: 1446 | E72: 67.63330215 | F72: 818 | G72: 38.26005613
A73: Sul | B73: Vargem Alta | C73: 1247 | D73: 997 | E73: 79.95188452 | F73: 634 | G73: 50.84202085
A74: Metropolitana | B74: Venda Nova do Imigrante | C74: 1375 | D74: 1085 | E74: 78.90909091 | F74: 727 | G74: 52.87272727
A75: Metropolitana | B75: Viana | C75: 4928 | D75: 4603 | E75: 93.40503247 | F75: 2652 | G75: 53.81493506
A76: Norte | B76: Vila Pavão | C76: 566 | D76: 451 | E76: 79.6819788 | F76: 290 | G76: 51.23674912
A77: Central | B77: Vila Valério | C77: 817 | D77: 791 | E77: 96.81762546 | F77: 434 | G77: 53.12117503
A78: Metropolitana | B78: Vila Velha | C78: 27506 | D78: 18231 | E78: 66.28008435 | F78: 9191 | G78: 33.41452774
A79: Metropolitana | B79: Vitória | C79: 17857 | D79: 14050 | E79: 78.68062945 | F79: 7958 | G79: 44.56515652
B81: Total Central | D81: 23718 | E81: 73.49177331 | F81: 13686 | G81: 42.40696557
B82: Total Norte | D82: 14219 | E82: 51.41751645 | F82: 6465 | G82: 23.37817314
B83: Total Metropolitana | D83: 102479 | E83: 70.32693284 | F83: 56706 | G83: 38.9148904
B84: Total Sul | D84: 26933 | E84: 65.6806321 | F84: 14929 | G84: 36.40686729
B85: Total Espírito Santo | D85: 167349 | E85: 67.84849849 | F85: 91786 | G85: 37.21290406
A90: Vacina Dengue (Atenuada)
A91: Método de Cálculo por COORTE
A92: Período avaliado: 2024-2025
A93: Faixa Etária: 10 a 14 anos.
A94: Fonte: https://www.vacinaeconfia.es.gov.br
A95: *Dados parciais:
A96: Dados de Janeiro/2024 a Dezembro/2025 extraídos do Vacina e Confia em em 09/01/2026
A97: População proporcional extraída do Censo IBGE 2022
A100: Observações referente a distribuição de imunobiológicos que podem afetar a cobertura vacinal:
A102: 1. Vacinas que foram recebidas parcialmente pelo estado no mês de dezembro/2025, sendo distribuídos em quantidades reduzidas às regionais e municípios:
A104: 2. Vacinas indisponíveis no mês de dezembro/2025, não sendo possível a distribuição às regionais e municípios:
A105: VACINA TETRA VIRAL.
A106: 3. Vacinas enviadas por Pautas aguardando abastecimento do estoque estadual;
A107: VACINA COVID-19 PFIZER PEDIÁTRICA MENOR QUE 5 ANOS; VACINA COVID-19 PFIZER PEDIÁTRICA.
A109: Fonte: Informes situacionais de distribuição de imunobiológicos em https://saude.es.gov.br/GrupodeArquivos/informes-situacionais-de-distribuicao-de-imunobiologicos

Sheet cálculos1 (hidden)
C1: 0.9 | E1: 0.95
A2: Regional | B2: Município | C2: Cobertura Vacinal BCG | D2: Cobertura Vacinal Rotavírus | E2: Cobertura Vacinal Pentavalente | F2: Cobertura Vacinal Poliomielite | G2: Cobertura Vacinal Pneumo 10 | H2: Cobertura Vacinal Tríplice Viral | I2: Cobertura Vacinal Meningo C | J2: Cobertura Vacinal Febre Amarela | K2: Cobertura Vacinal Hepatite A | L2: Cobertura Varicela | M2: META 90% | N2: META 95% | O2: ATINGIRAM META | P2: PQA-VS
A3: Metropolitana | B3: Afonso Cláudio | C3: ='CV Rotina <2A - procedência'!K3 -> 0.9030470914 | D3: ='CV Rotina <2A - procedência'!#REF! ->  | E3: ='CV Rotina <2A - procedência'!M3 -> 0.9584487535 | F3: ='CV Rotina <2A - procedência'!O3 -> 0.9501385042 | G3: ='CV Rotina <2A - procedência'!Q3 -> 0.9141274238 | H3: ='CV Rotina <2A - procedência'!Y3 -> 0.9473684211 | I3: ='CV Rotina <2A - procedência'!S3 -> 0.9556786704 | J3: ='CV Rotina <2A - procedência'!U3 -> 0.811634349 | K3: ='CV Rotina <2A - procedência'!W3 -> 0.9473684211 | L3: ='CV Rotina <2A - procedência'!AA3 -> 1.008310249 | M3: =COUNTIF(C3:D3,">=0,9") -> 1 | N3: =COUNTIFS(E3:L3,">=0,95") -> 4 | O3: =SUM(M3:N3) -> 5 | P3: =COUNTIF(E3:H3,">=0,95") -> 2
A4: Norte | B4: Água Doce do Norte | C4: ='CV Rotina <2A - procedência'!K4 -> 0.2662337662 | D4: ='CV Rotina <2A - procedência'!#REF! ->  | E4: ='CV Rotina <2A - procedência'!M4 -> 0.8246753247 | F4: ='CV Rotina <2A - procedência'!O4 -> 0.8116883117 | G4: ='CV Rotina <2A - procedência'!Q4 -> 0.7597402597 | H4: ='CV Rotina <2A - procedência'!Y4 -> 1.071428571 | I4: ='CV Rotina <2A - procedência'!S4 -> 0.8961038961 | J4: ='CV Rotina <2A - procedência'!U4 -> 0.8441558442 | K4: ='CV Rotina <2A - procedência'!W4 -> 0.9675324675 | L4: ='CV Rotina <2A - procedência'!AA4 -> 0.5779220779 | M4: 0 | N4: 2 | O4: =SUM(M4:N4) -> 2 | P4: =COUNTIF(E4:H4,">=0,95") -> 1
A5: Central | B5: Águia Branca | C5: ='CV Rotina <2A - procedência'!K5 -> 0.5149700599 | D5: ='CV Rotina <2A - procedência'!#REF! ->  | E5: ='CV Rotina <2A - procedência'!M5 -> 0.8562874251 | F5: ='CV Rotina <2A - procedência'!O5 -> 0.8622754491 | G5: ='CV Rotina <2A - procedência'!Q5 -> 0.8562874251 | H5: ='CV Rotina <2A - procedência'!Y5 -> 0.9041916168 | I5: ='CV Rotina <2A - procedência'!S5 -> 0.9041916168 | J5: ='CV Rotina <2A - procedência'!U5 -> 0.7365269461 | K5: ='CV Rotina <2A - procedência'!W5 -> 0.9101796407 | L5: ='CV Rotina <2A - procedência'!AA5 -> 0.9640718563 | M5: 0 | N5: 1 | O5: 1 | P5: 0
A6: Sul | B6: Alegre | C6: ='CV Rotina <2A - procedência'!K6 -> 0.4223602484 | D6: ='CV Rotina <2A - procedência'!#REF! ->  | E6: ='CV Rotina <2A - procedência'!M6 -> 0.9813664596 | F6: ='CV Rotina <2A - procedência'!O6 -> 0.9534161491 | G6: ='CV Rotina <2A - procedência'!Q6 -> 1 | H6: ='CV Rotina <2A - procedência'!Y6 -> 1.02484472 | I6: ='CV Rotina <2A - procedência'!S6 -> 1.071428571 | J6: ='CV Rotina <2A - procedência'!U6 -> 0.8416149068 | K6: ='CV Rotina <2A - procedência'!W6 -> 1.01863354 | L6: ='CV Rotina <2A - procedência'!AA6 -> 1.090062112 | M6: 0 | N6: 7 | O6: 7 | P6: 4
A7: Sul | B7: Alfredo Chaves | C7: ='CV Rotina <2A - procedência'!K7 -> 0.4453781513 | D7: ='CV Rotina <2A - procedência'!#REF! ->  | E7: ='CV Rotina <2A - procedência'!M7 -> 0.8823529412 | F7: ='CV Rotina <2A - procedência'!O7 -> 0.8655462185 | G7: ='CV Rotina <2A - procedência'!Q7 -> 0.6806722689 | H7: ='CV Rotina <2A - procedência'!Y7 -> 1 | I7: ='CV Rotina <2A - procedência'!S7 -> 0.7983193277 | J7: ='CV Rotina <2A - procedência'!U7 -> 0.8151260504 | K7: ='CV Rotina <2A - procedência'!W7 -> 1.117647059 | L7: ='CV Rotina <2A - procedência'!AA7 -> 1.092436975 | M7: 0 | N7: 3 | O7: 3 | P7: 1
A8: Central | B8: Alto Rio Novo | C8: ='CV Rotina <2A - procedência'!K8 -> 0.4285714286 | D8: ='CV Rotina <2A - procedência'!#REF! ->  | E8: ='CV Rotina <2A - procedência'!M8 -> 1.020408163 | F8: ='CV Rotina <2A - procedência'!O8 -> 1.020408163 | G8: ='CV Rotina <2A - procedência'!Q8 -> 1.020408163 | H8: ='CV Rotina <2A - procedência'!Y8 -> 1.020408163 | I8: ='CV Rotina <2A - procedência'!S8 -> 1.040816327 | J8: ='CV Rotina <2A - procedência'!U8 -> 0.9591836735 | K8: ='CV Rotina <2A - procedência'!W8 -> 1 | L8: ='CV Rotina <2A - procedência'!AA8 -> 1.040816327 | M8: 0 | N8: 8 | O8: 8 | P8: 4
A9: Sul | B9: Anchieta | C9: ='CV Rotina <2A - procedência'!K9 -> 0.4589665653 | D9: ='CV Rotina <2A - procedência'!#REF! ->  | E9: ='CV Rotina <2A - procedência'!M9 -> 1.036474164 | F9: ='CV Rotina <2A - procedência'!O9 -> 1.039513678 | G9: ='CV Rotina <2A - procedência'!Q9 -> 0.9665653495 | H9: ='CV Rotina <2A - procedência'!Y9 -> 1.170212766 | I9: ='CV Rotina <2A - procedência'!S9 -> 0.9969604863 | J9: ='CV Rotina <2A - procedência'!U9 -> 0.9361702128 | K9: ='CV Rotina <2A - procedência'!W9 -> 1.072948328 | L9: ='CV Rotina <2A - procedência'!AA9 -> 1.085106383 | M9: 0 | N9: 7 | O9: 7 | P9: 4
A10: Sul | B10: Apiacá | C10: ='CV Rotina <2A - procedência'!K10 -> 0.8260869565 | D10: ='CV Rotina <2A - procedência'!#REF! ->  | E10: ='CV Rotina <2A - procedência'!M10 -> 1.043478261 | F10: ='CV Rotina <2A - procedência'!O10 -> 1.028985507 | G10: ='CV Rotina <2A - procedência'!Q10 -> 1.086956522 | H10: ='CV Rotina <2A - procedência'!Y10 -> 1.014492754 | I10: ='CV Rotina <2A - procedência'!S10 -> 1.101449275 | J10: ='CV Rotina <2A - procedência'!U10 -> 0.7971014493 | K10: ='CV Rotina <2A - procedência'!W10 -> 0.9710144928 | L10: ='CV Rotina <2A - procedência'!AA10 -> 1.043478261 | M10: 0 | N10: 7 | O10: 7 | P10: 4
A11: Metropolitana | B11: Aracruz | C11: ='CV Rotina <2A - procedência'!K11 -> 0.8594748048 | D11: ='CV Rotina <2A - procedência'!#REF! ->  | E11: ='CV Rotina <2A - procedência'!M11 -> 0.8921220724 | F11: ='CV Rotina <2A - procedência'!O11 -> 0.8885734564 | G11: ='CV Rotina <2A - procedência'!Q11 -> 0.8722498226 | H11: ='CV Rotina <2A - procedência'!Y11 -> 0.9801277502 | I11: ='CV Rotina <2A - procedência'!S11 -> 0.8970901348 | J11: ='CV Rotina <2A - procedência'!U11 -> 0.733853797 | K11: ='CV Rotina <2A - procedência'!W11 -> 0.9709013485 | L11: ='CV Rotina <2A - procedência'!AA11 -> 0.9716110717 | M11: 0 | N11: 3 | O11: 3 | P11: 1
A12: Sul | B12: Atilio Vivacqua | C12: ='CV Rotina <2A - procedência'!K12 -> 0.1118881119 | D12: ='CV Rotina <2A - procedência'!#REF! ->  | E12: ='CV Rotina <2A - procedência'!M12 -> 1.090909091 | F12: ='CV Rotina <2A - procedência'!O12 -> 1.076923077 | G12: ='CV Rotina <2A - procedência'!Q12 -> 1.062937063 | H12: ='CV Rotina <2A - procedência'!Y12 -> 1.118881119 | I12: ='CV Rotina <2A - procedência'!S12 -> 1.104895105 | J12: ='CV Rotina <2A - procedência'!U12 -> 0.958041958 | K12: ='CV Rotina <2A - procedência'!W12 -> 0.993006993 | L12: ='CV Rotina <2A - procedência'!AA12 -> 0.986013986 | M12: 0 | N12: 8 | O12: 8 | P12: 4
A13: Central | B13: Baixo Guandu | C13: ='CV Rotina <2A - procedência'!K13 -> 0.4450549451 | D13: ='CV Rotina <2A - procedência'!#REF! ->  | E13: ='CV Rotina <2A - procedência'!M13 -> 0.9862637363 | F13: ='CV Rotina <2A - procedência'!O13 -> 0.9807692308 | G13: ='CV Rotina <2A - procedência'!Q13 -> 1.010989011 | H13: ='CV Rotina <2A - procedência'!Y13 -> 0.9807692308 | I13: ='CV Rotina <2A - procedência'!S13 -> 0.9752747253 | J13: ='CV Rotina <2A - procedência'!U13 -> 0.8324175824 | K13: ='CV Rotina <2A - procedência'!W13 -> 1.041208791 | L13: ='CV Rotina <2A - procedência'!AA13 -> 0.9862637363 | M13: 0 | N13: 7 | O13: 7 | P13: 4
A14: Norte | B14: Barra de São Francisco | C14: ='CV Rotina <2A - procedência'!K14 -> 0.7037037037 | D14: ='CV Rotina <2A - procedência'!#REF! ->  | E14: ='CV Rotina <2A - procedência'!M14 -> 0.8760064412 | F14: ='CV Rotina <2A - procedência'!O14 -> 0.8599033816 | G14: ='CV Rotina <2A - procedência'!Q14 -> 0.845410628 | H14: ='CV Rotina <2A - procedência'!Y14 -> 0.8695652174 | I14: ='CV Rotina <2A - procedência'!S14 -> 0.8486312399 | J14: ='CV Rotina <2A - procedência'!U14 -> 0.7004830918 | K14: ='CV Rotina <2A - procedência'!W14 -> 0.7971014493 | L14: ='CV Rotina <2A - procedência'!AA14 -> 0.8615136876 | M14: 0 | N14: 0 | O14: 0 | P14: 0
A15: Norte | B15: Boa Esperança | C15: ='CV Rotina <2A - procedência'!K15 -> 0.329004329 | D15: ='CV Rotina <2A - procedência'!#REF! ->  | E15: ='CV Rotina <2A - procedência'!M15 -> 0.8658008658 | F15: ='CV Rotina <2A - procedência'!O15 -> 0.8701298701 | G15: ='CV Rotina <2A - procedência'!Q15 -> 0.9393939394 | H15: ='CV Rotina <2A - procedência'!Y15 -> 0.8831168831 | I15: ='CV Rotina <2A - procedência'!S15 -> 0.8614718615 | J15: ='CV Rotina <2A - procedência'!U15 -> 0.7186147186 | K15: ='CV Rotina <2A - procedência'!W15 -> 0.8138528139 | L15: ='CV Rotina <2A - procedência'!AA15 -> 0.7835497835 | M15: 0 | N15: 0 | O15: 0 | P15: 0
A16: Sul | B16: Bom Jesus do Norte | C16: ='CV Rotina <2A - procedência'!K16 -> 1.139240506 | D16: ='CV Rotina <2A - procedência'!#REF! ->  | E16: ='CV Rotina <2A - procedência'!M16 -> 1.392405063 | F16: ='CV Rotina <2A - procedência'!O16 -> 1.392405063 | G16: ='CV Rotina <2A - procedência'!Q16 -> 1.392405063 | H16: ='CV Rotina <2A - procedência'!Y16 -> 1.405063291 | I16: ='CV Rotina <2A - procedência'!S16 -> 1.303797468 | J16: ='CV Rotina <2A - procedência'!U16 -> 1.139240506 | K16: ='CV Rotina <2A - procedência'!W16 -> 1.291139241 | L16: ='CV Rotina <2A - procedência'!AA16 -> 1.202531646 | M16: 1 | N16: 8 | O16: 9 | P16: 4
A17: Metropolitana | B17: Brejetuba | C17: ='CV Rotina <2A - procedência'!K17 -> 0.5964912281 | D17: ='CV Rotina <2A - procedência'!#REF! ->  | E17: ='CV Rotina <2A - procedência'!M17 -> 0.8289473684 | F17: ='CV Rotina <2A - procedência'!O17 -> 0.8640350877 | G17: ='CV Rotina <2A - procedência'!Q17 -> 0.8684210526 | H17: ='CV Rotina <2A - procedência'!Y17 -> 0.9166666667 | I17: ='CV Rotina <2A - procedência'!S17 -> 0.9078947368 | J17: ='CV Rotina <2A - procedência'!U17 -> 0.8157894737 | K17: ='CV Rotina <2A - procedência'!W17 -> 0.8596491228 | L17: ='CV Rotina <2A - procedência'!AA17 -> 1 | M17: 0 | N17: 1 | O17: 1 | P17: 0
A18: Sul | B18: Cachoeiro de Itapemirim | C18: ='CV Rotina <2A - procedência'!K18 -> 2.17203851 | D18: ='CV Rotina <2A - procedência'!#REF! ->  | E18: ='CV Rotina <2A - procedência'!M18 -> 0.9284219339 | F18: ='CV Rotina <2A - procedência'!O18 -> 0.9204688154 | G18: ='CV Rotina <2A - procedência'!Q18 -> 0.958560067 | H18: ='CV Rotina <2A - procedência'!Y18 -> 0.9928840519 | I18: ='CV Rotina <2A - procedência'!S18 -> 0.9510255337 | J18: ='CV Rotina <2A - procedência'!U18 -> 0.6760150691 | K18: ='CV Rotina <2A - procedência'!W18 -> 0.9187944747 | L18: ='CV Rotina <2A - procedência'!AA18 -> 0.8773545416 | M18: 1 | N18: 3 | O18: 4 | P18: 2
A19: Metropolitana | B19: Cariacica | C19: ='CV Rotina <2A - procedência'!K19 -> 0.4993747395 | D19: ='CV Rotina <2A - procedência'!#REF! ->  | E19: ='CV Rotina <2A - procedência'!M19 -> 0.8432680283 | F19: ='CV Rotina <2A - procedência'!O19 -> 0.8340975406 | G19: ='CV Rotina <2A - procedência'!Q19 -> 0.7994997916 | H19: ='CV Rotina <2A - procedência'!Y19 -> 0.9326802835 | I19: ='CV Rotina <2A - procedência'!S19 -> 0.8653605669 | J19: ='CV Rotina <2A - procedência'!U19 -> 0.6552730304 | K19: ='CV Rotina <2A - procedência'!W19 -> 0.8884952063 | L19: ='CV Rotina <2A - procedência'!AA19 -> 0.7569820759 | M19: 0 | N19: 0 | O19: 0 | P19: 0
A20: Sul | B20: Castelo | C20: ='CV Rotina <2A - procedência'!K20 -> 0.6783919598 | D20: ='CV Rotina <2A - procedência'!#REF! ->  | E20: ='CV Rotina <2A - procedência'!M20 -> 1.037688442 | F20: ='CV Rotina <2A - procedência'!O20 -> 1.025125628 | G20: ='CV Rotina <2A - procedência'!Q20 -> 0.9924623116 | H20: ='CV Rotina <2A - procedência'!Y20 -> 1.067839196 | I20: ='CV Rotina <2A - procedência'!S20 -> 1.075376884 | J20: ='CV Rotina <2A - procedência'!U20 -> 0.8869346734 | K20: ='CV Rotina <2A - procedência'!W20 -> 1.105527638 | L20: ='CV Rotina <2A - procedência'!AA20 -> 0.9472361809 | M20: 0 | N20: 6 | O20: 6 | P20: 4
A21: Central | B21: Colatina | C21: ='CV Rotina <2A - procedência'!K21 -> 2.311564626 | D21: ='CV Rotina <2A - procedência'!#REF! ->  | E21: ='CV Rotina <2A - procedência'!M21 -> 0.937414966 | F21: ='CV Rotina <2A - procedência'!O21 -> 0.9346938776 | G21: ='CV Rotina <2A - procedência'!Q21 -> 0.9326530612 | H21: ='CV Rotina <2A - procedência'!Y21 -> 0.974829932 | I21: ='CV Rotina <2A - procedência'!S21 -> 0.9727891156 | J21: ='CV Rotina <2A - procedência'!U21 -> 0.7170068027 | K21: ='CV Rotina <2A - procedência'!W21 -> 0.9210884354 | L21: ='CV Rotina <2A - procedência'!AA21 -> 0.8571428571 | M21: 1 | N21: 2 | O21: 3 | P21: 1
A22: Norte | B22: Conceição da Barra | C22: ='CV Rotina <2A - procedência'!K22 -> 0.0703125 | D22: ='CV Rotina <2A - procedência'!#REF! ->  | E22: ='CV Rotina <2A - procedência'!M22 -> 0.953125 | F22: ='CV Rotina <2A - procedência'!O22 -> 0.9583333333 | G22: ='CV Rotina <2A - procedência'!Q22 -> 0.8932291667 | H22: ='CV Rotina <2A - procedência'!Y22 -> 1.072916667 | I22: ='CV Rotina <2A - procedência'!S22 -> 0.9088541667 | J22: ='CV Rotina <2A - procedência'!U22 -> 0.8541666667 | K22: ='CV Rotina <2A - procedência'!W22 -> 1.067708333 | L22: ='CV Rotina <2A - procedência'!AA22 -> 1.0078125 | M22: 0 | N22: 5 | O22: 5 | P22: 3
A23: Metropolitana | B23: Conceição do Castelo | C23: ='CV Rotina <2A - procedência'!K23 -> 0.2142857143 | D23: ='CV Rotina <2A - procedência'!#REF! ->  | E23: ='CV Rotina <2A - procedência'!M23 -> 0.8736263736 | F23: ='CV Rotina <2A - procedência'!O23 -> 0.8241758242 | G23: ='CV Rotina <2A - procedência'!Q23 -> 0.5714285714 | H23: ='CV Rotina <2A - procedência'!Y23 -> 0.8736263736 | I23: ='CV Rotina <2A - procedência'!S23 -> 0.8021978022 | J23: ='CV Rotina <2A - procedência'!U23 -> 0.7472527473 | K23: ='CV Rotina <2A - procedência'!W23 -> 0.7747252747 | L23: ='CV Rotina <2A - procedência'!AA23 -> 0.8846153846 | M23: 0 | N23: 0 | O23: 0 | P23: 0
A24: Sul | B24: Divino de São Lourenço | C24: ='CV Rotina <2A - procedência'!K24 -> 0.8769230769 | D24: ='CV Rotina <2A - procedência'!#REF! ->  | E24: ='CV Rotina <2A - procedência'!M24 -> 0.7230769231 | F24: ='CV Rotina <2A - procedência'!O24 -> 0.7230769231 | G24: ='CV Rotina <2A - procedência'!Q24 -> 0.7538461538 | H24: ='CV Rotina <2A - procedência'!Y24 -> 1.107692308 | I24: ='CV Rotina <2A - procedência'!S24 -> 0.7846153846 | J24: ='CV Rotina <2A - procedência'!U24 -> 0.8923076923 | K24: ='CV Rotina <2A - procedência'!W24 -> 1.046153846 | L24: ='CV Rotina <2A - procedência'!AA24 -> 1.138461538 | M24: 0 | N24: 3 | O24: 3 | P24: 1
A25: Metropolitana | B25: Domingos Martins | C25: ='CV Rotina <2A - procedência'!K25 -> 0.1529411765 | D25: ='CV Rotina <2A - procedência'!#REF! ->  | E25: ='CV Rotina <2A - procedência'!M25 -> 1.016470588 | F25: ='CV Rotina <2A - procedência'!O25 -> 1.007058824 | G25: ='CV Rotina <2A - procedência'!Q25 -> 0.8823529412 | H25: ='CV Rotina <2A - procedência'!Y25 -> 0.9835294118 | I25: ='CV Rotina <2A - procedência'!S25 -> 0.9411764706 | J25: ='CV Rotina <2A - procedência'!U25 -> 0.88 | K25: ='CV Rotina <2A - procedência'!W25 -> 0.9976470588 | L25: ='CV Rotina <2A - procedência'!AA25 -> 1.042352941 | M25: 0 | N25: 5 | O25: 5 | P25: 3
A26: Sul | B26: Dores do Rio Preto | C26: ='CV Rotina <2A - procedência'!K26 -> 0.75 | D26: ='CV Rotina <2A - procedência'!#REF! ->  | E26: ='CV Rotina <2A - procedência'!M26 -> 1.25 | F26: ='CV Rotina <2A - procedência'!O26 -> 1.25 | G26: ='CV Rotina <2A - procedência'!Q26 -> 0.8541666667 | H26: ='CV Rotina <2A - procedência'!Y26 -> 1.15625 | I26: ='CV Rotina <2A - procedência'!S26 -> 1.15625 | J26: ='CV Rotina <2A - procedência'!U26 -> 0.9375 | K26: ='CV Rotina <2A - procedência'!W26 -> 1.09375 | L26: ='CV Rotina <2A - procedência'!AA26 -> 1.010416667 | M26: 0 | N26: 6 | O26: 6 | P26: 3
A27: Norte | B27: Ecoporanga | C27: ='CV Rotina <2A - procedência'!K27 -> 0.3458333333 | D27: ='CV Rotina <2A - procedência'!#REF! ->  | E27: ='CV Rotina <2A - procedência'!M27 -> 1.033333333 | F27: ='CV Rotina <2A - procedência'!O27 -> 1.016666667 | G27: ='CV Rotina <2A - procedência'!Q27 -> 1.020833333 | H27: ='CV Rotina <2A - procedência'!Y27 -> 1.041666667 | I27: ='CV Rotina <2A - procedência'!S27 -> 1.016666667 | J27: ='CV Rotina <2A - procedência'!U27 -> 0.85 | K27: ='CV Rotina <2A - procedência'!W27 -> 1 | L27: ='CV Rotina <2A - procedência'!AA27 -> 0.9125 | M27: 0 | N27: 6 | O27: 6 | P27: 4
A28: Metropolitana | B28: Fundão | C28: ='CV Rotina <2A - procedência'!K28 -> 0.1614349776 | D28: ='CV Rotina <2A - procedência'!#REF! ->  | E28: ='CV Rotina <2A - procedência'!M28 -> 1.076233184 | F28: ='CV Rotina <2A - procedência'!O28 -> 1.080717489 | G28: ='CV Rotina <2A - procedência'!Q28 -> 0.9596412556 | H28: ='CV Rotina <2A - procedência'!Y28 -> 1.031390135 | I28: ='CV Rotina <2A - procedência'!S28 -> 1.067264574 | J28: ='CV Rotina <2A - procedência'!U28 -> 0.7488789238 | K28: ='CV Rotina <2A - procedência'!W28 -> 0.9506726457 | L28: ='CV Rotina <2A - procedência'!AA28 -> 0.9596412556 | M28: 0 | N28: 7 | O28: 7 | P28: 4
A29: Central | B29: Governador Lindenberg | C29: ='CV Rotina <2A - procedência'!K29 -> 0.324137931 | D29: ='CV Rotina <2A - procedência'!#REF! ->  | E29: ='CV Rotina <2A - procedência'!M29 -> 0.7103448276 | F29: ='CV Rotina <2A - procedência'!O29 -> 0.7172413793 | G29: ='CV Rotina <2A - procedência'!Q29 -> 0.7172413793 | H29: ='CV Rotina <2A - procedência'!Y29 -> 0.8620689655 | I29: ='CV Rotina <2A - procedência'!S29 -> 0.7586206897 | J29: ='CV Rotina <2A - procedência'!U29 -> 0.6413793103 | K29: ='CV Rotina <2A - procedência'!W29 -> 0.8206896552 | L29: ='CV Rotina <2A - procedência'!AA29 -> 0.7862068966 | M29: 0 | N29: 0 | O29: 0 | P29: 0
A30: Sul | B30: Guaçuí | C30: ='CV Rotina <2A - procedência'!K30 -> 0.6899224806 | D30: ='CV Rotina <2A - procedência'!#REF! ->  | E30: ='CV Rotina <2A - procedência'!M30 -> 0.7984496124 | F30: ='CV Rotina <2A - procedência'!O30 -> 0.7881136951 | G30: ='CV Rotina <2A - procedência'!Q30 -> 0.8294573643 | H30: ='CV Rotina <2A - procedência'!Y30 -> 0.8863049096 | I30: ='CV Rotina <2A - procedência'!S30 -> 0.8242894057 | J30: ='CV Rotina <2A - procedência'!U30 -> 0.6950904393 | K30: ='CV Rotina <2A - procedência'!W30 -> 0.8242894057 | L30: ='CV Rotina <2A - procedência'!AA30 -> 0.8010335917 | M30: 0 | N30: 0 | O30: 0 | P30: 0
A31: Metropolitana | B31: Guarapari | C31: ='CV Rotina <2A - procedência'!K31 -> 0.8366485835 | D31: ='CV Rotina <2A - procedência'!#REF! ->  | E31: ='CV Rotina <2A - procedência'!M31 -> 0.8270042194 | F31: ='CV Rotina <2A - procedência'!O31 -> 0.8209764919 | G31: ='CV Rotina <2A - procedência'!Q31 -> 0.877034358 | H31: ='CV Rotina <2A - procedência'!Y31 -> 0.8734177215 | I31: ='CV Rotina <2A - procedência'!S31 -> 0.8661844485 | J31: ='CV Rotina <2A - procedência'!U31 -> 0.575045208 | K31: ='CV Rotina <2A - procedência'!W31 -> 0.833031947 | L31: ='CV Rotina <2A - procedência'!AA31 -> 0.7329716697 | M31: 0 | N31: 0 | O31: 0 | P31: 0
A32: Metropolitana | B32: Ibatiba | C32: ='CV Rotina <2A - procedência'!K32 -> 0.7738693467 | D32: ='CV Rotina <2A - procedência'!#REF! ->  | E32: ='CV Rotina <2A - procedência'!M32 -> 0.9798994975 | F32: ='CV Rotina <2A - procedência'!O32 -> 0.9673366834 | G32: ='CV Rotina <2A - procedência'!Q32 -> 0.9296482412 | H32: ='CV Rotina <2A - procedência'!Y32 -> 1.027638191 | I32: ='CV Rotina <2A - procedência'!S32 -> 0.9798994975 | J32: ='CV Rotina <2A - procedência'!U32 -> 0.8592964824 | K32: ='CV Rotina <2A - procedência'!W32 -> 1.052763819 | L32: ='CV Rotina <2A - procedência'!AA32 -> 0.9748743719 | M32: 0 | N32: 6 | O32: 6 | P32: 3
A33: Metropolitana | B33: Ibiraçu | C33: ='CV Rotina <2A - procedência'!K33 -> 0.2913385827 | D33: ='CV Rotina <2A - procedência'!#REF! ->  | E33: ='CV Rotina <2A - procedência'!M33 -> 0.9606299213 | F33: ='CV Rotina <2A - procedência'!O33 -> 0.9448818898 | G33: ='CV Rotina <2A - procedência'!Q33 -> 0.8976377953 | H33: ='CV Rotina <2A - procedência'!Y33 -> 1.220472441 | I33: ='CV Rotina <2A - procedência'!S33 -> 0.9763779528 | J33: ='CV Rotina <2A - procedência'!U33 -> 0.8267716535 | K33: ='CV Rotina <2A - procedência'!W33 -> 1.094488189 | L33: ='CV Rotina <2A - procedência'!AA33 -> 1.118110236 | M33: 0 | N33: 5 | O33: 5 | P33: 2
A34: Sul | B34: Ibitirama | C34: ='CV Rotina <2A - procedência'!K34 -> 0.6928571429 | D34: ='CV Rotina <2A - procedência'!#REF! ->  | E34: ='CV Rotina <2A - procedência'!M34 -> 1.064285714 | F34: ='CV Rotina <2A - procedência'!O34 -> 1.042857143 | G34: ='CV Rotina <2A - procedência'!Q34 -> 1.064285714 | H34: ='CV Rotina <2A - procedência'!Y34 -> 1.014285714 | I34: ='CV Rotina <2A - procedência'!S34 -> 1.085714286 | J34: ='CV Rotina <2A - procedência'!U34 -> 0.85 | K34: ='CV Rotina <2A - procedência'!W34 -> 0.9214285714 | L34: ='CV Rotina <2A - procedência'!AA34 -> 0.9642857143 | M34: 0 | N34: 6 | O34: 6 | P34: 4
A35: Sul | B35: Iconha | C35: ='CV Rotina <2A - procedência'!K35 -> 0.4676258993 | D35: ='CV Rotina <2A - procedência'!#REF! ->  | E35: ='CV Rotina <2A - procedência'!M35 -> 0.8129496403 | F35: ='CV Rotina <2A - procedência'!O35 -> 0.8129496403 | G35: ='CV Rotina <2A - procedência'!Q35 -> 0.7410071942 | H35: ='CV Rotina <2A - procedência'!Y35 -> 0.7769784173 | I35: ='CV Rotina <2A - procedência'!S35 -> 0.8561151079 | J35: ='CV Rotina <2A - procedência'!U35 -> 0.7769784173 | K35: ='CV Rotina <2A - procedência'!W35 -> 0.7410071942 | L35: ='CV Rotina <2A - procedência'!AA35 -> 0.9424460432 | M35: =COUNTIF(C35:D35,">=0,9") -> 0 | N35: =COUNTIFS(E35:L35,">=0,95") -> 0 | O35: 0 | P35: 0
A36: Sul | B36: Irupi | C36: ='CV Rotina <2A - procedência'!K36 -> 0.6188118812 | D36: ='CV Rotina <2A - procedência'!#REF! ->  | E36: ='CV Rotina <2A - procedência'!M36 -> 0.9108910891 | F36: ='CV Rotina <2A - procedência'!O36 -> 0.8861386139 | G36: ='CV Rotina <2A - procedência'!Q36 -> 0.8465346535 | H36: ='CV Rotina <2A - procedência'!Y36 -> 0.9603960396 | I36: ='CV Rotina <2A - procedência'!S36 -> 0.9158415842 | J36: ='CV Rotina <2A - procedência'!U36 -> 0.8267326733 | K36: ='CV Rotina <2A - procedência'!W36 -> 1.084158416 | L36: ='CV Rotina <2A - procedência'!AA36 -> 0.8613861386 | M36: 0 | N36: 2 | O36: 2 | P36: 1
A37: Metropolitana | B37: Itaguaçu | C37: ='CV Rotina <2A - procedência'!K37 -> 0.2213114754 | D37: ='CV Rotina <2A - procedência'!#REF! ->  | E37: ='CV Rotina <2A - procedência'!M37 -> 1 | F37: ='CV Rotina <2A - procedência'!O37 -> 1 | G37: ='CV Rotina <2A - procedência'!Q37 -> 0.8606557377 | H37: ='CV Rotina <2A - procedência'!Y37 -> 1.278688525 | I37: ='CV Rotina <2A - procedência'!S37 -> 0.9016393443 | J37: ='CV Rotina <2A - procedência'!U37 -> 1.139344262 | K37: ='CV Rotina <2A - procedência'!W37 -> 1.270491803 | L37: ='CV Rotina <2A - procedência'!AA37 -> 1.31147541 | M37: 0 | N37: 6 | O37: 6 | P37: 3
A38: Sul | B38: Itapemirim | C38: ='CV Rotina <2A - procedência'!K38 -> 0.4730769231 | D38: ='CV Rotina <2A - procedência'!#REF! ->  | E38: ='CV Rotina <2A - procedência'!M38 -> 0.7846153846 | F38: ='CV Rotina <2A - procedência'!O38 -> 0.7403846154 | G38: ='CV Rotina <2A - procedência'!Q38 -> 0.8730769231 | H38: ='CV Rotina <2A - procedência'!Y38 -> 0.8692307692 | I38: ='CV Rotina <2A - procedência'!S38 -> 0.85 | J38: ='CV Rotina <2A - procedência'!U38 -> 0.5538461538 | K38: ='CV Rotina <2A - procedência'!W38 -> 0.8 | L38: ='CV Rotina <2A - procedência'!AA38 -> 0.7096153846 | M38: 0 | N38: 0 | O38: 0 | P38: 0
A39: Metropolitana | B39: Itarana | C39: ='CV Rotina <2A - procedência'!K39 -> 0.1459854015 | D39: ='CV Rotina <2A - procedência'!#REF! ->  | E39: ='CV Rotina <2A - procedência'!M39 -> 0.8102189781 | F39: ='CV Rotina <2A - procedência'!O39 -> 0.8102189781 | G39: ='CV Rotina <2A - procedência'!Q39 -> 0.7372262774 | H39: ='CV Rotina <2A - procedência'!Y39 -> 0.9781021898 | I39: ='CV Rotina <2A - procedência'!S39 -> 0.7737226277 | J39: ='CV Rotina <2A - procedência'!U39 -> 0.8102189781 | K39: ='CV Rotina <2A - procedência'!W39 -> 1.01459854 | L39: ='CV Rotina <2A - procedência'!AA39 -> 1.02919708 | M39: 0 | N39: 3 | O39: 3 | P39: 1
A40: Sul | B40: Iúna | C40: ='CV Rotina <2A - procedência'!K40 -> 0.8123324397 | D40: ='CV Rotina <2A - procedência'!#REF! ->  | E40: ='CV Rotina <2A - procedência'!M40 -> 0.981233244 | F40: ='CV Rotina <2A - procedência'!O40 -> 0.9892761394 | G40: ='CV Rotina <2A - procedência'!Q40 -> 0.9731903485 | H40: ='CV Rotina <2A - procedência'!Y40 -> 1.080428954 | I40: ='CV Rotina <2A - procedência'!S40 -> 0.9758713137 | J40: ='CV Rotina <2A - procedência'!U40 -> 0.8713136729 | K40: ='CV Rotina <2A - procedência'!W40 -> 1.150134048 | L40: ='CV Rotina <2A - procedência'!AA40 -> 1.042895442 | M40: 0 | N40: 7 | O40: 7 | P40: 4
A41: Norte | B41: Jaguaré | C41: ='CV Rotina <2A - procedência'!K41 -> 0.704989154 | D41: ='CV Rotina <2A - procedência'!#REF! ->  | E41: ='CV Rotina <2A - procedência'!M41 -> 0.885032538 | F41: ='CV Rotina <2A - procedência'!O41 -> 0.8720173536 | G41: ='CV Rotina <2A - procedência'!Q41 -> 0.8806941432 | H41: ='CV Rotina <2A - procedência'!Y41 -> 1.054229935 | I41: ='CV Rotina <2A - procedência'!S41 -> 0.9197396963 | J41: ='CV Rotina <2A - procedência'!U41 -> 0.7852494577 | K41: ='CV Rotina <2A - procedência'!W41 -> 1.034707158 | L41: ='CV Rotina <2A - procedência'!AA41 -> 0.8329718004 | M41: 0 | N41: 2 | O41: 2 | P41: 1
A42: Sul | B42: Jerônimo Monteiro | C42: ='CV Rotina <2A - procedência'!K42 -> 0.1028037383 | D42: ='CV Rotina <2A - procedência'!#REF! ->  | E42: ='CV Rotina <2A - procedência'!M42 -> 0.953271028 | F42: ='CV Rotina <2A - procedência'!O42 -> 0.953271028 | G42: ='CV Rotina <2A - procedência'!Q42 -> 0.9252336449 | H42: ='CV Rotina <2A - procedência'!Y42 -> 1.224299065 | I42: ='CV Rotina <2A - procedência'!S42 -> 1.018691589 | J42: ='CV Rotina <2A - procedência'!U42 -> 0.8785046729 | K42: ='CV Rotina <2A - procedência'!W42 -> 1.214953271 | L42: ='CV Rotina <2A - procedência'!AA42 -> 1.186915888 | M42: 0 | N42: 6 | O42: 6 | P42: 3
A43: Metropolitana | B43: João Neiva | C43: ='CV Rotina <2A - procedência'!K43 -> 0.2978723404 | D43: ='CV Rotina <2A - procedência'!#REF! ->  | E43: ='CV Rotina <2A - procedência'!M43 -> 1.056737589 | F43: ='CV Rotina <2A - procedência'!O43 -> 1.028368794 | G43: ='CV Rotina <2A - procedência'!Q43 -> 0.914893617 | H43: ='CV Rotina <2A - procedência'!Y43 -> 1.113475177 | I43: ='CV Rotina <2A - procedência'!S43 -> 0.9929078014 | J43: ='CV Rotina <2A - procedência'!U43 -> 0.9219858156 | K43: ='CV Rotina <2A - procedência'!W43 -> 1.106382979 | L43: ='CV Rotina <2A - procedência'!AA43 -> 1.078014184 | M43: 0 | N43: 6 | O43: 6 | P43: 3
A44: Metropolitana | B44: Laranja da Terra | C44: ='CV Rotina <2A - procedência'!K44 -> 0.1666666667 | D44: ='CV Rotina <2A - procedência'!#REF! ->  | E44: ='CV Rotina <2A - procedência'!M44 -> 1.105263158 | F44: ='CV Rotina <2A - procedência'!O44 -> 1.105263158 | G44: ='CV Rotina <2A - procedência'!Q44 -> 1.131578947 | H44: ='CV Rotina <2A - procedência'!Y44 -> 0.9649122807 | I44: ='CV Rotina <2A - procedência'!S44 -> 1.122807018 | J44: ='CV Rotina <2A - procedência'!U44 -> 0.8596491228 | K44: ='CV Rotina <2A - procedência'!W44 -> 0.9122807018 | L44: ='CV Rotina <2A - procedência'!AA44 -> 1.035087719 | M44: 0 | N44: 6 | O44: 6 | P44: 4
A45: Central | B45: Linhares | C45: ='CV Rotina <2A - procedência'!K45 -> 1.248685199 | D45: ='CV Rotina <2A - procedência'!#REF! ->  | E45: ='CV Rotina <2A - procedência'!M45 -> 0.856498873 | F45: ='CV Rotina <2A - procedência'!O45 -> 0.8354620586 | G45: ='CV Rotina <2A - procedência'!Q45 -> 0.8884297521 | H45: ='CV Rotina <2A - procedência'!Y45 -> 0.9068369647 | I45: ='CV Rotina <2A - procedência'!S45 -> 0.9203606311 | J45: ='CV Rotina <2A - procedência'!U45 -> 0.667918858 | K45: ='CV Rotina <2A - procedência'!W45 -> 0.830202855 | L45: ='CV Rotina <2A - procedência'!AA45 -> 0.7464312547 | M45: 1 | N45: 0 | O45: 1 | P45: 0
A46: Central | B46: Mantenópolis | C46: ='CV Rotina <2A - procedência'!K46 -> 0.2785714286 | D46: ='CV Rotina <2A - procedência'!#REF! ->  | E46: ='CV Rotina <2A - procedência'!M46 -> 0.9214285714 | F46: ='CV Rotina <2A - procedência'!O46 -> 0.8857142857 | G46: ='CV Rotina <2A - procedência'!Q46 -> 0.8142857143 | H46: ='CV Rotina <2A - procedência'!Y46 -> 1.05 | I46: ='CV Rotina <2A - procedência'!S46 -> 0.9 | J46: ='CV Rotina <2A - procedência'!U46 -> 0.8928571429 | K46: ='CV Rotina <2A - procedência'!W46 -> 1.035714286 | L46: ='CV Rotina <2A - procedência'!AA46 -> 1.142857143 | M46: 0 | N46: 3 | O46: 3 | P46: 1
A47: Sul | B47: Marataízes | C47: ='CV Rotina <2A - procedência'!K47 -> 0.4511545293 | D47: ='CV Rotina <2A - procedência'!#REF! ->  | E47: ='CV Rotina <2A - procedência'!M47 -> 0.9555950266 | F47: ='CV Rotina <2A - procedência'!O47 -> 0.8454706927 | G47: ='CV Rotina <2A - procedência'!Q47 -> 1.023090586 | H47: ='CV Rotina <2A - procedência'!Y47 -> 1.03374778 | I47: ='CV Rotina <2A - procedência'!S47 -> 0.9644760213 | J47: ='CV Rotina <2A - procedência'!U47 -> 0.6358792185 | K47: ='CV Rotina <2A - procedência'!W47 -> 1.026642984 | L47: ='CV Rotina <2A - procedência'!AA47 -> 0.8792184725 | M47: 0 | N47: 5 | O47: 5 | P47: 3
A48: Metropolitana | B48: Marechal Floriano | C48: ='CV Rotina <2A - procedência'!K48 -> 0.1634615385 | D48: ='CV Rotina <2A - procedência'!#REF! ->  | E48: ='CV Rotina <2A - procedência'!M48 -> 0.9663461538 | F48: ='CV Rotina <2A - procedência'!O48 -> 0.9759615385 | G48: ='CV Rotina <2A - procedência'!Q48 -> 0.8990384615 | H48: ='CV Rotina <2A - procedência'!Y48 -> 0.9519230769 | I48: ='CV Rotina <2A - procedência'!S48 -> 0.9230769231 | J48: ='CV Rotina <2A - procedência'!U48 -> 0.8028846154 | K48: ='CV Rotina <2A - procedência'!W48 -> 1.033653846 | L48: ='CV Rotina <2A - procedência'!AA48 -> 1.028846154 | M48: 0 | N48: 5 | O48: 5 | P48: 3
A49: Central | B49: Marilândia | C49: ='CV Rotina <2A - procedência'!K49 -> 0.3823529412 | D49: ='CV Rotina <2A - procedência'!#REF! ->  | E49: ='CV Rotina <2A - procedência'!M49 -> 0.7764705882 | F49: ='CV Rotina <2A - procedência'!O49 -> 0.7882352941 | G49: ='CV Rotina <2A - procedência'!Q49 -> 0.7529411765 | H49: ='CV Rotina <2A - procedência'!Y49 -> 0.9 | I49: ='CV Rotina <2A - procedência'!S49 -> 0.7352941176 | J49: ='CV Rotina <2A - procedência'!U49 -> 0.8117647059 | K49: ='CV Rotina <2A - procedência'!W49 -> 0.8588235294 | L49: ='CV Rotina <2A - procedência'!AA49 -> 0.9 | M49: 0 | N49: 0 | O49: 0 | P49: 0
A50: Sul | B50: Mimoso do Sul | C50: ='CV Rotina <2A - procedência'!K50 -> 0.1481481481 | D50: ='CV Rotina <2A - procedência'!#REF! ->  | E50: ='CV Rotina <2A - procedência'!M50 -> 0.9185185185 | F50: ='CV Rotina <2A - procedência'!O50 -> 0.8703703704 | G50: ='CV Rotina <2A - procedência'!Q50 -> 0.9 | H50: ='CV Rotina <2A - procedência'!Y50 -> 0.8111111111 | I50: ='CV Rotina <2A - procedência'!S50 -> 0.8851851852 | J50: ='CV Rotina <2A - procedência'!U50 -> 0.7777777778 | K50: ='CV Rotina <2A - procedência'!W50 -> 0.6814814815 | L50: ='CV Rotina <2A - procedência'!AA50 -> 0.7259259259 | M50: 0 | N50: 0 | O50: 0 | P50: 0
A51: Norte | B51: Montanha | C51: ='CV Rotina <2A - procedência'!K51 -> 0.3849372385 | D51: ='CV Rotina <2A - procedência'!#REF! ->  | E51: ='CV Rotina <2A - procedência'!M51 -> 1.020920502 | F51: ='CV Rotina <2A - procedência'!O51 -> 1.025104603 | G51: ='CV Rotina <2A - procedência'!Q51 -> 1.125523013 | H51: ='CV Rotina <2A - procedência'!Y51 -> 1.092050209 | I51: ='CV Rotina <2A - procedência'!S51 -> 1.054393305 | J51: ='CV Rotina <2A - procedência'!U51 -> 0.8242677824 | K51: ='CV Rotina <2A - procedência'!W51 -> 1.025104603 | L51: ='CV Rotina <2A - procedência'!AA51 -> 1.075313808 | M51: 0 | N51: 7 | O51: 7 | P51: 4
A52: Norte | B52: Mucurici | C52: ='CV Rotina <2A - procedência'!K52 -> 0.1071428571 | D52: ='CV Rotina <2A - procedência'!#REF! ->  | E52: ='CV Rotina <2A - procedência'!M52 -> 1.160714286 | F52: ='CV Rotina <2A - procedência'!O52 -> 1.142857143 | G52: ='CV Rotina <2A - procedência'!Q52 -> 1.125 | H52: ='CV Rotina <2A - procedência'!Y52 -> 1.178571429 | I52: ='CV Rotina <2A - procedência'!S52 -> 1.017857143 | J52: ='CV Rotina <2A - procedência'!U52 -> 1.053571429 | K52: ='CV Rotina <2A - procedência'!W52 -> 1.196428571 | L52: ='CV Rotina <2A - procedência'!AA52 -> 1.178571429 | M52: 0 | N52: 8 | O52: 8 | P52: 4
A53: Sul | B53: Muniz Freire | C53: ='CV Rotina <2A - procedência'!K53 -> 0.5560165975 | D53: ='CV Rotina <2A - procedência'!#REF! ->  | E53: ='CV Rotina <2A - procedência'!M53 -> 0.9128630705 | F53: ='CV Rotina <2A - procedência'!O53 -> 0.9128630705 | G53: ='CV Rotina <2A - procedência'!Q53 -> 0.9917012448 | H53: ='CV Rotina <2A - procedência'!Y53 -> 0.9917012448 | I53: ='CV Rotina <2A - procedência'!S53 -> 0.9004149378 | J53: ='CV Rotina <2A - procedência'!U53 -> 0.8921161826 | K53: ='CV Rotina <2A - procedência'!W53 -> 0.9917012448 | L53: ='CV Rotina <2A - procedência'!AA53 -> 1.053941909 | M53: 0 | N53: 4 | O53: 4 | P53: 2
A54: Sul | B54: Muqui | C54: ='CV Rotina <2A - procedência'!K54 -> 0.135483871 | D54: ='CV Rotina <2A - procedência'!#REF! ->  | E54: ='CV Rotina <2A - procedência'!M54 -> 0.9870967742 | F54: ='CV Rotina <2A - procedência'!O54 -> 0.9935483871 | G54: ='CV Rotina <2A - procedência'!Q54 -> 0.9612903226 | H54: ='CV Rotina <2A - procedência'!Y54 -> 0.9870967742 | I54: ='CV Rotina <2A - procedência'!S54 -> 0.9483870968 | J54: ='CV Rotina <2A - procedência'!U54 -> 0.8967741935 | K54: ='CV Rotina <2A - procedência'!W54 -> 0.9870967742 | L54: ='CV Rotina <2A - procedência'!AA54 -> 1.058064516 | M54: 0 | N54: 6 | O54: 6 | P54: 4
A55: Norte | B55: Nova Venécia | C55: ='CV Rotina <2A - procedência'!K55 -> 0.6699576869 | D55: ='CV Rotina <2A - procedência'!#REF! ->  | E55: ='CV Rotina <2A - procedência'!M55 -> 0.8462623413 | F55: ='CV Rotina <2A - procedência'!O55 -> 0.8335684062 | G55: ='CV Rotina <2A - procedência'!Q55 -> 0.7418899859 | H55: ='CV Rotina <2A - procedência'!Y55 -> 0.9266572638 | I55: ='CV Rotina <2A - procedência'!S55 -> 0.8490832158 | J55: ='CV Rotina <2A - procedência'!U55 -> 0.7461212976 | K55: ='CV Rotina <2A - procedência'!W55 -> 0.8688293371 | L55: ='CV Rotina <2A - procedência'!AA55 -> 0.7743300423 | M55: 0 | N55: 0 | O55: 0 | P55: 0
A56: Central | B56: Pancas | C56: ='CV Rotina <2A - procedência'!K56 -> 0.4857142857 | D56: ='CV Rotina <2A - procedência'!#REF! ->  | E56: ='CV Rotina <2A - procedência'!M56 -> 1.004761905 | F56: ='CV Rotina <2A - procedência'!O56 -> 1.00952381 | G56: ='CV Rotina <2A - procedência'!Q56 -> 0.9523809524 | H56: ='CV Rotina <2A - procedência'!Y56 -> 1 | I56: ='CV Rotina <2A - procedência'!S56 -> 1.014285714 | J56: ='CV Rotina <2A - procedência'!U56 -> 0.880952381 | K56: ='CV Rotina <2A - procedência'!W56 -> 0.9523809524 | L56: ='CV Rotina <2A - procedência'!AA56 -> 1.014285714 | M56: 0 | N56: 7 | O56: 7 | P56: 4
A57: Norte | B57: Pedro Canário | C57: ='CV Rotina <2A - procedência'!K57 -> 0.111747851 | D57: ='CV Rotina <2A - procedência'!#REF! ->  | E57: ='CV Rotina <2A - procedência'!M57 -> 0.9054441261 | F57: ='CV Rotina <2A - procedência'!O57 -> 0.8624641834 | G57: ='CV Rotina <2A - procedência'!Q57 -> 0.8853868195 | H57: ='CV Rotina <2A - procedência'!Y57 -> 1.011461318 | I57: ='CV Rotina <2A - procedência'!S57 -> 0.888252149 | J57: ='CV Rotina <2A - procedência'!U57 -> 0.6876790831 | K57: ='CV Rotina <2A - procedência'!W57 -> 0.9799426934 | L57: ='CV Rotina <2A - procedência'!AA57 -> 0.9283667622 | M57: 0 | N57: 2 | O57: 2 | P57: 1
A58: Norte | B58: Pinheiros | C58: ='CV Rotina <2A - procedência'!K58 -> 0.05405405405 | D58: ='CV Rotina <2A - procedência'!#REF! ->  | E58: ='CV Rotina <2A - procedência'!M58 -> 0.8468468468 | F58: ='CV Rotina <2A - procedência'!O58 -> 0.8348348348 | G58: ='CV Rotina <2A - procedência'!Q58 -> 0.8618618619 | H58: ='CV Rotina <2A - procedência'!Y58 -> 0.8708708709 | I58: ='CV Rotina <2A - procedência'!S58 -> 0.8678678679 | J58: ='CV Rotina <2A - procedência'!U58 -> 0.7237237237 | K58: ='CV Rotina <2A - procedência'!W58 -> 0.8108108108 | L58: ='CV Rotina <2A - procedência'!AA58 -> 0.8348348348 | M58: 0 | N58: 0 | O58: 0 | P58: 0
